Workbook

Sheet Guidance >
A1: =MID(_xlfn.SINGLE(CELL( "filename", $A$1 )), SEARCH( "[",_xlfn.SINGLE(CELL( "filename", $A$1 ) )) + 1, SEARCH( "]",_xlfn.SINGLE(CELL( "filename", $A$1 ) )) - SEARCH( "[",_xlfn.SINGLE(CELL( "filename", $A$1 ) )) - 1 ) -> CAA NERL PCM Decisions_10h - v1.00 - FD for publication.xlsm
B2: =RIGHT(CELL( "filename", B2 ), LEN(CELL( "filename", B2 ) ) - SEARCH( "]",CELL( "filename", B2 ) ) ) -> Guidance >

Sheet Introduction
A1: =MID(CELL( "filename", $A$1 ), SEARCH( "[",CELL( "filename", $A$1 ) ) + 1, SEARCH( "]",CELL( "filename", $A$1 ) ) - SEARCH( "[",CELL( "filename", $A$1 ) ) - 1 ) -> CAA NERL PCM Decisions_10h - v1.00 - FD for publication.xlsm
B2: =RIGHT(CELL( "filename", B2 ), LEN(CELL( "filename", B2 ) ) - SEARCH( "]",CELL( "filename", B2 ) ) ) -> Introduction
B4: Development of Financial Model
B5: The Civil Aviation Authority (CAA) provides this Price Control Model (PCM). It is prepared to inform the price controls for NATS En-Route PLC (NERL) for the NR23 period which will cover the UK En route (UKATS) price control and Oceanic (North Atlantic) region. The purposes of the PCM is to calculate the charges and assess the financability of a notional modelled company under various pricing scenarios. The inputs, calculations and outputs in the PCM are solely for the purposes stated above. There may be discrepancies with other related data sources due to different assumptions used, different time periods, etc. This model is published alongside the CAA’s final decision (CAP2597 published in October 2023) and the inputs in the model reflects CAA’s assumptions in the initial proposals. All questions and comments related to the PCM should be directed to the CAA (omo.ugowe@caa.co.uk and dan.rock@caa.co.uk).
A7: End of spreadsheet

Sheet Version log
A1: =MID(CELL( "filename", $A$1 ), SEARCH( "[",CELL( "filename", $A$1 ) ) + 1, SEARCH( "]",CELL( "filename", $A$1 ) ) - SEARCH( "[",CELL( "filename", $A$1 ) ) - 1 ) -> CAA NERL PCM Decisions_10h - v1.00 - FD for publication.xlsm
B2: =RIGHT(CELL( "filename", B2 ), LEN(CELL( "filename", B2 ) ) - SEARCH( "]",CELL( "filename", B2 ) ) ) -> Version log
E5: Version Log | S5: Live | V5: Version Movement
E7: Version number | F7: Date | G7: File name | H7: Change Info | I7: Change suggested by | J7: Type of change | K7: Additional notes | L7: Modeller | N7: Checks & Alerts | O7: Live Scenario | P7: Model Mode | Q7: Last Model Solve | S7: NR23 End Combined RAB (£000, Nominal Y/E) | T7: CAA - Determined Unit Costs NR23 (£/CSUs, CPI 2020) | V7: NR23 End Combined RAB (£000, Nominal Y/E) | W7: CAA - Determined Unit Costs NR23 (£/CSUs, CPI 2020)
E8: =_xlfn.TEXTBEFORE(_xlfn.TEXTAFTER(A1, "_"), ".xlsb") ->  | F8: =TODAY( ) -> 2023-10-25 | G8: =MID( CELL( "filename", A1 ), FIND( "[", CELL( "filename", A1 ) ) + 1, FIND( "]", CELL( "filename", A1 ) ) - FIND( "[", CELL( "filename", A1 ) ) - 1 ) -> CAA NERL PCM Decisions_10h - v1.00 - FD for publication.xlsm | N8: -1 | O8: =Live_scenario -> Base - Flat | P8: =Model_Mode -> Price Determination | Q8: =rTimestamp -> 2023-10-12T11:20:55 | S8: =SUMPRODUCT(O_RAB!AA74:BJ74 * (C_Time!AA176:BJ176 = 1)) -> 1499519.236 | T8: =AVERAGEIFS(O_Dashboard!$AA$138:$BJ$138, O_Dashboard!$AA$12:$BJ$12, "NR23") -> 46.97131523 | V8: =IF(ABS(N(S7) <> 0), ROUND(S8 - S7, CheckTOL), 0) -> 0 | W8: =IF(ABS(N(T7) <> 0), T8 - T7, 0) -> 0
E10: Version number | F10: Date | G10: File name | H10: Change Info | I10: Change suggested by | J10: Type of change | K10: Additional notes | L10: Modeller | N10: Checks & Alerts | O10: Live Scenario | P10: Model Mode | Q10: Last Model Solve | S10: NR23 End Combined RAB (£000, Nominal Y/E) | T10: CAA - Determined Unit Costs NR23 (£/CSUs, CPI 2020) | V10: NR23 End Combined RAB (£000, Nominal Y/E) | W10: CAA - Determined Unit Costs NR23 (£/CSUs, CPI 2020)
E11: 10g - v1.00 - Unlocked | F11: 2023-07-05 | G11: CAA NERL PCM Provisional Decisions_10g - v1.00 - Unlocked.xlsb | H11: PCM for Provisional Decisions | K11: Model unlocked. | L11: CAA | N11: -1 | O11: Base - Flat | P11: Price Determination | Q11: 2023-07-03T17:58:58 | S11: 1423689.539 | T11: 46.94664963 | V11: =IF(ABS(N(S10) <> 0), ROUND(S11 - S10, CheckTOL), 0) -> 0 | W11: =IF(ABS(N(T10) <> 0), T11 - T10, 0) -> 0
E12: 10h - v1.00 - FD | F12: 2023-09-18 | G12: CAA NERL PCM Decisions_10h - v1.00 - FD.xlsm | H12: PCM for Final Decisions | K12: Use of actual 2021 & 2022 RAB figures (with previous year adjustments) | L12: CAA | N12: -1 | O12: Base - Flat | P12: Price Determination | Q12: 2023-10-12T11:20:55 | S12: 1499519.236 | T12: 46.97131523 | V12: =IF(ABS(N(S10) <> 0), ROUND(S12 - S11, CheckTOL), 0) -> 0 | W12: =IF(ABS(N(T10) <> 0), T12 - T11, 0) -> 0
K13: Correction of an error relating to appx. £60m of RAB relating to the RP3 TRS
K14: Correction of the return on RAB calculation so that it all operates on a common price base
K15: Inclusion of values and variances tabs in respect of the dashboard and RAB outputs
K16: Update of RPI-CPI wedge in line with RAB Rules
K17: Reset of Capitalised Financing variances at the beginning of 2023 (NR-23 period)
E27: Live Model: | F27: =F8 -> 2023-10-25 | G27: =G8 -> CAA NERL PCM Decisions_10h - v1.00 - FD for publication.xlsm | N27: =N8 -> -1 | O27: =O8 -> Base - Flat | P27: =P8 -> Price Determination | Q27: =Q8 -> 2023-10-12T11:20:55 | S27: =S8 -> 1499519.236 | T27: =T8 -> 46.97131523
E28: Check > | F28: =--(F27 <> _xlfn.XLOOKUP(FALSE, ISBLANK(F$11:F$25), F$11:F$25, 1, 0, -1)) -> 1 | G28: =--(G27 <> _xlfn.XLOOKUP(FALSE, ISBLANK(G$11:G$25), G$11:G$25, 1, 0, -1)) -> 1 | N28: =--(N27 <> _xlfn.XLOOKUP(FALSE, ISBLANK(N$11:N$25), N$11:N$25, 1, 0, -1)) -> 0 | O28: =--(O27 <> _xlfn.XLOOKUP(FALSE, ISBLANK(O$11:O$25), O$11:O$25, 1, 0, -1)) -> 0 | P28: =--(P27 <> _xlfn.XLOOKUP(FALSE, ISBLANK(P$11:P$25), P$11:P$25, 1, 0, -1)) -> 0 | S28: =--(S27 <> _xlfn.XLOOKUP(FALSE, ISBLANK(S$11:S$25), S$11:S$25, 1, 0, -1)) -> 0 | T28: =--(T27 <> _xlfn.XLOOKUP(FALSE, ISBLANK(T$11:T$25), T$11:T$25, 1, 0, -1)) -> 0
A30: End of spreadsheet

Sheet Map
A1: =MID(CELL("filename",$A$1),SEARCH("[",CELL("filename",$A$1))+1,SEARCH("]",CELL("filename",$A$1))-SEARCH("[",CELL("filename",$A$1))-1) -> CAA NERL PCM Decisions_10h - v1.00 - FD for publication.xlsm
B2: =RIGHT(CELL("filename", B2), LEN(CELL("filename", B2)) - SEARCH("]", CELL("filename", B2))) -> Map
B5: Hyperlinked Model Map
B6: Click individual shapes to navigate to each worksheet.
A51: End of spreadsheet

Sheet Contents
A1: =MID(CELL("filename",$A$1),SEARCH("[",CELL("filename",$A$1))+1,SEARCH("]",CELL("filename",$A$1))-SEARCH("[",CELL("filename",$A$1))-1) -> CAA NERL PCM Decisions_10h - v1.00 - FD for publication.xlsm
B2: =RIGHT(CELL("filename", B2), LEN(CELL("filename", B2)) - SEARCH("]", CELL("filename", B2))) -> Contents
B5: Model Contents
C7: Tab | E7: Sheet Name | F7: Description
E8: Guidance >
E9: Introduction | F9: This sheet includes project title and description of intended use of the model.
E10: Version log | F10: This sheet includes details of material changes to the model and version history.
E11: Map | F11: This sheet includes map of logic flow between sheets.
E12: Contents | F12: This sheet lists the worksheets included in the model, alongside a glossary of terms found throughout the model, and formatting key.
E13: Control >
E14: Scenario | F14: This sheet allows the Model mode to be set (Price Determination or Outturn), and the input set combination used in each scenario to be selected.
E15: Checks | F15: This sheet is a master check sheet containing a collation of model logic and integrity checks appearing in various sheets throughout the model.
E16: Macro | F16: This sheet contains the "Full Solve" and "Optimise for current scenario" macro buttons to trigger their operation, and stored values that are created through the macro running process.
E17: Inputs >
E18: I_Global | F18: This sheet contains static inputs which are not subject to changing scenarios. These include the Model start date, the dates for price control periods, Model labels and FHCIP/HCIP base years.
E19: I_Series UKATS | F19: This sheet contains series inputs for UKATS (including LA). These include traffic forecasts, operating expenditure, profiled revenues, capex, RAB adjustments, and risk sharing parameters.
E20: I_Series Oceanic | F20: This sheet contains series inputs for Oceanic. These include traffic forecasts, operating expenditure, profiled revenues, capex, RAB adjustments, and risk sharing parameters.
E21: I_Series NERL | F21: This sheet contains series inputs not directly applicable to the UKATS, LA and Oceanic airspaces. This includes general indexation, financing assumptions, taxation inputs and working capital assumptions.
E22: I_InputSets UKATS | F22: These sheets allow profiles entered in the I_Series input sheets to be allocated to input sets. It also allows non-profiled inputs (such as Capex project allocation) to be assigned to input sets. It is important to note that if input sets in columns AB to AJ are empty, then the values entered in column AA will be used as a default.
E23: I_InputSets Oceanic | F23: These sheets allow profiles entered in the I_Series input sheets to be allocated to input sets. It also allows non-profiled inputs (such as Capex project allocation) to be assigned to input sets. It is important to note that if input sets in columns AB to AJ are empty, then the values entered in column AA will be used as a default.
E24: I_InputSets NERL | F24: These sheets allow profiles entered in the I_Series input sheets to be allocated to input sets. It also allows non-profiled inputs (such as the RCF commitment fee) to be assigned to input sets. It is important to note that if input sets in columns AB to AJ are empty, then the values entered in column AA will be used as a default.
E25: I_Actuals | F25: This sheet allows historical “actual” inputs (for time periods with have occurred) to be entered. This allows the user to populate historical Profit and Loss, Balance Sheets and Cashflows, as well as to enter additional historical data required by the Model.
E26: I_Ratios | F26: This sheet allows users to enter values required for Ratio calculations.
E27: IC_PCFM_v3 | F27: This input sheet contains values used to calculate Cost Reconciliation entries which are used in part of the TRS Cost Reconciliation Adjustment. These values are presented in 'C_TRS_Cost Rec bridge'!AK63:AM63 but used in the model in 'C_RevCost_UKATS'!AF411:AH411.
E28: IC_TRS_Cost Rec bridge | F28: This worksheet contains two components. The “left-hand” section from B1 to U74 contains information prepared and supplied by NERL. This information shows how the variance between the Competition and Markets Authority (CMA) costs and the NERL costs produces an adjustment that is recorded in the TRS Debtor. The “right-hand” side of this worksheet contains parallel calculations which outline the CAA view of these calculations and their values. It is important to note that none of the calculations included on this worksheet are used in the model, and the sheet serves to present values calculated by the model in a manner that is easily comparable to NERL’s. As such, this sheet should be considered an aid to understanding the TRS mechanisms, rather than a pure calculation sheet.
E29: IC_LA_TRS | F29: This sheet contains inputs and calculations used for a TRS adjustment for London Approach
E30: Calcs >
E31: C_Time | F31: This sheet contains calculations for: 1. Key Model timing flags, such as Model start date and end date 2. Flags for different price control periods.
E32: C_Index | F32: This sheet contains calculations for indexation including: 1. Separate input sets for indexation, to choose from. 2. Rebasing calculations to adjust between Model start date and price base. 3. HICP (harmonised index of consumer prices) which is input based and forecast HICP which is a forward looking input. 4. Indexation assignment to key calculations including RAB, determined costs, revenue etc.
E33: C_Capex_UKATS | F33: These sheets contain calculations that allocate cash flows to asset categories and calculates accounting depreciation on these categories Deferred Income from Grants and other contributions is also calculated at the bottom of these sheets.
E34: C_Capex_Oceanic | F34: These sheets contain calculations that allocate cash flows to asset categories and calculates accounting depreciation on these categories Deferred Income from Grants and other contributions is also calculated at the bottom of these sheets.
E35: C_Efficient Costs_TRS | F35: This sheet contains calculations used to drive the CMA TRS adjustment for the years 2020 to 2022. It consolidates the selected CAA Efficient Cost inputs and applies a selected indexation. It should be noted that this worksheet is distinct from C_DeterminedCost worksheets in two respects: 1. Calculations are done for the year 2020, which is elsewhere treated as a historic period. 2. The Regulatory Return and Regulatory Depreciation are assumed inputs and not calculated elsewhere in the model.
E36: C_CMA_Costs_TRS | F36: This sheet contains calculations used to drive the CMA TRS adjustment for the years 2020 to 2022. It consolidates the selected CMA Efficient Cost inputs and applies a selected indexation. It is important to note that the price base for most of the inputs used on this sheet are in 2017 prices. This is different to the convention used elsewhere in the model which has been to use a 2020 price base.
E37: C_CSM | F37: This sheet contains inputs and calculations for the Cost Sharing Mechanism.
E38: C_Determined Costs_UKATS | F38: These sheets start by showing a high level view of the Determined Costs and the prices charge by TSU/CSU for UKATS.
E39: C_RAB_UKATS | F39: These sheets apply the RAB rules to calculate the movement in RAB for UKATS.
E40: C_RevCost_UKATS | F40: These sheets calculate the Revenue and associated Working Capital movements. Example calculations included on these sheets are, Traffic Risk Share, Debtors, Price Control Creditor and TVARt.
E41: C_RevCost_LA | F41: These sheets calculate the Revenue and associated Working Capital movements. Example calculations included on these sheets are, Traffic Risk Share, Debtors, Price Control Creditor and TVARt.
E42: C_Determined Costs_Oceanic | F42: These sheets start by showing a high level view of the Determined Costs and the prices charge by flights for Oceanics.
E43: C_RAB_Oceanic | F43: These sheets apply the RAB rules to calculate the movement in RAB for Oceanic.
E44: C_RevCost_Oceanic | F44: These sheets calculate the Revenue and associated Working Capital movements. Example calculations included on these sheets are, Traffic Risk Share, Debtors, Price Control Creditor and TVARt.
E45: C_Financing | F45: This sheet contains calculations relating to financing, including calculations for new debt, the RCF facility and finance lease entries.
E46: C_Existing Debt | F46: This sheet contains calculations relating to the profiling existing debt and existing swaps.
E47: C_Fin_Synth | F47: This sheet contains calculations for forecast synthetic index linked debt, such as drawdowns, repayments, and interest expense/payment
E48: C_Reg_Tax_UKATS | F48: This sheet contains calculations used to calculate the Regulatory Tax associated with UKATS.
E49: C_Reg_Tax_Oceanic | F49: This sheet contains calculations used to calculate the Regulatory Tax associated with Oceanic.
E50: C_Ratios | F50: This sheet contains the calculations for financeability ratios. These include ratios by credit rating agency Moody’s which include: 1. Moodys Adjusted Net Debt to RAB 2. Adjusted Interest Cover Ratio 3. Adjusted FFO to Net Debt 4. Adjusted FFO to Net Interest 5. RCF / Net Debt Other ratios includes: 1. EBITDA Margin 2. FFO Interest Cover 3. Net Debt to EBITDA 4. Equity IRR
E51: C_OtherFin | F51: This sheet contains miscellaneous calculations such as the profiling of Non-Current Assets, Other Liabilities, and the movement in Pension Asset Values.
E52: C_PriceSmoothing | F52: This sheet contains calculations associated with the Price Smoothing logic.
E53: C_NERL_Adjustment | F53: This sheet calculates the value of the RP3 TRS balance which NERL have included in their RAB. A policy decision was taken by the CAA to transfer this balance to the TRS Debtor, and this is which the final value is exported to.
E54: C_Output_Staging | F54: This sheet summaries Model calculations and prepares them for display in the output sheets. The calculations are divided into: 1. UKATS 2. Oceanic 3. NERL 4. UKATS_T1 ANSP 5. LA_T1 and T2 ANSP 6. PERFORMANCE PLAN – UKATS 7. PERFORMANCE PLAN – Oceanics 8. PERFORMANCE PLAN - London
E55: Outputs >
E56: O_FinStats | F56: This sheet contains live outputs for the 3 primary financial statements (Income Statement, Balance Sheet and Cash Flow Statement).
E57: O_FinStats - Vals | F57: This sheet contains stored values for the 3 primary financial statements.
E58: O_FinStats - Var | F58: This sheet can be used to compare values from different scenarios, using the stored values in O_FinStats_Vals with the live values in O_FinStats.
E59: O_RAB | F59: This sheet contains a summary of the RAB for UKATS, Oceanic, and combined.
E60: O_RAB - Vals | F60: This sheet contains stored values for the RAB for UKATS, Oceanic, and combined.
E61: O_RAB - Var | F61: This sheet can be used to compare values from different scenarios using the stored values in O_RAB_Vals with the live values in O_RAB.
E62: O_Dashboard | F62: This sheet contains summary information and key metrics.
E63: O_Dashboard - Vals | F63: This sheet contains stored values of the summary information and key metrics
E64: O_Dashboard - Var | F64: This sheet can be used to compare values from different scenarios using the stored values in O_Dashboard_Vals with the live values in O_Dashboard.
E65: O_License | F65: This sheet contains terms from the License.
B67: Cell Colour Key
E69: Title | F69: Workbook Title
E71: Heading 1 | F71: Sheet Heading
E73: Heading 2 | F73: Sub Heading level 2
E75: Heading 3 | F75: Sub Heading level 3
E77: Heading 4 | F77: Sub Heading level 4
E79: Time Line | F79: Timeline cells
E81: Section Split | F81: Section split in calculation worksheets
E83: Calculation | F83: Cells containing calculations
E85: Sub Total | F85: Cells containing sub totals
E87: Total | F87: Cells containing totals
E89: Linked Cell | F89: Cells containing links to other cells without applying calculations
E91: Input | F91: Input cells for user inputs
E93: Data Validated Input | F93: Input cells for user inputs
E95: Output | F95: Output to different sheet
E97: Macro | F97: Macro
E99: Inactive | F99: Deliberately blank cells
E101: Named Range | F101: Named Range
E103: Explanatory Text | F103: Instructions & Explanations
E105: Warning Text | F105: warning text
E107: Check Cell | F107: Check cell indicating no error
E109: Note | F109: Modeller notes
E111: Percent | F111: Excel defined number format
E113: Currency | F113: Excel defined number format
E115: Comma | F115: Excel defined number format
E117: Normal | F117: Normal
B120: Glossary
E122: Term | F122: Description
E123: ADS-B | F123: Automatic Dependent Surveillance–Broadcast (ADS-B). Broadcasts the precise location of the aircraft (assists with safety). ADS-B costs are charged back to airlines (alongside the base charge).
E124: AINF | F124: Atlantic Inflation adjustment. Applied to the combined Base Charge per flight + ADS-B Charge per flight. Inflation variance is based upon indexed values of forecasted vs actual inflation (FHICP and HICP). See paragraph 3 of Economic regulation of NATS (En Route) plc (CAP1967).
E125: ATVAR | F125: [Atlantic] over-or under-recoveries resulting from traffic variations.
E126: CCCV | F126: Closing Cumulative Capitalised Variances (CCCV). Calculates the cumulative value running total of variances between assumptions and actual costs for capital expenditure, and states the closing position as at 31 December YYYYt and 31 December YYYYt+1. The running total of variances ensures that appropriate adjustments can be made either to: 1) reflect additional returns due to NERL, or 2) amounts that need to be returned to customers in future periods.
E127: CFC | F127: Capitalised Financing Costs (CFC). The price control set by the CAA does not include a return on all the assets in the RAB, e.g. if actual capex is higher than assumed at the time of the price review or if there is a Pension Contribution variance. For the assets on which a return has not been included, the financing costs are capitalised and added to the RAB, to enable NERL to recover them in future years.
E128: CSM | F128: Cost-Sharing Mechanism (CSM). Carry-overs from the previous reference period resulting from the implementation of the cost sharing mechanism referred to in Article 14 of Commission Implementing Regulation (EU) No 391/2013.
E129: CSU | F129: Chargable Service Units (CSU). Not all service units are liable to charges under the price control (IE; military aircraft under a priced contract). Therefore, using forecast estimates of these types of use, CAA arrives at an estimated forecast of ‘chargeable service units’ (from Total Service Units). This is used to arrive at the Determined Unit Cost (DUC).
E130: DC | F130: Determined Costs (DC). Typically expressed in nominal terms for relevant year t.
E131: FHICP | F131: [Forecast] Harmonised Index of Consumer Prices (HICP). European Central Bank indicator of inflation and price stability. This methodology is harmonised across EU countries.
E132: HICP | F132: [Actual] Harmonised Index of Consumer Prices (HICP). European Central Bank indicator of inflation and price stability. This methodology is harmonised across EU countries.
E133: DISCOUNT | F133: Means an adjustment to the maximum charge per Total Service Unit in relevant year t where the Licensee (NERL) at its own discretion decides to recover less than it would otherwise be allowed to recover and has declared to the CAA that it will not pursue this as under-recovery in subsequent years.
E134: OO Pension Costs | F134: Opt out (OO) pension costs.
E135: RDEC | F135: Research and Development Expenditure Credit (RDEC)? UK legislation which allows companies to reduce their tax bill or claim payable cash credits as a proportion of their R&D expenditure.
E136: ReS | F136: Restructuring costs in relevant year t authorised in accordance with Article 2(18) of Commission Implementing Regulation (EU) No 2019/317. For all years t = 2020, 2021, and 2022 ReSt = 0.
E137: TDTRS | F137: Adjustment to account for the difference between forecast and actual Tango data charge. 𝑇𝐷𝑇𝑅𝑆𝑡 = 𝐴𝐷𝑇 𝑡−2 × (1 − 𝐴𝑐𝑡𝑢𝑎𝑙 𝑇𝑎𝑛𝑔𝑜 𝐹𝑙𝑖𝑔ℎ𝑡𝑠 𝑡−2 / 𝐹𝑜𝑟𝑒𝑐𝑎𝑠𝑡 𝑇𝑎𝑛𝑔𝑜 𝐹𝑙𝑖𝑔ℎ𝑡𝑠 𝑡−2).
E138: TINF | F138: Tango Inflation adjustment. Applied to the combined Base Charge per flight + ADS-B Charge per flight. Inflation variance is based upon indexed values of forecasted vs actual inflation (FHICP and HICP). See paragraph 3 of Economic regulation of NATS (En Route) plc (CAP1967).
E139: TSU | F139: En route total service units (TSU).
E140: TTVAR | F140: [Tango] over-or under-recoveries resulting from traffic variations.
E141: VFR | F141: Expected cost of services to traffic operating under Visual Flight Rules (VFR) in relevant year t. For all years t = 2020, 2021 and 2022, VFR t = 0.
A143: End of spreadsheet

Sheet Control >
A1: =MID(CELL( "filename", $A$1 ), SEARCH( "[",CELL( "filename", $A$1 ) ) + 1, SEARCH( "]",CELL( "filename", $A$1 ) ) - SEARCH( "[",CELL( "filename", $A$1 ) ) - 1 ) -> CAA NERL PCM Decisions_10h - v1.00 - FD for publication.xlsm
B2: =RIGHT(CELL( "filename", B2 ), LEN(CELL( "filename", B2 ) ) - SEARCH( "]",CELL( "filename", B2 ) ) ) -> Control >

Sheet Scenario
A1: =MID(CELL( "filename", $A$1 ), SEARCH( "[",CELL( "filename", $A$1 ) ) + 1, SEARCH( "]",CELL( "filename", $A$1 ) ) - SEARCH( "[",CELL( "filename", $A$1 ) ) - 1 ) -> CAA NERL PCM Decisions_10h - v1.00 - FD for publication.xlsm
B2: =RIGHT(CELL( "filename", B2 ), LEN(CELL( "filename", B2 ) ) - SEARCH( "]",CELL( "filename", B2 ) ) ) -> Scenario
E3: ="Scenario "&_xlfn.SINGLE(Live_Scenarionumber) & " : " &Live_scenario -> Scenario 1 : Base - Flat | G3: =Checks!E3 -> Checks & Alerts | H3: =Checks!F3 -> -1
E4: ='I_InputSets UKATS'!E12 -> Live Input Set | H4: =$F$32 -> 1
E5: ='I_InputSets UKATS'!E13 -> Input Set for Price Determination | H5: =$H$37 -> 1
E6: ='I_InputSets UKATS'!E14 -> Model mode | H6: =$F$29 -> Price Determination
A8: Model Controls
B9: Solve Model | J9: Store Values
C11: Macro Button | F11: Source Location
C12: Press to activate | F12: Description
F14: Scenario | L14: Scenario
F15: Cycles through all scenarios and recalculates tax, working capital, prices and gearing. | L15: Pastes the active scenario (O_FinStats) into O_FinStats-Vals
L16: for comparison in O_FinStats-Var.
F17: Scenario
F18: Run the currently selected scenario, recalculated tax, working capital, | L18: Scenario
F19: prices and gearing. | L19: Pastes the active scenario (O_Dashboard) into O_Dashboard-Vals
L20: for comparison in O_Dashboard-Var.
F21: Scenario
F22: Calculates the required price smoothening adjustment to TRS income, | L22: Scenario
F23: for the active scenario. | L23: Pastes the active scenario (O_RAB) into O_RAB-Vals
L24: for comparison in O_FinStats-Var.
A26: Scenario Selector
A27: 1. Live Scenario
E29: Model Mode | F29: Price Determination | G29: selection | H29: =IF( F29 = I_Global!F205, "Model run based on Scenario for prices", "Model run based on Scenario for financial statements and ratios" ) -> Model run based on Scenario for prices
E30: Live combination | F30: Base - Flat | G30: =INDEX(rSiteNames,MATCH(Live_scenario,rScenNames,0)) -> 1
E32: Live Input set being run in model | F32: =CHOOSE(MATCH(Model_Mode,I_Global!F205:F206,0),H37,J37) -> 1
E33: Tax Mode | F33: =INDEX($M$42:$M$51, MATCH(Live_scenario, rScenNames, 0), 0) -> REG Tax Calculated
F35: Live Scenario | H35: =I_Global!F205 -> Price Determination | J35: =I_Global!F206 -> Outturn | L35: Nature of Scenario
E36: Live | F36: =$F$30 -> Base - Flat | G36: =INDEX( E$42:E$51, MATCH( $F$30, $F$42:$F$51, 0 ) ) -> 1 | H36: =INDEX( H$42:H$51, MATCH( $F$30, $F$42:$F$51, 0 ) ) -> Base Case | I36: =INDEX( I$42:I$51, MATCH( $F$30, $F$42:$F$51, 0 ) ) -> Base Case | J36: =INDEX( J$42:J$51, MATCH( $F$30, $F$42:$F$51, 0 ) ) -> Base Case | K36: =INDEX( K$42:K$51, MATCH( $F$30, $F$42:$F$51, 0 ) ) -> Base Case | L36: =INDEX( L$42:L$51, MATCH( $F$30, $F$42:$F$51, 0 ) ) -> Base
H37: =MATCH( H$36, 'I_InputSets UKATS'!$AA$4:$AJ$4, 0 ) -> 1 | J37: =MATCH( J$36, 'I_InputSets UKATS'!$AA$4:$AJ$4, 0 ) -> 1
A39: 2. Scenario names
E41: ID | F41: Scenario Description | G41: Scenario On/Off | H41: Input set used to determine prices | J41: Input set used to determine outturn financial statements & ratios | L41: Nature of Scenario | M41: Tax Mode | N41: Price Profiling
E42: 1 | F42: Base - Flat | G42: Off | H42: Base Case | I42: =INDEX('I_InputSets UKATS'!$AA$5:$AJ$5,MATCH($H42,'I_InputSets UKATS'!$AA$4:$AJ$4,0)) -> Base Case | J42: Base Case | K42: =INDEX('I_InputSets UKATS'!$AA$5:$AJ$5,MATCH($J42,'I_InputSets UKATS'!$AA$4:$AJ$4,0)) -> Base Case | L42: =IF( $H42 <> $J42,"Stress","Base" ) -> Base | M42: REG Tax Calculated | N42: Flat Prices
E43: 2 | F43: Flights (Low) | G43: Off | H43: Base Case | I43: =INDEX('I_InputSets UKATS'!$AA$5:$AJ$5,MATCH($H43,'I_InputSets UKATS'!$AA$4:$AJ$4,0)) -> Base Case | J43: Flights - Low | K43: =INDEX('I_InputSets UKATS'!$AA$5:$AJ$5,MATCH($J43,'I_InputSets UKATS'!$AA$4:$AJ$4,0)) -> Flights - Low | L43: =IF( $H43 <> $J43,"Stress","Base" ) -> Stress | M43: No REG Tax in DC | N43: Flat Prices
E44: 3 | F44: Spare 3 | G44: Off | H44: Base Case | I44: =INDEX('I_InputSets UKATS'!$AA$5:$AJ$5,MATCH($H44,'I_InputSets UKATS'!$AA$4:$AJ$4,0)) -> Base Case | J44: Base Case | K44: =INDEX('I_InputSets UKATS'!$AA$5:$AJ$5,MATCH($J44,'I_InputSets UKATS'!$AA$4:$AJ$4,0)) -> Base Case | L44: Base | M44: No REG Tax in DC | N44: Flat Prices
E45: 4 | F45: Spare 4 | G45: Off | H45: Base Case | I45: =INDEX('I_InputSets UKATS'!$AA$5:$AJ$5,MATCH($H45,'I_InputSets UKATS'!$AA$4:$AJ$4,0)) -> Base Case | J45: Base Case | K45: =INDEX('I_InputSets UKATS'!$AA$5:$AJ$5,MATCH($J45,'I_InputSets UKATS'!$AA$4:$AJ$4,0)) -> Base Case | L45: Base | M45: No REG Tax in DC | N45: Flat Prices
E46: 5 | F46: Spare 5 | G46: Off | H46: Base Case | I46: =INDEX('I_InputSets UKATS'!$AA$5:$AJ$5,MATCH($H46,'I_InputSets UKATS'!$AA$4:$AJ$4,0)) -> Base Case | J46: Flights - Low | K46: =INDEX('I_InputSets UKATS'!$AA$5:$AJ$5,MATCH($J46,'I_InputSets UKATS'!$AA$4:$AJ$4,0)) -> Flights - Low | L46: Stress | M46: No REG Tax in DC | N46: Flat Prices
E47: 6 | F47: Spare 6 | G47: Off | H47: Base Case | I47: =INDEX('I_InputSets UKATS'!$AA$5:$AJ$5,MATCH($H47,'I_InputSets UKATS'!$AA$4:$AJ$4,0)) -> Base Case | J47: Flights - Low | K47: =INDEX('I_InputSets UKATS'!$AA$5:$AJ$5,MATCH($J47,'I_InputSets UKATS'!$AA$4:$AJ$4,0)) -> Flights - Low | L47: Stress | M47: No REG Tax in DC | N47: Flat Prices
E48: 7 | F48: Spare 7 | G48: Off | H48: Base Case | I48: =INDEX('I_InputSets UKATS'!$AA$5:$AJ$5,MATCH($H48,'I_InputSets UKATS'!$AA$4:$AJ$4,0)) -> Base Case | J48: Base Case | K48: =INDEX('I_InputSets UKATS'!$AA$5:$AJ$5,MATCH($J48,'I_InputSets UKATS'!$AA$4:$AJ$4,0)) -> Base Case | L48: Base | M48: No REG Tax in DC | N48: Flat Prices
E49: 8 | F49: Spare 8 | G49: Off | H49: Base Case | I49: =INDEX('I_InputSets UKATS'!$AA$5:$AJ$5,MATCH($H49,'I_InputSets UKATS'!$AA$4:$AJ$4,0)) -> Base Case | J49: Base Case | K49: =INDEX('I_InputSets UKATS'!$AA$5:$AJ$5,MATCH($J49,'I_InputSets UKATS'!$AA$4:$AJ$4,0)) -> Base Case | L49: Base | M49: No REG Tax in DC | N49: Flat Prices
E50: 9 | F50: Spare 9 | G50: Off | H50: Base Case | I50: =INDEX('I_InputSets UKATS'!$AA$5:$AJ$5,MATCH($H50,'I_InputSets UKATS'!$AA$4:$AJ$4,0)) -> Base Case | J50: Base Case | K50: =INDEX('I_InputSets UKATS'!$AA$5:$AJ$5,MATCH($J50,'I_InputSets UKATS'!$AA$4:$AJ$4,0)) -> Base Case | L50: Base | M50: No REG Tax in DC | N50: Flat Prices
E51: 10 | F51: Spare 10 | G51: Off | H51: Base Case | I51: =INDEX('I_InputSets UKATS'!$AA$5:$AJ$5,MATCH($H51,'I_InputSets UKATS'!$AA$4:$AJ$4,0)) -> Base Case | J51: Base Case | K51: =INDEX('I_InputSets UKATS'!$AA$5:$AJ$5,MATCH($J51,'I_InputSets UKATS'!$AA$4:$AJ$4,0)) -> Base Case | L51: Base | M51: No REG Tax in DC | N51: Flat Prices
G52: rScenOnOff | M52: rTaxModeAll
A54: End of spreadsheet

Sheet Checks
A1: =MID(_xlfn.SINGLE(CELL( "filename", $A$1 )), SEARCH( "[",_xlfn.SINGLE(CELL( "filename", $A$1 ) )) + 1, SEARCH( "]",_xlfn.SINGLE(CELL( "filename", $A$1 ) )) - SEARCH( "[",_xlfn.SINGLE(CELL( "filename", $A$1 ) )) - 1 ) -> CAA NERL PCM Decisions_10h - v1.00 - FD for publication.xlsm
B2: =RIGHT(CELL( "filename", B2 ), LEN(CELL( "filename", B2 ) ) - SEARCH( "]",CELL( "filename", B2 ) ) ) -> Checks
E3: =E$76 -> Checks & Alerts | F3: =$F$76 -> -1
A5: Integrity checks:
A6: As these checks test the logical integrity of the model they should all be in 'ok' status at all times. Any exceptions to this (Error) should be investigated.
D8: Model Integrity Checks
E9: =I_Actuals!E78 -> FinStat (Actuals) - balances sheet checks | F9: =I_Actuals!F78 -> 0 | G9: check
E10: =I_Actuals!E228 -> FinStat (Actuals) - cash balance checks | F10: =I_Actuals!F228 -> 0 | G10: check
E11: =O_FinStats!E322 -> FinStat - balance sheet check | F11: =O_FinStats!F322 -> 0 | G11: check
E12: =O_FinStats!E324 -> FinStat - cash flow check | F12: =O_FinStats!F324 -> 0 | G12: check
E13: Unit Price CSU = TSU | F13: =O_Dashboard!F965 -> 0 | G13: check
E14: ='IC_TRS_Cost Rec bridge'!E178 -> Check - all CMA costs included? | F14: ='IC_TRS_Cost Rec bridge'!Y178 -> 0 | G14: check
E15: ='IC_TRS_Cost Rec bridge'!E204 -> Check - all efficient costs included? | F15: ='IC_TRS_Cost Rec bridge'!Y204 -> 0 | G15: check
D17: Input Consistency checks
E19: ='C_Existing Debt'!E43 -> Check that Pre 2020 Debt does not result in a negative debt value | F19: ='C_Existing Debt'!F43 -> 0 | G19: check
E20: =C_Financing!E35 -> Check: Average Drawn Balance does not exceed facility size | F20: =C_Financing!F35 -> 0 | G20: check
E21: ='I_Series NERL'!E199 -> Check that Finance Lease liability c/f does not go positive | F21: ='I_Series NERL'!F199 -> 0 | G21: check
E22: ='I_Series NERL'!E191 -> Check that Right of Use Asset c/f does not go negative | F22: ='I_Series NERL'!F191 -> 0 | G22: check
E23: ='I_Series UKATS'!E$641 -> Check UKATS - TTRS Banding inputs | F23: ='I_Series UKATS'!F$641 -> 0 | G23: check
E24: ='I_Series Oceanic'!E$392 -> Check Oceanic - TTRS Banding inputs | F24: ='I_Series Oceanic'!F$392 -> 0 | G24: check
E25: =C_RevCost_UKATS!E$796 -> UKATS calcs - check TTRS Allocation | F25: =C_RevCost_UKATS!F$796 -> 0 | G25: check
E26: =C_RevCost_Oceanic!E567 -> Oceanic calcs - check TTRS Allocation | F26: =C_RevCost_Oceanic!F567 -> 0 | G26: check
E27: =C_RevCost_LA!E$567 -> LA calcs - check TTRS Allocation | F27: =C_RevCost_LA!F$567 -> 0 | G27: check
E28: =C_Reg_Tax_UKATS!E$374 -> Existing Asset Capital Allowance does not go negative check | F28: =C_Reg_Tax_UKATS!F$374 -> 0 | G28: check
E29: =O_Dashboard!E$105 -> Check that DUC (CSU-based) = DUC (TSU-based) | F29: =O_Dashboard!F$105 -> 0 | G29: check
E30: ='I_InputSets UKATS'!E$458 -> Check UKATS Project Allocations total 100% | F30: ='I_InputSets UKATS'!F$458 -> 0 | G30: check
E31: ='I_InputSets Oceanic'!E373 -> Check Oceanic Project Allocations total 100% | F31: ='I_InputSets Oceanic'!F373 -> 0 | G31: check
E32: =C_Output_Staging!E160 -> UKATS DC Import into Staging Correct | F32: =C_Output_Staging!F160 -> 0 | G32: check
E33: =C_Output_Staging!E293 -> Oceanic DC Import into Staging Correct | F33: =C_Output_Staging!F293 -> 0 | G33: check
E34: ='I_Series Oceanic'!E175 -> Input Check - Oceanic Revenue | F34: ='I_Series Oceanic'!F175 -> 0 | G34: check
E35: =C_Financing!E170 -> Post 2020 Debt - Corkscrew Check | F35: =C_Financing!G170 -> 0 | G35: check
E36: =C_RevCost_Oceanic!E886 -> Oceanic - Opening Rev. Debtor Check | F36: =C_RevCost_Oceanic!F886 -> 0 | G36: check
E37: =O_FinStats!E369 -> Check - Input Dividends Paid Out? | F37: =O_FinStats!F369 -> 0 | G37: check
E38: ='I_Series NERL'!E$434 -> Total capital allowance checks | F38: ='I_Series NERL'!F$434 -> 0 | G38: check
E39: Check - Working Capital Movements (Live = Stored) | F39: =_wcLiveEqualStored -> 0 | G39: check
E40: Check - RP3 Working Capital Movements (Live = Stored) | F40: =_wcRP3LiveEqualStored -> 0 | G40: check
E41: Check - Determined Cost Revenue (t) - Forecast Traffic (TSU) = Determined Costs | F41: =ROUND(SUM(O_Dashboard!AI141:AM141) - SUM(O_Dashboard!AI99:AM99), CheckTOL) -> 0 | G41: check
A43: Alerts:
A44: Model alerts do not necessitate an error, but does notify the user of changes in the model’s status which may be of interest.
D46: Debt Inputs
E47: ='I_Series NERL'!E94 -> Repayment Pre 2020 Debt POS | F47: ='I_Series NERL'!F94 -> 0 | G47: alert
D49: Finanical Statements
E50: =O_FinStats!E328 -> FinStat - negative shareholder funds | F50: =O_FinStats!F328 -> 0 | G50: alert
E51: =O_FinStats!E326 -> FinStat - negative cash balance check | F51: =O_FinStats!F326 -> 2 | G51: alert
E52: =O_FinStats!E328 -> FinStat - negative shareholder funds | F52: =O_FinStats!F328 -> 0 | G52: alert
D54: Macro
E55: =C_RevCost_Oceanic!E902 -> Oceanic Price Determination Macro needs running | F55: =C_RevCost_Oceanic!F902 -> 0 | G55: alert
E56: =C_RevCost_UKATS!E1386 -> UKATS Price Determination Macro needs running | F56: =C_RevCost_UKATS!F1386 -> 0 | G56: alert
D58: Ratios
E59: =C_Ratios!E144 -> Adjusted Interest Cover Ratio alert | F59: =C_Ratios!F144 -> -1 | G59: alert
E60: =C_Ratios!E158 -> Adjusted FFO to Net Debt alert | F60: =C_Ratios!F158 -> 0 | G60: alert
E61: =C_Ratios!E175 -> Adjusted FFO to Net Interest alert | F61: =C_Ratios!F175 -> -1 | G61: alert
D63: Bridges
E64: =O_Dashboard!E655 -> Check - 2022 Unit Rate Buildup | F64: =O_Dashboard!F655 -> 0 | G64: alert | H64: NB: If triggered, 1) checked if smoothed prices are used. Smoothed prices will break this price bridge.
E65: =O_Dashboard!E824 -> Unit price bridge check | F65: =O_Dashboard!F824 -> 0 | G65: alert | H65: NB: If triggered, checked if smoothed prices are used. Smoothed prices will break this price bridge.
D67: Price Smoothing
E68: =C_PriceSmoothing!E158 -> Price smoothing is active (and solved) | F68: =C_PriceSmoothing!F158 -> 0 | G68: alert
D70: Tax
E71: =C_Reg_Tax_UKATS!E497 -> UKATS Reg Tax - Modelling Simplification within Tolerance: | F71: =C_Reg_Tax_UKATS!F497 -> 0 | G71: alert | H71: NB: Checks NR23 period for modelling simplification introduced to avoid circularity
E72: =C_Reg_Tax_Oceanic!E139 -> Oceanic Reg Tax - Modelling Simplification within Tolerance: | F72: =C_Reg_Tax_Oceanic!F139 -> 0 | G72: alert | H72: NB: Checks NR23 period for modelling simplification introduced to avoid circularity
A74: Checks and Alerts Summary:
E76: Checks & Alerts | F76: =IF(MAX(F9:F41) <> 0, 1, IF(MIN(F47:F72) <> 0, -1, 0)) -> -1 | G76: =I_Global!$F$70 -> check
A78: Overrides:
D80: Input Sets
E81: UKATS | F81: ='I_InputSets UKATS'!Y6 -> 0 | G81: # overrides
E82: Oceanic | F82: ='I_InputSets Oceanic'!Y6 -> 0 | G82: # overrides
E83: NERL | F83: ='I_InputSets NERL'!Y6 -> 0 | G83: # overrides
D85: Other
E86: =C_Financing!E$80 -> Equity Transfer (to)/from Shareholders - Override Active? | F86: =C_Financing!F$80 -> 0 | G86: 1 = Yes
E88: Total Overrides Active | F88: =SUM(F81:F87) -> 0
A91: End of spreadsheet

Sheet Macro
A1: =MID(CELL( "filename", $A$1 ), SEARCH( "[",CELL( "filename", $A$1 ) ) + 1, SEARCH( "]",CELL( "filename", $A$1 ) ) - SEARCH( "[",CELL( "filename", $A$1 ) ) - 1 ) -> CAA NERL PCM Decisions_10h - v1.00 - FD for publication.xlsm
B2: =RIGHT(CELL( "filename", B2 ), LEN(CELL( "filename", B2 ) ) - SEARCH( "]",CELL( "filename", B2 ) ) ) -> Macro
E3: Solve Iterations: | F3: 4 | G3: rLiveIteration
E4: Max Iterations: | F4: 10 | G4: rMaxIteration | I4: User defined.
E5: Last Macro Run: | F5: 2023-10-12T11:20:55 | G5: rTimestamp
A7: Timeline
E8: =C_Time!E9 -> Period Beginning | G8: =C_Time!G9 -> date | AA8: =C_Time!AA9 -> 2015-01-01 | AB8: =C_Time!AB9 -> 2016-01-01 | AC8: =C_Time!AC9 -> 2017-01-01 | AD8: =C_Time!AD9 -> 2018-01-01 | AE8: =C_Time!AE9 -> 2019-01-01 | AF8: =C_Time!AF9 -> 2020-01-01 | AG8: =C_Time!AG9 -> 2021-01-01 | AH8: =C_Time!AH9 -> 2022-01-01 | AI8: =C_Time!AI9 -> 2023-01-01 | AJ8: =C_Time!AJ9 -> 2024-01-01 | AK8: =C_Time!AK9 -> 2025-01-01 | AL8: =C_Time!AL9 -> 2026-01-01 | AM8: =C_Time!AM9 -> 2027-01-01 | AN8: =C_Time!AN9 -> 2028-01-01 | AO8: =C_Time!AO9 -> 2029-01-01 | AP8: =C_Time!AP9 -> 2030-01-01 | AQ8: =C_Time!AQ9 -> 2031-01-01 | AR8: =C_Time!AR9 -> 2032-01-01 | AS8: =C_Time!AS9 -> 2033-01-01 | AT8: =C_Time!AT9 -> 2034-01-01 | AU8: =C_Time!AU9 -> 2035-01-01 | AV8: =C_Time!AV9 -> 2036-01-01 | AW8: =C_Time!AW9 -> 2037-01-01 | AX8: =C_Time!AX9 -> 2038-01-01 | AY8: =C_Time!AY9 -> 2039-01-01 | AZ8: =C_Time!AZ9 -> 2040-01-01 | BA8: =C_Time!BA9 -> 2041-01-01 | BB8: =C_Time!BB9 -> 2042-01-01 | BC8: =C_Time!BC9 -> 2043-01-01 | BD8: =C_Time!BD9 -> 2044-01-01 | BE8: =C_Time!BE9 -> 2045-01-01 | BF8: =C_Time!BF9 -> 2046-01-01 | BG8: =C_Time!BG9 -> 2047-01-01 | BH8: =C_Time!BH9 -> 2048-01-01 | BI8: =C_Time!BI9 -> 2049-01-01 | BJ8: =C_Time!BJ9 -> 2050-01-01
E9: =C_Time!E10 -> Period Ending | G9: =C_Time!G10 -> date | AA9: =C_Time!AA10 -> 2015-12-31 | AB9: =C_Time!AB10 -> 2016-12-31 | AC9: =C_Time!AC10 -> 2017-12-31 | AD9: =C_Time!AD10 -> 2018-12-31 | AE9: =C_Time!AE10 -> 2019-12-31 | AF9: =C_Time!AF10 -> 2020-12-31 | AG9: =C_Time!AG10 -> 2021-12-31 | AH9: =C_Time!AH10 -> 2022-12-31 | AI9: =C_Time!AI10 -> 2023-12-31 | AJ9: =C_Time!AJ10 -> 2024-12-31 | AK9: =C_Time!AK10 -> 2025-12-31 | AL9: =C_Time!AL10 -> 2026-12-31 | AM9: =C_Time!AM10 -> 2027-12-31 | AN9: =C_Time!AN10 -> 2028-12-31 | AO9: =C_Time!AO10 -> 2029-12-31 | AP9: =C_Time!AP10 -> 2030-12-31 | AQ9: =C_Time!AQ10 -> 2031-12-31 | AR9: =C_Time!AR10 -> 2032-12-31 | AS9: =C_Time!AS10 -> 2033-12-31 | AT9: =C_Time!AT10 -> 2034-12-31 | AU9: =C_Time!AU10 -> 2035-12-31 | AV9: =C_Time!AV10 -> 2036-12-31 | AW9: =C_Time!AW10 -> 2037-12-31 | AX9: =C_Time!AX10 -> 2038-12-31 | AY9: =C_Time!AY10 -> 2039-12-31 | AZ9: =C_Time!AZ10 -> 2040-12-31 | BA9: =C_Time!BA10 -> 2041-12-31 | BB9: =C_Time!BB10 -> 2042-12-31 | BC9: =C_Time!BC10 -> 2043-12-31 | BD9: =C_Time!BD10 -> 2044-12-31 | BE9: =C_Time!BE10 -> 2045-12-31 | BF9: =C_Time!BF10 -> 2046-12-31 | BG9: =C_Time!BG10 -> 2047-12-31 | BH9: =C_Time!BH10 -> 2048-12-31 | BI9: =C_Time!BI10 -> 2049-12-31 | BJ9: =C_Time!BJ10 -> 2050-12-31
E10: =C_Time!E11 -> Model period number | G10: =C_Time!G11 -> # | AA10: =C_Time!AA11 -> 1 | AB10: =C_Time!AB11 -> 2 | AC10: =C_Time!AC11 -> 3 | AD10: =C_Time!AD11 -> 4 | AE10: =C_Time!AE11 -> 5 | AF10: =C_Time!AF11 -> 6 | AG10: =C_Time!AG11 -> 7 | AH10: =C_Time!AH11 -> 8 | AI10: =C_Time!AI11 -> 9 | AJ10: =C_Time!AJ11 -> 10 | AK10: =C_Time!AK11 -> 11 | AL10: =C_Time!AL11 -> 12 | AM10: =C_Time!AM11 -> 13 | AN10: =C_Time!AN11 -> 14 | AO10: =C_Time!AO11 -> 15 | AP10: =C_Time!AP11 -> 16 | AQ10: =C_Time!AQ11 -> 17 | AR10: =C_Time!AR11 -> 18 | AS10: =C_Time!AS11 -> 19 | AT10: =C_Time!AT11 -> 20 | AU10: =C_Time!AU11 -> 21 | AV10: =C_Time!AV11 -> 22 | AW10: =C_Time!AW11 -> 23 | AX10: =C_Time!AX11 -> 24 | AY10: =C_Time!AY11 -> 25 | AZ10: =C_Time!AZ11 -> 26 | BA10: =C_Time!BA11 -> 27 | BB10: =C_Time!BB11 -> 28 | BC10: =C_Time!BC11 -> 29 | BD10: =C_Time!BD11 -> 30 | BE10: =C_Time!BE11 -> 31 | BF10: =C_Time!BF11 -> 32 | BG10: =C_Time!BG11 -> 33 | BH10: =C_Time!BH11 -> 34 | BI10: =C_Time!BI11 -> 35 | BJ10: =C_Time!BJ11 -> 36
E11: =C_Time!E$12 -> Pricing Period | G11: =C_Time!G$12 -> periods | AA11: =C_Time!AA$12 -> RP2 | AB11: =C_Time!AB$12 -> RP2 | AC11: =C_Time!AC$12 -> RP2 | AD11: =C_Time!AD$12 -> RP2 | AE11: =C_Time!AE$12 -> RP2 | AF11: =C_Time!AF$12 -> RP3 | AG11: =C_Time!AG$12 -> RP3 | AH11: =C_Time!AH$12 -> RP3 | AI11: =C_Time!AI$12 -> NR23 | AJ11: =C_Time!AJ$12 -> NR23 | AK11: =C_Time!AK$12 -> NR23 | AL11: =C_Time!AL$12 -> NR23 | AM11: =C_Time!AM$12 -> NR23 | AN11: =C_Time!AN$12 -> NR28 | AO11: =C_Time!AO$12 -> NR28 | AP11: =C_Time!AP$12 -> NR28 | AQ11: =C_Time!AQ$12 -> NR28 | AR11: =C_Time!AR$12 -> NR28 | AS11: =C_Time!AS$12 -> NR33 | AT11: =C_Time!AT$12 -> NR33 | AU11: =C_Time!AU$12 -> NR33 | AV11: =C_Time!AV$12 -> NR33 | AW11: =C_Time!AW$12 -> NR33 | AX11: =C_Time!AX$12 -> NR38 | AY11: =C_Time!AY$12 -> NR38 | AZ11: =C_Time!AZ$12 -> NR38 | BA11: =C_Time!BA$12 -> NR38 | BB11: =C_Time!BB$12 -> NR38 | BC11: =C_Time!BC$12 -> NR43 | BD11: =C_Time!BD$12 -> NR43 | BE11: =C_Time!BE$12 -> NR43 | BF11: =C_Time!BF$12 -> NR43 | BG11: =C_Time!BG$12 -> NR43 | BH11: =C_Time!BH$12 -> NR43 | BI11: =C_Time!BI$12 -> NR43 | BJ11: =C_Time!BJ$12 -> NR43
E12: =C_Time!E$13 -> Forecast/ Post forecast vs Actuals | G12: =C_Time!G$13 -> flag | AA12: =C_Time!AA$13 -> Actual | AB12: =C_Time!AB$13 -> Actual | AC12: =C_Time!AC$13 -> Actual | AD12: =C_Time!AD$13 -> Actual | AE12: =C_Time!AE$13 -> Actual | AF12: =C_Time!AF$13 -> Actual | AG12: =C_Time!AG$13 -> Forecast | AH12: =C_Time!AH$13 -> Forecast | AI12: =C_Time!AI$13 -> Forecast | AJ12: =C_Time!AJ$13 -> Forecast | AK12: =C_Time!AK$13 -> Forecast | AL12: =C_Time!AL$13 -> Forecast | AM12: =C_Time!AM$13 -> Forecast | AN12: =C_Time!AN$13 -> Forecast | AO12: =C_Time!AO$13 -> Forecast | AP12: =C_Time!AP$13 -> Forecast | AQ12: =C_Time!AQ$13 -> Forecast | AR12: =C_Time!AR$13 -> Forecast | AS12: =C_Time!AS$13 -> Forecast | AT12: =C_Time!AT$13 -> Forecast | AU12: =C_Time!AU$13 -> Forecast | AV12: =C_Time!AV$13 -> Forecast | AW12: =C_Time!AW$13 -> Forecast | AX12: =C_Time!AX$13 -> Forecast | AY12: =C_Time!AY$13 -> Forecast | AZ12: =C_Time!AZ$13 -> Forecast | BA12: =C_Time!BA$13 -> Forecast | BB12: =C_Time!BB$13 -> Forecast | BC12: =C_Time!BC$13 -> Forecast | BD12: =C_Time!BD$13 -> Forecast | BE12: =C_Time!BE$13 -> Forecast | BF12: =C_Time!BF$13 -> Forecast | BG12: =C_Time!BG$13 -> Forecast | BH12: =C_Time!BH$13 -> Forecast | BI12: =C_Time!BI$13 -> Forecast | BJ12: =C_Time!BJ$13 -> Forecast
E14: Label | F14: Constant | G14: Units | H14: Price Base | I14: Notes | J14: Data Source | L14: Confidentiality Status | Y14: Total
A15: UKATS Stored Determined Cost
AA17: UKATS_DC_Export
E18: ='C_Determined Costs_UKATS'!E54 -> Calculated DC / TSU - Allowed + Calculated | F18: ='C_Determined Costs_UKATS'!F54 -> 0 | G18: ='C_Determined Costs_UKATS'!G54 -> £ per TSU | H18: ='C_Determined Costs_UKATS'!H54 -> Nominal | I18: ='C_Determined Costs_UKATS'!I54 -> Exported to Macro | J18: ='C_Determined Costs_UKATS'!J54 -> 0 | L18: ='C_Determined Costs_UKATS'!L54 -> 0 | Y18: ='C_Determined Costs_UKATS'!Y54 -> 721.4595897 | AA18: ='C_Determined Costs_UKATS'!AA54 -> 58.48009827 | AB18: ='C_Determined Costs_UKATS'!AB54 -> 57.28737712 | AC18: ='C_Determined Costs_UKATS'!AC54 -> 56.5886863 | AD18: ='C_Determined Costs_UKATS'!AD54 -> 54.826451 | AE18: ='C_Determined Costs_UKATS'!AE54 -> 52.94405221 | AF18: ='C_Determined Costs_UKATS'!AF54 -> 54.55078892 | AG18: ='C_Determined Costs_UKATS'!AG54 -> 52.30554899 | AH18: ='C_Determined Costs_UKATS'!AH54 -> 52.24451362 | AI18: ='C_Determined Costs_UKATS'!AI54 -> 63.47537445 | AJ18: ='C_Determined Costs_UKATS'!AJ54 -> 59.55288474 | AK18: ='C_Determined Costs_UKATS'!AK54 -> 52.59590147 | AL18: ='C_Determined Costs_UKATS'!AL54 -> 53.38732059 | AM18: ='C_Determined Costs_UKATS'!AM54 -> 53.22059204 | AN18: ='C_Determined Costs_UKATS'!AN54 -> 0 | AO18: ='C_Determined Costs_UKATS'!AO54 -> 0 | AP18: ='C_Determined Costs_UKATS'!AP54 -> 0 | AQ18: ='C_Determined Costs_UKATS'!AQ54 -> 0 | AR18: ='C_Determined Costs_UKATS'!AR54 -> 0 | AS18: ='C_Determined Costs_UKATS'!AS54 -> 0 | AT18: ='C_Determined Costs_UKATS'!AT54 -> 0 | AU18: ='C_Determined Costs_UKATS'!AU54 -> 0 | AV18: ='C_Determined Costs_UKATS'!AV54 -> 0 | AW18: ='C_Determined Costs_UKATS'!AW54 -> 0 | AX18: ='C_Determined Costs_UKATS'!AX54 -> 0 | AY18: ='C_Determined Costs_UKATS'!AY54 -> 0 | AZ18: ='C_Determined Costs_UKATS'!AZ54 -> 0 | BA18: ='C_Determined Costs_UKATS'!BA54 -> 0 | BB18: ='C_Determined Costs_UKATS'!BB54 -> 0 | BC18: ='C_Determined Costs_UKATS'!BC54 -> 0 | BD18: ='C_Determined Costs_UKATS'!BD54 -> 0 | BE18: ='C_Determined Costs_UKATS'!BE54 -> 0 | BF18: ='C_Determined Costs_UKATS'!BF54 -> 0 | BG18: ='C_Determined Costs_UKATS'!BG54 -> 0 | BH18: ='C_Determined Costs_UKATS'!BH54 -> 0 | BI18: ='C_Determined Costs_UKATS'!BI54 -> 0 | BJ18: ='C_Determined Costs_UKATS'!BJ54 -> 0
E20: SCEN 1
E21: Determined Cost per TSU (UKATS) | F21: =Scenario!F$42 -> Base - Flat | G21: =I_Global!$F$64 -> £ per TSU | H21: =$H$18 -> Nominal | AA21: 58.48009827 | AB21: 57.28737712 | AC21: 56.5886863 | AD21: 54.826451 | AE21: 52.94405221 | AF21: 54.55078892 | AG21: 52.30554899 | AH21: 52.24451362 | AI21: 63.47537385 | AJ21: 59.55286817 | AK21: 52.59586484 | AL21: 53.38732108 | AM21: 53.22059806 | AN21: 0 | AO21: 0 | AP21: 0 | AQ21: 0 | AR21: 0 | AS21: 0 | AT21: 0 | AU21: 0 | AV21: 0 | AW21: 0 | AX21: 0 | AY21: 0 | AZ21: 0 | BA21: 0 | BB21: 0 | BC21: 0 | BD21: 0 | BE21: 0 | BF21: 0 | BG21: 0 | BH21: 0 | BI21: 0 | BJ21: 0
E23: SCEN 2
E24: Determined Cost per TSU (UKATS) | F24: =Scenario!F$43 -> Flights (Low) | G24: =I_Global!$F$64 -> £ per TSU | H24: =$H$18 -> Nominal
E26: SCEN 3
E27: Determined Cost per TSU (UKATS) | F27: =Scenario!F$44 -> Spare 3 | G27: =I_Global!$F$64 -> £ per TSU | H27: =$H$18 -> Nominal
E29: SCEN 4
E30: Determined Cost per TSU (UKATS) | F30: =Scenario!F$45 -> Spare 4 | G30: =I_Global!$F$64 -> £ per TSU | H30: =$H$18 -> Nominal
E32: SCEN 5
E33: Determined Cost per TSU (UKATS) | F33: =Scenario!F$46 -> Spare 5 | G33: =I_Global!$F$64 -> £ per TSU | H33: =$H$18 -> Nominal
E35: SCEN 6
E36: Determined Cost per TSU (UKATS) | F36: =Scenario!F$47 -> Spare 6 | G36: =I_Global!$F$64 -> £ per TSU | H36: =$H$18 -> Nominal
E38: SCEN 7
E39: Determined Cost per TSU (UKATS) | F39: =Scenario!F$48 -> Spare 7 | G39: =I_Global!$F$64 -> £ per TSU | H39: =$H$18 -> Nominal
E41: SCEN 8
E42: Determined Cost per TSU (UKATS) | F42: =Scenario!F$49 -> Spare 8 | G42: =I_Global!$F$64 -> £ per TSU | H42: =$H$18 -> Nominal
E44: SCEN 9
E45: Determined Cost per TSU (UKATS) | F45: =Scenario!F$50 -> Spare 9 | G45: =I_Global!$F$64 -> £ per TSU | H45: =$H$18 -> Nominal
E47: SCEN 10
E48: Determined Cost per TSU (UKATS) | F48: =Scenario!F$51 -> Spare 10 | G48: =I_Global!$F$64 -> £ per TSU | H48: =$H$18 -> Nominal
A50: UKATS Stored Outturn Prices
E53: =C_Time!E$146 -> Subsequent Future Price Control Periods flag | F53: =C_Time!F$146 -> 0 | G53: =C_Time!G$146 -> flag | H53: =C_Time!H$146 -> 0 | I53: =C_Time!I$146 -> 0 | J53: =C_Time!J$146 -> 0 | L53: =C_Time!L$146 -> 0 | Y53: =C_Time!Y$146 -> 23 | AA53: =C_Time!AA$146 -> 0 | AB53: =C_Time!AB$146 -> 0 | AC53: =C_Time!AC$146 -> 0 | AD53: =C_Time!AD$146 -> 0 | AE53: =C_Time!AE$146 -> 0 | AF53: =C_Time!AF$146 -> 0 | AG53: =C_Time!AG$146 -> 0 | AH53: =C_Time!AH$146 -> 0 | AI53: =C_Time!AI$146 -> 0 | AJ53: =C_Time!AJ$146 -> 0 | AK53: =C_Time!AK$146 -> 0 | AL53: =C_Time!AL$146 -> 0 | AM53: =C_Time!AM$146 -> 0 | AN53: =C_Time!AN$146 -> 1 | AO53: =C_Time!AO$146 -> 1 | AP53: =C_Time!AP$146 -> 1 | AQ53: =C_Time!AQ$146 -> 1 | AR53: =C_Time!AR$146 -> 1 | AS53: =C_Time!AS$146 -> 1 | AT53: =C_Time!AT$146 -> 1 | AU53: =C_Time!AU$146 -> 1 | AV53: =C_Time!AV$146 -> 1 | AW53: =C_Time!AW$146 -> 1 | AX53: =C_Time!AX$146 -> 1 | AY53: =C_Time!AY$146 -> 1 | AZ53: =C_Time!AZ$146 -> 1 | BA53: =C_Time!BA$146 -> 1 | BB53: =C_Time!BB$146 -> 1 | BC53: =C_Time!BC$146 -> 1 | BD53: =C_Time!BD$146 -> 1 | BE53: =C_Time!BE$146 -> 1 | BF53: =C_Time!BF$146 -> 1 | BG53: =C_Time!BG$146 -> 1 | BH53: =C_Time!BH$146 -> 1 | BI53: =C_Time!BI$146 -> 1 | BJ53: =C_Time!BJ$146 -> 1
B54: Stored | E54: =C_RevCost_UKATS!E$138 -> Determined Cost per TSU | F54: =C_RevCost_UKATS!F$138 -> 0 | G54: =C_RevCost_UKATS!G$138 -> £ per TSU | H54: =C_RevCost_UKATS!H$138 -> Nominal | I54: =C_RevCost_UKATS!I$138 -> 0 | J54: =C_RevCost_UKATS!J$138 -> 0 | L54: =C_RevCost_UKATS!L$138 -> 0 | Y54: =C_RevCost_UKATS!Y$138 -> 721.4595424 | AA54: =C_RevCost_UKATS!AA$138 -> 58.48009827 | AB54: =C_RevCost_UKATS!AB$138 -> 57.28737712 | AC54: =C_RevCost_UKATS!AC$138 -> 56.5886863 | AD54: =C_RevCost_UKATS!AD$138 -> 54.826451 | AE54: =C_RevCost_UKATS!AE$138 -> 52.94405221 | AF54: =C_RevCost_UKATS!AF$138 -> 54.55078892 | AG54: =C_RevCost_UKATS!AG$138 -> 52.30554899 | AH54: =C_RevCost_UKATS!AH$138 -> 52.24451362 | AI54: =C_RevCost_UKATS!AI$138 -> 63.47537385 | AJ54: =C_RevCost_UKATS!AJ$138 -> 59.55286817 | AK54: =C_RevCost_UKATS!AK$138 -> 52.59586484 | AL54: =C_RevCost_UKATS!AL$138 -> 53.38732108 | AM54: =C_RevCost_UKATS!AM$138 -> 53.22059806 | AN54: =C_RevCost_UKATS!AN$138 -> 0 | AO54: =C_RevCost_UKATS!AO$138 -> 0 | AP54: =C_RevCost_UKATS!AP$138 -> 0 | AQ54: =C_RevCost_UKATS!AQ$138 -> 0 | AR54: =C_RevCost_UKATS!AR$138 -> 0 | AS54: =C_RevCost_UKATS!AS$138 -> 0 | AT54: =C_RevCost_UKATS!AT$138 -> 0 | AU54: =C_RevCost_UKATS!AU$138 -> 0 | AV54: =C_RevCost_UKATS!AV$138 -> 0 | AW54: =C_RevCost_UKATS!AW$138 -> 0 | AX54: =C_RevCost_UKATS!AX$138 -> 0 | AY54: =C_RevCost_UKATS!AY$138 -> 0 | AZ54: =C_RevCost_UKATS!AZ$138 -> 0 | BA54: =C_RevCost_UKATS!BA$138 -> 0 | BB54: =C_RevCost_UKATS!BB$138 -> 0 | BC54: =C_RevCost_UKATS!BC$138 -> 0 | BD54: =C_RevCost_UKATS!BD$138 -> 0 | BE54: =C_RevCost_UKATS!BE$138 -> 0 | BF54: =C_RevCost_UKATS!BF$138 -> 0 | BG54: =C_RevCost_UKATS!BG$138 -> 0 | BH54: =C_RevCost_UKATS!BH$138 -> 0 | BI54: =C_RevCost_UKATS!BI$138 -> 0 | BJ54: =C_RevCost_UKATS!BJ$138 -> 0
B55: Live Calc | E55: ='C_Determined Costs_UKATS'!E$54 -> Calculated DC / TSU - Allowed + Calculated | F55: ='C_Determined Costs_UKATS'!F$54 -> 0 | G55: ='C_Determined Costs_UKATS'!G$54 -> £ per TSU | H55: ='C_Determined Costs_UKATS'!H$54 -> Nominal | I55: ='C_Determined Costs_UKATS'!I$54 -> Exported to Macro | J55: ='C_Determined Costs_UKATS'!J$54 -> 0 | L55: ='C_Determined Costs_UKATS'!L$54 -> 0 | Y55: ='C_Determined Costs_UKATS'!Y$54 -> 721.4595897 | AA55: ='C_Determined Costs_UKATS'!AA$54 -> 58.48009827 | AB55: ='C_Determined Costs_UKATS'!AB$54 -> 57.28737712 | AC55: ='C_Determined Costs_UKATS'!AC$54 -> 56.5886863 | AD55: ='C_Determined Costs_UKATS'!AD$54 -> 54.826451 | AE55: ='C_Determined Costs_UKATS'!AE$54 -> 52.94405221 | AF55: ='C_Determined Costs_UKATS'!AF$54 -> 54.55078892 | AG55: ='C_Determined Costs_UKATS'!AG$54 -> 52.30554899 | AH55: ='C_Determined Costs_UKATS'!AH$54 -> 52.24451362 | AI55: ='C_Determined Costs_UKATS'!AI$54 -> 63.47537445 | AJ55: ='C_Determined Costs_UKATS'!AJ$54 -> 59.55288474 | AK55: ='C_Determined Costs_UKATS'!AK$54 -> 52.59590147 | AL55: ='C_Determined Costs_UKATS'!AL$54 -> 53.38732059 | AM55: ='C_Determined Costs_UKATS'!AM$54 -> 53.22059204 | AN55: ='C_Determined Costs_UKATS'!AN$54 -> 0 | AO55: ='C_Determined Costs_UKATS'!AO$54 -> 0 | AP55: ='C_Determined Costs_UKATS'!AP$54 -> 0 | AQ55: ='C_Determined Costs_UKATS'!AQ$54 -> 0 | AR55: ='C_Determined Costs_UKATS'!AR$54 -> 0 | AS55: ='C_Determined Costs_UKATS'!AS$54 -> 0 | AT55: ='C_Determined Costs_UKATS'!AT$54 -> 0 | AU55: ='C_Determined Costs_UKATS'!AU$54 -> 0 | AV55: ='C_Determined Costs_UKATS'!AV$54 -> 0 | AW55: ='C_Determined Costs_UKATS'!AW$54 -> 0 | AX55: ='C_Determined Costs_UKATS'!AX$54 -> 0 | AY55: ='C_Determined Costs_UKATS'!AY$54 -> 0 | AZ55: ='C_Determined Costs_UKATS'!AZ$54 -> 0 | BA55: ='C_Determined Costs_UKATS'!BA$54 -> 0 | BB55: ='C_Determined Costs_UKATS'!BB$54 -> 0 | BC55: ='C_Determined Costs_UKATS'!BC$54 -> 0 | BD55: ='C_Determined Costs_UKATS'!BD$54 -> 0 | BE55: ='C_Determined Costs_UKATS'!BE$54 -> 0 | BF55: ='C_Determined Costs_UKATS'!BF$54 -> 0 | BG55: ='C_Determined Costs_UKATS'!BG$54 -> 0 | BH55: ='C_Determined Costs_UKATS'!BH$54 -> 0 | BI55: ='C_Determined Costs_UKATS'!BI$54 -> 0 | BJ55: ='C_Determined Costs_UKATS'!BJ$54 -> 0
AA56: UKATS_DCOut_Export
E57: Determined Cost per TSU (UKATS) -Outturn | F57: =IF(F53=1,F54,F55) -> 0 | G57: =IF(G53=1,G54,G55) -> £ per TSU | H57: =IF(H53=1,H54,H55) -> Nominal | I57: =IF(I53=1,I54,I55) -> Exported to Macro | J57: =IF(J53=1,J54,J55) -> 0 | L57: =IF(L53=1,L54,L55) -> 0 | Y57: =IF(Y53=1,Y54,Y55) -> 721.4595897 | AA57: =IF(AA53=1, AA55, AA54) -> 58.48009827 | AB57: =IF(AB53=1, AB55, AB54) -> 57.28737712 | AC57: 56.5886863 | AD57: 54.826451 | AE57: 52.94405221 | AF57: 54.55078892 | AG57: =IF(AG53=1, AG55, AG54) -> 52.30554899 | AH57: 52.24451362 | AI57: 63.47537385 | AJ57: 59.55286817 | AK57: 52.59586484 | AL57: 53.38732108 | AM57: 53.22059806 | AN57: 0 | AO57: 0 | AP57: 0 | AQ57: 0 | AR57: 0 | AS57: 0 | AT57: 0 | AU57: 0 | AV57: 0 | AW57: 0 | AX57: 0 | AY57: 0 | AZ57: 0 | BA57: 0 | BB57: 0 | BC57: 0 | BD57: 0 | BE57: 0 | BF57: 0 | BG57: 0 | BH57: 0 | BI57: 0 | BJ57: 0
E59: SCEN 1
E60: Determined Cost per TSU (UKATS) | F60: =Scenario!F$42 -> Base - Flat | G60: =I_Global!$F$64 -> £ per TSU | H60: =$H$57 -> Nominal | AA60: 58.48009827 | AB60: 57.28737712 | AC60: 56.5886863 | AD60: 54.826451 | AE60: 52.94405221 | AF60: 54.55078892 | AG60: 52.30554899 | AH60: 52.24451362 | AI60: 63.47537385 | AJ60: 59.55286817 | AK60: 52.59586484 | AL60: 53.38732108 | AM60: 53.22059806 | AN60: 0 | AO60: 0 | AP60: 0 | AQ60: 0 | AR60: 0 | AS60: 0 | AT60: 0 | AU60: 0 | AV60: 0 | AW60: 0 | AX60: 0 | AY60: 0 | AZ60: 0 | BA60: 0 | BB60: 0 | BC60: 0 | BD60: 0 | BE60: 0 | BF60: 0 | BG60: 0 | BH60: 0 | BI60: 0 | BJ60: 0
E62: SCEN 2
E63: Determined Cost per TSU (UKATS) | F63: =Scenario!F$43 -> Flights (Low) | G63: =I_Global!$F$64 -> £ per TSU | H63: =$H$57 -> Nominal
E65: SCEN 3
E66: Determined Cost per TSU (UKATS) | F66: =Scenario!F$44 -> Spare 3 | G66: =I_Global!$F$64 -> £ per TSU | H66: =$H$57 -> Nominal
E68: SCEN 4
E69: Determined Cost per TSU (UKATS) | F69: =Scenario!F$45 -> Spare 4 | G69: =I_Global!$F$64 -> £ per TSU | H69: =$H$57 -> Nominal
E71: SCEN 5
E72: Determined Cost per TSU (UKATS) | F72: =Scenario!F$46 -> Spare 5 | G72: =I_Global!$F$64 -> £ per TSU | H72: =$H$57 -> Nominal
E74: SCEN 6
E75: Determined Cost per TSU (UKATS) | F75: =Scenario!F$47 -> Spare 6 | G75: =I_Global!$F$64 -> £ per TSU | H75: =$H$57 -> Nominal
E77: SCEN 7
E78: Determined Cost per TSU (UKATS) | F78: =Scenario!F$48 -> Spare 7 | G78: =I_Global!$F$64 -> £ per TSU | H78: =$H$57 -> Nominal
E80: SCEN 8
E81: Determined Cost per TSU (UKATS) | F81: =Scenario!F$49 -> Spare 8 | G81: =I_Global!$F$64 -> £ per TSU | H81: =$H$57 -> Nominal
E83: SCEN 9
E84: Determined Cost per TSU (UKATS) | F84: =Scenario!F$50 -> Spare 9 | G84: =I_Global!$F$64 -> £ per TSU | H84: =$H$57 -> Nominal
E86: SCEN 10
E87: Determined Cost per TSU (UKATS) | F87: =Scenario!F$51 -> Spare 10 | G87: =I_Global!$F$64 -> £ per TSU | H87: =$H$57 -> Nominal
A89: UKATS Stored CSM - Price Determination
AA91: UKATS_CSM_Export
E92: =C_RAB_UKATS!E$521 -> Cost Sharing Mechanism CSM t (TSU) | F92: =C_RAB_UKATS!F$521 -> 0 | G92: =C_RAB_UKATS!G$521 -> £'000 | H92: =C_RAB_UKATS!H$521 -> Nominal | I92: =C_RAB_UKATS!I$521 -> 0 | J92: =C_RAB_UKATS!J$521 -> 0 | L92: =C_RAB_UKATS!L$521 -> 0 | Y92: =C_RAB_UKATS!Y$521 -> 77269.285 | AA92: =C_RAB_UKATS!AA$521 -> 0 | AB92: =C_RAB_UKATS!AB$521 -> 2163.260472 | AC92: =C_RAB_UKATS!AC$521 -> 2176.004522 | AD92: =C_RAB_UKATS!AD$521 -> 2186.727132 | AE92: =C_RAB_UKATS!AE$521 -> 2192.881964 | AF92: =C_RAB_UKATS!AF$521 -> 1629.137082 | AG92: =C_RAB_UKATS!AG$521 -> 7993.766111 | AH92: =C_RAB_UKATS!AH$521 -> 8763.469891 | AI92: =C_RAB_UKATS!AI$521 -> 9151.506293 | AJ92: =C_RAB_UKATS!AJ$521 -> 7789.839384 | AK92: =C_RAB_UKATS!AK$521 -> 4736.374013 | AL92: =C_RAB_UKATS!AL$521 -> 4687.164318 | AM92: =C_RAB_UKATS!AM$521 -> 4683.463766 | AN92: =C_RAB_UKATS!AN$521 -> 5269.16563 | AO92: =C_RAB_UKATS!AO$521 -> 5325.759046 | AP92: =C_RAB_UKATS!AP$521 -> 3420.171148 | AQ92: =C_RAB_UKATS!AQ$521 -> 3216.444944 | AR92: =C_RAB_UKATS!AR$521 -> 2676.369369 | AS92: =C_RAB_UKATS!AS$521 -> 1212.774928 | AT92: =C_RAB_UKATS!AT$521 -> -807.6701806 | AU92: =C_RAB_UKATS!AU$521 -> -787.9562102 | AV92: =C_RAB_UKATS!AV$521 -> -409.3686202 | AW92: =C_RAB_UKATS!AW$521 -> -3.536632965e-13 | AX92: =C_RAB_UKATS!AX$521 -> -3.635730069e-13 | AY92: =C_RAB_UKATS!AY$521 -> -3.737603893e-13 | AZ92: =C_RAB_UKATS!AZ$521 -> -3.84233224e-13 | BA92: =C_RAB_UKATS!BA$521 -> -3.949995094e-13 | BB92: =C_RAB_UKATS!BB$521 -> -4.060674681e-13 | BC92: =C_RAB_UKATS!BC$521 -> -4.174455531e-13 | BD92: =C_RAB_UKATS!BD$521 -> -4.291424541e-13 | BE92: =C_RAB_UKATS!BE$521 -> -4.411671044e-13 | BF92: =C_RAB_UKATS!BF$521 -> -4.535286876e-13 | BG92: =C_RAB_UKATS!BG$521 -> -4.662366447e-13 | BH92: =C_RAB_UKATS!BH$521 -> -4.79300681e-13 | BI92: =C_RAB_UKATS!BI$521 -> -4.92730774e-13 | BJ92: =C_RAB_UKATS!BJ$521 -> -5.065371807e-13
E94: SCEN 1
E95: =E$92 & " - Price Determination" -> Cost Sharing Mechanism CSM t (TSU) - Price Determination | F95: =Scenario!F$42 -> Base - Flat | G95: =G$92 -> £'000 | H95: =H$92 -> Nominal | AA95: 0 | AB95: 2163.260472 | AC95: 2176.004522 | AD95: 2186.727132 | AE95: 2192.881964 | AF95: 1629.137082 | AG95: 7993.766111 | AH95: 8763.469891 | AI95: 9151.506293 | AJ95: 7789.839384 | AK95: 4736.374013 | AL95: 4687.164318 | AM95: 4683.463766 | AN95: 5269.16563 | AO95: 5325.759046 | AP95: 3420.171148 | AQ95: 3216.444944 | AR95: 2676.369369 | AS95: 1212.774928 | AT95: -807.6701806 | AU95: -787.9562102 | AV95: -409.3686202 | AW95: -3.536632965e-13 | AX95: -3.635730069e-13 | AY95: -3.737603893e-13 | AZ95: -3.84233224e-13 | BA95: -3.949995094e-13 | BB95: -4.060674681e-13 | BC95: -4.174455531e-13 | BD95: -4.291424541e-13 | BE95: -4.411671044e-13 | BF95: -4.535286876e-13 | BG95: -4.662366447e-13 | BH95: -4.79300681e-13 | BI95: -4.92730774e-13 | BJ95: -5.065371807e-13
E97: SCEN 2
E98: =E$92 & " - Price Determination" -> Cost Sharing Mechanism CSM t (TSU) - Price Determination | F98: =Scenario!F$43 -> Flights (Low) | G98: =G$92 -> £'000 | H98: =H$92 -> Nominal
E100: SCEN 3
E101: =E$92 & " - Price Determination" -> Cost Sharing Mechanism CSM t (TSU) - Price Determination | F101: =Scenario!F$44 -> Spare 3 | G101: =G$92 -> £'000 | H101: =H$92 -> Nominal
E103: SCEN 4
E104: =E$92 & " - Price Determination" -> Cost Sharing Mechanism CSM t (TSU) - Price Determination | F104: =Scenario!F$45 -> Spare 4 | G104: =G$92 -> £'000 | H104: =H$92 -> Nominal
E106: SCEN 5
E107: =E$92 & " - Price Determination" -> Cost Sharing Mechanism CSM t (TSU) - Price Determination | F107: =Scenario!F$46 -> Spare 5 | G107: =G$92 -> £'000 | H107: =H$92 -> Nominal
E109: SCEN 6
E110: =E$92 & " - Price Determination" -> Cost Sharing Mechanism CSM t (TSU) - Price Determination | F110: =Scenario!F$47 -> Spare 6 | G110: =G$92 -> £'000 | H110: =H$92 -> Nominal
E112: SCEN 7
E113: =E$92 & " - Price Determination" -> Cost Sharing Mechanism CSM t (TSU) - Price Determination | F113: =Scenario!F$48 -> Spare 7 | G113: =G$92 -> £'000 | H113: =H$92 -> Nominal
E115: SCEN 8
E116: =E$92 & " - Price Determination" -> Cost Sharing Mechanism CSM t (TSU) - Price Determination | F116: =Scenario!F$49 -> Spare 8 | G116: =G$92 -> £'000 | H116: =H$92 -> Nominal
E118: SCEN 9
E119: =E$92 & " - Price Determination" -> Cost Sharing Mechanism CSM t (TSU) - Price Determination | F119: =Scenario!F$50 -> Spare 9 | G119: =G$92 -> £'000 | H119: =H$92 -> Nominal
E121: SCEN 10
E122: =E$92 & " - Price Determination" -> Cost Sharing Mechanism CSM t (TSU) - Price Determination | F122: =Scenario!F$51 -> Spare 10 | G122: =G$92 -> £'000 | H122: =H$92 -> Nominal
A124: UKATS Stored Outturn CSM
E127: =C_Time!E$146 -> Subsequent Future Price Control Periods flag | F127: =C_Time!F$146 -> 0 | G127: =C_Time!G$146 -> flag | H127: =C_Time!H$146 -> 0 | I127: =C_Time!I$146 -> 0 | J127: =C_Time!J$146 -> 0 | L127: =C_Time!L$146 -> 0 | Y127: =C_Time!Y$146 -> 23 | AA127: =C_Time!AA$146 -> 0 | AB127: =C_Time!AB$146 -> 0 | AC127: =C_Time!AC$146 -> 0 | AD127: =C_Time!AD$146 -> 0 | AE127: =C_Time!AE$146 -> 0 | AF127: =C_Time!AF$146 -> 0 | AG127: =C_Time!AG$146 -> 0 | AH127: =C_Time!AH$146 -> 0 | AI127: =C_Time!AI$146 -> 0 | AJ127: =C_Time!AJ$146 -> 0 | AK127: =C_Time!AK$146 -> 0 | AL127: =C_Time!AL$146 -> 0 | AM127: =C_Time!AM$146 -> 0 | AN127: =C_Time!AN$146 -> 1 | AO127: =C_Time!AO$146 -> 1 | AP127: =C_Time!AP$146 -> 1 | AQ127: =C_Time!AQ$146 -> 1 | AR127: =C_Time!AR$146 -> 1 | AS127: =C_Time!AS$146 -> 1 | AT127: =C_Time!AT$146 -> 1 | AU127: =C_Time!AU$146 -> 1 | AV127: =C_Time!AV$146 -> 1 | AW127: =C_Time!AW$146 -> 1 | AX127: =C_Time!AX$146 -> 1 | AY127: =C_Time!AY$146 -> 1 | AZ127: =C_Time!AZ$146 -> 1 | BA127: =C_Time!BA$146 -> 1 | BB127: =C_Time!BB$146 -> 1 | BC127: =C_Time!BC$146 -> 1 | BD127: =C_Time!BD$146 -> 1 | BE127: =C_Time!BE$146 -> 1 | BF127: =C_Time!BF$146 -> 1 | BG127: =C_Time!BG$146 -> 1 | BH127: =C_Time!BH$146 -> 1 | BI127: =C_Time!BI$146 -> 1 | BJ127: =C_Time!BJ$146 -> 1
B128: Stored | E128: =C_RevCost_UKATS!E196 -> CSM adjustment (TSU) - Price Determination - Active | F128: =C_RevCost_UKATS!F196 -> 0 | G128: =C_RevCost_UKATS!G196 -> £'000 | H128: =C_RevCost_UKATS!H196 -> Nominal | I128: =C_RevCost_UKATS!I196 -> 0 | J128: =C_RevCost_UKATS!J196 -> 0 | L128: =C_RevCost_UKATS!L196 -> 0 | Y128: =C_RevCost_UKATS!Y196 -> 77269.285 | AA128: =C_RevCost_UKATS!AA196 -> 0 | AB128: =C_RevCost_UKATS!AB196 -> 2163.260472 | AC128: =C_RevCost_UKATS!AC196 -> 2176.004522 | AD128: =C_RevCost_UKATS!AD196 -> 2186.727132 | AE128: =C_RevCost_UKATS!AE196 -> 2192.881964 | AF128: =C_RevCost_UKATS!AF196 -> 1629.137082 | AG128: =C_RevCost_UKATS!AG196 -> 7993.766111 | AH128: =C_RevCost_UKATS!AH196 -> 8763.469891 | AI128: =C_RevCost_UKATS!AI196 -> 9151.506293 | AJ128: =C_RevCost_UKATS!AJ196 -> 7789.839384 | AK128: =C_RevCost_UKATS!AK196 -> 4736.374013 | AL128: =C_RevCost_UKATS!AL196 -> 4687.164318 | AM128: =C_RevCost_UKATS!AM196 -> 4683.463766 | AN128: =C_RevCost_UKATS!AN196 -> 5269.16563 | AO128: =C_RevCost_UKATS!AO196 -> 5325.759046 | AP128: =C_RevCost_UKATS!AP196 -> 3420.171148 | AQ128: =C_RevCost_UKATS!AQ196 -> 3216.444944 | AR128: =C_RevCost_UKATS!AR196 -> 2676.369369 | AS128: =C_RevCost_UKATS!AS196 -> 1212.774928 | AT128: =C_RevCost_UKATS!AT196 -> -807.6701806 | AU128: =C_RevCost_UKATS!AU196 -> -787.9562102 | AV128: =C_RevCost_UKATS!AV196 -> -409.3686202 | AW128: =C_RevCost_UKATS!AW196 -> -3.536632965e-13 | AX128: =C_RevCost_UKATS!AX196 -> -3.635730069e-13 | AY128: =C_RevCost_UKATS!AY196 -> -3.737603893e-13 | AZ128: =C_RevCost_UKATS!AZ196 -> -3.84233224e-13 | BA128: =C_RevCost_UKATS!BA196 -> -3.949995094e-13 | BB128: =C_RevCost_UKATS!BB196 -> -4.060674681e-13 | BC128: =C_RevCost_UKATS!BC196 -> -4.174455531e-13 | BD128: =C_RevCost_UKATS!BD196 -> -4.291424541e-13 | BE128: =C_RevCost_UKATS!BE196 -> -4.411671044e-13 | BF128: =C_RevCost_UKATS!BF196 -> -4.535286876e-13 | BG128: =C_RevCost_UKATS!BG196 -> -4.662366447e-13 | BH128: =C_RevCost_UKATS!BH196 -> -4.79300681e-13 | BI128: =C_RevCost_UKATS!BI196 -> -4.92730774e-13 | BJ128: =C_RevCost_UKATS!BJ196 -> -5.065371807e-13
B129: Live Calc | E129: =C_RAB_UKATS!E$521 -> Cost Sharing Mechanism CSM t (TSU) | F129: =C_RAB_UKATS!F$521 -> 0 | G129: =C_RAB_UKATS!G$521 -> £'000 | H129: =C_RAB_UKATS!H$521 -> Nominal | I129: =C_RAB_UKATS!I$521 -> 0 | J129: =C_RAB_UKATS!J$521 -> 0 | L129: =C_RAB_UKATS!L$521 -> 0 | Y129: =C_RAB_UKATS!Y$521 -> 77269.285 | AA129: =C_RAB_UKATS!AA$521 -> 0 | AB129: =C_RAB_UKATS!AB$521 -> 2163.260472 | AC129: =C_RAB_UKATS!AC$521 -> 2176.004522 | AD129: =C_RAB_UKATS!AD$521 -> 2186.727132 | AE129: =C_RAB_UKATS!AE$521 -> 2192.881964 | AF129: =C_RAB_UKATS!AF$521 -> 1629.137082 | AG129: =C_RAB_UKATS!AG$521 -> 7993.766111 | AH129: =C_RAB_UKATS!AH$521 -> 8763.469891 | AI129: =C_RAB_UKATS!AI$521 -> 9151.506293 | AJ129: =C_RAB_UKATS!AJ$521 -> 7789.839384 | AK129: =C_RAB_UKATS!AK$521 -> 4736.374013 | AL129: =C_RAB_UKATS!AL$521 -> 4687.164318 | AM129: =C_RAB_UKATS!AM$521 -> 4683.463766 | AN129: =C_RAB_UKATS!AN$521 -> 5269.16563 | AO129: =C_RAB_UKATS!AO$521 -> 5325.759046 | AP129: =C_RAB_UKATS!AP$521 -> 3420.171148 | AQ129: =C_RAB_UKATS!AQ$521 -> 3216.444944 | AR129: =C_RAB_UKATS!AR$521 -> 2676.369369 | AS129: =C_RAB_UKATS!AS$521 -> 1212.774928 | AT129: =C_RAB_UKATS!AT$521 -> -807.6701806 | AU129: =C_RAB_UKATS!AU$521 -> -787.9562102 | AV129: =C_RAB_UKATS!AV$521 -> -409.3686202 | AW129: =C_RAB_UKATS!AW$521 -> -3.536632965e-13 | AX129: =C_RAB_UKATS!AX$521 -> -3.635730069e-13 | AY129: =C_RAB_UKATS!AY$521 -> -3.737603893e-13 | AZ129: =C_RAB_UKATS!AZ$521 -> -3.84233224e-13 | BA129: =C_RAB_UKATS!BA$521 -> -3.949995094e-13 | BB129: =C_RAB_UKATS!BB$521 -> -4.060674681e-13 | BC129: =C_RAB_UKATS!BC$521 -> -4.174455531e-13 | BD129: =C_RAB_UKATS!BD$521 -> -4.291424541e-13 | BE129: =C_RAB_UKATS!BE$521 -> -4.411671044e-13 | BF129: =C_RAB_UKATS!BF$521 -> -4.535286876e-13 | BG129: =C_RAB_UKATS!BG$521 -> -4.662366447e-13 | BH129: =C_RAB_UKATS!BH$521 -> -4.79300681e-13 | BI129: =C_RAB_UKATS!BI$521 -> -4.92730774e-13 | BJ129: =C_RAB_UKATS!BJ$521 -> -5.065371807e-13
AA130: UKATS_CSMOut_Export
E131: Cost Sharing Mechanism CSM t (TSU) - Outturn | F131: =IF(F127=1,F128,F129) -> 0 | G131: =IF(G127=1,G128,G129) -> £'000 | H131: =IF(H127=1,H128,H129) -> Nominal | I131: =IF(I127=1,I128,I129) -> 0 | J131: =IF(J127=1,J128,J129) -> 0 | L131: =IF(L127=1,L128,L129) -> 0 | Y131: =IF(Y127=1,Y128,Y129) -> 77269.285 | AA131: =IF(AA127=1, AA129, AA128) -> 0 | AB131: =IF(AB127=1, AB129, AB128) -> 2163.260472 | AC131: 2176.004522 | AD131: 2186.727132 | AE131: 2192.881964 | AF131: 1629.137082 | AG131: 7993.766111 | AH131: 8763.469891 | AI131: 9151.506293 | AJ131: 7789.839384 | AK131: 4736.374013 | AL131: 4687.164318 | AM131: 4683.463766 | AN131: 5269.16563 | AO131: 5325.759046 | AP131: 3420.171148 | AQ131: 3216.444944 | AR131: 2676.369369 | AS131: 1212.774928 | AT131: -807.6701806 | AU131: -787.9562102 | AV131: -409.3686202 | AW131: -3.536632965e-13 | AX131: -3.635730069e-13 | AY131: -3.737603893e-13 | AZ131: -3.84233224e-13 | BA131: -3.949995094e-13 | BB131: -4.060674681e-13 | BC131: -4.174455531e-13 | BD131: -4.291424541e-13 | BE131: -4.411671044e-13 | BF131: -4.535286876e-13 | BG131: -4.662366447e-13 | BH131: -4.79300681e-13 | BI131: -4.92730774e-13 | BJ131: -5.065371807e-13
E133: SCEN 1
E134: =E$92 & " - Outturn" -> Cost Sharing Mechanism CSM t (TSU) - Outturn | F134: =Scenario!F$42 -> Base - Flat | G134: =G$92 -> £'000 | H134: =H$92 -> Nominal | AA134: 0 | AB134: 2163.260472 | AC134: 2176.004522 | AD134: 2186.727132 | AE134: 2192.881964 | AF134: 1629.137082 | AG134: 7993.766111 | AH134: 8763.469891 | AI134: 9151.506293 | AJ134: 7789.839384 | AK134: 4736.374013 | AL134: 4687.164318 | AM134: 4683.463766 | AN134: 5269.16563 | AO134: 5325.759046 | AP134: 3420.171148 | AQ134: 3216.444944 | AR134: 2676.369369 | AS134: 1212.774928 | AT134: -807.6701806 | AU134: -787.9562102 | AV134: -409.3686202 | AW134: -3.536632965e-13 | AX134: -3.635730069e-13 | AY134: -3.737603893e-13 | AZ134: -3.84233224e-13 | BA134: -3.949995094e-13 | BB134: -4.060674681e-13 | BC134: -4.174455531e-13 | BD134: -4.291424541e-13 | BE134: -4.411671044e-13 | BF134: -4.535286876e-13 | BG134: -4.662366447e-13 | BH134: -4.79300681e-13 | BI134: -4.92730774e-13 | BJ134: -5.065371807e-13
E136: SCEN 2
E137: =E$92 & " - Outturn" -> Cost Sharing Mechanism CSM t (TSU) - Outturn | F137: =Scenario!F$43 -> Flights (Low) | G137: =G$92 -> £'000 | H137: =H$92 -> Nominal
E139: SCEN 3
E140: =E$92 & " - Outturn" -> Cost Sharing Mechanism CSM t (TSU) - Outturn | F140: =Scenario!F$44 -> Spare 3 | G140: =G$92 -> £'000 | H140: =H$92 -> Nominal
E142: SCEN 4
E143: =E$92 & " - Outturn" -> Cost Sharing Mechanism CSM t (TSU) - Outturn | F143: =Scenario!F$45 -> Spare 4 | G143: =G$92 -> £'000 | H143: =H$92 -> Nominal
E145: SCEN 5
E146: =E$92 & " - Outturn" -> Cost Sharing Mechanism CSM t (TSU) - Outturn | F146: =Scenario!F$46 -> Spare 5 | G146: =G$92 -> £'000 | H146: =H$92 -> Nominal
E148: SCEN 6
E149: =E$92 & " - Outturn" -> Cost Sharing Mechanism CSM t (TSU) - Outturn | F149: =Scenario!F$47 -> Spare 6 | G149: =G$92 -> £'000 | H149: =H$92 -> Nominal
E151: SCEN 7
E152: =E$92 & " - Outturn" -> Cost Sharing Mechanism CSM t (TSU) - Outturn | F152: =Scenario!F$48 -> Spare 7 | G152: =G$92 -> £'000 | H152: =H$92 -> Nominal
E154: SCEN 8
E155: =E$92 & " - Outturn" -> Cost Sharing Mechanism CSM t (TSU) - Outturn | F155: =Scenario!F$49 -> Spare 8 | G155: =G$92 -> £'000 | H155: =H$92 -> Nominal
E157: SCEN 9
E158: =E$92 & " - Outturn" -> Cost Sharing Mechanism CSM t (TSU) - Outturn | F158: =Scenario!F$50 -> Spare 9 | G158: =G$92 -> £'000 | H158: =H$92 -> Nominal
E160: SCEN 10
E161: =E$92 & " - Outturn" -> Cost Sharing Mechanism CSM t (TSU) - Outturn | F161: =Scenario!F$51 -> Spare 10 | G161: =G$92 -> £'000 | H161: =H$92 -> Nominal
A163: Oceanic Stored Base Charge (Base)
AA165: Oceanic_DC_Export
E166: ='C_Determined Costs_Oceanic'!E48 -> Calculated base charge - Oceanic - Excluding Adjustments for Previous Price Determination, 2023 TUR - Allowed + Calculated | F166: ='C_Determined Costs_Oceanic'!F48 -> 0 | G166: ='C_Determined Costs_Oceanic'!G48 -> £ per flight | H166: ='C_Determined Costs_Oceanic'!H48 -> Nominal | I166: ='C_Determined Costs_Oceanic'!I48 -> 0 | J166: ='C_Determined Costs_Oceanic'!J48 -> 0 | L166: ='C_Determined Costs_Oceanic'!L48 -> 0 | Y166: ='C_Determined Costs_Oceanic'!Y48 -> 0 | AA166: ='C_Determined Costs_Oceanic'!AA48 -> 64.93068749 | AB166: ='C_Determined Costs_Oceanic'!AB48 -> 62.91818472 | AC166: ='C_Determined Costs_Oceanic'!AC48 -> 61.03062032 | AD166: ='C_Determined Costs_Oceanic'!AD48 -> 59.1995134 | AE166: ='C_Determined Costs_Oceanic'!AE48 -> 57.42358769 | AF166: ='C_Determined Costs_Oceanic'!AF48 -> 56.56 | AG166: ='C_Determined Costs_Oceanic'!AG48 -> 55.21 | AH166: ='C_Determined Costs_Oceanic'!AH48 -> 55.26 | AI166: ='C_Determined Costs_Oceanic'!AI48 -> 78.10643085 | AJ166: ='C_Determined Costs_Oceanic'!AJ48 -> 71.44172817 | AK166: ='C_Determined Costs_Oceanic'!AK48 -> 53.62628612 | AL166: ='C_Determined Costs_Oceanic'!AL48 -> 54.9376484 | AM166: ='C_Determined Costs_Oceanic'!AM48 -> 52.82888063 | AN166: ='C_Determined Costs_Oceanic'!AN48 -> 6.367175495 | AO166: ='C_Determined Costs_Oceanic'!AO48 -> 6.104579623 | AP166: ='C_Determined Costs_Oceanic'!AP48 -> 6.106768186 | AQ166: ='C_Determined Costs_Oceanic'!AQ48 -> 5.284437203 | AR166: ='C_Determined Costs_Oceanic'!AR48 -> 5.299742709 | AS166: ='C_Determined Costs_Oceanic'!AS48 -> 5.312612051 | AT166: ='C_Determined Costs_Oceanic'!AT48 -> 5.322102871 | AU166: ='C_Determined Costs_Oceanic'!AU48 -> 7.939366994 | AV166: ='C_Determined Costs_Oceanic'!AV48 -> 6.842305921 | AW166: ='C_Determined Costs_Oceanic'!AW48 -> 5.925907138 | AX166: ='C_Determined Costs_Oceanic'!AX48 -> 4.895777923 | AY166: ='C_Determined Costs_Oceanic'!AY48 -> 3.910004371 | AZ166: ='C_Determined Costs_Oceanic'!AZ48 -> 2.698757537 | BA166: ='C_Determined Costs_Oceanic'!BA48 -> 1.509510477 | BB166: ='C_Determined Costs_Oceanic'!BB48 -> 0.3711662607 | BC166: ='C_Determined Costs_Oceanic'!BC48 -> 0.3682989286 | BD166: ='C_Determined Costs_Oceanic'!BD48 -> 0.3628978609 | BE166: ='C_Determined Costs_Oceanic'!BE48 -> 0.3682866727 | BF166: ='C_Determined Costs_Oceanic'!BF48 -> 0.3744252802 | BG166: ='C_Determined Costs_Oceanic'!BG48 -> 0.3814304569 | BH166: ='C_Determined Costs_Oceanic'!BH48 -> 0.3888963569 | BI166: ='C_Determined Costs_Oceanic'!BI48 -> 0.3968038167 | BJ166: ='C_Determined Costs_Oceanic'!BJ48 -> 0.4051404175
E168: SCEN 1
E169: Base Charge per Oceanic Flight | F169: =Scenario!$F$42 -> Base - Flat | G169: =I_Global!$F$65 -> £ per flight | H169: =$H$166 -> Nominal | AA169: 64.93068749 | AB169: 62.91818472 | AC169: 61.03062032 | AD169: 59.1995134 | AE169: 57.42358769 | AF169: 56.56 | AG169: 55.21 | AH169: 55.26 | AI169: 78.10638722 | AJ169: 71.44160099 | AK169: 53.62613808 | AL169: 54.93751593 | AM169: 52.82876016 | AN169: 6.367082874 | AO169: 6.104539104 | AP169: 6.106750614 | AQ169: 5.284418732 | AR169: 5.299724886 | AS169: 5.312594878 | AT169: 5.322085659 | AU169: 7.939298145 | AV169: 6.842240744 | AW169: 5.925858254 | AX169: 4.895740203 | AY169: 3.909974741 | AZ169: 2.698734242 | BA169: 1.509492312 | BB169: 0.3711513299 | BC169: 0.3682869214 | BD169: 0.362886589 | BE169: 0.3682777379 | BF169: 0.3744187887 | BG169: 0.3814236916 | BH169: 0.3888893023 | BI169: 0.3967964567 | BJ169: 0.4051327348
E171: SCEN 2
E172: Base Charge per Oceanic Flight | F172: =Scenario!$F$43 -> Flights (Low) | G172: =I_Global!$F$65 -> £ per flight | H172: =$H$166 -> Nominal
E174: SCEN 3
E175: Base Charge per Oceanic Flight | F175: =Scenario!$F$44 -> Spare 3 | G175: =I_Global!$F$65 -> £ per flight | H175: =$H$166 -> Nominal
E177: SCEN 4
E178: Base Charge per Oceanic Flight | F178: =Scenario!$F$45 -> Spare 4 | G178: =I_Global!$F$65 -> £ per flight | H178: =$H$166 -> Nominal
E180: SCEN 5
E181: Base Charge per Oceanic Flight | F181: =Scenario!$F$46 -> Spare 5 | G181: =I_Global!$F$65 -> £ per flight | H181: =$H$166 -> Nominal
E183: SCEN 6
E184: Base Charge per Oceanic Flight | F184: =Scenario!$F$47 -> Spare 6 | G184: =I_Global!$F$65 -> £ per flight | H184: =$H$166 -> Nominal
E186: SCEN 7
E187: Base Charge per Oceanic Flight | F187: =Scenario!$F$48 -> Spare 7 | G187: =I_Global!$F$65 -> £ per flight | H187: =$H$166 -> Nominal
E189: SCEN 8
E190: Base Charge per Oceanic Flight | F190: =Scenario!$F$49 -> Spare 8 | G190: =I_Global!$F$65 -> £ per flight | H190: =$H$166 -> Nominal
E192: SCEN 9
E193: Base Charge per Oceanic Flight | F193: =Scenario!$F$50 -> Spare 9 | G193: =I_Global!$F$65 -> £ per flight | H193: =$H$166 -> Nominal
E195: SCEN 10
E196: Base Charge per Oceanic Flight | F196: =Scenario!$F$51 -> Spare 10 | G196: =I_Global!$F$65 -> £ per flight | H196: =$H$166 -> Nominal
A198: =A163 & " - Outturn" -> Oceanic Stored Base Charge (Base) - Outturn
E200: =C_Time!E$146 -> Subsequent Future Price Control Periods flag | F200: =C_Time!F$146 -> 0 | G200: =C_Time!G$146 -> flag | H200: =C_Time!H$146 -> 0 | I200: =C_Time!I$146 -> 0 | J200: =C_Time!J$146 -> 0 | L200: =C_Time!L$146 -> 0 | Y200: =C_Time!Y$146 -> 23 | AA200: =C_Time!AA$146 -> 0 | AB200: =C_Time!AB$146 -> 0 | AC200: =C_Time!AC$146 -> 0 | AD200: =C_Time!AD$146 -> 0 | AE200: =C_Time!AE$146 -> 0 | AF200: =C_Time!AF$146 -> 0 | AG200: =C_Time!AG$146 -> 0 | AH200: =C_Time!AH$146 -> 0 | AI200: =C_Time!AI$146 -> 0 | AJ200: =C_Time!AJ$146 -> 0 | AK200: =C_Time!AK$146 -> 0 | AL200: =C_Time!AL$146 -> 0 | AM200: =C_Time!AM$146 -> 0 | AN200: =C_Time!AN$146 -> 1 | AO200: =C_Time!AO$146 -> 1 | AP200: =C_Time!AP$146 -> 1 | AQ200: =C_Time!AQ$146 -> 1 | AR200: =C_Time!AR$146 -> 1 | AS200: =C_Time!AS$146 -> 1 | AT200: =C_Time!AT$146 -> 1 | AU200: =C_Time!AU$146 -> 1 | AV200: =C_Time!AV$146 -> 1 | AW200: =C_Time!AW$146 -> 1 | AX200: =C_Time!AX$146 -> 1 | AY200: =C_Time!AY$146 -> 1 | AZ200: =C_Time!AZ$146 -> 1 | BA200: =C_Time!BA$146 -> 1 | BB200: =C_Time!BB$146 -> 1 | BC200: =C_Time!BC$146 -> 1 | BD200: =C_Time!BD$146 -> 1 | BE200: =C_Time!BE$146 -> 1 | BF200: =C_Time!BF$146 -> 1 | BG200: =C_Time!BG$146 -> 1 | BH200: =C_Time!BH$146 -> 1 | BI200: =C_Time!BI$146 -> 1 | BJ200: =C_Time!BJ$146 -> 1
B201: Stored | E201: =C_RevCost_Oceanic!E$90 -> Base Charge per Oceanic Flight (Oceanic) | F201: =C_RevCost_Oceanic!F$90 -> 0 | G201: =C_RevCost_Oceanic!G$90 -> £ per flight | H201: =C_RevCost_Oceanic!H$90 -> Nominal | I201: =C_RevCost_Oceanic!I$90 -> 0 | J201: =C_RevCost_Oceanic!J$90 -> 0 | L201: =C_RevCost_Oceanic!L$90 -> 0 | Y201: =C_RevCost_Oceanic!Y$90 -> 0 | AA201: =C_RevCost_Oceanic!AA$90 -> 64.93068749 | AB201: =C_RevCost_Oceanic!AB$90 -> 62.91818472 | AC201: =C_RevCost_Oceanic!AC$90 -> 61.03062032 | AD201: =C_RevCost_Oceanic!AD$90 -> 59.1995134 | AE201: =C_RevCost_Oceanic!AE$90 -> 57.42358769 | AF201: =C_RevCost_Oceanic!AF$90 -> 56.56 | AG201: =C_RevCost_Oceanic!AG$90 -> 55.21 | AH201: =C_RevCost_Oceanic!AH$90 -> 55.26 | AI201: =C_RevCost_Oceanic!AI$90 -> 78.10638722 | AJ201: =C_RevCost_Oceanic!AJ$90 -> 71.44160099 | AK201: =C_RevCost_Oceanic!AK$90 -> 53.62613808 | AL201: =C_RevCost_Oceanic!AL$90 -> 54.93751593 | AM201: =C_RevCost_Oceanic!AM$90 -> 52.82876016 | AN201: =C_RevCost_Oceanic!AN$90 -> 6.367082874 | AO201: =C_RevCost_Oceanic!AO$90 -> 6.104539104 | AP201: =C_RevCost_Oceanic!AP$90 -> 6.106750614 | AQ201: =C_RevCost_Oceanic!AQ$90 -> 5.284418732 | AR201: =C_RevCost_Oceanic!AR$90 -> 5.299724886 | AS201: =C_RevCost_Oceanic!AS$90 -> 5.312594878 | AT201: =C_RevCost_Oceanic!AT$90 -> 5.322085659 | AU201: =C_RevCost_Oceanic!AU$90 -> 7.939298145 | AV201: =C_RevCost_Oceanic!AV$90 -> 6.842240744 | AW201: =C_RevCost_Oceanic!AW$90 -> 5.925858254 | AX201: =C_RevCost_Oceanic!AX$90 -> 4.895740203 | AY201: =C_RevCost_Oceanic!AY$90 -> 3.909974741 | AZ201: =C_RevCost_Oceanic!AZ$90 -> 2.698734242 | BA201: =C_RevCost_Oceanic!BA$90 -> 1.509492312 | BB201: =C_RevCost_Oceanic!BB$90 -> 0.3711513299 | BC201: =C_RevCost_Oceanic!BC$90 -> 0.3682869214 | BD201: =C_RevCost_Oceanic!BD$90 -> 0.362886589 | BE201: =C_RevCost_Oceanic!BE$90 -> 0.3682777379 | BF201: =C_RevCost_Oceanic!BF$90 -> 0.3744187887 | BG201: =C_RevCost_Oceanic!BG$90 -> 0.3814236916 | BH201: =C_RevCost_Oceanic!BH$90 -> 0.3888893023 | BI201: =C_RevCost_Oceanic!BI$90 -> 0.3967964567 | BJ201: =C_RevCost_Oceanic!BJ$90 -> 0.4051327348
B202: Live Calc | E202: ='C_Determined Costs_Oceanic'!E$48 -> Calculated base charge - Oceanic - Excluding Adjustments for Previous Price Determination, 2023 TUR - Allowed + Calculated | F202: ='C_Determined Costs_Oceanic'!F$48 -> 0 | G202: ='C_Determined Costs_Oceanic'!G$48 -> £ per flight | H202: ='C_Determined Costs_Oceanic'!H$48 -> Nominal | I202: ='C_Determined Costs_Oceanic'!I$48 -> 0 | J202: ='C_Determined Costs_Oceanic'!J$48 -> 0 | L202: ='C_Determined Costs_Oceanic'!L$48 -> 0 | Y202: ='C_Determined Costs_Oceanic'!Y$48 -> 0 | AA202: ='C_Determined Costs_Oceanic'!AA$48 -> 64.93068749 | AB202: ='C_Determined Costs_Oceanic'!AB$48 -> 62.91818472 | AC202: ='C_Determined Costs_Oceanic'!AC$48 -> 61.03062032 | AD202: ='C_Determined Costs_Oceanic'!AD$48 -> 59.1995134 | AE202: ='C_Determined Costs_Oceanic'!AE$48 -> 57.42358769 | AF202: ='C_Determined Costs_Oceanic'!AF$48 -> 56.56 | AG202: ='C_Determined Costs_Oceanic'!AG$48 -> 55.21 | AH202: ='C_Determined Costs_Oceanic'!AH$48 -> 55.26 | AI202: ='C_Determined Costs_Oceanic'!AI$48 -> 78.10643085 | AJ202: ='C_Determined Costs_Oceanic'!AJ$48 -> 71.44172817 | AK202: ='C_Determined Costs_Oceanic'!AK$48 -> 53.62628612 | AL202: ='C_Determined Costs_Oceanic'!AL$48 -> 54.9376484 | AM202: ='C_Determined Costs_Oceanic'!AM$48 -> 52.82888063 | AN202: ='C_Determined Costs_Oceanic'!AN$48 -> 6.367175495 | AO202: ='C_Determined Costs_Oceanic'!AO$48 -> 6.104579623 | AP202: ='C_Determined Costs_Oceanic'!AP$48 -> 6.106768186 | AQ202: ='C_Determined Costs_Oceanic'!AQ$48 -> 5.284437203 | AR202: ='C_Determined Costs_Oceanic'!AR$48 -> 5.299742709 | AS202: ='C_Determined Costs_Oceanic'!AS$48 -> 5.312612051 | AT202: ='C_Determined Costs_Oceanic'!AT$48 -> 5.322102871 | AU202: ='C_Determined Costs_Oceanic'!AU$48 -> 7.939366994 | AV202: ='C_Determined Costs_Oceanic'!AV$48 -> 6.842305921 | AW202: ='C_Determined Costs_Oceanic'!AW$48 -> 5.925907138 | AX202: ='C_Determined Costs_Oceanic'!AX$48 -> 4.895777923 | AY202: ='C_Determined Costs_Oceanic'!AY$48 -> 3.910004371 | AZ202: ='C_Determined Costs_Oceanic'!AZ$48 -> 2.698757537 | BA202: ='C_Determined Costs_Oceanic'!BA$48 -> 1.509510477 | BB202: ='C_Determined Costs_Oceanic'!BB$48 -> 0.3711662607 | BC202: ='C_Determined Costs_Oceanic'!BC$48 -> 0.3682989286 | BD202: ='C_Determined Costs_Oceanic'!BD$48 -> 0.3628978609 | BE202: ='C_Determined Costs_Oceanic'!BE$48 -> 0.3682866727 | BF202: ='C_Determined Costs_Oceanic'!BF$48 -> 0.3744252802 | BG202: ='C_Determined Costs_Oceanic'!BG$48 -> 0.3814304569 | BH202: ='C_Determined Costs_Oceanic'!BH$48 -> 0.3888963569 | BI202: ='C_Determined Costs_Oceanic'!BI$48 -> 0.3968038167 | BJ202: ='C_Determined Costs_Oceanic'!BJ$48 -> 0.4051404175
AA203: Oceanics_Out_SBC_Export
E204: Calculated base charge - Oceanic - Allowed + Calculated | F204: =IF(F200=1,F201,F202) -> 0 | G204: =IF(G200=1,G201,G202) -> £ per flight | H204: =IF(H200=1,H201,H202) -> Nominal | I204: =IF(I200=1,I201,I202) -> 0 | J204: =IF(J200=1,J201,J202) -> 0 | L204: =IF(L200=1,L201,L202) -> 0 | Y204: =IF(Y200=1,Y201,Y202) -> 0 | AA204: =IF(AA200=1, AA202, AA201) -> 64.93068749 | AB204: =IF(AB200=1, AB202, AB201) -> 62.91818472 | AC204: 61.03062032 | AD204: 59.1995134 | AE204: 57.42358769 | AF204: 56.56 | AG204: 55.21 | AH204: 55.26 | AI204: 78.10638722 | AJ204: 71.44160099 | AK204: 53.62613808 | AL204: 54.93751593 | AM204: 52.82876016 | AN204: 6.367175495 | AO204: 6.104579623 | AP204: 6.106768186 | AQ204: 5.284437203 | AR204: 5.299742709 | AS204: 5.312612051 | AT204: 5.322102871 | AU204: 7.939366994 | AV204: 6.842305921 | AW204: 5.925907138 | AX204: 4.895777923 | AY204: 3.910004371 | AZ204: 2.698757537 | BA204: 1.509510477 | BB204: 0.3711662607 | BC204: 0.3682989286 | BD204: 0.3628978609 | BE204: 0.3682866727 | BF204: 0.3744252802 | BG204: 0.3814304569 | BH204: 0.3888963569 | BI204: 0.3968038167 | BJ204: 0.4051404175
E206: SCEN 1
E207: Base Charge per Oceanic Flight (Oceanic) | F207: =Scenario!F$42 -> Base - Flat | G207: £ per flight | H207: =$H$204 -> Nominal | AA207: 64.93068749 | AB207: 62.91818472 | AC207: 61.03062032 | AD207: 59.1995134 | AE207: 57.42358769 | AF207: 56.56 | AG207: 55.21 | AH207: 55.26 | AI207: 78.10638722 | AJ207: 71.44160099 | AK207: 53.62613808 | AL207: 54.93751593 | AM207: 52.82876016 | AN207: 6.367147354 | AO207: 6.104539151 | AP207: 6.106750614 | AQ207: 5.284418732 | AR207: 5.299724886 | AS207: 5.312594878 | AT207: 5.322085659 | AU207: 7.939298145 | AV207: 6.842240744 | AW207: 5.925858254 | AX207: 4.895740203 | AY207: 3.909974741 | AZ207: 2.698734242 | BA207: 1.509492312 | BB207: 0.3711513299 | BC207: 0.3682869214 | BD207: 0.362886589 | BE207: 0.3682777379 | BF207: 0.3744187887 | BG207: 0.3814236916 | BH207: 0.3888893023 | BI207: 0.3967964567 | BJ207: 0.4051327348
E209: SCEN 2
E210: Base Charge per Oceanic Flight (Oceanic) | F210: =Scenario!$F$43 -> Flights (Low) | G210: £ per flight | H210: =$H$204 -> Nominal
E212: SCEN 3
E213: Base Charge per Oceanic Flight (Oceanic) | F213: =Scenario!$F$44 -> Spare 3 | G213: £ per flight | H213: =$H$204 -> Nominal
E215: SCEN 4
E216: Base Charge per Oceanic Flight (Oceanic) | F216: =Scenario!$F$45 -> Spare 4 | G216: £ per flight | H216: =$H$204 -> Nominal
E218: SCEN 5
E219: Base Charge per Oceanic Flight (Oceanic) | F219: =Scenario!$F$46 -> Spare 5 | G219: £ per flight | H219: =$H$204 -> Nominal
E221: SCEN 6
E222: Base Charge per Oceanic Flight (Oceanic) | F222: =Scenario!$F$47 -> Spare 6 | G222: £ per flight | H222: =$H$204 -> Nominal
E224: SCEN 7
E225: Base Charge per Oceanic Flight (Oceanic) | F225: =Scenario!$F$48 -> Spare 7 | G225: £ per flight | H225: =$H$204 -> Nominal
E227: SCEN 8
E228: Base Charge per Oceanic Flight (Oceanic) | F228: =Scenario!$F$49 -> Spare 8 | G228: £ per flight | H228: =$H$204 -> Nominal
E230: SCEN 9
E231: Base Charge per Oceanic Flight (Oceanic) | F231: =Scenario!$F$50 -> Spare 9 | G231: £ per flight | H231: =$H$204 -> Nominal
E233: SCEN 10
E234: Base Charge per Oceanic Flight (Oceanic) | F234: =Scenario!$F$51 -> Spare 10 | G234: £ per flight | H234: =$H$204 -> Nominal
A237: Oceanic Stored ADS-B Atlantic Charge
AA239: Oceanic_ADSB_Atlantic_Export
E240: ='C_Determined Costs_Oceanic'!E229 -> ADS-B Price per Flight (Atlantic) | F240: ='C_Determined Costs_Oceanic'!F229 -> 0 | G240: ='C_Determined Costs_Oceanic'!G229 -> £ per flight | H240: ='C_Determined Costs_Oceanic'!H229 -> Nominal | I240: ='C_Determined Costs_Oceanic'!I229 -> Exported via Macro | J240: ='C_Determined Costs_Oceanic'!J229 -> 0 | L240: ='C_Determined Costs_Oceanic'!L229 -> 0 | Y240: ='C_Determined Costs_Oceanic'!Y229 -> 0 | AA240: ='C_Determined Costs_Oceanic'!AA229 -> 0 | AB240: ='C_Determined Costs_Oceanic'!AB229 -> 0 | AC240: ='C_Determined Costs_Oceanic'!AC229 -> 0 | AD240: ='C_Determined Costs_Oceanic'!AD229 -> 0 | AE240: ='C_Determined Costs_Oceanic'!AE229 -> 0 | AF240: ='C_Determined Costs_Oceanic'!AF229 -> 33.3 | AG240: ='C_Determined Costs_Oceanic'!AG229 -> 33.97 | AH240: ='C_Determined Costs_Oceanic'!AH229 -> 34.65 | AI240: ='C_Determined Costs_Oceanic'!AI229 -> 36.6769998 | AJ240: ='C_Determined Costs_Oceanic'!AJ229 -> 36.48326977 | AK240: ='C_Determined Costs_Oceanic'!AK229 -> 38.31402909 | AL240: ='C_Determined Costs_Oceanic'!AL229 -> 38.48202187 | AM240: ='C_Determined Costs_Oceanic'!AM229 -> 40.22934901 | AN240: ='C_Determined Costs_Oceanic'!AN229 -> 0 | AO240: ='C_Determined Costs_Oceanic'!AO229 -> 0 | AP240: ='C_Determined Costs_Oceanic'!AP229 -> 0 | AQ240: ='C_Determined Costs_Oceanic'!AQ229 -> 0 | AR240: ='C_Determined Costs_Oceanic'!AR229 -> 0 | AS240: ='C_Determined Costs_Oceanic'!AS229 -> 0 | AT240: ='C_Determined Costs_Oceanic'!AT229 -> 0 | AU240: ='C_Determined Costs_Oceanic'!AU229 -> 0 | AV240: ='C_Determined Costs_Oceanic'!AV229 -> 0 | AW240: ='C_Determined Costs_Oceanic'!AW229 -> 0 | AX240: ='C_Determined Costs_Oceanic'!AX229 -> 0 | AY240: ='C_Determined Costs_Oceanic'!AY229 -> 0 | AZ240: ='C_Determined Costs_Oceanic'!AZ229 -> 0 | BA240: ='C_Determined Costs_Oceanic'!BA229 -> 0 | BB240: ='C_Determined Costs_Oceanic'!BB229 -> 0 | BC240: ='C_Determined Costs_Oceanic'!BC229 -> 0 | BD240: ='C_Determined Costs_Oceanic'!BD229 -> 0 | BE240: ='C_Determined Costs_Oceanic'!BE229 -> 0 | BF240: ='C_Determined Costs_Oceanic'!BF229 -> 0 | BG240: ='C_Determined Costs_Oceanic'!BG229 -> 0 | BH240: ='C_Determined Costs_Oceanic'!BH229 -> 0 | BI240: ='C_Determined Costs_Oceanic'!BI229 -> 0 | BJ240: ='C_Determined Costs_Oceanic'!BJ229 -> 0
E242: SCEN 1
E243: ADS-B Atlantic Charge | F243: =Scenario!$F$42 -> Base - Flat | G243: =I_Global!$F$65 -> £ per flight | H243: =$H$240 -> Nominal | AA243: 0 | AB243: 0 | AC243: 0 | AD243: 0 | AE243: 0 | AF243: 33.3 | AG243: 33.97 | AH243: 34.65 | AI243: 36.6769998 | AJ243: 36.48326977 | AK243: 38.31402909 | AL243: 38.48202187 | AM243: 40.22934901 | AN243: 0 | AO243: 0 | AP243: 0 | AQ243: 0 | AR243: 0 | AS243: 0 | AT243: 0 | AU243: 0 | AV243: 0 | AW243: 0 | AX243: 0 | AY243: 0 | AZ243: 0 | BA243: 0 | BB243: 0 | BC243: 0 | BD243: 0 | BE243: 0 | BF243: 0 | BG243: 0 | BH243: 0 | BI243: 0 | BJ243: 0
E245: SCEN 2
E246: ADS-B Atlantic Charge | F246: =Scenario!$F$43 -> Flights (Low) | G246: =I_Global!$F$65 -> £ per flight | H246: =$H$240 -> Nominal
E248: SCEN 3
E249: ADS-B Atlantic Charge | F249: =Scenario!$F$44 -> Spare 3 | G249: =I_Global!$F$65 -> £ per flight | H249: =$H$240 -> Nominal
... 181 more rows

Sheet Inputs >
A1: =MID(CELL( "filename", $A$1 ), SEARCH( "[",CELL( "filename", $A$1 ) ) + 1, SEARCH( "]",CELL( "filename", $A$1 ) ) - SEARCH( "[",CELL( "filename", $A$1 ) ) - 1 ) -> CAA NERL PCM Decisions_10h - v1.00 - FD for publication.xlsm
B2: =RIGHT(CELL( "filename", B2 ), LEN(CELL( "filename", B2 ) ) - SEARCH( "]",CELL( "filename", B2 ) ) ) -> Inputs >

Sheet I_Global
A1: =MID(CELL( "filename", $A$1 ), SEARCH( "[",CELL( "filename", $A$1 ) ) + 1, SEARCH( "]",CELL( "filename", $A$1 ) ) - SEARCH( "[",CELL( "filename", $A$1 ) ) - 1 ) -> CAA NERL PCM Decisions_10h - v1.00 - FD for publication.xlsm
B2: =RIGHT(CELL( "filename", B2 ), LEN(CELL( "filename", B2 ) ) - SEARCH( "]",CELL( "filename", B2 ) ) ) -> I_Global | G2: Checks & Alerts | H2: =Checks!$F$3 -> -1
E3: ="Scenario "&_xlfn.SINGLE(Live_Scenarionumber) & " : " &Live_scenario -> Scenario 1 : Base - Flat | G3: Active Overrides | H3: =Checks!$F$88 -> 0
E4: ='I_InputSets NERL'!E4 -> Live Input Set | H4: =Scenario!$F$32 -> 1
E5: ='I_InputSets NERL'!E5 -> Input Set for Price Determination | H5: =Scenario!$H$37 -> 1
E6: ='I_InputSets NERL'!E6 -> Model mode | H6: =Scenario!$F$29 -> Price Determination | I6: =MATCH(H6, $F$205:$F$206, 0) -> 1
E8: Label | F8: Constant | G8: Units | H8: Price Base | I8: Notes | J8: Data Source | L8: Confidentiality Status
A9: 1.a Model technical inputs
E11: Model check tolerance level | F11: 0.005 | G11: tolerance | I11: CheckTOL
E12: Alert user when value exceeds | F12: 70 | G12: £'000 | I12: AlertValueTOL
E13: Sign switch | F13: -1 | G13: sign switch | I13: SignSwitch
E14: Tolerance for Price Determination macro | F14: 1 | G14: Decimal Places
E15: Index Base Year Value | F15: 100 | G15: # | J15: CAA | L15: Being published with this model
E16: £m to £'000 conversion factor | F16: 1000 | G16: # | I16: _OneK | J16: CAA | L16: Being published with this model
E17: Number Two | F17: 2 | G17: # | J17: CAA | L17: Being published with this model
A19: 1.b Time
B21: Timings
E23: Model Start Date | F23: 2015-01-01 | G23: date | I23: fixed for all scenarios | J23: CAA | L23: Being published with this model
E24: Number of months in model period | F24: 12 | G24: # months | I24: fixed for all scenarios | J24: CAA | L24: Being published with this model
E25: Forecast period start date | F25: 2021-01-01 | G25: date | I25: fixed for all scenarios | J25: CAA | L25: Being published with this model
E26: Forecast period end date | F26: 2050-12-31 | G26: date | I26: fixed for all scenarios | J26: CAA | L26: Being published with this model
E28: Price base for real inputs | F28: 2020 | G28: year | I28: fixed for all scenarios | J28: CAA | L28: Being published with this model
B30: Price Control Periods
E32: RP2 Period start | F32: 2015-01-01 | G32: date | I32: fixed for all scenarios | J32: CAA | L32: Already published
E33: RP3 Period start | F33: 2020-01-01 | G33: date | I33: fixed for all scenarios | J33: CAA | L33: Already published
E34: NR23 Period start | F34: 2023-01-01 | G34: date | I34: fixed for all scenarios | J34: CAA | L34: Being published with this model
E35: NR28 Period start | F35: 2028-01-01 | G35: date | I35: fixed for all scenarios | J35: CAA | L35: Being published with this model
E36: NR33 Period start | F36: 2033-01-01 | G36: date | I36: fixed for all scenarios | J36: CAA | L36: Being published with this model
E37: NR38 Period start | F37: 2038-01-01 | G37: date | I37: fixed for all scenarios | J37: CAA | L37: Being published with this model
E38: NR43 Period start | F38: 2043-01-01 | G38: date | I38: fixed for all scenarios | J38: CAA | L38: Being published with this model
E40: Next Price Control Period Starts from | F40: NR23 | G40: Price Control Period | J40: CAA | L40: Being published with this model
E41: Standard Price Control Period Length | F41: 5 | G41: # years | J41: CAA | L41: Already published
E43: Lag Factor used for adjustments | F43: 2 | G43: # years | J43: CAA | L43: Already published
A45: 1.c Validation lists
B47: RAB depreciation methods
E49: RAB depreciation method 1 | F49: straight line | J49: CAA | L49: Being published with this model
E50: RAB depreciation method 2 | F50: profiled input | J50: CAA | L50: Being published with this model
E51: r_RABDepn
B53: RAB categories
E55: RAB 1 | F55: RAB 1 | J55: CAA | L55: Being published with this model
E56: RAB 2 | F56: RAB 2 | J56: CAA | L56: Being published with this model
E57: r_RABCategories
A59: 1.d Labels
E61: Number | F61: # | G61: label | J61: CAA | L61: Being published with this model
E62: Number of Months | F62: # months | G62: label | J62: CAA | L62: Being published with this model
E63: Percentage | F63: % | G63: label | J63: CAA | L63: Being published with this model
E64: Pounds per TSU | F64: £ per TSU | G64: label | J64: CAA | L64: Being published with this model
E65: Pounds per flight | F65: £ per flight | G65: label | J65: CAA | L65: Being published with this model
E66: # CSUs (thousands) | F66: # CSUs ('000) | G66: label | J66: CAA | L66: Being published with this model
E67: # TSUs (thousands) | F67: # TSUs ('000) | G67: label | J67: CAA | L67: Being published with this model
E68: # Flights (thousands) | F68: # Flights ('000) | G68: label | J68: CAA | L68: Being published with this model
E69: Value | F69: £'000 | G69: label | J69: CAA | L69: Being published with this model
E70: Check report flag, linked to 'Checks' Sheet | F70: check | G70: label | J70: CAA | L70: Being published with this model
E71: Date | F71: date | G71: label | J71: CAA | L71: Being published with this model
E72: Factor | F72: factor | G72: label | J72: CAA | L72: Being published with this model
E73: Binary Flag for calculations | F73: flag | G73: label | J73: CAA | L73: Being published with this model
E74: Number of periods | F74: periods | G74: label | J74: CAA | L74: Being published with this model
E75: Ratio indicator | F75: ratio | G75: label | J75: CAA | L75: Being published with this model
E76: Selected Scenario | F76: Input set selection | G76: label | J76: CAA | L76: Being published with this model
E77: Selection (drop-down box) | F77: selection | G77: label | J77: CAA | L77: Being published with this model
E78: Turn +ve negative, or vice versa | F78: sign switch | G78: label | J78: CAA | L78: Being published with this model
E79: Limit for decimal places | F79: tolerance | G79: label | J79: CAA | L79: Being published with this model
E80: Number of years | F80: years | G80: label | J80: CAA | L80: Being published with this model
E81: Actual | F81: Actual | G81: label | J81: CAA | L81: Being published with this model
E82: Forecast | F82: Forecast | G82: label | J82: CAA | L82: Being published with this model
E83: Post Forecast | F83: Post Forecast | G83: label | J83: CAA | L83: Being published with this model
E84: Existing Debt | F84: ="Pre "&YEAR(INDEX(C_Time!$AA$10:$BJ$10,MATCH("Forecast",C_Time!$AA$13:$BJ$13,0)-1))&" Debt" -> Pre 2020 Debt | G84: label | J84: CAA | L84: Being published with this model
E85: New Debt | F85: ="Post "&YEAR(INDEX(C_Time!$AA$10:$BJ$10,MATCH("Forecast",C_Time!$AA$13:$BJ$13,0)-1))&" Debt" -> Post 2020 Debt | G85: label | J85: CAA | L85: Being published with this model
E86: Determined Cost | F86: Determined Cost | G86: label | J86: CAA | L86: Being published with this model
E87: For RP3 use Efficient Costs | F87: For RP3 use Efficient Costs | G87: label | J87: CAA | L87: Being published with this model
E89: On | F89: On | G89: label | J89: CAA | L89: Being published with this model
E90: Off | F90: Off | G90: label | J90: CAA | L90: Being published with this model
F91: rOnOffLabel
E93: Base | F93: Base | G93: label
E94: High-cost | F94: High-cost | G94: label
E95: Low-cost | F95: Low-cost | G95: label
F96: rCapexLabels
E98: Manual | F98: Manual | G98: label
E99: Calculated | F99: Calculated | G99: label
A101: 1.e Asset categories
E103: Category 1 | F103: Category 1 | G103: label | J103: CAA | L103: Being published with this model
E104: Category 2 | F104: Category 2 | G104: label | J104: CAA | L104: Being published with this model
E105: Category 3 | F105: Category 3 | G105: label | J105: CAA | L105: Being published with this model
E106: Category 4 | F106: Category 4 | G106: label | J106: CAA | L106: Being published with this model
E107: Category 5 | F107: Category 5 | G107: label | J107: CAA | L107: Being published with this model
E108: Category 6 | F108: Category 6 | G108: label | J108: CAA | L108: Being published with this model
E109: Category 7 | F109: Category 7 | G109: label | J109: CAA | L109: Being published with this model
E110: Category 8 | F110: Category 8 | G110: label | J110: CAA | L110: Being published with this model
E111: Category 9 | F111: Category 9 | G111: label | J111: CAA | L111: Being published with this model
E112: Category 10 | F112: Category 10 | G112: label | J112: CAA | L112: Being published with this model
A114: 1.f Capital Allowance
E116: Category 1 | F116: Main Pool | G116: label | J116: CAA | L116: Being published with this model
E117: Category 2 | F117: Special Pool | G117: label | J117: CAA | L117: Being published with this model
E118: Category 3 | F118: Super Deduction | G118: label | J118: CAA | L118: Being published with this model
E119: Category 4 | F119: Structures & building allowances | G119: label | J119: CAA | L119: Being published with this model
E120: Category 5 | F120: Expensed | G120: label | J120: CAA | L120: Being published with this model
E121: Category 6 | F121: Non - qualifying expenditure | G121: label | J121: CAA | L121: Being published with this model
A123: 1.g RAB Allocation
E125: Category 1 | F125: RAB 1 | G125: label | J125: CAA | L125: Being published with this model
E126: Category 2 | F126: RAB 2 | G126: label | J126: CAA | L126: Being published with this model
A128: 1.h UKATS Cost Categories
D130: 1 | E130: Category 1 | F130: Opex - Wages & Salaries | G130: label | J130: CAA | L130: Being published with this model
D131: =D130 + 1 -> 2 | E131: Category 2 | F131: Pensions - Defined benefit - Ongoing Contributions | G131: label | J131: CAA | L131: Being published with this model
D132: 3 | E132: Category 3 | F132: Pensions - Defined benefit - Deficit Repair | G132: label | J132: CAA | L132: Being published with this model
D133: 4 | E133: Category 4 | F133: Pensions - Defined contribution | G133: label | J133: CAA | L133: Being published with this model
D134: 5 | E134: Category 5 | F134: Pensions - Opt outs | G134: label | J134: CAA | L134: Being published with this model
D135: 6 | E135: Category 6 | F135: Pensions - Other pension costs | G135: label | J135: CAA | L135: Being published with this model
D136: 7 | E136: Category 7 | F136: Opex - Redundancy | G136: label | J136: CAA | L136: Being published with this model
D137: 8 | E137: Category 8 | F137: Opex - Non-staff costs | G137: label | J137: CAA | L137: Being published with this model
D138: 9 | E138: Category 9 | F138: Opex - Exceptional (excl. redundancy) | G138: label | J138: CAA | L138: Being published with this model
D139: 10 | E139: Category 10 | F139: Opex - Spare 2 | G139: label | J139: CAA | L139: Being published with this model
D140: =D139 + 1 -> 11 | E140: Category 11 | F140: Opex - Spare 3 | G140: label | J140: CAA | L140: Being published with this model
A142: 1.i Oceanic Cost Categories
C144: Base
E145: Category 1 | F145: Opex - Wages & Salaries | G145: label | J145: CAA | L145: Being published with this model
E146: Category 2 | F146: Pensions - Defined benefit - Ongoing Contributions | G146: label | J146: CAA | L146: Being published with this model
E147: Category 3 | F147: Pensions - Defined benefit - Deficit Repair | G147: label | J147: CAA | L147: Being published with this model
E148: Category 4 | F148: Pensions - Defined contribution | G148: label | J148: CAA | L148: Being published with this model
E149: Category 5 | F149: Pensions - Opt outs | G149: label | J149: CAA | L149: Being published with this model
E150: Category 6 | F150: Pensions - Other pension costs | G150: label | J150: CAA | L150: Being published with this model
E151: Category 7 | F151: Opex - Redundancy | G151: label | J151: CAA | L151: Being published with this model
E152: Category 8 | F152: Opex - Non-staff costs | G152: label | J152: CAA | L152: Being published with this model
E153: Category 9 | F153: Opex - Spare Cash provisions | G153: label | J153: CAA | L153: Being published with this model
C155: ADS-B
E156: ADS-B Tango | F156: ADS - B Tango | G156: label | J156: CAA | L156: Being published with this model
E157: ADS-B Atlantic | F157: ADS - B North Atlantic | G157: label | J157: CAA | L157: Being published with this model
A159: 1.j UKATS Revenue
C161: Regulated Income (Licence Components)
E162: Label 1 | F162: Restructuring Costs ReS t | G162: label | J162: CAA | L162: Being published with this model
E163: Label 2 | F163: Cost Sharing Mechanism CSM t | G163: label | J163: CAA | L163: Being published with this model
E164: Label 3 | F164: Financial Incentives FI t | G164: label | J164: CAA | L164: Being published with this model
E165: Label 4 | F165: Modulation MOD t | G165: label | J165: CAA | L165: Being published with this model
E166: Label 5 | F166: Pre2011 t | G166: label | J166: CAA | L166: Being published with this model
E167: Label 6 | F167: VFR t | G167: label | J167: CAA | L167: Being published with this model
E168: Label 7 | F168: Customer Discount CD t | G168: label | J168: CAA | L168: Being published with this model
E169: Label 8 | F169: FAS Funding not spent (Cash Condition 21) (TSU) | G169: label | J169: CAA | L169: Being published with this model
E170: Label 9 | F170: INEA Funding (Cash Condition 21) (TSU) | G170: label | J170: CAA | L170: Being published with this model
C172: DfT, CAA and Met charges
E173: Label 1 | F173: DfT Charges | G173: label | J173: CAA | L173: Being published with this model
E174: Label 2 | F174: CAA Charges | G174: label | J174: CAA | L174: Being published with this model
E175: Label 3 | F175: MET Charges | G175: label | J175: CAA | L175: Being published with this model
E176: Label 4 | F176: AMS Charges | G176: label | J176: CAA | L176: Being published with this model
C178: Revenue (I&E lines)
E179: Label 1 | F179: Eurocontrol Revenue (Other) | G179: label | J179: CAA | L179: Being published with this model
E180: Label 2 | F180: MoD Income | G180: label | J180: CAA | L180: Being published with this model
E181: Label 3 | F181: London Approach (Other) | G181: label | J181: CAA | L181: Being published with this model
E182: Label 4 | F182: North Sea Helicopters | G182: label | J182: CAA | L182: Being published with this model
E183: Label 5 | F183: Intercompany income | G183: label | J183: CAA | L183: Being published with this model
E184: Label 6 | F184: Other UKATS Revenue Spare | G184: label | J184: CAA | L184: Being published with this model
C186: Revenue (London Approach lines)
E187: Label 1 | F187: Restructuring Costs ReS t (high) | G187: label | J187: CAA | L187: Being published with this model
E188: Label 2 | F188: Pre2011 t (high) | G188: label | J188: CAA | L188: Being published with this model
E189: Label 3 | F189: Cost Sharing Mechanism CSM t (high) | G189: label | J189: CAA | L189: Being published with this model
E190: Label 4 | F190: Financial Incentives FI t (high) | G190: label | J190: CAA | L190: Being published with this model
E191: Label 5 | F191: Modulation MOD t (high) | G191: label | J191: CAA | L191: Being published with this model
E192: Label 6 | F192: VFR t (high) | G192: label | J192: CAA | L192: Being published with this model
E193: Label 7 | F193: Customer Discount CD t (high) | G193: label | J193: CAA | L193: Being published with this model
A195: 1.k Oceanic Revenue Labels
E197: Label 1 | F197: Oceanic Revenue | G197: label | J197: CAA | L197: Being published with this model
A199: 1.l Divisions
E201: Label 2 | F201: Oceanic | G201: label | J201: CAA | L201: Being published with this model
A203: 1.m Input Sets
E205: Label 1 | F205: Price Determination | G205: label | J205: CAA | L205: Being published with this model
E206: Label 2 | F206: Outturn | G206: label | J206: CAA | L206: Being published with this model
A208: 1.n Inflation price base labels
E210: Label 1 | F210: ="CPI " & Price_Base -> CPI 2020 | G210: label | J210: CAA | L210: Being published with this model
E211: Label 2 | F211: ="RPI " & Price_Base -> RPI 2020 | G211: label | J211: CAA | L211: Being published with this model
E212: Label 3 | F212: Unindexed | G212: label | J212: CAA | L212: Being published with this model
E213: r_PriceBaseLabels
D215: Indexation Set Lists
E217: Label 1 | F217: Indexation Set 1 | G217: label | J217: CAA | L217: Being published with this model
E218: Label 2 | F218: Indexation Set 2 | G218: label | J218: CAA | L218: Being published with this model
E219: Label 3 | F219: Indexation Set 3 | G219: label | J219: CAA | L219: Being published with this model
A221: 1.o Reporting tables
D223: 1. Detail by nature (in nominal terms)
E224: Label 1 | F224: 1.1 Staff | G224: label | J224: CAA | L224: Being published with this model
E225: Label 2 | F225: of which, pension costs | G225: label | J225: CAA | L225: Being published with this model
E226: Label 3 | F226: 1.2 Other operating costs | G226: label | J226: CAA | L226: Being published with this model
E227: Label 4 | F227: 1.3 Depreciation | G227: label | J227: CAA | L227: Being published with this model
E228: Label 5 | F228: 1.4 Cost of capital | G228: label | J228: CAA | L228: Being published with this model
E229: Label 6 | F229: 1.5 Exceptional items | G229: label | J229: CAA | L229: Being published with this model
E230: r_ReportingTableMapping
D232: 2. Analysis of charges
E233: Label 1 | F233: 13.1 Determined costs in nominal terms - VFR excl. (Art. 25(2)(a)) | J233: CAA | L233: Being published with this model
E234: Label 2 | F234: 13.2 Inflation adjustment : amount carried over to year n (Art. 25(2)(b)) | J234: CAA | L234: Being published with this model
E235: Label 3 | F235: 13.3 Traffic risk sharing adjustment : amounts carried over to year n (Art. 25(2)(c)) | J235: CAA | L235: Being published with this model
E236: Label 4 | F236: 13.4 Differences in costs as per Art. 28(4) to (6) : amounts carried over to year n (Art. 25(2)(d)) | J236: CAA | L236: Being published with this model
E237: Label 5 | F237: 13.5 Financial incentives : amounts carried over to year n (Art. 25(2)(e)) | J237: CAA | L237: Being published with this model
E238: Label 6 | F238: 13.6 Modulation of charges : amounts carried over to year n (Art. 25(2)(f)) | J238: CAA | L238: Being published with this model
E239: Label 7 | F239: 13.7 Traffic adjustments : amounts carried over to year n (Art. 25(2)(g) and (h)) | J239: CAA | L239: Being published with this model
E240: Label 8 | F240: 13.8 Other revenues (Art. 25(2)(i)) | J240: CAA | L240: Being published with this model
E241: Label 9 | F241: 13.14 Reduction as per Art. 29(6), where applicable (in national currency) | J241: CAA | L241: Being published with this model
E242: r_T2Mapping
A244: 1.p Performance Plan mapping
D246: 1. Detail by nature (in nominal terms) | E246: Performance Plan Summary
E247: Label 1 | F247: Opex - Wages & Salaries | G247: label | J247: CAA | L247: Being published with this model
E248: Label 2 | F248: Opex - Non-staff costs | G248: label | J248: CAA | L248: Being published with this model
E249: Label 3 | F249: Opex - Exceptionals | G249: label | J249: CAA | L249: Being published with this model
E250: Label 4 | F250: Pensions - Defined benefit | G250: label | J250: CAA | L250: Being published with this model
E251: Label 5 | F251: Pensions - Deficit Repair | G251: label | J251: CAA | L251: Being published with this model
... 124 more rows

Sheet I_InputSets UKATS
A1: =MID(CELL( "filename", $A$1 ), SEARCH( "[",CELL( "filename", $A$1 ) ) + 1, SEARCH( "]",CELL( "filename", $A$1 ) ) - SEARCH( "[",CELL( "filename", $A$1 ) ) - 1 ) -> CAA NERL PCM Decisions_10h - v1.00 - FD for publication.xlsm
B2: =RIGHT(CELL( "filename", B2 ), LEN(CELL( "filename", B2 ) ) - SEARCH( "]",CELL( "filename", B2 ) ) ) -> I_InputSets UKATS | G2: Checks & Alerts | H2: =Checks!$F$3 -> -1
E3: ="Scenario "&_xlfn.SINGLE(Live_Scenarionumber) & " : " &Live_scenario -> Scenario 1 : Base - Flat | G3: Active Overrides | H3: =Checks!$F$88 -> 0
E4: =E12 -> Live Input Set | H4: =Scenario!$F$32 -> 1 | L4: Input Set Label | AA4: Base Case | AB4: Flights - Low | AC4: Input Set 3 | AD4: Input Set 4 | AE4: Input Set 5 | AF4: Input Set 6 | AG4: Input Set 7 | AH4: Input Set 8 | AI4: Input Set 9 | AJ4: Input Set 10
E5: =E13 -> Input Set for Price Determination | H5: =Scenario!$H$37 -> 1 | L5: Input Set Description | AA5: Base Case | AB5: Flights - Low | AC5: Input Set 3 Description | AD5: Input Set 4 Description | AE5: Input Set 5 Description | AF5: Input Set 6 Description | AG5: Input Set 7 Description | AH5: Input Set 8 Description | AI5: Input Set 9 Description | AJ5: Input Set 10 Description
E6: =E14 -> Model mode | H6: =Scenario!$F$29 -> Price Determination | I6: =MATCH(H6, I_Global!$F$205:$F$206, 0) -> 1 | L6: Active Overrides >> | Y6: =COUNTIFS($Y9:$Y759, "<>" & "") -> 0
E8: Label | F8: Constant | G8: Units | H8: Price Base | I8: Notes | J8: Data Source | L8: Confidentiality Status | Y8: Override
A9: Scenario Selector
A10: Scenario names
E12: Live Input Set | F12: =Scenario!F32 -> 1 | G12: =I_Global!$F$61 -> #
E13: Input Set for Price Determination | F13: =Scenario!H37 -> 1 | G13: =I_Global!$F$61 -> #
E14: Model mode | F14: =Scenario!$F$29 -> Price Determination
A16: UKATS
B18: 1.a Traffic Assumptions
E20: UKATS TSU | G20: =I_Global!$F$76 -> Input set selection | L20: Being published with this model | AA20: UKATS TSUs - CAA Run (BASE CASE) | AB20: UKATS TSUs - CAA Run (LOW CASE)
E21: London Approach TSU | G21: =I_Global!$F$76 -> Input set selection | L21: Being published with this model | AA21: London Approach TSUs - CAA Run (BASE CASE) | AB21: London Approach TSUs - CAA Run (LOW CASE)
E22: UKATS CSU | G22: =I_Global!$F$76 -> Input set selection | L22: Being published with this model | AA22: UKATS CSUs - CAA Run (BASE CASE) | AB22: UKATS CSUs - CAA Run (LOW CASE)
E24: UKATS TSU - Outturn | F24: =IF(INDEX(AA20:AJ20, $F$12) = "", AA20, INDEX(AA20:AJ20, $F$12)) -> UKATS TSUs - CAA Run (BASE CASE) | G24: =I_Global!$F$76 -> Input set selection
E25: London Approach TSU - Outturn | F25: =IF(INDEX(AA21:AJ21, $F$12) = "", AA21, INDEX(AA21:AJ21, $F$12)) -> London Approach TSUs - CAA Run (BASE CASE) | G25: =I_Global!$F$76 -> Input set selection
E26: UKATS CSU - Outturn | F26: =IF(INDEX(AA22:AJ22, $F$12) = "", AA22, INDEX(AA22:AJ22, $F$12)) -> UKATS CSUs - CAA Run (BASE CASE) | G26: =I_Global!$F$76 -> Input set selection
E28: UKATS TSU - Price Determination | F28: =IF(INDEX(AA20:AJ20, $F$13) = "", AA20, INDEX(AA20:AJ20, $F$13)) -> UKATS TSUs - CAA Run (BASE CASE) | G28: =I_Global!$F$76 -> Input set selection
E29: London Approach TSU - Price Determination | F29: =IF(INDEX(AA21:AJ21, $F$13) = "", AA21, INDEX(AA21:AJ21, $F$13)) -> London Approach TSUs - CAA Run (BASE CASE) | G29: =I_Global!$F$76 -> Input set selection
E30: UKATS CSU - Price Determination | F30: =IF(INDEX(AA22:AJ22, $F$13) = "", AA22, INDEX(AA22:AJ22, $F$13)) -> UKATS CSUs - CAA Run (BASE CASE) | G30: =I_Global!$F$76 -> Input set selection
B32: 1.b Operating Expenditure
C34: 1.b.i Operating expenditure
D36: Input
E37: =I_Global!F130 -> Opex - Wages & Salaries | G37: =I_Global!$F$76 -> Input set selection | L37: Being published with this model | AA37: Opex - Wages & Salaries - CAA Run | AB37: Opex - Wages & Salaries - CAA Run (Low Case)
E38: =I_Global!F131 -> Pensions - Defined benefit - Ongoing Contributions | G38: =I_Global!$F$76 -> Input set selection | L38: Being published with this model | AA38: Pensions - Defined benefit - Ongoing Contributions - CAA Run | AB38: Pensions - Defined benefit - CAA Run (Low Case)
E39: =I_Global!F132 -> Pensions - Defined benefit - Deficit Repair | G39: =I_Global!$F$76 -> Input set selection | L39: Being published with this model | AA39: Pensions - Defined benefit - Deficit Repair - CAA Run
E40: =I_Global!F133 -> Pensions - Defined contribution | G40: =I_Global!$F$76 -> Input set selection | L40: Being published with this model | AA40: Pensions - Defined contribution - CAA Run | AB40: Pensions - Defined contribution - CAA Run (Low Case)
E41: =I_Global!F134 -> Pensions - Opt outs | G41: =I_Global!$F$76 -> Input set selection | L41: Being published with this model | AA41: Pensions - Opt outs - CAA Forecasts - CAA Run | AB41: Pensions - Opt outs - CAA Forecasts - CAA Run (Low Case)
E42: =I_Global!F135 -> Pensions - Other pension costs | G42: =I_Global!$F$76 -> Input set selection | L42: Being published with this model | AA42: Pensions - Other pension costs - CAA Run
E43: =I_Global!F136 -> Opex - Redundancy | G43: =I_Global!$F$76 -> Input set selection | L43: Being published with this model | AA43: Opex - Redundancy - CAA Forecasts - CAA Run
E44: =I_Global!F137 -> Opex - Non-staff costs | G44: =I_Global!$F$76 -> Input set selection | L44: Being published with this model | AA44: Opex - Non-staff costs - CAA Forecasts - CAA Run | AB44: Opex - Non-staff costs - CAA Forecasts - CAA Run (Low Case)
E45: =I_Global!F138 -> Opex - Exceptional (excl. redundancy) | G45: =I_Global!$F$76 -> Input set selection | L45: Being published with this model | AA45: Opex - Exceptional (excl. redundancy) - CAA Run
E46: =I_Global!F139 -> Opex - Spare 2 | G46: =I_Global!$F$76 -> Input set selection | L46: Being published with this model | AA46: Opex - Spare 2 - CAA Run
E47: =I_Global!F140 -> Opex - Spare 3 | G47: =I_Global!$F$76 -> Input set selection | L47: Being published with this model | AA47: Opex - Spare 3 - CAA Run
D49: Outturn
E50: =I_Global!F130&" - "&$D$49 -> Opex - Wages & Salaries - Outturn | F50: =IF(INDEX(AA37:AJ37, $F$12) = "", AA37, INDEX(AA37:AJ37, $F$12)) -> Opex - Wages & Salaries - CAA Run | G50: =I_Global!$F$76 -> Input set selection
E51: =I_Global!F131&" - "&$D$49 -> Pensions - Defined benefit - Ongoing Contributions - Outturn | F51: =IF(INDEX(AA38:AJ38, $F$12) = "", AA38, INDEX(AA38:AJ38, $F$12)) -> Pensions - Defined benefit - Ongoing Contributions - CAA Run | G51: =I_Global!$F$76 -> Input set selection
E52: =I_Global!F132&" - "&$D$49 -> Pensions - Defined benefit - Deficit Repair - Outturn | F52: =IF(INDEX(AA39:AJ39, $F$12) = "", AA39, INDEX(AA39:AJ39, $F$12)) -> Pensions - Defined benefit - Deficit Repair - CAA Run | G52: =I_Global!$F$76 -> Input set selection
E53: =I_Global!F133&" - "&$D$49 -> Pensions - Defined contribution - Outturn | F53: =IF(INDEX(AA40:AJ40, $F$12) = "", AA40, INDEX(AA40:AJ40, $F$12)) -> Pensions - Defined contribution - CAA Run | G53: =I_Global!$F$76 -> Input set selection
E54: =I_Global!F134&" - "&$D$49 -> Pensions - Opt outs - Outturn | F54: =IF(INDEX(AA41:AJ41, $F$12) = "", AA41, INDEX(AA41:AJ41, $F$12)) -> Pensions - Opt outs - CAA Forecasts - CAA Run | G54: =I_Global!$F$76 -> Input set selection
E55: =I_Global!F135&" - "&$D$49 -> Pensions - Other pension costs - Outturn | F55: =IF(INDEX(AA42:AJ42, $F$12) = "", AA42, INDEX(AA42:AJ42, $F$12)) -> Pensions - Other pension costs - CAA Run | G55: =I_Global!$F$76 -> Input set selection
E56: =I_Global!F136&" - "&$D$49 -> Opex - Redundancy - Outturn | F56: =IF(INDEX(AA43:AJ43, $F$12) = "", AA43, INDEX(AA43:AJ43, $F$12)) -> Opex - Redundancy - CAA Forecasts - CAA Run | G56: =I_Global!$F$76 -> Input set selection
E57: =I_Global!F137&" - "&$D$49 -> Opex - Non-staff costs - Outturn | F57: =IF(INDEX(AA44:AJ44, $F$12) = "", AA44, INDEX(AA44:AJ44, $F$12)) -> Opex - Non-staff costs - CAA Forecasts - CAA Run | G57: =I_Global!$F$76 -> Input set selection
E58: =I_Global!F138&" - "&$D$49 -> Opex - Exceptional (excl. redundancy) - Outturn | F58: =IF(INDEX(AA45:AJ45, $F$12) = "", AA45, INDEX(AA45:AJ45, $F$12)) -> Opex - Exceptional (excl. redundancy) - CAA Run | G58: =I_Global!$F$76 -> Input set selection
E59: =I_Global!F139&" - "&$D$49 -> Opex - Spare 2 - Outturn | F59: =IF(INDEX(AA46:AJ46, $F$12) = "", AA46, INDEX(AA46:AJ46, $F$12)) -> Opex - Spare 2 - CAA Run | G59: =I_Global!$F$76 -> Input set selection
E60: =I_Global!F140&" - "&$D$49 -> Opex - Spare 3 - Outturn | F60: =IF(INDEX(AA47:AJ47, $F$12) = "", AA47, INDEX(AA47:AJ47, $F$12)) -> Opex - Spare 3 - CAA Run | G60: =I_Global!$F$76 -> Input set selection
D62: Price determination
E63: =I_Global!F130&" - "&$D$62 -> Opex - Wages & Salaries - Price determination | F63: =IF(INDEX(AA37:AJ37, $F$13) = "", AA37, INDEX(AA37:AJ37, $F$13)) -> Opex - Wages & Salaries - CAA Run | G63: =I_Global!$F$76 -> Input set selection
E64: =I_Global!F131&" - "&$D$62 -> Pensions - Defined benefit - Ongoing Contributions - Price determination | F64: =IF(INDEX(AA38:AJ38, $F$13) = "", AA38, INDEX(AA38:AJ38, $F$13)) -> Pensions - Defined benefit - Ongoing Contributions - CAA Run | G64: =I_Global!$F$76 -> Input set selection
E65: =I_Global!F132&" - "&$D$62 -> Pensions - Defined benefit - Deficit Repair - Price determination | F65: =IF(INDEX(AA39:AJ39, $F$13) = "", AA39, INDEX(AA39:AJ39, $F$13)) -> Pensions - Defined benefit - Deficit Repair - CAA Run | G65: =I_Global!$F$76 -> Input set selection
E66: =I_Global!F133&" - "&$D$62 -> Pensions - Defined contribution - Price determination | F66: =IF(INDEX(AA40:AJ40, $F$13) = "", AA40, INDEX(AA40:AJ40, $F$13)) -> Pensions - Defined contribution - CAA Run | G66: =I_Global!$F$76 -> Input set selection
E67: =I_Global!F134&" - "&$D$62 -> Pensions - Opt outs - Price determination | F67: =IF(INDEX(AA41:AJ41, $F$13) = "", AA41, INDEX(AA41:AJ41, $F$13)) -> Pensions - Opt outs - CAA Forecasts - CAA Run | G67: =I_Global!$F$76 -> Input set selection
E68: =I_Global!F135&" - "&$D$62 -> Pensions - Other pension costs - Price determination | F68: =IF(INDEX(AA42:AJ42, $F$13) = "", AA42, INDEX(AA42:AJ42, $F$13)) -> Pensions - Other pension costs - CAA Run | G68: =I_Global!$F$76 -> Input set selection
E69: =I_Global!F136&" - "&$D$62 -> Opex - Redundancy - Price determination | F69: =IF(INDEX(AA43:AJ43, $F$13) = "", AA43, INDEX(AA43:AJ43, $F$13)) -> Opex - Redundancy - CAA Forecasts - CAA Run | G69: =I_Global!$F$76 -> Input set selection
E70: =I_Global!F137&" - "&$D$62 -> Opex - Non-staff costs - Price determination | F70: =IF(INDEX(AA44:AJ44, $F$13) = "", AA44, INDEX(AA44:AJ44, $F$13)) -> Opex - Non-staff costs - CAA Forecasts - CAA Run | G70: =I_Global!$F$76 -> Input set selection
E71: =I_Global!F138&" - "&$D$62 -> Opex - Exceptional (excl. redundancy) - Price determination | F71: =IF(INDEX(AA45:AJ45, $F$13) = "", AA45, INDEX(AA45:AJ45, $F$13)) -> Opex - Exceptional (excl. redundancy) - CAA Run | G71: =I_Global!$F$76 -> Input set selection
E72: =I_Global!F139&" - "&$D$62 -> Opex - Spare 2 - Price determination | F72: =IF(INDEX(AA46:AJ46, $F$13) = "", AA46, INDEX(AA46:AJ46, $F$13)) -> Opex - Spare 2 - CAA Run | G72: =I_Global!$F$76 -> Input set selection
E73: =I_Global!F140&" - "&$D$62 -> Opex - Spare 3 - Price determination | F73: =IF(INDEX(AA47:AJ47, $F$13) = "", AA47, INDEX(AA47:AJ47, $F$13)) -> Opex - Spare 3 - CAA Run | G73: =I_Global!$F$76 -> Input set selection
C75: 1.b.i Pensions - Defined benefit (P&L)
E77: =I_Global!F131 -> Pensions - Defined benefit - Ongoing Contributions | F77: =IF(OR(Y77 = "n/a", Y77 = ""), IF(INDEX(AA77:AJ77, $F$12) = "", AA77, INDEX(AA77:AJ77, $F$12)), Y77) -> Pensions - Defined benefit (P&L) - Ongoing Contributions - CAA Run | G77: =I_Global!$F$76 -> Input set selection | L77: Being published with this model | AA77: Pensions - Defined benefit (P&L) - Ongoing Contributions - CAA Run | AB77: Pensions - Defined benefit (P&L) - Ongoing Contributions - CAA Run (Low Case)
E78: =I_Global!F132 -> Pensions - Defined benefit - Deficit Repair | F78: =IF(OR(Y78 = "n/a", Y78 = ""), IF(INDEX(AA78:AJ78, $F$12) = "", AA78, INDEX(AA78:AJ78, $F$12)), Y78) -> Pensions - Defined benefit (P&L) - Deficit Repair - 1 | G78: =I_Global!$F$76 -> Input set selection | L78: Being published with this model | AA78: Pensions - Defined benefit (P&L) - Deficit Repair - 1
C80: 1.b.ii Pension Contribution Variance - active profile
E82: Pension Contribution Variance | F82: =IF(OR(Y82 = "n/a", Y82 = ""), IF(INDEX(AA82:AJ82, $F$12) = "", AA82, INDEX(AA82:AJ82, $F$12)), Y82) -> Pension Contribution Variance - Base | G82: =I_Global!$F$76 -> Input set selection | L82: Being published with this model | AA82: Pension Contribution Variance - Base
B84: 1.c INEA Funding
E86: INEA Deferred Income Release | F86: =IF(OR(Y86 = "n/a", Y86 = ""), IF(INDEX(AA86:AJ86, $F$12) = "", AA86, INDEX(AA86:AJ86, $F$12)), Y86) -> INEA NERL Base Case | G86: =I_Global!$F$76 -> Input set selection | L86: Being published with this model | AA86: INEA NERL Base Case
B88: 1.d Revenues
C90: 1.d.i Regulated Revenue - Components (other than Determined Cost)
E92: =I_Global!F162&" (TSU)" -> Restructuring Costs ReS t (TSU) | F92: =IF(OR(Y92 = "n/a", Y92 = ""), IF(INDEX(AA92:AJ92, $F$12) = "", AA92, INDEX(AA92:AJ92, $F$12)), Y92) -> Restructuring Costs ReS t (high) | G92: =I_Global!$F$76 -> Input set selection | L92: Being published with this model | AA92: Restructuring Costs ReS t (high)
E93: =I_Global!F164&" (TSU)" -> Financial Incentives FI t (TSU) | F93: Financial Incentives FI t (high) | G93: =I_Global!$F$76 -> Input set selection | L93: Being published with this model | AA93: Financial Incentives FI t (high)
E94: =I_Global!F165&" (TSU)" -> Modulation MOD t (TSU) | F94: Modulation MOD t (high) | G94: =I_Global!$F$76 -> Input set selection | L94: Being published with this model | AA94: Modulation MOD t (high)
E95: =I_Global!F166&" (TSU)" -> Pre2011 t (TSU) | F95: Pre2011 t (high) | G95: =I_Global!$F$76 -> Input set selection | L95: Being published with this model | AA95: Pre2011 t (high)
E96: =I_Global!F167&" (TSU)" -> VFR t (TSU) | F96: VFR t (high) | G96: =I_Global!$F$76 -> Input set selection | L96: Being published with this model | AA96: VFR t (high)
E97: =I_Global!F168&" (TSU)" -> Customer Discount CD t (TSU) | F97: Customer Discount CD t (high) | G97: =I_Global!$F$76 -> Input set selection | L97: Being published with this model | AA97: Customer Discount CD t (high)
E98: =I_Global!F169 -> FAS Funding not spent (Cash Condition 21) (TSU) | F98: FAS Funding not spent (Cash Condition 21) (TSU) (high) | G98: =I_Global!$F$76 -> Input set selection | L98: Being published with this model | AA98: FAS Funding not spent (Cash Condition 21) (TSU) (high)
E99: =I_Global!F170 -> INEA Funding (Cash Condition 21) (TSU) | F99: INEA Funding (Cash Condition 21) (TSU) (high) | G99: =I_Global!$F$76 -> Input set selection | L99: Being published with this model | AA99: INEA Funding (Cash Condition 21) (TSU) (high)
E100: =E94&" - Rev Recognition" -> Modulation MOD t (TSU) - Rev Recognition | F100: Modulation MOD t - Rev Recognition (high) | G100: Input set selection | L100: Being published with this model | AA100: Modulation MOD t - Rev Recognition (high)
E101: =E98&" - Rev Recognition" -> FAS Funding not spent (Cash Condition 21) (TSU) - Rev Recognition | F101: FAS Funding not spent - Rev Recognition (Cash Condition 21) (TSU) (high) | G101: Input set selection | L101: Being published with this model | AA101: FAS Funding not spent - Rev Recognition (Cash Condition 21) (TSU) (high)
C103: 1.d.ii. Non-Regulated Revenue - UKATS
D105: Input
E106: =I_Global!F179 -> Eurocontrol Revenue (Other) | G106: =I_Global!$F$76 -> Input set selection | L106: Being published with this model | AA106: Other UKATS Revenue - CAA Run
E107: =I_Global!F180 -> MoD Income | G107: =I_Global!$F$76 -> Input set selection | L107: Being published with this model | AA107: FMARS MoD Income - CAA Run
E108: =I_Global!F182 -> North Sea Helicopters | G108: =I_Global!$F$76 -> Input set selection | L108: Being published with this model | AA108: North Sea Helicopters - CAA Run
E109: =I_Global!F183 -> Intercompany income | G109: =I_Global!$F$76 -> Input set selection | L109: Being published with this model | AA109: Intercompany Income - CAA Run
E110: =I_Global!F184 -> Other UKATS Revenue Spare | G110: =I_Global!$F$76 -> Input set selection | L110: Being published with this model | AA110: Other UKATS Revenue Spare (base)
D112: Outturn
E113: =I_Global!F179&" - "&$D$112 -> Eurocontrol Revenue (Other) - Outturn | F113: =IF(INDEX(AA106:AJ106, $F$12) = "", AA106, INDEX(AA106:AJ106, $F$12)) -> Other UKATS Revenue - CAA Run | G113: =I_Global!$F$76 -> Input set selection
E114: =I_Global!F180&" - "&$D$112 -> MoD Income - Outturn | F114: =IF(INDEX(AA107:AJ107, $F$12) = "", AA107, INDEX(AA107:AJ107, $F$12)) -> FMARS MoD Income - CAA Run | G114: =I_Global!$F$76 -> Input set selection
E115: =I_Global!F182&" - "&$D$112 -> North Sea Helicopters - Outturn | F115: =IF(INDEX(AA108:AJ108, $F$12) = "", AA108, INDEX(AA108:AJ108, $F$12)) -> North Sea Helicopters - CAA Run | G115: =I_Global!$F$76 -> Input set selection
E116: =I_Global!F183&" - "&$D$112 -> Intercompany income - Outturn | F116: =IF(INDEX(AA109:AJ109, $F$12) = "", AA109, INDEX(AA109:AJ109, $F$12)) -> Intercompany Income - CAA Run | G116: =I_Global!$F$76 -> Input set selection
E117: =I_Global!F184&" - "&$D$112 -> Other UKATS Revenue Spare - Outturn | F117: =IF(INDEX(AA110:AJ110, $F$12) = "", AA110, INDEX(AA110:AJ110, $F$12)) -> Other UKATS Revenue Spare (base) | G117: =I_Global!$F$76 -> Input set selection
D119: Price Determination
E120: =I_Global!F179&" - "&$D$119 -> Eurocontrol Revenue (Other) - Price Determination | F120: =IF(INDEX(AA106:AJ106, $F$13) = "", AA106, INDEX(AA106:AJ106, $F$13)) -> Other UKATS Revenue - CAA Run | G120: =I_Global!$F$76 -> Input set selection
E121: =I_Global!F180&" - "&$D$119 -> MoD Income - Price Determination | F121: =IF(INDEX(AA107:AJ107, $F$13) = "", AA107, INDEX(AA107:AJ107, $F$13)) -> FMARS MoD Income - CAA Run | G121: =I_Global!$F$76 -> Input set selection
E122: =I_Global!F182&" - "&$D$119 -> North Sea Helicopters - Price Determination | F122: =IF(INDEX(AA108:AJ108, $F$13) = "", AA108, INDEX(AA108:AJ108, $F$13)) -> North Sea Helicopters - CAA Run | G122: =I_Global!$F$76 -> Input set selection
E123: =I_Global!F183&" - "&$D$119 -> Intercompany income - Price Determination | F123: =IF(INDEX(AA109:AJ109, $F$13) = "", AA109, INDEX(AA109:AJ109, $F$13)) -> Intercompany Income - CAA Run | G123: =I_Global!$F$76 -> Input set selection
E124: =I_Global!F184&" - "&$D$119 -> Other UKATS Revenue Spare - Price Determination | F124: =IF(INDEX(AA110:AJ110, $F$13) = "", AA110, INDEX(AA110:AJ110, $F$13)) -> Other UKATS Revenue Spare (base) | G124: =I_Global!$F$76 -> Input set selection
C126: 1.d.iii. DfT, CAA, MET Charges (used for working capital adjustment)
E128: =I_Global!F173 -> DfT Charges | F128: =IF(OR(Y128 = "n/a", Y128 = ""), IF(INDEX(AA128:AJ128, $F$12) = "", AA128, INDEX(AA128:AJ128, $F$12)), Y128) -> DfT Charges (medium) | G128: =I_Global!$F$76 -> Input set selection | L128: Being published with this model | AA128: DfT Charges (medium)
E129: =I_Global!F174 -> CAA Charges | F129: =IF(OR(Y129 = "n/a", Y129 = ""), IF(INDEX(AA129:AJ129, $F$12) = "", AA129, INDEX(AA129:AJ129, $F$12)), Y129) -> CAA Charges (medium) | G129: =I_Global!$F$76 -> Input set selection | L129: Being published with this model | AA129: CAA Charges (medium)
E130: =I_Global!F175 -> MET Charges | F130: =IF(OR(Y130 = "n/a", Y130 = ""), IF(INDEX(AA130:AJ130, $F$12) = "", AA130, INDEX(AA130:AJ130, $F$12)), Y130) -> MET Charges (medium) | G130: =I_Global!$F$76 -> Input set selection | L130: Being published with this model | AA130: MET Charges (medium)
E131: =I_Global!F176 -> AMS Charges | F131: =IF(OR(Y131 = "n/a", Y131 = ""), IF(INDEX(AA131:AJ131, $F$12) = "", AA131, INDEX(AA131:AJ131, $F$12)), Y131) -> AMS Charges (medium) | G131: =I_Global!$F$76 -> Input set selection | L131: Being published with this model | AA131: AMS Charges (medium)
C133: 1.d.iv. Regulatory Revenue - London Approach
D135: Input
E136: =I_Global!F181 -> London Approach (Other) | G136: =I_Global!$F$76 -> Input set selection | L136: Being published with this model | AA136: LDC - base
D138: Outturn
E139: =I_Global!F181&" - "&$D$138 -> London Approach (Other) - Outturn | F139: =IF(INDEX(AA136:AJ136, $F$12) = "", AA136, INDEX(AA136:AJ136, $F$12)) -> LDC - base | G139: =I_Global!$F$76 -> Input set selection
D141: Price Determination
E142: =I_Global!F181&" - "&$D$141 -> London Approach (Other) - Price Determination | F142: =IF(INDEX(AA136:AJ136, $F$13) = "", AA136, INDEX(AA136:AJ136, $F$13)) -> LDC - base | G142: =I_Global!$F$76 -> Input set selection
E144: ="LA "&I_Global!F162&" (TSU)" -> LA Restructuring Costs ReS t (TSU) | F144: =IF(OR(Y144 = "n/a", Y144 = ""), IF(INDEX(AA144:AJ144, $F$12) = "", AA144, INDEX(AA144:AJ144, $F$12)), Y144) -> LReS - 1 | G144: =I_Global!$F$76 -> Input set selection | L144: Being published with this model | AA144: LReS - 1
E145: LA Other Revenue LOR t (TSU) | F145: LOR - 1 | G145: =I_Global!$F$76 -> Input set selection | L145: Being published with this model | AA145: LOR - 1
E146: ="LA "&I_Global!F163&" (TSU)" -> LA Cost Sharing Mechanism CSM t (TSU) | F146: LCSM - 1 | G146: =I_Global!$F$76 -> Input set selection | L146: Being published with this model | AA146: LCSM - 1
E147: ="LA "&I_Global!F164&" (TSU)" -> LA Financial Incentives FI t (TSU) | F147: LFI - 1 | G147: =I_Global!$F$76 -> Input set selection | L147: Being published with this model | AA147: LFI - 1
E148: ="LA "&I_Global!F165&" (TSU)" -> LA Modulation MOD t (TSU) | F148: LMOD - 1 | G148: =I_Global!$F$76 -> Input set selection | L148: Being published with this model | AA148: LMOD - 1
E149: ="LA "&I_Global!F167&" (TSU)" -> LA VFR t (TSU) | F149: LVFR - 1 | G149: =I_Global!$F$76 -> Input set selection | L149: Being published with this model | AA149: LVFR - 1
E150: LDISCOUNT t (TSU) | F150: LDiscount - 1 | G150: =I_Global!$F$76 -> Input set selection | L150: Being published with this model | AA150: LDiscount - 1
B152: 1.f Risk sharing -Traffic
E154: =I_Global!F86 & "/" & I_Global!F86 & " - UKATS" -> Determined Cost/Determined Cost - UKATS | F154: =IF(OR(Y154 = "n/a", Y154 = ""), IF(INDEX(AA154:AJ154, $F$12) = "", AA154, INDEX(AA154:AJ154, $F$12)), Y154) -> For RP3 use Efficient Costs | G154: =I_Global!$F$76 -> Input set selection | L154: Being published with this model | AA154: For RP3 use Efficient Costs
E155: Determined Cost/Reconciled Determined Cost - LA | F155: =IF(OR(Y155 = "n/a", Y155 = ""), IF(INDEX(AA155:AJ155, $F$12) = "", AA155, INDEX(AA155:AJ155, $F$12)), Y155) -> Determined Cost | G155: =I_Global!$F$76 -> Input set selection | L155: Being published with this model | AA155: Determined Cost
E157: Return on TRS RP3 Debtor - UKATS | F157: =IF(OR(Y157 = "n/a", Y157 = ""), IF(INDEX(AA157:AJ157, $F$12) = "", AA157, INDEX(AA157:AJ157, $F$12)), Y157) -> 0 | G157: =I_Global!$F$63 -> % | L157: Being published with this model | AA157: 0 | AB157: 0
E158: Return on TRS RP3 Debtor - London Approach | F158: =IF(OR(Y158 = "n/a", Y158 = ""), IF(INDEX(AA158:AJ158, $F$12) = "", AA158, INDEX(AA158:AJ158, $F$12)), Y158) -> 0 | G158: =I_Global!$F$63 -> % | L158: Being published with this model | AA158: 0 | AB158: 0
E160: Bands | F160: =IF(OR(Y160 = "n/a", Y160 = ""), IF(INDEX(AA160:AJ160, $F$12) = "", AA160, INDEX(AA160:AJ160, $F$12)), Y160) -> Bands - A | G160: # Years | L160: Being published with this model | AA160: Bands - A
E162: Band 1 Release Profile | F162: =IF(OR(Y162 = "n/a", Y162 = ""), IF(INDEX(AA162:AJ162, $F$12) = "", AA162, INDEX(AA162:AJ162, $F$12)), Y162) -> Band 1 Revenue Release (1) | G162: # Years | L162: Being published with this model | AA162: Band 1 Revenue Release (1)
E163: Band 2 Release Profile | F163: =IF(OR(Y163 = "n/a", Y163 = ""), IF(INDEX(AA163:AJ163, $F$12) = "", AA163, INDEX(AA163:AJ163, $F$12)), Y163) -> Band 2 Revenue Release (1) | G163: # Years | L163: Being published with this model | AA163: Band 2 Revenue Release (1)
E164: Band 3 Release Profile | F164: =IF(OR(Y164 = "n/a", Y164 = ""), IF(INDEX(AA164:AJ164, $F$12) = "", AA164, INDEX(AA164:AJ164, $F$12)), Y164) -> Band 3 Revenue Release (1) | G164: # Years | L164: Being published with this model | AA164: Band 3 Revenue Release (1)
E165: Band 4 Release Profile | F165: =IF(OR(Y165 = "n/a", Y165 = ""), IF(INDEX(AA165:AJ165, $F$12) = "", AA165, INDEX(AA165:AJ165, $F$12)), Y165) -> Band 4 Revenue Release (1) | G165: # Years | L165: Being published with this model | AA165: Band 4 Revenue Release (1)
E167: RP3 traffic share release start profile - UKATS | F167: =IF(OR(Y167 = "n/a", Y167 = ""), IF(INDEX(AA167:AJ167, $F$12) = "", AA167, INDEX(AA167:AJ167, $F$12)), Y167) -> RP3 traffic share release start flag (1) | G167: flag | L167: Being published with this model | AA167: RP3 traffic share release start flag (1)
E168: RP3 traffic share release start profile - London Approach | F168: =IF(OR(Y168 = "n/a", Y168 = ""), IF(INDEX(AA168:AJ168, $F$12) = "", AA168, INDEX(AA168:AJ168, $F$12)), Y168) -> RP3 traffic share release start flag (1) | G168: flag | L168: Being published with this model | AA168: RP3 traffic share release start flag (1)
E169: RP3 traffic share release % profile | F169: =IF(OR(Y169 = "n/a", Y169 = ""), IF(INDEX(AA169:AJ169, $F$12) = "", AA169, INDEX(AA169:AJ169, $F$12)), Y169) -> RP3 traffic share release profile % (2) [50% NR23, 50% NR28] | G169: flag | L169: Being published with this model | AA169: RP3 traffic share release profile % (2) [50% NR23, 50% NR28]
E170: RP3 Indexation adjustment - UKATS | F170: =IF(OR(Y170 = "n/a", Y170 = ""), IF(INDEX(AA170:AJ170, $F$12) = "", AA170, INDEX(AA170:AJ170, $F$12)), Y170) -> 1 | G170: flag | I170: 1 is active | L170: Being published with this model | AA170: 1
E171: RP3 Indexation adjustment - LA | F171: =IF(OR(Y171 = "n/a", Y171 = ""), IF(INDEX(AA171:AJ171, $F$12) = "", AA171, INDEX(AA171:AJ171, $F$12)), Y171) -> 1 | G171: flag | I171: 1 is active | L171: Being published with this model | AA171: 1
B173: 1.g Capex Projects
E175: UKATS Project 1 Active | F175: =IF(OR(Y175 = "n/a", Y175 = ""), IF(INDEX(AA175:AJ175, $F$12) = "", AA175, INDEX(AA175:AJ175, $F$12)), Y175) -> 1 | G175: flag | I175: 1 is active | L175: Being published with this model | AA175: 1
E176: UKATS Project 2 Active | F176: 1 | G176: flag | I176: 1 is active | L176: Being published with this model | AA176: 1
E177: UKATS Project 3 Active | F177: 1 | G177: flag | I177: 1 is active | L177: Being published with this model | AA177: 1
E178: UKATS Project 4 Active | F178: 1 | G178: flag | I178: 1 is active | L178: Being published with this model | AA178: 1
E179: UKATS Project 5 Active | F179: 1 | G179: flag | I179: 1 is active | L179: Being published with this model | AA179: 1
E180: UKATS Project 6 Active | F180: 1 | G180: flag | I180: 1 is active | L180: Being published with this model | AA180: 1
E181: UKATS Project 7 Active | F181: 1 | G181: flag | I181: 1 is active | L181: Being published with this model | AA181: 1
E182: UKATS Project 8 Active | F182: 1 | G182: flag | I182: 1 is active | L182: Being published with this model | AA182: 1
E183: UKATS Project 9 Active | F183: 1 | G183: flag | I183: 1 is active | L183: Being published with this model | AA183: 1
E184: UKATS Project 10 Active | F184: 1 | G184: flag | I184: 1 is active | L184: Being published with this model | AA184: 1
E185: UKATS Project 11 Active | F185: 1 | G185: flag | I185: 1 is active | L185: Being published with this model | AA185: 1
E186: UKATS Project 12 Active | F186: 1 | G186: flag | I186: 1 is active | L186: Being published with this model | AA186: 1
E187: UKATS Project 13 Active | F187: 1 | G187: flag | I187: 1 is active | L187: Being published with this model | AA187: 1
E188: UKATS Project 14 Active | F188: 1 | G188: flag | I188: 1 is active | L188: Being published with this model | AA188: 1
E189: UKATS Project 15 Active | F189: 1 | G189: flag | I189: 1 is active | L189: Being published with this model | AA189: 1
E190: UKATS Project 16 Active | F190: 1 | G190: flag | I190: 1 is active | L190: Being published with this model | AA190: 1
E191: UKATS Project 17 Active | F191: 1 | G191: flag | I191: 1 is active | L191: Being published with this model | AA191: 1
E192: UKATS Project 18 Active | F192: 1 | G192: flag | I192: 1 is active | L192: Being published with this model | AA192: 1
E193: UKATS Project 19 Active | F193: 1 | G193: flag | I193: 1 is active | L193: Being published with this model | AA193: 1
E194: UKATS Project 20 Active | F194: 1 | G194: flag | I194: 1 is active | L194: Being published with this model | AA194: 1
E196: Project Cost Allocation
D198: Project 1 Allocation
D199: 1 | E199: ="Category "&D199 -> Category 1 | F199: 1 | G199: =I_Global!$F$63 -> % | J199: CAA | L199: Being published with this model
D200: =D199+1 -> 2 | E200: Category 2 | G200: =I_Global!$F$63 -> % | J200: CAA | L200: Being published with this model
D201: 3 | E201: Category 3 | G201: =I_Global!$F$63 -> % | J201: CAA | L201: Being published with this model
D202: 4 | E202: Category 4 | G202: =I_Global!$F$63 -> % | J202: CAA | L202: Being published with this model
D203: 5 | E203: Category 5 | G203: =I_Global!$F$63 -> % | J203: CAA | L203: Being published with this model
D204: 6 | E204: Category 6 | G204: =I_Global!$F$63 -> % | J204: CAA | L204: Being published with this model
D205: 7 | E205: Category 7 | G205: =I_Global!$F$63 -> % | J205: CAA | L205: Being published with this model
D206: 8 | E206: Category 8 | G206: =I_Global!$F$63 -> % | J206: CAA | L206: Being published with this model
D207: 9 | E207: Category 9 | G207: =I_Global!$F$63 -> % | J207: CAA | L207: Being published with this model
D208: 10 | E208: Category 10 | G208: =I_Global!$F$63 -> % | J208: CAA | L208: Being published with this model
E209: Check for total percentage to be 100% | F209: =IF(SUM(F199:F208)=1,0,1) -> 0
D211: Project 2 Allocation
D212: 1 | E212: ="Category "&D212 -> Category 1 | F212: 1 | G212: =I_Global!$F$63 -> % | J212: CAA | L212: Being published with this model
D213: =D212+1 -> 2 | E213: Category 2 | G213: =I_Global!$F$63 -> % | J213: CAA | L213: Being published with this model
D214: 3 | E214: Category 3 | G214: =I_Global!$F$63 -> % | J214: CAA | L214: Being published with this model
D215: 4 | E215: Category 4 | G215: =I_Global!$F$63 -> % | J215: CAA | L215: Being published with this model
D216: 5 | E216: Category 5 | G216: =I_Global!$F$63 -> % | J216: CAA | L216: Being published with this model
D217: 6 | E217: Category 6 | G217: =I_Global!$F$63 -> % | J217: CAA | L217: Being published with this model
D218: 7 | E218: Category 7 | G218: =I_Global!$F$63 -> % | J218: CAA | L218: Being published with this model
D219: 8 | E219: Category 8 | G219: =I_Global!$F$63 -> % | J219: CAA | L219: Being published with this model
D220: 9 | E220: Category 9 | G220: =I_Global!$F$63 -> % | J220: CAA | L220: Being published with this model
D221: 10 | E221: Category 10 | G221: =I_Global!$F$63 -> % | J221: CAA | L221: Being published with this model
E222: Check for total percentage to be 100% | F222: =IF(SUM(F212:F221)=1,0,1) -> 0
D224: Project 3 Allocation
D225: 1 | E225: ="Category "&D225 -> Category 1 | F225: 1 | G225: =I_Global!$F$63 -> % | J225: CAA | L225: Being published with this model
D226: =D225+1 -> 2 | E226: Category 2 | G226: =I_Global!$F$63 -> % | J226: CAA | L226: Being published with this model
D227: 3 | E227: Category 3 | G227: =I_Global!$F$63 -> % | J227: CAA | L227: Being published with this model
D228: 4 | E228: Category 4 | G228: =I_Global!$F$63 -> % | J228: CAA | L228: Being published with this model
D229: 5 | E229: Category 5 | G229: =I_Global!$F$63 -> % | J229: CAA | L229: Being published with this model
D230: 6 | E230: Category 6 | G230: =I_Global!$F$63 -> % | J230: CAA | L230: Being published with this model
D231: 7 | E231: Category 7 | G231: =I_Global!$F$63 -> % | J231: CAA | L231: Being published with this model
D232: 8 | E232: Category 8 | G232: =I_Global!$F$63 -> % | J232: CAA | L232: Being published with this model
D233: 9 | E233: Category 9 | G233: =I_Global!$F$63 -> % | J233: CAA | L233: Being published with this model
D234: 10 | E234: Category 10 | G234: =I_Global!$F$63 -> % | J234: CAA | L234: Being published with this model
E235: Check for total percentage to be 100% | F235: =IF(SUM(F225:F234)=1,0,1) -> 0
D237: Project 4 Allocation
D238: 1 | E238: ="Category "&D238 -> Category 1 | F238: 1 | G238: =I_Global!$F$63 -> % | J238: CAA | L238: Being published with this model
D239: =D238+1 -> 2 | E239: Category 2 | G239: =I_Global!$F$63 -> % | J239: CAA | L239: Being published with this model
D240: 3 | E240: Category 3 | G240: =I_Global!$F$63 -> % | J240: CAA | L240: Being published with this model
D241: 4 | E241: Category 4 | G241: =I_Global!$F$63 -> % | J241: CAA | L241: Being published with this model
D242: 5 | E242: Category 5 | G242: =I_Global!$F$63 -> % | J242: CAA | L242: Being published with this model
D243: 6 | E243: Category 6 | G243: =I_Global!$F$63 -> % | J243: CAA | L243: Being published with this model
D244: 7 | E244: Category 7 | G244: =I_Global!$F$63 -> % | J244: CAA | L244: Being published with this model
D245: 8 | E245: Category 8 | G245: =I_Global!$F$63 -> % | J245: CAA | L245: Being published with this model
... 269 more rows

Sheet I_Series UKATS
A1: =MID(CELL( "filename", $A$1 ), SEARCH( "[",CELL( "filename", $A$1 ) ) + 1, SEARCH( "]",CELL( "filename", $A$1 ) ) - SEARCH( "[",CELL( "filename", $A$1 ) ) - 1 ) -> CAA NERL PCM Decisions_10h - v1.00 - FD for publication.xlsm
B2: =RIGHT(CELL( "filename", B2 ), LEN(CELL( "filename", B2 ) ) - SEARCH( "]",CELL( "filename", B2 ) ) ) -> I_Series UKATS | G2: Checks & Alerts | H2: =Checks!$F$3 -> -1
E3: ="Scenario "&_xlfn.SINGLE(Live_Scenarionumber) & " : " &Live_scenario -> Scenario 1 : Base - Flat | G3: Active Overrides | H3: =Checks!$F$88 -> 0
E4: ='I_InputSets UKATS'!E12 -> Live Input Set | H4: =Scenario!$F$32 -> 1
E5: ='I_InputSets UKATS'!E13 -> Input Set for Price Determination | H5: =Scenario!$H$37 -> 1
E6: ='I_InputSets UKATS'!E14 -> Model mode | H6: =Scenario!$F$29 -> Price Determination | I6: =MATCH(H6, I_Global!$F$205:$F$206, 0) -> 1
A7: Timeline
E8: =C_Time!E9 -> Period Beginning | G8: =C_Time!G9 -> date | AA8: =C_Time!AA9 -> 2015-01-01 | AB8: =C_Time!AB9 -> 2016-01-01 | AC8: =C_Time!AC9 -> 2017-01-01 | AD8: =C_Time!AD9 -> 2018-01-01 | AE8: =C_Time!AE9 -> 2019-01-01 | AF8: =C_Time!AF9 -> 2020-01-01 | AG8: =C_Time!AG9 -> 2021-01-01 | AH8: =C_Time!AH9 -> 2022-01-01 | AI8: =C_Time!AI9 -> 2023-01-01 | AJ8: =C_Time!AJ9 -> 2024-01-01 | AK8: =C_Time!AK9 -> 2025-01-01 | AL8: =C_Time!AL9 -> 2026-01-01 | AM8: =C_Time!AM9 -> 2027-01-01 | AN8: =C_Time!AN9 -> 2028-01-01 | AO8: =C_Time!AO9 -> 2029-01-01 | AP8: =C_Time!AP9 -> 2030-01-01 | AQ8: =C_Time!AQ9 -> 2031-01-01 | AR8: =C_Time!AR9 -> 2032-01-01 | AS8: =C_Time!AS9 -> 2033-01-01 | AT8: =C_Time!AT9 -> 2034-01-01 | AU8: =C_Time!AU9 -> 2035-01-01 | AV8: =C_Time!AV9 -> 2036-01-01 | AW8: =C_Time!AW9 -> 2037-01-01 | AX8: =C_Time!AX9 -> 2038-01-01 | AY8: =C_Time!AY9 -> 2039-01-01 | AZ8: =C_Time!AZ9 -> 2040-01-01 | BA8: =C_Time!BA9 -> 2041-01-01 | BB8: =C_Time!BB9 -> 2042-01-01 | BC8: =C_Time!BC9 -> 2043-01-01 | BD8: =C_Time!BD9 -> 2044-01-01 | BE8: =C_Time!BE9 -> 2045-01-01 | BF8: =C_Time!BF9 -> 2046-01-01 | BG8: =C_Time!BG9 -> 2047-01-01 | BH8: =C_Time!BH9 -> 2048-01-01 | BI8: =C_Time!BI9 -> 2049-01-01 | BJ8: =C_Time!BJ9 -> 2050-01-01
E9: =C_Time!E10 -> Period Ending | G9: =C_Time!G10 -> date | AA9: =C_Time!AA10 -> 2015-12-31 | AB9: =C_Time!AB10 -> 2016-12-31 | AC9: =C_Time!AC10 -> 2017-12-31 | AD9: =C_Time!AD10 -> 2018-12-31 | AE9: =C_Time!AE10 -> 2019-12-31 | AF9: =C_Time!AF10 -> 2020-12-31 | AG9: =C_Time!AG10 -> 2021-12-31 | AH9: =C_Time!AH10 -> 2022-12-31 | AI9: =C_Time!AI10 -> 2023-12-31 | AJ9: =C_Time!AJ10 -> 2024-12-31 | AK9: =C_Time!AK10 -> 2025-12-31 | AL9: =C_Time!AL10 -> 2026-12-31 | AM9: =C_Time!AM10 -> 2027-12-31 | AN9: =C_Time!AN10 -> 2028-12-31 | AO9: =C_Time!AO10 -> 2029-12-31 | AP9: =C_Time!AP10 -> 2030-12-31 | AQ9: =C_Time!AQ10 -> 2031-12-31 | AR9: =C_Time!AR10 -> 2032-12-31 | AS9: =C_Time!AS10 -> 2033-12-31 | AT9: =C_Time!AT10 -> 2034-12-31 | AU9: =C_Time!AU10 -> 2035-12-31 | AV9: =C_Time!AV10 -> 2036-12-31 | AW9: =C_Time!AW10 -> 2037-12-31 | AX9: =C_Time!AX10 -> 2038-12-31 | AY9: =C_Time!AY10 -> 2039-12-31 | AZ9: =C_Time!AZ10 -> 2040-12-31 | BA9: =C_Time!BA10 -> 2041-12-31 | BB9: =C_Time!BB10 -> 2042-12-31 | BC9: =C_Time!BC10 -> 2043-12-31 | BD9: =C_Time!BD10 -> 2044-12-31 | BE9: =C_Time!BE10 -> 2045-12-31 | BF9: =C_Time!BF10 -> 2046-12-31 | BG9: =C_Time!BG10 -> 2047-12-31 | BH9: =C_Time!BH10 -> 2048-12-31 | BI9: =C_Time!BI10 -> 2049-12-31 | BJ9: =C_Time!BJ10 -> 2050-12-31
E10: =C_Time!E11 -> Model period number | G10: =C_Time!G11 -> # | AA10: =C_Time!AA11 -> 1 | AB10: =C_Time!AB11 -> 2 | AC10: =C_Time!AC11 -> 3 | AD10: =C_Time!AD11 -> 4 | AE10: =C_Time!AE11 -> 5 | AF10: =C_Time!AF11 -> 6 | AG10: =C_Time!AG11 -> 7 | AH10: =C_Time!AH11 -> 8 | AI10: =C_Time!AI11 -> 9 | AJ10: =C_Time!AJ11 -> 10 | AK10: =C_Time!AK11 -> 11 | AL10: =C_Time!AL11 -> 12 | AM10: =C_Time!AM11 -> 13 | AN10: =C_Time!AN11 -> 14 | AO10: =C_Time!AO11 -> 15 | AP10: =C_Time!AP11 -> 16 | AQ10: =C_Time!AQ11 -> 17 | AR10: =C_Time!AR11 -> 18 | AS10: =C_Time!AS11 -> 19 | AT10: =C_Time!AT11 -> 20 | AU10: =C_Time!AU11 -> 21 | AV10: =C_Time!AV11 -> 22 | AW10: =C_Time!AW11 -> 23 | AX10: =C_Time!AX11 -> 24 | AY10: =C_Time!AY11 -> 25 | AZ10: =C_Time!AZ11 -> 26 | BA10: =C_Time!BA11 -> 27 | BB10: =C_Time!BB11 -> 28 | BC10: =C_Time!BC11 -> 29 | BD10: =C_Time!BD11 -> 30 | BE10: =C_Time!BE11 -> 31 | BF10: =C_Time!BF11 -> 32 | BG10: =C_Time!BG11 -> 33 | BH10: =C_Time!BH11 -> 34 | BI10: =C_Time!BI11 -> 35 | BJ10: =C_Time!BJ11 -> 36
E11: =C_Time!E$12 -> Pricing Period | G11: =C_Time!G$12 -> periods | AA11: =C_Time!AA$12 -> RP2 | AB11: =C_Time!AB$12 -> RP2 | AC11: =C_Time!AC$12 -> RP2 | AD11: =C_Time!AD$12 -> RP2 | AE11: =C_Time!AE$12 -> RP2 | AF11: =C_Time!AF$12 -> RP3 | AG11: =C_Time!AG$12 -> RP3 | AH11: =C_Time!AH$12 -> RP3 | AI11: =C_Time!AI$12 -> NR23 | AJ11: =C_Time!AJ$12 -> NR23 | AK11: =C_Time!AK$12 -> NR23 | AL11: =C_Time!AL$12 -> NR23 | AM11: =C_Time!AM$12 -> NR23 | AN11: =C_Time!AN$12 -> NR28 | AO11: =C_Time!AO$12 -> NR28 | AP11: =C_Time!AP$12 -> NR28 | AQ11: =C_Time!AQ$12 -> NR28 | AR11: =C_Time!AR$12 -> NR28 | AS11: =C_Time!AS$12 -> NR33 | AT11: =C_Time!AT$12 -> NR33 | AU11: =C_Time!AU$12 -> NR33 | AV11: =C_Time!AV$12 -> NR33 | AW11: =C_Time!AW$12 -> NR33 | AX11: =C_Time!AX$12 -> NR38 | AY11: =C_Time!AY$12 -> NR38 | AZ11: =C_Time!AZ$12 -> NR38 | BA11: =C_Time!BA$12 -> NR38 | BB11: =C_Time!BB$12 -> NR38 | BC11: =C_Time!BC$12 -> NR43 | BD11: =C_Time!BD$12 -> NR43 | BE11: =C_Time!BE$12 -> NR43 | BF11: =C_Time!BF$12 -> NR43 | BG11: =C_Time!BG$12 -> NR43 | BH11: =C_Time!BH$12 -> NR43 | BI11: =C_Time!BI$12 -> NR43 | BJ11: =C_Time!BJ$12 -> NR43
E12: =C_Time!E$13 -> Forecast/ Post forecast vs Actuals | G12: =C_Time!G$13 -> flag | AA12: =C_Time!AA$13 -> Actual | AB12: =C_Time!AB$13 -> Actual | AC12: =C_Time!AC$13 -> Actual | AD12: =C_Time!AD$13 -> Actual | AE12: =C_Time!AE$13 -> Actual | AF12: =C_Time!AF$13 -> Actual | AG12: =C_Time!AG$13 -> Forecast | AH12: =C_Time!AH$13 -> Forecast | AI12: =C_Time!AI$13 -> Forecast | AJ12: =C_Time!AJ$13 -> Forecast | AK12: =C_Time!AK$13 -> Forecast | AL12: =C_Time!AL$13 -> Forecast | AM12: =C_Time!AM$13 -> Forecast | AN12: =C_Time!AN$13 -> Forecast | AO12: =C_Time!AO$13 -> Forecast | AP12: =C_Time!AP$13 -> Forecast | AQ12: =C_Time!AQ$13 -> Forecast | AR12: =C_Time!AR$13 -> Forecast | AS12: =C_Time!AS$13 -> Forecast | AT12: =C_Time!AT$13 -> Forecast | AU12: =C_Time!AU$13 -> Forecast | AV12: =C_Time!AV$13 -> Forecast | AW12: =C_Time!AW$13 -> Forecast | AX12: =C_Time!AX$13 -> Forecast | AY12: =C_Time!AY$13 -> Forecast | AZ12: =C_Time!AZ$13 -> Forecast | BA12: =C_Time!BA$13 -> Forecast | BB12: =C_Time!BB$13 -> Forecast | BC12: =C_Time!BC$13 -> Forecast | BD12: =C_Time!BD$13 -> Forecast | BE12: =C_Time!BE$13 -> Forecast | BF12: =C_Time!BF$13 -> Forecast | BG12: =C_Time!BG$13 -> Forecast | BH12: =C_Time!BH$13 -> Forecast | BI12: =C_Time!BI$13 -> Forecast | BJ12: =C_Time!BJ$13 -> Forecast
E14: Label | F14: Constant | G14: Units | H14: Price Base | I14: Notes | J14: Data Source | L14: Confidentiality Status | Y14: Total
A15: UKATS
B16: 1.a Traffic Forecasts
C18: 1.a.i UKATS
D20: =N(D19) + 1 -> 1 | E20: UKATS TSUs - CAA Run (BASE CASE) | G20: =I_Global!$F$67 -> # TSUs ('000) | J20: NR23 Dry Run (11Apr23) - Inputs for Traffic and Forecasts.xlsx, UKATS, row 10 | L20: Being published with this model | Y20: =SUM(AA20:BJ20) -> 459420 | AA20: 10154 | AB20: 10875 | AC20: 11768 | AD20: 12194 | AE20: 12594 | AF20: 5099 | AG20: 5531 | AH20: 10782 | AI20: 11956 | AJ20: 12930 | AK20: 13247 | AL20: 13490 | AM20: 13700 | AN20: 13700 | AO20: 13700 | AP20: 13700 | AQ20: 13700 | AR20: 13700 | AS20: 13700 | AT20: 13700 | AU20: 13700 | AV20: 13700 | AW20: 13700 | AX20: 13700 | AY20: 13700 | AZ20: 13700 | BA20: 13700 | BB20: 13700 | BC20: 13700 | BD20: 13700 | BE20: 13700 | BF20: 13700 | BG20: 13700 | BH20: 13700 | BI20: 13700 | BJ20: 13700
D21: =N(D20) + 1 -> 2 | E21: UKATS TSUs - CAA Run (LOW CASE) | G21: =I_Global!$F$67 -> # TSUs ('000) | J21: NR23 Dry Run (11Apr23) - Inputs for Traffic and Forecasts.xlsx, UKATS, row 17 | L21: Being published with this model | Y21: =SUM(AA21:BJ21) -> 421377 | AA21: 10154 | AB21: 10875 | AC21: 11768 | AD21: 12194 | AE21: 12594 | AF21: 5099 | AG21: 5531 | AH21: 10782 | AI21: 10760 | AJ21: 11637 | AK21: 11922 | AL21: 12141 | AM21: 12330 | AN21: 12330 | AO21: 12330 | AP21: 12330 | AQ21: 12330 | AR21: 12330 | AS21: 12330 | AT21: 12330 | AU21: 12330 | AV21: 12330 | AW21: 12330 | AX21: 12330 | AY21: 12330 | AZ21: 12330 | BA21: 12330 | BB21: 12330 | BC21: 12330 | BD21: 12330 | BE21: 12330 | BF21: 12330 | BG21: 12330 | BH21: 12330 | BI21: 12330 | BJ21: 12330
D22: =N(D21) + 1 -> 3 | G22: =I_Global!$F$67 -> # TSUs ('000) | Y22: =SUM(AA22:BJ22) -> 0
D23: =N(D22) + 1 -> 4 | G23: =I_Global!$F$67 -> # TSUs ('000) | Y23: =SUM(AA23:BJ23) -> 0
D24: =N(D23) + 1 -> 5 | G24: =I_Global!$F$67 -> # TSUs ('000) | Y24: =SUM(AA24:BJ24) -> 0
D26: =MATCH(F26, E20:E25, 0) -> 1 | E26: ='I_InputSets UKATS'!E24 -> UKATS TSU - Outturn | F26: ='I_InputSets UKATS'!F24 -> UKATS TSUs - CAA Run (BASE CASE) | G26: =I_Global!$F$67 -> # TSUs ('000) | AA26: =INDEX(AA$20:AA$24,MATCH($F26,$E$20:$E$24,0)) -> 10154 | AB26: 10875 | AC26: 11768 | AD26: 12194 | AE26: 12594 | AF26: 5099 | AG26: 5531 | AH26: 10782 | AI26: 11956 | AJ26: 12930 | AK26: =INDEX(AK$20:AK$24,MATCH($F26,$E$20:$E$24,0)) -> 13247 | AL26: 13490 | AM26: 13700 | AN26: 13700 | AO26: 13700 | AP26: 13700 | AQ26: 13700 | AR26: 13700 | AS26: 13700 | AT26: 13700 | AU26: =INDEX(AU$20:AU$24,MATCH($F26,$E$20:$E$24,0)) -> 13700 | AV26: 13700 | AW26: 13700 | AX26: 13700 | AY26: 13700 | AZ26: 13700 | BA26: 13700 | BB26: 13700 | BC26: 13700 | BD26: 13700 | BE26: =INDEX(BE$20:BE$24,MATCH($F26,$E$20:$E$24,0)) -> 13700 | BF26: 13700 | BG26: 13700 | BH26: 13700 | BI26: 13700 | BJ26: 13700
D27: =MATCH(F27, E20:E25, 0) -> 1 | E27: ='I_InputSets UKATS'!E28 -> UKATS TSU - Price Determination | F27: ='I_InputSets UKATS'!F28 -> UKATS TSUs - CAA Run (BASE CASE) | G27: =I_Global!$F$67 -> # TSUs ('000) | AA27: 10154 | AB27: 10875 | AC27: 11768 | AD27: 12194 | AE27: 12594 | AF27: 5099 | AG27: 5531 | AH27: 10782 | AI27: 11956 | AJ27: 12930 | AK27: 13247 | AL27: 13490 | AM27: 13700 | AN27: 13700 | AO27: 13700 | AP27: 13700 | AQ27: 13700 | AR27: 13700 | AS27: 13700 | AT27: 13700 | AU27: 13700 | AV27: 13700 | AW27: 13700 | AX27: 13700 | AY27: 13700 | AZ27: 13700 | BA27: 13700 | BB27: 13700 | BC27: 13700 | BD27: 13700 | BE27: 13700 | BF27: 13700 | BG27: 13700 | BH27: 13700 | BI27: 13700 | BJ27: 13700
D29: =N(D28) + 1 -> 1 | E29: UKATS CSUs - CAA Run (BASE CASE) | G29: =I_Global!$F$66 -> # CSUs ('000) | J29: NR23 Dry Run (11Apr23) - Inputs for Traffic and Forecasts.xlsx, UKATS, row 11 | L29: Being published with this model | Y29: =SUM(AA29:BJ29) -> 409677 | AE29: 12457 | AF29: 4970 | AG29: 5395 | AH29: 10632 | AI29: 11806 | AJ29: 12780 | AK29: 13097 | AL29: 13340 | AM29: 13550 | AN29: 13550 | AO29: 13550 | AP29: 13550 | AQ29: 13550 | AR29: 13550 | AS29: 13550 | AT29: 13550 | AU29: 13550 | AV29: 13550 | AW29: 13550 | AX29: 13550 | AY29: 13550 | AZ29: 13550 | BA29: 13550 | BB29: 13550 | BC29: 13550 | BD29: 13550 | BE29: 13550 | BF29: 13550 | BG29: 13550 | BH29: 13550 | BI29: 13550 | BJ29: 13550
D30: =N(D29) + 1 -> 2 | E30: UKATS CSUs - CAA Run (LOW CASE) | G30: =I_Global!$F$66 -> # CSUs ('000) | J30: NR23 Dry Run (11Apr23) - Inputs for Traffic and Forecasts.xlsx, UKATS, row 18 | L30: Being published with this model | Y30: =SUM(AA30:BJ30) -> 371634 | AE30: 12457 | AF30: 4970 | AG30: 5395 | AH30: 10632 | AI30: 10610 | AJ30: 11487 | AK30: 11772 | AL30: 11991 | AM30: 12180 | AN30: 12180 | AO30: 12180 | AP30: 12180 | AQ30: 12180 | AR30: 12180 | AS30: 12180 | AT30: 12180 | AU30: 12180 | AV30: 12180 | AW30: 12180 | AX30: 12180 | AY30: 12180 | AZ30: 12180 | BA30: 12180 | BB30: 12180 | BC30: 12180 | BD30: 12180 | BE30: 12180 | BF30: 12180 | BG30: 12180 | BH30: 12180 | BI30: 12180 | BJ30: 12180
D31: =N(D30) + 1 -> 3 | G31: =I_Global!$F$66 -> # CSUs ('000) | Y31: =SUM(AA31:BJ31) -> 0
D32: =N(D31) + 1 -> 4 | G32: =I_Global!$F$66 -> # CSUs ('000) | Y32: =SUM(AA32:BJ32) -> 0
D33: =N(D32) + 1 -> 5 | G33: =I_Global!$F$66 -> # CSUs ('000) | Y33: =SUM(AA33:BJ33) -> 0
D35: =MATCH(F35, E29:E34, 0) -> 1 | E35: ='I_InputSets UKATS'!E26 -> UKATS CSU - Outturn | F35: ='I_InputSets UKATS'!F26 -> UKATS CSUs - CAA Run (BASE CASE) | G35: =I_Global!$F$66 -> # CSUs ('000) | AA35: =INDEX(AA$29:AA$33,MATCH($F35,$E$29:$E$33,0)) -> 0 | AB35: 0 | AC35: 0 | AD35: 0 | AE35: 12457 | AF35: 4970 | AG35: 5395 | AH35: 10632 | AI35: 11806 | AJ35: 12780 | AK35: =INDEX(AK$29:AK$33,MATCH($F35,$E$29:$E$33,0)) -> 13097 | AL35: 13340 | AM35: 13550 | AN35: 13550 | AO35: 13550 | AP35: 13550 | AQ35: 13550 | AR35: 13550 | AS35: 13550 | AT35: 13550 | AU35: =INDEX(AU$29:AU$33,MATCH($F35,$E$29:$E$33,0)) -> 13550 | AV35: 13550 | AW35: 13550 | AX35: 13550 | AY35: 13550 | AZ35: 13550 | BA35: 13550 | BB35: 13550 | BC35: 13550 | BD35: 13550 | BE35: =INDEX(BE$29:BE$33,MATCH($F35,$E$29:$E$33,0)) -> 13550 | BF35: 13550 | BG35: 13550 | BH35: 13550 | BI35: 13550 | BJ35: 13550
D36: =MATCH(F36, E29:E34, 0) -> 1 | E36: ='I_InputSets UKATS'!E30 -> UKATS CSU - Price Determination | F36: ='I_InputSets UKATS'!F30 -> UKATS CSUs - CAA Run (BASE CASE) | G36: =I_Global!$F$66 -> # CSUs ('000) | AA36: 0 | AB36: 0 | AC36: 0 | AD36: 0 | AE36: 12457 | AF36: 4970 | AG36: 5395 | AH36: 10632 | AI36: 11806 | AJ36: 12780 | AK36: 13097 | AL36: 13340 | AM36: 13550 | AN36: 13550 | AO36: 13550 | AP36: 13550 | AQ36: 13550 | AR36: 13550 | AS36: 13550 | AT36: 13550 | AU36: 13550 | AV36: 13550 | AW36: 13550 | AX36: 13550 | AY36: 13550 | AZ36: 13550 | BA36: 13550 | BB36: 13550 | BC36: 13550 | BD36: 13550 | BE36: 13550 | BF36: 13550 | BG36: 13550 | BH36: 13550 | BI36: 13550 | BJ36: 13550
C38: 1.a.ii London Approach
D41: =N(D40) + 1 -> 1 | E41: London Approach TSUs - CAA Run (BASE CASE) | G41: =I_Global!$F$67 -> # TSUs ('000) | J41: NR23 Dry Run (11Apr23) - Inputs for Traffic and Forecasts.xlsx, London Approach, row 9 | L41: Being published with this model | Y41: =SUM(AA41:BJ41) -> 31850.964 | AE41: 988.877 | AF41: 398.603 | AG41: 374.015 | AH41: 775.878 | AI41: 954.874 | AJ41: 1003.136 | AK41: 1022.309 | AL41: 1038.856 | AM41: 1053.934 | AN41: 1053.934 | AO41: 1053.934 | AP41: 1053.934 | AQ41: 1053.934 | AR41: 1053.934 | AS41: 1053.934 | AT41: 1053.934 | AU41: 1053.934 | AV41: 1053.934 | AW41: 1053.934 | AX41: 1053.934 | AY41: 1053.934 | AZ41: 1053.934 | BA41: 1053.934 | BB41: 1053.934 | BC41: 1053.934 | BD41: 1053.934 | BE41: 1053.934 | BF41: 1053.934 | BG41: 1053.934 | BH41: 1053.934 | BI41: 1053.934 | BJ41: 1053.934
D42: =N(D41) + 1 -> 2 | E42: London Approach TSUs - CAA Run (LOW CASE) | G42: =I_Global!$F$67 -> # TSUs ('000) | J42: NR23 Dry Run (11Apr23) - Inputs for Traffic and Forecasts.xlsx, London Approach, row 14 | L42: Being published with this model | Y42: =SUM(AA42:BJ42) -> 28919.614 | AE42: 988.877 | AF42: 398.603 | AG42: 374.015 | AH42: 775.878 | AI42: 859.387 | AJ42: 902.822 | AK42: 920.078 | AL42: 934.97 | AM42: 948.541 | AN42: 948.541 | AO42: 948.541 | AP42: 948.541 | AQ42: 948.541 | AR42: 948.541 | AS42: 948.541 | AT42: 948.541 | AU42: 948.541 | AV42: 948.541 | AW42: 948.541 | AX42: 948.541 | AY42: 948.541 | AZ42: 948.541 | BA42: 948.541 | BB42: 948.541 | BC42: 948.541 | BD42: 948.541 | BE42: 948.541 | BF42: 948.541 | BG42: 948.541 | BH42: 948.541 | BI42: 948.541 | BJ42: 948.541
D43: =N(D42) + 1 -> 3 | G43: =I_Global!$F$67 -> # TSUs ('000) | Y43: =SUM(AA43:BJ43) -> 0
D44: =N(D43) + 1 -> 4 | G44: =I_Global!$F$67 -> # TSUs ('000) | Y44: =SUM(AA44:BJ44) -> 0
D45: =N(D44) + 1 -> 5 | G45: =I_Global!$F$67 -> # TSUs ('000) | Y45: =SUM(AA45:BJ45) -> 0
D47: =MATCH(F47, E41:E46, 0) -> 1 | E47: LA TSUs - Outturn | F47: ='I_InputSets UKATS'!F25 -> London Approach TSUs - CAA Run (BASE CASE) | G47: =I_Global!$F$67 -> # TSUs ('000) | AA47: =INDEX(AA41:AA45,MATCH($F47,$E41:$E45,0)) -> 0 | AB47: 0 | AC47: 0 | AD47: 0 | AE47: 988.877 | AF47: 398.603 | AG47: 374.015 | AH47: 775.878 | AI47: 954.874 | AJ47: 1003.136 | AK47: 1022.309 | AL47: 1038.856 | AM47: 1053.934 | AN47: 1053.934 | AO47: 1053.934 | AP47: 1053.934 | AQ47: 1053.934 | AR47: 1053.934 | AS47: 1053.934 | AT47: 1053.934 | AU47: 1053.934 | AV47: 1053.934 | AW47: 1053.934 | AX47: 1053.934 | AY47: 1053.934 | AZ47: 1053.934 | BA47: 1053.934 | BB47: 1053.934 | BC47: 1053.934 | BD47: 1053.934 | BE47: 1053.934 | BF47: 1053.934 | BG47: 1053.934 | BH47: 1053.934 | BI47: 1053.934 | BJ47: 1053.934
D48: =MATCH(F48, E41:E46, 0) -> 1 | E48: LA TSUs - Price Determination | F48: ='I_InputSets UKATS'!F29 -> London Approach TSUs - CAA Run (BASE CASE) | G48: =I_Global!$F$67 -> # TSUs ('000) | AA48: =INDEX(AA41:AA45,MATCH($F48,$E41:$E45,0)) -> 0 | AB48: 0 | AC48: 0 | AD48: 0 | AE48: 988.877 | AF48: 398.603 | AG48: 374.015 | AH48: 775.878 | AI48: 954.874 | AJ48: 1003.136 | AK48: 1022.309 | AL48: 1038.856 | AM48: 1053.934 | AN48: 1053.934 | AO48: 1053.934 | AP48: 1053.934 | AQ48: 1053.934 | AR48: 1053.934 | AS48: 1053.934 | AT48: 1053.934 | AU48: 1053.934 | AV48: 1053.934 | AW48: 1053.934 | AX48: 1053.934 | AY48: 1053.934 | AZ48: 1053.934 | BA48: 1053.934 | BB48: 1053.934 | BC48: 1053.934 | BD48: 1053.934 | BE48: 1053.934 | BF48: 1053.934 | BG48: 1053.934 | BH48: 1053.934 | BI48: 1053.934 | BJ48: 1053.934
B50: 1.b Operating Expenditure
C52: 1.b.i Forecast base operating costs - UKATS
D54: =N(D53) + 1 -> 1 | E54: Opex - Wages & Salaries - CAA Run | G54: =I_Global!$F$69 -> £'000 | H54: =I_Global!$F$210 -> CPI 2020 | I54: Enter as positive | J54: Cost assessment_PCM inputs_070623.xlsx, 'I_Series UKATS_CI | L54: Being published with this model | Y54: =SUM(AA54:BJ54) -> 2320293.595 | AE54: 271842.5881 | AF54: 262332.8551 | AG54: 231457.2037 | AH54: 246029.1548 | AI54: 261890.2563 | AJ54: 266445.1255 | AK54: 260221.2852 | AL54: 258934.7128 | AM54: 261140.4138
D55: =N(D54) + 1 -> 2 | E55: Opex - Wages & Salaries - CAA Run (Low Case) | G55: =I_Global!$F$69 -> £'000 | H55: =I_Global!$F$210 -> CPI 2020 | I55: Enter as positive | J55: Calculated | L55: Being published with this model | Y55: =SUM(AA55:BJ55) -> 2287577.8 | AE55: 271842.5881 | AF55: 262332.8551 | AG55: 231457.2037 | AH55: 246029.1548 | AI55: 255342.9999 | AJ55: 259783.9974 | AK55: 253715.7531 | AL55: 252461.345 | AM55: 254611.9034
D56: =N(D55) + 1 -> 3 | E56: Opex - Wages & Salaries - Determination [CMA, CAA] | G56: =I_Global!$F$69 -> £'000 | H56: =I_Global!$F$210 -> CPI 2020 | I56: Enter as positive | J56: 5. Cost assessment PCM inputs_LOW or BASE case_150822.xlsx, I_Series UKATS_CI, rows 13, 22, 31, 40, 49, 58, 67, 76, 85, 114 | L56: Being published with this model | Y56: =SUM(AA56:BJ56) -> 8097460.825 | AF56: 269439.0571 | AG56: 266208.5803 | AH56: 282236.6774 | AI56: 250266.4866 | AJ56: 256490.7162 | AK56: 256955.5471 | AL56: 258115.3916 | AM56: 260739.5154 | AN56: 260739.5154 | AO56: 260739.5154 | AP56: 260739.5154 | AQ56: 260739.5154 | AR56: 260739.5154 | AS56: 260739.5154 | AT56: 260739.5154 | AU56: 260739.5154 | AV56: 260739.5154 | AW56: 260739.5154 | AX56: 260739.5154 | AY56: 260739.5154 | AZ56: 260739.5154 | BA56: 260739.5154 | BB56: 260739.5154 | BC56: 260739.5154 | BD56: 260739.5154 | BE56: 260739.5154 | BF56: 260739.5154 | BG56: 260739.5154 | BH56: 260739.5154 | BI56: 260739.5154 | BJ56: 260739.5154
D57: =N(D56) + 1 -> 4 | G57: =I_Global!$F$69 -> £'000 | H57: =I_Global!$F$210 -> CPI 2020 | I57: Enter as positive | Y57: =SUM(AA57:BJ57) -> 0
D58: =N(D57) + 1 -> 5 | G58: =I_Global!$F$69 -> £'000 | H58: =I_Global!$F$210 -> CPI 2020 | I58: Enter as positive | Y58: =SUM(AA58:BJ58) -> 0
D60: =MATCH(F60, E54:E59, 0) -> 1 | E60: =C_Index!E687 -> Opex - Wages & Salaries - Outturn | F60: =C_Index!F687 -> Opex - Wages & Salaries - CAA Run | G60: =C_Index!G687 -> £'000 | H60: =C_Index!H687 -> CPI 2020 | Y60: =SUM(AA60:BJ60) -> 2320293.595 | AA60: =INDEX(AA54:AA58,MATCH($F60,$E54:$E58,0)) -> 0 | AB60: 0 | AC60: 0 | AD60: 0 | AE60: 271842.5881 | AF60: 262332.8551 | AG60: 231457.2037 | AH60: 246029.1548 | AI60: 261890.2563 | AJ60: 266445.1255 | AK60: 260221.2852 | AL60: 258934.7128 | AM60: 261140.4138 | AN60: =INDEX(AN54:AN58,MATCH($F60,$E54:$E58,0)) -> 0 | AO60: 0 | AP60: 0 | AQ60: 0 | AR60: 0 | AS60: 0 | AT60: 0 | AU60: 0 | AV60: 0 | AW60: 0 | AX60: 0 | AY60: 0 | AZ60: 0 | BA60: 0 | BB60: 0 | BC60: 0 | BD60: 0 | BE60: 0 | BF60: 0 | BG60: 0 | BH60: 0 | BI60: 0 | BJ60: 0
D61: =MATCH(F61, E54:E59, 0) -> 1 | E61: =C_Index!E$729 -> Opex - Wages & Salaries - Price determination | F61: =C_Index!F$729 -> Opex - Wages & Salaries - CAA Run | G61: =C_Index!G$729 -> £'000 | H61: =C_Index!H$729 -> CPI 2020 | Y61: =SUM(AA61:BJ61) -> 2320293.595 | AA61: =INDEX(AA54:AA58,MATCH($F61,$E54:$E58,0)) -> 0 | AB61: 0 | AC61: 0 | AD61: 0 | AE61: 271842.5881 | AF61: 262332.8551 | AG61: =INDEX(AG54:AG58,MATCH($F61,$E54:$E58,0)) -> 231457.2037 | AH61: 246029.1548 | AI61: 261890.2563 | AJ61: 266445.1255 | AK61: 260221.2852 | AL61: 258934.7128 | AM61: 261140.4138 | AN61: =INDEX(AN54:AN58,MATCH($F61,$E54:$E58,0)) -> 0 | AO61: 0 | AP61: 0 | AQ61: 0 | AR61: 0 | AS61: 0 | AT61: 0 | AU61: 0 | AV61: 0 | AW61: 0 | AX61: 0 | AY61: 0 | AZ61: 0 | BA61: 0 | BB61: 0 | BC61: 0 | BD61: 0 | BE61: 0 | BF61: 0 | BG61: 0 | BH61: 0 | BI61: 0 | BJ61: 0
D62: =MATCH(F62, E54:E59, 0) -> 3 | E62: ='I_InputSets UKATS'!E671 -> Wages & Salaries (CMA only) | F62: ='I_InputSets UKATS'!F671 -> Opex - Wages & Salaries - Determination [CMA, CAA] | G62: =I_Global!$F$69 -> £'000 | H62: =I_Global!$F$210 -> CPI 2020 | AA62: =INDEX(AA54:AA58,MATCH($F62,$E54:$E58,0)) -> 0 | AB62: =INDEX(AB54:AB58,MATCH($F62,$E54:$E58,0)) -> 0 | AC62: 0 | AD62: 0 | AE62: 0 | AF62: 269439.0571 | AG62: 266208.5803 | AH62: 282236.6774 | AI62: 250266.4866 | AJ62: 256490.7162 | AK62: 256955.5471 | AL62: 258115.3916 | AM62: 260739.5154 | AN62: 260739.5154 | AO62: 260739.5154 | AP62: 260739.5154 | AQ62: 260739.5154 | AR62: 260739.5154 | AS62: 260739.5154 | AT62: 260739.5154 | AU62: 260739.5154 | AV62: 260739.5154 | AW62: 260739.5154 | AX62: 260739.5154 | AY62: 260739.5154 | AZ62: 260739.5154 | BA62: 260739.5154 | BB62: 260739.5154 | BC62: 260739.5154 | BD62: 260739.5154 | BE62: 260739.5154 | BF62: 260739.5154 | BG62: 260739.5154 | BH62: 260739.5154 | BI62: 260739.5154 | BJ62: 260739.5154
D64: =N(D63) + 1 -> 1 | E64: Pensions - Defined benefit - Ongoing Contributions - CAA Run | G64: =I_Global!$F$69 -> £'000 | H64: =I_Global!$F$210 -> CPI 2020 | I64: Enter as positive | J64: Cost assessment_PCM inputs_070623.xlsx, 'I_Series UKATS_CI | L64: Being published with this model | Y64: =SUM(AA64:BJ64) -> 411953.5674 | AF64: 47310.72393 | AG64: 46073.56937 | AH64: 44815.24816 | AI64: 71746.15588 | AJ64: 65482.6045 | AK64: 47109.46198 | AL64: 44592.11726 | AM64: 44823.68629
D65: =N(D64) + 1 -> 2 | E65: Pensions - Defined benefit - CAA Run (Low Case) | G65: =I_Global!$F$69 -> £'000 | H65: =I_Global!$F$210 -> CPI 2020 | I65: Enter as positive | J65: Calculated | L65: Being published with this model | Y65: =SUM(AA65:BJ65) -> 405109.7167 | AF65: 47310.72393 | AG65: 46073.56937 | AH65: 44815.24816 | AI65: 69952.50199 | AJ65: 63845.53939 | AK65: 45931.72543 | AL65: 43477.31433 | AM65: 43703.09413
D66: =N(D65) + 1 -> 3 | E66: Pensions - Defined benefit - Ongoing Contributions - Determination [CMA, CAA] | G66: =I_Global!$F$69 -> £'000 | H66: =I_Global!$F$210 -> CPI 2020 | I66: Enter as positive | J66: 5. Cost assessment PCM inputs_LOW or BASE case_150822.xlsx, I_Series UKATS_CI, rows 13, 22, 31, 40, 49, 58, 67, 76, 85, 114 | L66: Being published with this model | Y66: =SUM(AA66:BJ66) -> 1515579.723 | AF66: 66761.91958 | AG66: 65570.36486 | AH66: 64268.86928 | AI66: 64017.68473 | AJ66: 62615.03947 | AK66: 47957.7942 | AL66: 46161.44542 | AM66: 45759.44188 | AN66: 45759.44188 | AO66: 45759.44188 | AP66: 45759.44188 | AQ66: 45759.44188 | AR66: 45759.44188 | AS66: 45759.44188 | AT66: 45759.44188 | AU66: 45759.44188 | AV66: 45759.44188 | AW66: 45759.44188 | AX66: 45759.44188 | AY66: 45759.44188 | AZ66: 45759.44188 | BA66: 45759.44188 | BB66: 45759.44188 | BC66: 45759.44188 | BD66: 45759.44188 | BE66: 45759.44188 | BF66: 45759.44188 | BG66: 45759.44188 | BH66: 45759.44188 | BI66: 45759.44188 | BJ66: 45759.44188
D67: =N(D66) + 1 -> 4 | G67: =I_Global!$F$69 -> £'000 | H67: =I_Global!$F$210 -> CPI 2020 | I67: Enter as positive | Y67: =SUM(AA67:BJ67) -> 0
D68: =N(D67) + 1 -> 5 | G68: =I_Global!$F$69 -> £'000 | H68: =I_Global!$F$210 -> CPI 2020 | I68: Enter as positive | Y68: =SUM(AA68:BJ68) -> 0
D70: =MATCH(F70, E64:E69, 0) -> 1 | E70: =C_Index!E688 -> Pensions - Defined benefit - Ongoing Contributions - Outturn | F70: =C_Index!F688 -> Pensions - Defined benefit - Ongoing Contributions - CAA Run | G70: =C_Index!G688 -> £'000 | H70: =C_Index!H688 -> CPI 2020 | Y70: =SUM(AA70:BJ70) -> 411953.5674 | AA70: =INDEX(AA64:AA68,MATCH($F70,$E64:$E68,0)) -> 0 | AB70: 0 | AC70: 0 | AD70: 0 | AE70: 0 | AF70: 47310.72393 | AG70: 46073.56937 | AH70: 44815.24816 | AI70: 71746.15588 | AJ70: 65482.6045 | AK70: 47109.46198 | AL70: 44592.11726 | AM70: 44823.68629 | AN70: =INDEX(AN64:AN68,MATCH($F70,$E64:$E68,0)) -> 0 | AO70: 0 | AP70: 0 | AQ70: 0 | AR70: 0 | AS70: 0 | AT70: 0 | AU70: 0 | AV70: 0 | AW70: 0 | AX70: 0 | AY70: 0 | AZ70: 0 | BA70: 0 | BB70: 0 | BC70: 0 | BD70: 0 | BE70: 0 | BF70: 0 | BG70: 0 | BH70: 0 | BI70: 0 | BJ70: 0
D71: =MATCH(F71, E64:E69, 0) -> 1 | E71: =C_Index!E$730 -> Pensions - Defined benefit - Ongoing Contributions - Price determination | F71: =C_Index!F$730 -> Pensions - Defined benefit - Ongoing Contributions - CAA Run | G71: =C_Index!G$730 -> £'000 | H71: =C_Index!H$730 -> CPI 2020 | Y71: =SUM(AA71:BJ71) -> 411953.5674 | AA71: =INDEX(AA64:AA68,MATCH($F71,$E64:$E68,0)) -> 0 | AB71: 0 | AC71: 0 | AD71: 0 | AE71: 0 | AF71: 47310.72393 | AG71: =INDEX(AG64:AG68,MATCH($F71,$E64:$E68,0)) -> 46073.56937 | AH71: 44815.24816 | AI71: 71746.15588 | AJ71: 65482.6045 | AK71: 47109.46198 | AL71: 44592.11726 | AM71: 44823.68629 | AN71: =INDEX(AN64:AN68,MATCH($F71,$E64:$E68,0)) -> 0 | AO71: 0 | AP71: 0 | AQ71: 0 | AR71: 0 | AS71: 0 | AT71: 0 | AU71: 0 | AV71: 0 | AW71: 0 | AX71: 0 | AY71: 0 | AZ71: 0 | BA71: 0 | BB71: 0 | BC71: 0 | BD71: 0 | BE71: 0 | BF71: 0 | BG71: 0 | BH71: 0 | BI71: 0 | BJ71: 0
D72: =MATCH(F72, E64:E69, 0) -> 3 | E72: =C_Index!E768 -> DB Pension Costs (CMA only) | F72: =C_Index!F768 -> Pensions - Defined benefit - Ongoing Contributions - Determination [CMA, CAA] | G72: =C_Index!G768 -> £'000 | H72: =C_Index!H768 -> CPI 2020 | AA72: =INDEX(AA64:AA68,MATCH($F72,$E64:$E68,0)) -> 0 | AB72: =INDEX(AB64:AB68,MATCH($F72,$E64:$E68,0)) -> 0 | AC72: 0 | AD72: 0 | AE72: 0 | AF72: 66761.91958 | AG72: 65570.36486 | AH72: 64268.86928 | AI72: 64017.68473 | AJ72: 62615.03947 | AK72: 47957.7942 | AL72: 46161.44542 | AM72: 45759.44188 | AN72: 45759.44188 | AO72: 45759.44188 | AP72: 45759.44188 | AQ72: 45759.44188 | AR72: 45759.44188 | AS72: 45759.44188 | AT72: 45759.44188 | AU72: 45759.44188 | AV72: 45759.44188 | AW72: 45759.44188 | AX72: 45759.44188 | AY72: 45759.44188 | AZ72: 45759.44188 | BA72: 45759.44188 | BB72: 45759.44188 | BC72: 45759.44188 | BD72: 45759.44188 | BE72: 45759.44188 | BF72: 45759.44188 | BG72: 45759.44188 | BH72: 45759.44188 | BI72: 45759.44188 | BJ72: 45759.44188
D74: =N(D73) + 1 -> 1 | E74: Pensions - Defined benefit - Deficit Repair - CAA Run | G74: =I_Global!$F$69 -> £'000 | H74: =I_Global!$F$210 -> CPI 2020 | I74: Enter as positive | J74: Cost assessment_PCM inputs_070623.xlsx, 'I_Series UKATS_CI | L74: Being published with this model | Y74: =SUM(AA74:BJ74) -> 94406.69474 | AF74: 18682.0959 | AG74: 18728.11344 | AH74: 18700.19653 | AI74: 19070.5024 | AJ74: 19225.78648 | AK74: 0 | AL74: 0 | AM74: 0
D75: =N(D74) + 1 -> 2 | E75: Pensions - Defined benefit - Deficit Repair - Determination [CMA, CAA] | G75: =I_Global!$F$69 -> £'000 | H75: =I_Global!$F$210 -> CPI 2020 | I75: Enter as positive | J75: 5. Cost assessment PCM inputs_LOW or BASE case_150822.xlsx, I_Series UKATS_CI, rows 13, 22, 31, 40, 49, 58, 67, 76, 85, 114 | L75: Being published with this model | Y75: =SUM(AA75:BJ75) -> 0
D76: =N(D75) + 1 -> 3 | G76: =I_Global!$F$69 -> £'000 | H76: =I_Global!$F$210 -> CPI 2020 | I76: Enter as positive | Y76: =SUM(AA76:BJ76) -> 0
D77: =N(D76) + 1 -> 4 | G77: =I_Global!$F$69 -> £'000 | H77: =I_Global!$F$210 -> CPI 2020 | I77: Enter as positive
D78: =N(D77) + 1 -> 5 | G78: =I_Global!$F$69 -> £'000 | H78: =I_Global!$F$210 -> CPI 2020 | I78: Enter as positive | Y78: =SUM(AA78:BJ78) -> 0
D80: =MATCH(F80, E74:E79, 0) -> 1 | E80: =C_Index!E689 -> Pensions - Defined benefit - Deficit Repair - Outturn | F80: =C_Index!F689 -> Pensions - Defined benefit - Deficit Repair - CAA Run | G80: =C_Index!G689 -> £'000 | H80: =C_Index!H689 -> CPI 2020 | Y80: =SUM(AA80:BJ80) -> 94406.69474 | AA80: =INDEX(AA74:AA78,MATCH($F80,$E74:$E78,0)) -> 0 | AB80: 0 | AC80: 0 | AD80: 0 | AE80: 0 | AF80: 18682.0959 | AG80: 18728.11344 | AH80: 18700.19653 | AI80: 19070.5024 | AJ80: 19225.78648 | AK80: 0 | AL80: 0 | AM80: 0 | AN80: =INDEX(AN74:AN78,MATCH($F80,$E74:$E78,0)) -> 0 | AO80: 0 | AP80: 0 | AQ80: 0 | AR80: 0 | AS80: 0 | AT80: 0 | AU80: 0 | AV80: 0 | AW80: 0 | AX80: 0 | AY80: 0 | AZ80: 0 | BA80: 0 | BB80: 0 | BC80: 0 | BD80: 0 | BE80: 0 | BF80: 0 | BG80: 0 | BH80: 0 | BI80: 0 | BJ80: 0
D81: =MATCH(F81, E74:E79, 0) -> 1 | E81: =C_Index!E$731 -> Pensions - Defined benefit - Deficit Repair - Price determination | F81: =C_Index!F$731 -> Pensions - Defined benefit - Deficit Repair - CAA Run | G81: =C_Index!G$731 -> £'000 | H81: =C_Index!H$731 -> CPI 2020 | Y81: =SUM(AA81:BJ81) -> 94406.69474 | AA81: =INDEX(AA74:AA78,MATCH($F81,$E74:$E78,0)) -> 0 | AB81: 0 | AC81: 0 | AD81: 0 | AE81: 0 | AF81: 18682.0959 | AG81: =INDEX(AG74:AG78,MATCH($F81,$E74:$E78,0)) -> 18728.11344 | AH81: 18700.19653 | AI81: 19070.5024 | AJ81: 19225.78648 | AK81: 0 | AL81: 0 | AM81: 0 | AN81: =INDEX(AN74:AN78,MATCH($F81,$E74:$E78,0)) -> 0 | AO81: 0 | AP81: 0 | AQ81: 0 | AR81: 0 | AS81: 0 | AT81: 0 | AU81: 0 | AV81: 0 | AW81: 0 | AX81: 0 | AY81: 0 | AZ81: 0 | BA81: 0 | BB81: 0 | BC81: 0 | BD81: 0 | BE81: 0 | BF81: 0 | BG81: 0 | BH81: 0 | BI81: 0 | BJ81: 0
D82: =MATCH(F82, E74:E79, 0) -> 2 | E82: =C_Index!E769 -> Pensions - DB - Deficit Repair (CMA only) | F82: =C_Index!F769 -> Pensions - Defined benefit - Deficit Repair - Determination [CMA, CAA] | G82: =C_Index!G769 -> £'000 | H82: =C_Index!H769 -> CPI 2020 | AA82: =INDEX(AA74:AA78,MATCH($F82,$E74:$E78,0)) -> 0 | AB82: =INDEX(AB74:AB78,MATCH($F82,$E74:$E78,0)) -> 0 | AC82: 0 | AD82: =INDEX(AD74:AD78,MATCH($F82,$E74:$E78,0)) -> 0 | AE82: 0 | AF82: 0 | AG82: 0 | AH82: 0 | AI82: 0 | AJ82: 0 | AK82: 0 | AL82: 0 | AM82: 0 | AN82: 0 | AO82: 0 | AP82: 0 | AQ82: 0 | AR82: 0 | AS82: 0 | AT82: 0 | AU82: 0 | AV82: 0 | AW82: 0 | AX82: 0 | AY82: 0 | AZ82: 0 | BA82: 0 | BB82: 0 | BC82: 0 | BD82: 0 | BE82: 0 | BF82: 0 | BG82: 0 | BH82: 0 | BI82: 0 | BJ82: 0
D84: =N(D83) + 1 -> 1 | E84: Pensions - Defined contribution - CAA Run | G84: =I_Global!$F$69 -> £'000 | H84: =I_Global!$F$210 -> CPI 2020 | I84: Enter as positive | J84: Cost assessment_PCM inputs_070623.xlsx, 'I_Series UKATS_CI | L84: Being published with this model | Y84: =SUM(AA84:BJ84) -> 121947.6718 | AF84: 11784.54515 | AG84: 11352.66079 | AH84: 11530.88188 | AI84: 15463.02806 | AJ84: 16639.46716 | AK84: 17413.47735 | AL84: 18380.79155 | AM84: 19382.81989
D85: =N(D84) + 1 -> 2 | E85: Pensions - Defined contribution - CAA Run (Low Case) | G85: =I_Global!$F$69 -> £'000 | H85: =I_Global!$F$210 -> CPI 2020 | I85: Enter as positive | J85: Calculated | L85: Being published with this model | Y85: =SUM(AA85:BJ85) -> 119765.6822 | AF85: 11784.54515 | AG85: 11352.66079 | AH85: 11530.88188 | AI85: 15076.45235 | AJ85: 16223.48048 | AK85: 16978.14042 | AL85: 17921.27176 | AM85: 18898.24939
D86: =N(D85) + 1 -> 3 | E86: Pensions - Defined contribution - Determination [CMA, CAA] | G86: =I_Global!$F$69 -> £'000 | H86: =I_Global!$F$210 -> CPI 2020 | I86: Enter as positive | J86: 5. Cost assessment PCM inputs_LOW or BASE case_150822.xlsx, I_Series UKATS_CI, rows 13, 22, 31, 40, 49, 58, 67, 76, 85, 114 | L86: Being published with this model | Y86: =SUM(AA86:BJ86) -> 556278.5176 | AF86: 11743.7549 | AG86: 13026.90165 | AH86: 14061.70058 | AI86: 14678.5179 | AJ86: 15828.52161 | AK86: 16976.78403 | AL86: 17918.39829 | AM86: 18835.16411 | AN86: 18835.16411 | AO86: 18835.16411 | AP86: 18835.16411 | AQ86: 18835.16411 | AR86: 18835.16411 | AS86: 18835.16411 | AT86: 18835.16411 | AU86: 18835.16411 | AV86: 18835.16411 | AW86: 18835.16411 | AX86: 18835.16411 | AY86: 18835.16411 | AZ86: 18835.16411 | BA86: 18835.16411 | BB86: 18835.16411 | BC86: 18835.16411 | BD86: 18835.16411 | BE86: 18835.16411 | BF86: 18835.16411 | BG86: 18835.16411 | BH86: 18835.16411 | BI86: 18835.16411 | BJ86: 18835.16411
D87: =N(D86) + 1 -> 4 | G87: =I_Global!$F$69 -> £'000 | H87: =I_Global!$F$210 -> CPI 2020 | I87: Enter as positive | Y87: =SUM(AA87:BJ87) -> 0
D88: =N(D87) + 1 -> 5 | G88: =I_Global!$F$69 -> £'000 | H88: =I_Global!$F$210 -> CPI 2020 | I88: Enter as positive | Y88: =SUM(AA88:BJ88) -> 0
D90: =MATCH(F90, E84:E89, 0) -> 1 | E90: =C_Index!E690 -> Pensions - Defined contribution - Outturn | F90: =C_Index!F690 -> Pensions - Defined contribution - CAA Run | G90: =C_Index!G690 -> £'000 | H90: =C_Index!H690 -> CPI 2020 | Y90: =SUM(AA90:BJ90) -> 121947.6718 | AA90: =INDEX(AA84:AA88,MATCH($F90,$E84:$E88,0)) -> 0 | AB90: 0 | AC90: 0 | AD90: 0 | AE90: 0 | AF90: 11784.54515 | AG90: 11352.66079 | AH90: 11530.88188 | AI90: 15463.02806 | AJ90: 16639.46716 | AK90: 17413.47735 | AL90: 18380.79155 | AM90: 19382.81989 | AN90: 0 | AO90: 0 | AP90: 0 | AQ90: 0 | AR90: 0 | AS90: 0 | AT90: 0 | AU90: 0 | AV90: 0 | AW90: 0 | AX90: 0 | AY90: 0 | AZ90: 0 | BA90: 0 | BB90: 0 | BC90: 0 | BD90: 0 | BE90: 0 | BF90: 0 | BG90: 0 | BH90: 0 | BI90: 0 | BJ90: 0
D91: =MATCH(F91, E84:E89, 0) -> 1 | E91: =C_Index!E$732 -> Pensions - Defined contribution - Price determination | F91: =C_Index!F$732 -> Pensions - Defined contribution - CAA Run | G91: =C_Index!G$732 -> £'000 | H91: =C_Index!H$732 -> CPI 2020 | Y91: =SUM(AA91:BJ91) -> 121947.6718 | AA91: =INDEX(AA84:AA88,MATCH($F91,$E84:$E88,0)) -> 0 | AB91: 0 | AC91: 0 | AD91: 0 | AE91: 0 | AF91: 11784.54515 | AG91: 11352.66079 | AH91: 11530.88188 | AI91: 15463.02806 | AJ91: 16639.46716 | AK91: 17413.47735 | AL91: 18380.79155 | AM91: 19382.81989 | AN91: 0 | AO91: 0 | AP91: 0 | AQ91: 0 | AR91: 0 | AS91: 0 | AT91: 0 | AU91: 0 | AV91: 0 | AW91: 0 | AX91: 0 | AY91: 0 | AZ91: 0 | BA91: 0 | BB91: 0 | BC91: 0 | BD91: 0 | BE91: 0 | BF91: 0 | BG91: 0 | BH91: 0 | BI91: 0 | BJ91: 0
D92: =MATCH(F92, E84:E89, 0) -> 3 | E92: =C_Index!E770 -> DC Pension Costs (CMA only) | F92: =C_Index!F770 -> Pensions - Defined contribution - Determination [CMA, CAA] | G92: =C_Index!G770 -> £'000 | H92: =C_Index!H770 -> CPI 2020 | AA92: =INDEX(AA84:AA88,MATCH($F92,$E84:$E88,0)) -> 0 | AB92: 0 | AC92: 0 | AD92: 0 | AE92: 0 | AF92: 11743.7549 | AG92: 13026.90165 | AH92: 14061.70058 | AI92: 14678.5179 | AJ92: 15828.52161 | AK92: 16976.78403 | AL92: 17918.39829 | AM92: 18835.16411 | AN92: 18835.16411 | AO92: 18835.16411 | AP92: 18835.16411 | AQ92: 18835.16411 | AR92: 18835.16411 | AS92: 18835.16411 | AT92: 18835.16411 | AU92: 18835.16411 | AV92: 18835.16411 | AW92: 18835.16411 | AX92: 18835.16411 | AY92: 18835.16411 | AZ92: 18835.16411 | BA92: 18835.16411 | BB92: 18835.16411 | BC92: 18835.16411 | BD92: 18835.16411 | BE92: 18835.16411 | BF92: 18835.16411 | BG92: 18835.16411 | BH92: 18835.16411 | BI92: 18835.16411 | BJ92: 18835.16411
D94: =N(D93) + 1 -> 1 | E94: Pensions - Opt outs - CAA Forecasts - CAA Run | G94: =I_Global!$F$69 -> £'000 | H94: =I_Global!$F$210 -> CPI 2020 | I94: Enter as positive | J94: Cost assessment_PCM inputs_070623.xlsx, 'I_Series UKATS_CI | L94: Being published with this model | Y94: =SUM(AA94:BJ94) -> 87120.83915 | AF94: 15663.61425 | AG94: 12574.59195 | AH94: 11563.00923 | AI94: 10672.81404 | AJ94: 10144.03452 | AK94: 9523.695556 | AL94: 8850.703009 | AM94: 8128.376598
D95: =N(D94) + 1 -> 2 | E95: Pensions - Opt outs - CAA Forecasts - CAA Run (Low Case) | G95: =I_Global!$F$69 -> £'000 | H95: =I_Global!$F$210 -> CPI 2020 | I95: Enter as positive | J95: Calculated | L95: Being published with this model | Y95: =SUM(AA95:BJ95) -> 85937.84856 | AF95: 15663.61425 | AG95: 12574.59195 | AH95: 11563.00923 | AI95: 10405.99369 | AJ95: 9890.433655 | AK95: 9285.603167 | AL95: 8629.435434 | AM95: 7925.167184
D96: =N(D95) + 1 -> 3 | E96: Pensions - Opt outs - Determination [CMA, CAA] | G96: =I_Global!$F$69 -> £'000 | H96: =I_Global!$F$210 -> CPI 2020 | I96: Enter as positive | J96: 5. Cost assessment PCM inputs_LOW or BASE case_150822.xlsx, I_Series UKATS_CI, rows 13, 22, 31, 40, 49, 58, 67, 76, 85, 114 | L96: Being published with this model | Y96: =SUM(AA96:BJ96) -> 274518.2013 | AF96: 17114.3269 | AG96: 16209.18293 | AH96: 15203.80271 | AI96: 11584.71782 | AJ96: 10209.71288 | AK96: 9146.506113 | AL96: 8377.038737 | AM96: 7778.038051 | AN96: 7778.038051 | AO96: 7778.038051 | AP96: 7778.038051 | AQ96: 7778.038051 | AR96: 7778.038051 | AS96: 7778.038051 | AT96: 7778.038051 | AU96: 7778.038051 | AV96: 7778.038051 | AW96: 7778.038051 | AX96: 7778.038051 | AY96: 7778.038051 | AZ96: 7778.038051 | BA96: 7778.038051 | BB96: 7778.038051 | BC96: 7778.038051 | BD96: 7778.038051 | BE96: 7778.038051 | BF96: 7778.038051 | BG96: 7778.038051 | BH96: 7778.038051 | BI96: 7778.038051 | BJ96: 7778.038051
D97: =N(D96) + 1 -> 4 | G97: =I_Global!$F$69 -> £'000 | H97: =I_Global!$F$210 -> CPI 2020 | I97: Enter as positive | Y97: =SUM(AA97:BJ97) -> 0
D98: =N(D97) + 1 -> 5 | G98: =I_Global!$F$69 -> £'000 | H98: =I_Global!$F$210 -> CPI 2020 | I98: Enter as positive | Y98: =SUM(AA98:BJ98) -> 0
D100: =MATCH(F100, E94:E99, 0) -> 1 | E100: =C_Index!E691 -> Pensions - Opt outs - Outturn | F100: =C_Index!F691 -> Pensions - Opt outs - CAA Forecasts - CAA Run | G100: =C_Index!G691 -> £'000 | H100: =C_Index!H691 -> CPI 2020 | Y100: =SUM(AA100:BJ100) -> 87120.83915 | AA100: =INDEX(AA94:AA98,MATCH($F100,$E94:$E98,0)) -> 0 | AB100: 0 | AC100: 0 | AD100: 0 | AE100: 0 | AF100: 15663.61425 | AG100: 12574.59195 | AH100: 11563.00923 | AI100: 10672.81404 | AJ100: 10144.03452 | AK100: 9523.695556 | AL100: 8850.703009 | AM100: 8128.376598 | AN100: =INDEX(AN94:AN98,MATCH($F100,$E94:$E98,0)) -> 0 | AO100: 0 | AP100: 0 | AQ100: 0 | AR100: 0 | AS100: 0 | AT100: 0 | AU100: 0 | AV100: 0 | AW100: 0 | AX100: 0 | AY100: 0 | AZ100: 0 | BA100: 0 | BB100: 0 | BC100: 0 | BD100: 0 | BE100: 0 | BF100: 0 | BG100: 0 | BH100: 0 | BI100: 0 | BJ100: 0
D101: =MATCH(F101, E94:E99, 0) -> 1 | E101: =C_Index!E$733 -> Pensions - Opt outs - Price determination | F101: =C_Index!F$733 -> Pensions - Opt outs - CAA Forecasts - CAA Run | G101: =C_Index!G$733 -> £'000 | H101: =C_Index!H$733 -> CPI 2020 | Y101: =SUM(AA101:BJ101) -> 87120.83915 | AA101: =INDEX(AA94:AA98,MATCH($F101,$E94:$E98,0)) -> 0 | AB101: 0 | AC101: 0 | AD101: 0 | AE101: 0 | AF101: 15663.61425 | AG101: =INDEX(AG94:AG98,MATCH($F101,$E94:$E98,0)) -> 12574.59195 | AH101: 11563.00923 | AI101: 10672.81404 | AJ101: 10144.03452 | AK101: 9523.695556 | AL101: 8850.703009 | AM101: 8128.376598 | AN101: =INDEX(AN94:AN98,MATCH($F101,$E94:$E98,0)) -> 0 | AO101: 0 | AP101: 0 | AQ101: 0 | AR101: 0 | AS101: 0 | AT101: 0 | AU101: 0 | AV101: 0 | AW101: 0 | AX101: 0 | AY101: 0 | AZ101: 0 | BA101: 0 | BB101: 0 | BC101: 0 | BD101: 0 | BE101: 0 | BF101: 0 | BG101: 0 | BH101: 0 | BI101: 0 | BJ101: 0
D102: =MATCH(F102, E94:E99, 0) -> 3 | E102: =C_Index!E771 -> OO Pension Costs (CMA only) | F102: =C_Index!F771 -> Pensions - Opt outs - Determination [CMA, CAA] | G102: =C_Index!G771 -> £'000 | H102: =C_Index!H771 -> CPI 2020 | AA102: =INDEX(AA94:AA98,MATCH($F102,$E94:$E98,0)) -> 0 | AB102: =INDEX(AB94:AB98,MATCH($F102,$E94:$E98,0)) -> 0 | AC102: 0 | AD102: 0 | AE102: 0 | AF102: 17114.3269 | AG102: 16209.18293 | AH102: 15203.80271 | AI102: 11584.71782 | AJ102: 10209.71288 | AK102: 9146.506113 | AL102: 8377.038737 | AM102: 7778.038051 | AN102: 7778.038051 | AO102: 7778.038051 | AP102: 7778.038051 | AQ102: 7778.038051 | AR102: 7778.038051 | AS102: 7778.038051 | AT102: 7778.038051 | AU102: 7778.038051 | AV102: 7778.038051 | AW102: 7778.038051 | AX102: 7778.038051 | AY102: 7778.038051 | AZ102: 7778.038051 | BA102: 7778.038051 | BB102: 7778.038051 | BC102: 7778.038051 | BD102: 7778.038051 | BE102: 7778.038051 | BF102: 7778.038051 | BG102: 7778.038051 | BH102: 7778.038051 | BI102: 7778.038051 | BJ102: 7778.038051
D104: =N(D103) + 1 -> 1 | E104: Pensions - Other pension costs - CAA Run | G104: =I_Global!$F$69 -> £'000 | H104: =I_Global!$F$210 -> CPI 2020 | I104: Enter as positive | J104: Cost assessment_PCM inputs_070623.xlsx, 'I_Series UKATS_CI | L104: Being published with this model | Y104: =SUM(AA104:BJ104) -> 0
D105: =N(D104) + 1 -> 2 | E105: Pensions - Other pension costs - Determination [CMA, CAA] | G105: =I_Global!$F$69 -> £'000 | H105: =I_Global!$F$210 -> CPI 2020 | I105: Enter as positive | J105: 5. Cost assessment PCM inputs_LOW or BASE case_150822.xlsx, I_Series UKATS_CI, rows 13, 22, 31, 40, 49, 58, 67, 76, 85, 114 | L105: Being published with this model | Y105: =SUM(AA105:BJ105) -> 0
D106: =N(D105) + 1 -> 3 | G106: =I_Global!$F$69 -> £'000 | H106: =I_Global!$F$210 -> CPI 2020 | I106: Enter as positive | Y106: =SUM(AA106:BJ106) -> 0
D107: =N(D106) + 1 -> 4 | G107: =I_Global!$F$69 -> £'000 | H107: =I_Global!$F$210 -> CPI 2020 | I107: Enter as positive | Y107: =SUM(AA107:BJ107) -> 0
D108: =N(D107) + 1 -> 5 | G108: =I_Global!$F$69 -> £'000 | H108: =I_Global!$F$210 -> CPI 2020 | I108: Enter as positive | Y108: =SUM(AA108:BJ108) -> 0
D110: =MATCH(F110, E104:E109, 0) -> 1 | E110: =C_Index!E692 -> Pensions - Other pension costs - Outturn | F110: =C_Index!F692 -> Pensions - Other pension costs - CAA Run | G110: =C_Index!G692 -> £'000 | H110: =C_Index!H692 -> CPI 2020 | Y110: =SUM(AA110:BJ110) -> 0 | AA110: =INDEX(AA104:AA108,MATCH($F110,$E104:$E108,0)) -> 0 | AB110: 0 | AC110: 0 | AD110: 0 | AE110: 0 | AF110: 0 | AG110: 0 | AH110: 0 | AI110: 0 | AJ110: 0 | AK110: 0 | AL110: 0 | AM110: 0 | AN110: =INDEX(AN104:AN108,MATCH($F110,$E104:$E108,0)) -> 0 | AO110: 0 | AP110: 0 | AQ110: 0 | AR110: 0 | AS110: 0 | AT110: 0 | AU110: 0 | AV110: 0 | AW110: 0 | AX110: 0 | AY110: 0 | AZ110: 0 | BA110: 0 | BB110: 0 | BC110: 0 | BD110: 0 | BE110: 0 | BF110: 0 | BG110: 0 | BH110: 0 | BI110: 0 | BJ110: 0
D111: =MATCH(F111, E104:E109, 0) -> 1 | E111: =C_Index!E$734 -> Pensions - Other pension costs - Price determination | F111: =C_Index!F$734 -> Pensions - Other pension costs - CAA Run | G111: =C_Index!G$734 -> £'000 | H111: =C_Index!H$734 -> CPI 2020 | Y111: =SUM(AA111:BJ111) -> 0 | AA111: =INDEX(AA104:AA108,MATCH($F111,$E104:$E108,0)) -> 0 | AB111: 0 | AC111: 0 | AD111: 0 | AE111: 0 | AF111: 0 | AG111: =INDEX(AG104:AG108,MATCH($F111,$E104:$E108,0)) -> 0 | AH111: 0 | AI111: 0 | AJ111: 0 | AK111: 0 | AL111: 0 | AM111: 0 | AN111: =INDEX(AN104:AN108,MATCH($F111,$E104:$E108,0)) -> 0 | AO111: 0 | AP111: 0 | AQ111: 0 | AR111: 0 | AS111: 0 | AT111: 0 | AU111: 0 | AV111: 0 | AW111: 0 | AX111: 0 | AY111: 0 | AZ111: 0 | BA111: 0 | BB111: 0 | BC111: 0 | BD111: 0 | BE111: 0 | BF111: 0 | BG111: 0 | BH111: 0 | BI111: 0 | BJ111: 0
D112: =MATCH(F112, E104:E109, 0) -> 2 | E112: =C_Index!E772 -> Spare Pension Costs (CMA only) | F112: =C_Index!F772 -> Pensions - Other pension costs - Determination [CMA, CAA] | G112: =C_Index!G772 -> £'000 | H112: =C_Index!H772 -> CPI 2020 | AA112: =INDEX(AA104:AA108,MATCH($F112,$E104:$E108,0)) -> 0 | AB112: =INDEX(AB104:AB108,MATCH($F112,$E104:$E108,0)) -> 0 | AC112: 0 | AD112: 0 | AE112: 0 | AF112: 0 | AG112: 0 | AH112: 0 | AI112: 0 | AJ112: 0 | AK112: 0 | AL112: 0 | AM112: 0 | AN112: 0 | AO112: 0 | AP112: 0 | AQ112: 0 | AR112: 0 | AS112: 0 | AT112: 0 | AU112: 0 | AV112: 0 | AW112: 0 | AX112: 0 | AY112: 0 | AZ112: 0 | BA112: 0 | BB112: 0 | BC112: 0 | BD112: 0 | BE112: 0 | BF112: 0 | BG112: 0 | BH112: 0 | BI112: 0 | BJ112: 0
D114: =N(D113) + 1 -> 1 | E114: Opex - Redundancy - CAA Forecasts - CAA Run | G114: =I_Global!$F$69 -> £'000 | H114: =I_Global!$F$210 -> CPI 2020 | I114: Enter as positive | J114: Cost assessment_PCM inputs _3 May 2023.xlsx, 'I_Series UKATS_CI | L114: Being published with this model | Y114: =SUM(AA114:BJ114) -> 59439.50313 | AE114: 1148.033349 | AF114: 50917.12264 | AG114: 1382.078535 | AH114: 257.484922 | AI114: 1151.208393 | AJ114: 1148.626365 | AK114: 1147.125542 | AL114: 1144.747178 | AM114: 1143.076214
D115: =N(D114) + 1 -> 2 | E115: Opex - Redundancy - Determination [CMA, CAA] | G115: =I_Global!$F$69 -> £'000 | H115: =I_Global!$F$210 -> CPI 2020 | I115: Enter as positive | J115: Cost assessment_PCM inputs _3 May 2023.xlsx, 'I_Series UKATS_CI | L115: Being published with this model | Y115: =SUM(AA115:BJ115) -> 0
D116: =N(D115) + 1 -> 3 | G116: =I_Global!$F$69 -> £'000 | H116: =I_Global!$F$210 -> CPI 2020 | I116: Enter as positive | Y116: =SUM(AA116:BJ116) -> 0
D117: =N(D116) + 1 -> 4 | G117: =I_Global!$F$69 -> £'000 | H117: =I_Global!$F$210 -> CPI 2020 | I117: Enter as positive | Y117: =SUM(AA117:BJ117) -> 0
D118: =N(D117) + 1 -> 5 | G118: =I_Global!$F$69 -> £'000 | H118: =I_Global!$F$210 -> CPI 2020 | I118: Enter as positive | Y118: =SUM(AA118:BJ118) -> 0
D120: =MATCH(F120, E114:E119, 0) -> 1 | E120: =C_Index!E693 -> Opex - Redundancy - Outturn | F120: =C_Index!F693 -> Opex - Redundancy - CAA Forecasts - CAA Run | G120: =C_Index!G693 -> £'000 | H120: =C_Index!H693 -> CPI 2020 | Y120: =SUM(AA120:BJ120) -> 59439.50313 | AA120: =INDEX(AA114:AA118,MATCH($F120,$E114:$E118,0)) -> 0 | AB120: 0 | AC120: 0 | AD120: 0 | AE120: 1148.033349 | AF120: 50917.12264 | AG120: 1382.078535 | AH120: 257.484922 | AI120: 1151.208393 | AJ120: 1148.626365 | AK120: 1147.125542 | AL120: 1144.747178 | AM120: 1143.076214 | AN120: =INDEX(AN114:AN118,MATCH($F120,$E114:$E118,0)) -> 0 | AO120: 0 | AP120: 0 | AQ120: 0 | AR120: 0 | AS120: 0 | AT120: 0 | AU120: 0 | AV120: 0 | AW120: 0 | AX120: 0 | AY120: 0 | AZ120: 0 | BA120: 0 | BB120: 0 | BC120: 0 | BD120: 0 | BE120: 0 | BF120: 0 | BG120: 0 | BH120: 0 | BI120: 0 | BJ120: 0
D121: =MATCH(F121, E114:E119, 0) -> 1 | E121: =C_Index!E$735 -> Opex - Redundancy - Price determination | F121: =C_Index!F$735 -> Opex - Redundancy - CAA Forecasts - CAA Run | G121: =C_Index!G$735 -> £'000 | H121: =C_Index!H$735 -> CPI 2020 | Y121: =SUM(AA121:BJ121) -> 59439.50313 | AA121: =INDEX(AA114:AA118,MATCH($F121,$E114:$E118,0)) -> 0 | AB121: 0 | AC121: 0 | AD121: 0 | AE121: 1148.033349 | AF121: 50917.12264 | AG121: =INDEX(AG114:AG118,MATCH($F121,$E114:$E118,0)) -> 1382.078535 | AH121: 257.484922 | AI121: 1151.208393 | AJ121: 1148.626365 | AK121: 1147.125542 | AL121: 1144.747178 | AM121: 1143.076214 | AN121: =INDEX(AN114:AN118,MATCH($F121,$E114:$E118,0)) -> 0 | AO121: 0 | AP121: 0 | AQ121: 0 | AR121: 0 | AS121: 0 | AT121: 0 | AU121: 0 | AV121: 0 | AW121: 0 | AX121: 0 | AY121: 0 | AZ121: 0 | BA121: 0 | BB121: 0 | BC121: 0 | BD121: 0 | BE121: 0 | BF121: 0 | BG121: 0 | BH121: 0 | BI121: 0 | BJ121: 0
D122: =MATCH(F122, E114:E119, 0) -> 2 | E122: =C_Index!E773 -> Opex - Redundancy (CAA Efficient) | F122: =C_Index!F773 -> Opex - Redundancy - Determination [CMA, CAA] | G122: =C_Index!G773 -> £'000 | H122: =C_Index!H773 -> CPI 2020 | AA122: =INDEX(AA114:AA118,MATCH($F122,$E114:$E118,0)) -> 0 | AB122: =INDEX(AB114:AB118,MATCH($F122,$E114:$E118,0)) -> 0 | AC122: 0 | AD122: 0 | AE122: 0 | AF122: 0 | AG122: 0 | AH122: 0 | AI122: 0 | AJ122: 0 | AK122: 0 | AL122: 0 | AM122: 0 | AN122: 0 | AO122: 0 | AP122: 0 | AQ122: 0 | AR122: 0 | AS122: 0 | AT122: 0 | AU122: 0 | AV122: 0 | AW122: 0 | AX122: 0 | AY122: 0 | AZ122: 0 | BA122: 0 | BB122: 0 | BC122: 0 | BD122: 0 | BE122: 0 | BF122: 0 | BG122: 0 | BH122: 0 | BI122: 0 | BJ122: 0
D124: =N(D123) + 1 -> 1 | E124: Opex - Non-staff costs - CAA Forecasts - CAA Run | G124: =I_Global!$F$69 -> £'000 | H124: =I_Global!$F$210 -> CPI 2020 | I124: Enter as positive | J124: Cost assessment_PCM inputs_070623.xlsx, 'I_Series UKATS_CI | L124: Being published with this model | Y124: =SUM(AA124:BJ124) -> 1271913.63 | AE124: 145234.8414 | AF124: 123310.7626 | AG124: 117593.6258 | AH124: 144527.1 | AI124: 145769.4915 | AJ124: 150078.7831 | AK124: 150257.7341 | AL124: 149511.1354 | AM124: 145630.156
D125: =N(D124) + 1 -> 2 | E125: Opex - Non-staff costs - CAA Forecasts - CAA Run (Low Case) | G125: =I_Global!$F$69 -> £'000 | H125: =I_Global!$F$210 -> CPI 2020 | I125: Enter as positive | J125: Calculated | L125: Being published with this model | Y125: =SUM(AA125:BJ125) -> 1253382.447 | AE125: 145234.8414 | AF125: 123310.7626 | AG125: 117593.6258 | AH125: 144527.1 | AI125: 142125.2542 | AJ125: 146326.8135 | AK125: 146501.2908 | AL125: 145773.357 | AM125: 141989.4021
D126: =N(D125) + 1 -> 3 | E126: Opex - Non-staff costs - Determination [CMA, CAA] | G126: =I_Global!$F$69 -> £'000 | H126: =I_Global!$F$210 -> CPI 2020 | I126: Enter as positive | J126: 5. Cost assessment PCM inputs_LOW or BASE case_150822.xlsx, I_Series UKATS_CI, rows 13, 22, 31, 40, 49, 58, 67, 76, 85, 114 | L126: Being published with this model | Y126: =SUM(AA126:BJ126) -> 4622877.565 | AF126: 186824.3948 | AG126: 187669.0233 | AH126: 189987.4754 | AI126: 145299.9908 | AJ126: 149261.0177 | AK126: 149388.8776 | AL126: 148197.4675 | AM126: 144427.0549 | AN126: 144427.0549 | AO126: 144427.0549 | AP126: 144427.0549 | AQ126: 144427.0549 | AR126: 144427.0549 | AS126: 144427.0549 | AT126: 144427.0549 | AU126: 144427.0549 | AV126: 144427.0549 | AW126: 144427.0549 | AX126: 144427.0549 | AY126: 144427.0549 | AZ126: 144427.0549 | BA126: 144427.0549 | BB126: 144427.0549 | BC126: 144427.0549 | BD126: 144427.0549 | BE126: 144427.0549 | BF126: 144427.0549 | BG126: 144427.0549 | BH126: 144427.0549 | BI126: 144427.0549 | BJ126: 144427.0549
D127: =N(D126) + 1 -> 4 | G127: =I_Global!$F$69 -> £'000 | H127: =I_Global!$F$210 -> CPI 2020 | I127: Enter as positive | Y127: =SUM(AA127:BJ127) -> 0
D128: =N(D127) + 1 -> 5 | G128: =I_Global!$F$69 -> £'000 | H128: =I_Global!$F$210 -> CPI 2020 | I128: Enter as positive | Y128: =SUM(AA128:BJ128) -> 0
D130: =MATCH(F130, E124:E129, 0) -> 1 | E130: =C_Index!E694 -> Opex - Non-staff costs - Outturn | F130: =C_Index!F694 -> Opex - Non-staff costs - CAA Forecasts - CAA Run | G130: =C_Index!G694 -> £'000 | H130: =C_Index!H694 -> CPI 2020 | Y130: =SUM(AA130:BJ130) -> 1271913.63 | AA130: =INDEX(AA124:AA128,MATCH($F130,$E124:$E128,0)) -> 0 | AB130: 0 | AC130: 0 | AD130: 0 | AE130: 145234.8414 | AF130: 123310.7626 | AG130: 117593.6258 | AH130: 144527.1 | AI130: 145769.4915 | AJ130: 150078.7831 | AK130: 150257.7341 | AL130: 149511.1354 | AM130: 145630.156 | AN130: =INDEX(AN124:AN128,MATCH($F130,$E124:$E128,0)) -> 0 | AO130: 0 | AP130: 0 | AQ130: 0 | AR130: 0 | AS130: 0 | AT130: 0 | AU130: 0 | AV130: 0 | AW130: 0 | AX130: 0 | AY130: 0 | AZ130: 0 | BA130: 0 | BB130: 0 | BC130: 0 | BD130: 0 | BE130: 0 | BF130: 0 | BG130: 0 | BH130: 0 | BI130: 0 | BJ130: 0
D131: =MATCH(F131, E124:E129, 0) -> 1 | E131: =C_Index!E$736 -> Opex - Non-staff costs - Price determination | F131: =C_Index!F$736 -> Opex - Non-staff costs - CAA Forecasts - CAA Run | G131: =C_Index!G$736 -> £'000 | H131: =C_Index!H$736 -> CPI 2020 | Y131: =SUM(AA131:BJ131) -> 1271913.63 | AA131: =INDEX(AA124:AA128,MATCH($F131,$E124:$E128,0)) -> 0 | AB131: 0 | AC131: 0 | AD131: 0 | AE131: 145234.8414 | AF131: 123310.7626 | AG131: =INDEX(AG124:AG128,MATCH($F131,$E124:$E128,0)) -> 117593.6258 | AH131: 144527.1 | AI131: 145769.4915 | AJ131: 150078.7831 | AK131: 150257.7341 | AL131: 149511.1354 | AM131: 145630.156 | AN131: =INDEX(AN124:AN128,MATCH($F131,$E124:$E128,0)) -> 0 | AO131: 0 | AP131: 0 | AQ131: 0 | AR131: 0 | AS131: 0 | AT131: 0 | AU131: 0 | AV131: 0 | AW131: 0 | AX131: 0 | AY131: 0 | AZ131: 0 | BA131: 0 | BB131: 0 | BC131: 0 | BD131: 0 | BE131: 0 | BF131: 0 | BG131: 0 | BH131: 0 | BI131: 0 | BJ131: 0
D132: =MATCH(F132, E124:E129, 0) -> 3 | E132: =C_Index!E774 -> Non-Staff Operating Costs (CMA only) | F132: =C_Index!F774 -> Opex - Non-staff costs - Determination [CMA, CAA] | G132: =C_Index!G774 -> £'000 | H132: =C_Index!H774 -> CPI 2020 | AA132: =INDEX(AA124:AA128,MATCH($F132,$E124:$E128,0)) -> 0 | AB132: =INDEX(AB124:AB128,MATCH($F132,$E124:$E128,0)) -> 0 | AC132: 0 | AD132: 0 | AE132: 0 | AF132: 186824.3948 | AG132: 187669.0233 | AH132: 189987.4754 | AI132: 145299.9908 | AJ132: 149261.0177 | AK132: 149388.8776 | AL132: 148197.4675 | AM132: 144427.0549 | AN132: 144427.0549 | AO132: 144427.0549 | AP132: 144427.0549 | AQ132: 144427.0549 | AR132: 144427.0549 | AS132: 144427.0549 | AT132: 144427.0549 | AU132: 144427.0549 | AV132: 144427.0549 | AW132: 144427.0549 | AX132: 144427.0549 | AY132: 144427.0549 | AZ132: 144427.0549 | BA132: 144427.0549 | BB132: 144427.0549 | BC132: 144427.0549 | BD132: 144427.0549 | BE132: 144427.0549 | BF132: 144427.0549 | BG132: 144427.0549 | BH132: 144427.0549 | BI132: 144427.0549 | BJ132: 144427.0549
D134: =N(D133) + 1 -> 1 | E134: Opex - Exceptional (excl. redundancy) - CAA Run | G134: =I_Global!$F$69 -> £'000 | H134: =I_Global!$F$210 -> CPI 2020 | I134: Enter as positive | J134: Cost assessment_PCM inputs_070623.xlsx, 'I_Series UKATS_CI | L134: Being published with this model | Y134: =SUM(AA134:BJ134) -> -15530.00634 | AE134: 2216.097968 | AF134: -5682.0917 | AG134: -20705.80972 | AH134: 781.8023724 | AI134: 1410.001467 | AJ134: 1553.507689 | AK134: 1936.700881 | AL134: 1586.908799 | AM134: 1372.875909
D135: =N(D134) + 1 -> 2 | E135: Opex - Exceptional (excl. redundancy) - Determination [CMA, CAA] | G135: =I_Global!$F$69 -> £'000 | H135: =I_Global!$F$210 -> CPI 2020 | I135: Enter as positive | J135: 5. Cost assessment PCM inputs_LOW or BASE case_150822.xlsx, I_Series UKATS_CI, rows 13, 22, 31, 40, 49, 58, 67, 76, 85, 114 | L135: Being published with this model | Y135: =SUM(AA135:BJ135) -> 44297.66193 | AF135: 1623.725437 | AG135: 1623.314347 | AH135: 1614.441478 | AI135: 1409.996359 | AJ135: 1553.506308 | AK135: 1936.703461 | AL135: 1586.913336 | AM135: 1372.87755 | AN135: 1372.87755 | AO135: 1372.87755 | AP135: 1372.87755 | AQ135: 1372.87755 | AR135: 1372.87755 | AS135: 1372.87755 | AT135: 1372.87755 | AU135: 1372.87755 | AV135: 1372.87755 | AW135: 1372.87755 | AX135: 1372.87755 | AY135: 1372.87755 | AZ135: 1372.87755 | BA135: 1372.87755 | BB135: 1372.87755 | BC135: 1372.87755 | BD135: 1372.87755 | BE135: 1372.87755 | BF135: 1372.87755 | BG135: 1372.87755 | BH135: 1372.87755 | BI135: 1372.87755 | BJ135: 1372.87755
D136: =N(D135) + 1 -> 3 | G136: =I_Global!$F$69 -> £'000 | H136: =I_Global!$F$210 -> CPI 2020 | I136: Enter as positive | Y136: =SUM(AA136:BJ136) -> 0
D137: =N(D136) + 1 -> 4 | G137: =I_Global!$F$69 -> £'000 | H137: =I_Global!$F$210 -> CPI 2020 | I137: Enter as positive | Y137: =SUM(AA137:BJ137) -> 0
D138: =N(D137) + 1 -> 5 | G138: =I_Global!$F$69 -> £'000 | H138: =I_Global!$F$210 -> CPI 2020 | I138: Enter as positive | Y138: =SUM(AA138:BJ138) -> 0
D140: =MATCH(F140, E134:E139, 0) -> 1 | E140: =C_Index!E695 -> Opex - Exceptional (excl. redundancy) - Outturn | F140: =C_Index!F695 -> Opex - Exceptional (excl. redundancy) - CAA Run | G140: =C_Index!G695 -> £'000 | H140: =C_Index!H695 -> CPI 2020 | Y140: =SUM(AA140:BJ140) -> -15530.00634 | AA140: =INDEX(AA134:AA138,MATCH($F140,$E134:$E138,0)) -> 0 | AB140: 0 | AC140: 0 | AD140: 0 | AE140: 2216.097968 | AF140: -5682.0917 | AG140: -20705.80972 | AH140: 781.8023724 | AI140: 1410.001467 | AJ140: 1553.507689 | AK140: 1936.700881 | AL140: 1586.908799 | AM140: 1372.875909 | AN140: =INDEX(AN134:AN138,MATCH($F140,$E134:$E138,0)) -> 0 | AO140: 0 | AP140: 0 | AQ140: 0 | AR140: 0 | AS140: 0 | AT140: 0 | AU140: 0 | AV140: 0 | AW140: 0 | AX140: 0 | AY140: 0 | AZ140: 0 | BA140: 0 | BB140: 0 | BC140: 0 | BD140: 0 | BE140: 0 | BF140: 0 | BG140: 0 | BH140: 0 | BI140: 0 | BJ140: 0 | BK140: =INDEX(BK134:BK138,MATCH($F140,$E134:$E138,0)) -> 0
D141: =MATCH(F141, E134:E139, 0) -> 1 | E141: =C_Index!E$737 -> Opex - Exceptional (excl. redundancy) - Price determination | F141: =C_Index!F$737 -> Opex - Exceptional (excl. redundancy) - CAA Run | G141: =C_Index!G$737 -> £'000 | H141: =C_Index!H$737 -> CPI 2020 | Y141: =SUM(AA141:BJ141) -> -15530.00634 | AA141: =INDEX(AA134:AA138,MATCH($F141,$E134:$E138,0)) -> 0 | AB141: 0 | AC141: 0 | AD141: 0 | AE141: =INDEX(AE134:AE138,MATCH($F141,$E134:$E138,0)) -> 2216.097968 | AF141: -5682.0917 | AG141: =INDEX(AG134:AG138,MATCH($F141,$E134:$E138,0)) -> -20705.80972 | AH141: 781.8023724 | AI141: 1410.001467 | AJ141: 1553.507689 | AK141: 1936.700881 | AL141: 1586.908799 | AM141: 1372.875909 | AN141: =INDEX(AN134:AN138,MATCH($F141,$E134:$E138,0)) -> 0 | AO141: 0 | AP141: 0 | AQ141: 0 | AR141: 0 | AS141: 0 | AT141: 0 | AU141: 0 | AV141: 0 | AW141: 0 | AX141: 0 | AY141: 0 | AZ141: 0 | BA141: 0 | BB141: 0 | BC141: 0 | BD141: 0 | BE141: 0 | BF141: 0 | BG141: 0 | BH141: 0 | BI141: 0 | BJ141: 0
D142: =MATCH(F142, E134:E139, 0) -> 2 | E142: =C_Index!E775 -> Exceptionals (CMA only) | F142: =C_Index!F775 -> Opex - Exceptional (excl. redundancy) - Determination [CMA, CAA] | G142: =C_Index!G775 -> £'000 | H142: =C_Index!H775 -> CPI 2020 | AA142: =INDEX(AA134:AA138,MATCH($F142,$E134:$E138,0)) -> 0 | AB142: =INDEX(AB134:AB138,MATCH($F142,$E134:$E138,0)) -> 0 | AC142: 0 | AD142: 0 | AE142: 0 | AF142: 1623.725437 | AG142: 1623.314347 | AH142: 1614.441478 | AI142: 1409.996359 | AJ142: 1553.506308 | AK142: 1936.703461 | AL142: 1586.913336 | AM142: 1372.87755 | AN142: 1372.87755 | AO142: 1372.87755 | AP142: 1372.87755 | AQ142: 1372.87755 | AR142: 1372.87755 | AS142: 1372.87755 | AT142: 1372.87755 | AU142: 1372.87755 | AV142: 1372.87755 | AW142: 1372.87755 | AX142: 1372.87755 | AY142: 1372.87755 | AZ142: 1372.87755 | BA142: 1372.87755 | BB142: 1372.87755 | BC142: 1372.87755 | BD142: 1372.87755 | BE142: 1372.87755 | BF142: 1372.87755 | BG142: 1372.87755 | BH142: 1372.87755 | BI142: 1372.87755 | BJ142: 1372.87755
D144: =N(D143) + 1 -> 1 | E144: Opex - Spare 2 - CAA Run | G144: =I_Global!$F$69 -> £'000 | H144: =I_Global!$F$210 -> CPI 2020 | I144: Enter as positive | J144: Cost assessment_PCM inputs_070623.xlsx, 'I_Series UKATS_CI | Y144: =SUM(AA144:BJ144) -> 0
D145: =N(D144) + 1 -> 2 | E145: Opex - Spare 2 - Determination [CMA, CAA] | G145: =I_Global!$F$69 -> £'000 | H145: =I_Global!$F$210 -> CPI 2020 | I145: Enter as positive | J145: 5. Cost assessment PCM inputs_LOW or BASE case_150822.xlsx, I_Series UKATS_CI, rows 13, 22, 31, 40, 49, 58, 67, 76, 85, 114 | L145: Being published with this model | Y145: =SUM(AA145:BJ145) -> 0
D146: =N(D145) + 1 -> 3 | G146: =I_Global!$F$69 -> £'000 | H146: =I_Global!$F$210 -> CPI 2020 | I146: Enter as positive | Y146: =SUM(AA146:BJ146) -> 0
D147: =N(D146) + 1 -> 4 | G147: =I_Global!$F$69 -> £'000 | H147: =I_Global!$F$210 -> CPI 2020 | I147: Enter as positive | Y147: =SUM(AA147:BJ147) -> 0
D148: =N(D147) + 1 -> 5 | G148: =I_Global!$F$69 -> £'000 | H148: =I_Global!$F$210 -> CPI 2020 | I148: Enter as positive | Y148: =SUM(AA148:BJ148) -> 0
D150: =MATCH(F150, E144:E149, 0) -> 1 | E150: =C_Index!E696 -> Opex - Spare 2 - Outturn | F150: =C_Index!F696 -> Opex - Spare 2 - CAA Run | G150: =C_Index!G696 -> £'000 | H150: =C_Index!H696 -> CPI 2020 | Y150: =SUM(AA150:BJ150) -> 0 | AA150: =INDEX(AA144:AA148,MATCH($F150,$E144:$E148,0)) -> 0 | AB150: 0 | AC150: 0 | AD150: 0 | AE150: 0 | AF150: 0 | AG150: 0 | AH150: 0 | AI150: 0 | AJ150: 0 | AK150: 0 | AL150: 0 | AM150: 0 | AN150: =INDEX(AN144:AN148,MATCH($F150,$E144:$E148,0)) -> 0 | AO150: 0 | AP150: 0 | AQ150: 0 | AR150: 0 | AS150: 0 | AT150: 0 | AU150: 0 | AV150: 0 | AW150: 0 | AX150: 0 | AY150: 0 | AZ150: 0 | BA150: 0 | BB150: 0 | BC150: 0 | BD150: 0 | BE150: 0 | BF150: 0 | BG150: 0 | BH150: 0 | BI150: 0 | BJ150: 0
D151: =MATCH(F151, E144:E149, 0) -> 1 | E151: =C_Index!E$738 -> Opex - Spare 2 - Price determination | F151: =C_Index!F$738 -> Opex - Spare 2 - CAA Run | G151: =C_Index!G$738 -> £'000 | H151: =C_Index!H$738 -> CPI 2020 | Y151: =SUM(AA151:BJ151) -> 0 | AA151: =INDEX(AA144:AA148,MATCH($F151,$E144:$E148,0)) -> 0 | AB151: 0 | AC151: 0 | AD151: 0 | AE151: 0 | AF151: 0 | AG151: =INDEX(AG144:AG148,MATCH($F151,$E144:$E148,0)) -> 0 | AH151: 0 | AI151: 0 | AJ151: 0 | AK151: 0 | AL151: 0 | AM151: 0 | AN151: =INDEX(AN144:AN148,MATCH($F151,$E144:$E148,0)) -> 0 | AO151: 0 | AP151: 0 | AQ151: 0 | AR151: 0 | AS151: 0 | AT151: 0 | AU151: 0 | AV151: 0 | AW151: 0 | AX151: 0 | AY151: 0 | AZ151: 0 | BA151: 0 | BB151: 0 | BC151: 0 | BD151: 0 | BE151: 0 | BF151: 0 | BG151: 0 | BH151: 0 | BI151: 0 | BJ151: 0
D153: =N(D152) + 1 -> 1 | E153: Opex - Spare 3 - CAA Run | G153: =I_Global!$F$69 -> £'000 | H153: =I_Global!$F$210 -> CPI 2020 | I153: Enter as positive | J153: Cost assessment_PCM inputs_070623.xlsx, 'I_Series UKATS_CI | L153: Being published with this model | Y153: =SUM(AA153:BJ153) -> 0
D154: =N(D153) + 1 -> 2 | E154: Opex - Spare 3 - Determination [CMA, CAA] | G154: =I_Global!$F$69 -> £'000 | H154: =I_Global!$F$210 -> CPI 2020 | I154: Enter as positive | J154: 5. Cost assessment PCM inputs_LOW or BASE case_150822.xlsx, I_Series UKATS_CI, rows 13, 22, 31, 40, 49, 58, 67, 76, 85, 114 | L154: Being published with this model | Y154: =SUM(AA154:BJ154) -> 0
D155: =N(D154) + 1 -> 3 | G155: =I_Global!$F$69 -> £'000 | H155: =I_Global!$F$210 -> CPI 2020 | I155: Enter as positive | Y155: =SUM(AA155:BJ155) -> 0
D156: =N(D155) + 1 -> 4 | G156: =I_Global!$F$69 -> £'000 | H156: =I_Global!$F$210 -> CPI 2020 | I156: Enter as positive | Y156: =SUM(AA156:BJ156) -> 0
D157: =N(D156) + 1 -> 5 | G157: =I_Global!$F$69 -> £'000 | H157: =I_Global!$F$210 -> CPI 2020 | I157: Enter as positive | Y157: =SUM(AA157:BJ157) -> 0
D159: =MATCH(F159, E153:E158, 0) -> 1 | E159: =C_Index!E697 -> Opex - Spare 3 - Outturn | F159: =C_Index!F697 -> Opex - Spare 3 - CAA Run | G159: =C_Index!G697 -> £'000 | H159: =C_Index!H697 -> CPI 2020 | Y159: =SUM(AA159:BJ159) -> 0 | AA159: =INDEX(AA153:AA157,MATCH($F159,$E153:$E157,0)) -> 0 | AB159: 0 | AC159: 0 | AD159: 0 | AE159: 0 | AF159: 0 | AG159: 0 | AH159: 0 | AI159: 0 | AJ159: 0 | AK159: 0 | AL159: 0 | AM159: 0 | AN159: =INDEX(AN153:AN157,MATCH($F159,$E153:$E157,0)) -> 0 | AO159: 0 | AP159: 0 | AQ159: 0 | AR159: 0 | AS159: 0 | AT159: 0 | AU159: 0 | AV159: 0 | AW159: 0 | AX159: 0 | AY159: 0 | AZ159: 0 | BA159: 0 | BB159: 0 | BC159: 0 | BD159: 0 | BE159: 0 | BF159: 0 | BG159: 0 | BH159: 0 | BI159: 0 | BJ159: 0
D160: =MATCH(F160, E153:E158, 0) -> 1 | E160: =C_Index!E$739 -> Opex - Spare 3 - Price determination | F160: =C_Index!F$739 -> Opex - Spare 3 - CAA Run | G160: =C_Index!G$739 -> £'000 | H160: =C_Index!H$739 -> CPI 2020 | Y160: =SUM(AA160:BJ160) -> 0 | AA160: =INDEX(AA153:AA157,MATCH($F160,$E153:$E157,0)) -> 0 | AB160: 0 | AC160: 0 | AD160: 0 | AE160: 0 | AF160: 0 | AG160: =INDEX(AG153:AG157,MATCH($F160,$E153:$E157,0)) -> 0 | AH160: 0 | AI160: 0 | AJ160: 0 | AK160: 0 | AL160: 0 | AM160: 0 | AN160: =INDEX(AN153:AN157,MATCH($F160,$E153:$E157,0)) -> 0 | AO160: 0 | AP160: 0 | AQ160: 0 | AR160: 0 | AS160: 0 | AT160: 0 | AU160: 0 | AV160: 0 | AW160: 0 | AX160: 0 | AY160: 0 | AZ160: 0 | BA160: 0 | BB160: 0 | BC160: 0 | BD160: 0 | BE160: 0 | BF160: 0 | BG160: 0 | BH160: 0 | BI160: 0 | BJ160: 0
C162: 1.b.ii Pensions - Defined benefit (P&L) - UKATS
D164: 1 | E164: Pensions - Defined benefit (P&L) - Ongoing Contributions - CAA Run | G164: £'000 | H164: CPI 2020 | I164: Enter as positive | J164: Cost assessment_PCM inputs_070623.xlsx, 'I_Series UKATS_CI | L164: Being published with this model | Y164: 328188.6198 | AF164: 47310.72393 | AG164: 46073.56937 | AH164: 44815.24816 | AI164: 71746.15588 | AJ164: 65482.6045 | AK164: 47109.46198 | AL164: 44592.11726 | AM164: 44823.68629
D165: 2 | E165: Pensions - Defined benefit (P&L) - Ongoing Contributions - CAA Run (Low Case) | G165: £'000 | H165: CPI 2020 | I165: Enter as positive | J165: Calculated | L165: Being published with this model | Y165: 323314.5703 | AF165: 47310.72393 | AG165: 46073.56937 | AH165: 44815.24816 | AI165: 69952.50199 | AJ165: 63845.53939 | AK165: 45931.72543 | AL165: 43477.31433 | AM165: 43703.09413
D167: =N(D166) + 1 -> 1 | G167: =I_Global!$F$69 -> £'000 | H167: =I_Global!$F$210 -> CPI 2020 | I167: Enter as positive | Y167: =SUM(AA167:BJ167) -> 0
D168: =N(D167) + 1 -> 2 | G168: =I_Global!$F$69 -> £'000 | H168: =I_Global!$F$210 -> CPI 2020 | I168: Enter as positive | Y168: =SUM(AA168:BJ168) -> 0
D170: =MATCH(F170, E164:E169, 0) -> 1 | E170: =C_Index!E789 -> Pensions - Defined benefit - Ongoing Contributions | F170: =C_Index!F789 -> Pensions - Defined benefit (P&L) - Ongoing Contributions - CAA Run | G170: =C_Index!G789 -> £'000 | H170: =C_Index!H789 -> CPI 2020 | Y170: =SUM(AA170:BJ170) -> 411953.5674 | AA170: =INDEX(AA164:AA168,MATCH($F170,$E164:$E168,0)) -> 0 | AB170: 0 | AC170: 0 | AD170: 0 | AE170: 0 | AF170: 47310.72393 | AG170: 46073.56937 | AH170: 44815.24816 | AI170: 71746.15588 | AJ170: 65482.6045 | AK170: 47109.46198 | AL170: 44592.11726 | AM170: 44823.68629 | AN170: 0 | AO170: 0 | AP170: 0 | AQ170: 0 | AR170: 0 | AS170: 0 | AT170: 0 | AU170: 0 | AV170: 0 | AW170: 0 | AX170: 0 | AY170: 0 | AZ170: 0 | BA170: 0 | BB170: 0 | BC170: 0 | BD170: 0 | BE170: 0 | BF170: 0 | BG170: 0 | BH170: 0 | BI170: 0 | BJ170: 0
D172: =N(D171) + 1 -> 1 | E172: Pensions - Defined benefit (P&L) - Deficit Repair - 1 | G172: =I_Global!$F$69 -> £'000 | H172: =I_Global!$F$210 -> CPI 2020 | I172: Enter as positive | L172: Being published with this model | Y172: =SUM(AA172:BJ172) -> 0
D173: =N(D172) + 1 -> 2 | E173: Pensions - Defined benefit (P&L) - Deficit Repair - 2 | G173: =I_Global!$F$69 -> £'000 | H173: =I_Global!$F$210 -> CPI 2020 | I173: Enter as positive | L173: Being published with this model | Y173: =SUM(AA173:BJ173) -> 0
D174: =N(D173) + 1 -> 3 | E174: Pensions - Defined benefit (P&L) - Deficit Repair - 3 | G174: =I_Global!$F$69 -> £'000 | H174: =I_Global!$F$210 -> CPI 2020 | I174: Enter as positive | L174: Being published with this model | Y174: =SUM(AA174:BJ174) -> 0
D175: =N(D174) + 1 -> 4 | E175: Pensions - Defined benefit (P&L) - Deficit Repair - 4 | G175: =I_Global!$F$69 -> £'000 | H175: =I_Global!$F$210 -> CPI 2020 | I175: Enter as positive | L175: Being published with this model | Y175: =SUM(AA175:BJ175) -> 0
D176: =N(D175) + 1 -> 5 | E176: Pensions - Defined benefit (P&L) - Deficit Repair - 5 | G176: =I_Global!$F$69 -> £'000 | H176: =I_Global!$F$210 -> CPI 2020 | I176: Enter as positive | L176: Being published with this model | Y176: =SUM(AA176:BJ176) -> 0
D178: =MATCH(F178, E172:E177, 0) -> 1 | E178: =C_Index!E790 -> Pensions - Defined benefit - Deficit Repair | F178: =C_Index!F790 -> Pensions - Defined benefit (P&L) - Deficit Repair - 1 | G178: =C_Index!G790 -> £'000 | H178: =C_Index!H790 -> CPI 2020 | Y178: =SUM(AA178:BJ178) -> 0 | AA178: =INDEX(AA172:AA176,MATCH($F178,$E172:$E176,0)) -> 0 | AB178: 0 | AC178: 0 | AD178: 0 | AE178: 0 | AF178: 0 | AG178: 0 | AH178: 0 | AI178: 0 | AJ178: 0 | AK178: 0 | AL178: 0 | AM178: 0 | AN178: 0 | AO178: 0 | AP178: 0 | AQ178: 0 | AR178: 0 | AS178: 0 | AT178: 0 | AU178: 0 | AV178: 0 | AW178: 0 | AX178: 0 | AY178: 0 | AZ178: 0 | BA178: 0 | BB178: 0 | BC178: 0 | BD178: 0 | BE178: 0 | BF178: 0 | BG178: 0 | BH178: 0 | BI178: 0 | BJ178: 0
B180: 1.c. Provision Movement and INEA Funding
C182: 1.c.i Provisions
E184: Movement in UKATS Provision | G184: =I_Global!$F$69 -> £'000 | H184: Nominal | I184: (Increase) / Decrease | J184: I_Series UKATS, rows 175, 179 | L184: Being published with this model | AA184: -3265.39597 | AB184: -3504.287764 | AC184: 1929.587764 | AD184: 624.9478346 | AE184: 1791.437165 | AF184: 8462.340265
C186: 1.c.ii INEA Funding recognition
D188: =N(D187) + 1 -> 1 | E188: INEA NERL Base Case | G188: =I_Global!$F$69 -> £'000 | H188: Nominal | I188: Enter as positive | J188: I_Series UKATS, rows 175, 179 | L188: Being published with this model | Y188: =SUM(AA188:BJ188) -> 95416.01936 | AA188: 0 | AB188: 0 | AC188: 0 | AD188: 0 | AE188: 40169.45843 | AF188: 364.7853212 | AG188: 10060.047 | AH188: 29382.86 | AI188: 5398.885061 | AJ188: 3006.877013 | AK188: 7033.106533 | AL188: 0 | AM188: 0 | AN188: 0 | AO188: 0 | AP188: 0 | AQ188: 0 | AR188: 0 | AS188: 0 | AT188: 0 | AU188: 0 | AV188: 0 | AW188: 0 | AX188: 0 | AY188: 0 | AZ188: 0 | BA188: 0 | BB188: 0 | BC188: 0 | BD188: 0
D189: =N(D188) + 1 -> 2 | E189: Spare 2 (middle) | G189: =I_Global!$F$69 -> £'000 | H189: Nominal | I189: Enter as positive | Y189: =SUM(AA189:BJ189) -> 0
D190: =N(D189) + 1 -> 3 | E190: Spare 3 (low) | G190: =I_Global!$F$69 -> £'000 | H190: Nominal | I190: Enter as positive | Y190: =SUM(AA190:BJ190) -> 0
D192: =MATCH(F192, E188:E191, 0) -> 1 | E192: ='I_InputSets UKATS'!E86 -> INEA Deferred Income Release | F192: ='I_InputSets UKATS'!F86 -> INEA NERL Base Case | G192: =I_Global!$F$69 -> £'000 | H192: Nominal | Y192: =SUM(AA192:BJ192) -> 95416.01936 | AA192: =INDEX(AA188:AA190,MATCH($F192,$E188:$E190,0)) -> 0 | AB192: 0 | AC192: 0 | AD192: 0 | AE192: 40169.45843 | AF192: 364.7853212 | AG192: 10060.047 | AH192: 29382.86 | AI192: 5398.885061 | AJ192: 3006.877013 | AK192: 7033.106533 | AL192: 0 | AM192: 0 | AN192: 0 | AO192: 0 | AP192: 0 | AQ192: 0 | AR192: 0 | AS192: 0 | AT192: 0 | AU192: 0 | AV192: 0 | AW192: 0 | AX192: 0 | AY192: 0 | AZ192: 0 | BA192: 0 | BB192: 0 | BC192: 0 | BD192: 0 | BE192: 0 | BF192: 0 | BG192: 0 | BH192: 0 | BI192: 0 | BJ192: 0
E194: INEA Grant Funding received | G194: =I_Global!$F$69 -> £'000 | H194: Nominal | I194: Enter +ve values | J194: I_Series UKATS, rows 175, 179 | L194: Being published with this model | Y194: =SUM(AA194:BJ194) -> 103613 | AA194: - | AB194: 15034 | AC194: 28254 | AD194: - | AE194: 36718 | AF194: 8330 | AG194: 3089 | AH194: 2386 | AI194: 3009 | AJ194: 793 | AK194: 6000 | AL194: 0 | AM194: 0 | AN194: 0 | AO194: 0 | AP194: 0 | AQ194: 0 | AR194: 0 | AS194: 0 | AT194: 0 | AU194: 0 | AV194: 0 | AW194: 0 | AX194: 0 | AY194: 0 | AZ194: 0 | BA194: 0 | BB194: 0 | BC194: 0 | BD194: 0 | BE194: 0 | BF194: 0 | BG194: 0 | BH194: 0 | BI194: 0 | BJ194: 0
B196: 1.d Revenues
C198: 1.d.i Regulated Revenue - Components (other than Determined Cost)
D200: =N(D199) + 1 -> 1 | E200: Restructuring Costs ReS t (high) | G200: =I_Global!$F$69 -> £'000 | H200: =I_Global!$F$210 -> CPI 2020 | I200: Increase / (Decrease) | Y200: =SUM(AA200:BJ200) -> 0 | AA200: 0 | AB200: 0 | AC200: 0 | AD200: 0 | AE200: 0 | AF200: 0 | AG200: 0 | AH200: 0 | AI200: 0 | AJ200: 0 | AK200: 0 | AL200: 0 | AM200: 0 | AN200: 0 | AO200: 0 | AP200: 0 | AQ200: 0 | AR200: 0 | AS200: 0 | AT200: 0 | AU200: 0 | AV200: 0 | AW200: 0 | AX200: 0 | AY200: 0 | AZ200: 0 | BA200: 0 | BB200: 0 | BC200: 0 | BD200: 0
D201: =N(D200) + 1 -> 2 | E201: Restructuring Costs ReS t (middle) | G201: =I_Global!$F$69 -> £'000 | H201: =I_Global!$F$210 -> CPI 2020 | I201: Increase / (Decrease) | Y201: =SUM(AA201:BJ201) -> 0
D202: =N(D201) + 1 -> 3 | E202: Restructuring Costs ReS t (low) | G202: =I_Global!$F$69 -> £'000 | H202: =I_Global!$F$210 -> CPI 2020 | I202: Increase / (Decrease) | Y202: =SUM(AA202:BJ202) -> 0
D204: =MATCH(F204, E200:E203, 0) -> 1 | E204: =C_Index!E915 -> Restructuring Costs ReS t (TSU) | F204: =C_Index!F915 -> Restructuring Costs ReS t (high) | G204: =C_Index!G915 -> £'000 | H204: =C_Index!H915 -> CPI 2020 | Y204: =SUM(AA204:BJ204) -> 0 | AA204: =INDEX(AA200:AA202,MATCH($F204,$E200:$E202,0)) -> 0 | AB204: 0 | AC204: 0 | AD204: 0 | AE204: 0 | AF204: 0 | AG204: 0 | AH204: 0 | AI204: 0 | AJ204: 0 | AK204: 0 | AL204: 0 | AM204: 0 | AN204: 0 | AO204: 0 | AP204: 0 | AQ204: 0 | AR204: 0 | AS204: 0 | AT204: 0 | AU204: 0 | AV204: 0 | AW204: 0 | AX204: 0 | AY204: 0 | AZ204: 0 | BA204: 0 | BB204: 0 | BC204: 0 | BD204: 0 | BE204: 0 | BF204: 0 | BG204: 0 | BH204: 0 | BI204: 0 | BJ204: 0
D206: =N(D205) + 1 -> 1 | E206: Financial Incentives FI t (high) | G206: =I_Global!$F$69 -> £'000 | H206: =I_Global!$F$210 -> CPI 2020 | I206: Increase / (Decrease) | J206: Revenue Adjustments Inputs.xlsx, Sheet 1, rows 10-38 | L206: Being published with this model | Y206: =SUM(AA206:BJ206) -> 12075.79984 | AA206: -1072.601735 | AB206: 6218.586239 | AC206: 4882.119354 | AD206: -429.3985085 | AE206: 2579.798798 | AF206: -264.11 | AG206: 161.4056919
D207: =N(D206) + 1 -> 2 | E207: Financial Incentives FI t (middle) | G207: =I_Global!$F$69 -> £'000 | H207: =I_Global!$F$210 -> CPI 2020 | I207: Increase / (Decrease) | Y207: =SUM(AA207:BJ207) -> 0
D208: =N(D207) + 1 -> 3 | E208: Financial Incentives FI t (low) | G208: =I_Global!$F$69 -> £'000 | H208: =I_Global!$F$210 -> CPI 2020 | I208: Increase / (Decrease) | Y208: =SUM(AA208:BJ208) -> 0
D210: =MATCH(F210, E206:E209, 0) -> 1 | E210: =C_Index!E916 -> Financial Incentives FI t (TSU) | F210: =C_Index!F916 -> Financial Incentives FI t (high) | G210: =C_Index!G916 -> £'000 | H210: =C_Index!H916 -> CPI 2020 | Y210: =SUM(AA210:BJ210) -> 12075.79984 | AA210: =INDEX(AA206:AA208,MATCH($F210,$E206:$E208,0)) -> -1072.601735 | AB210: 6218.586239 | AC210: 4882.119354 | AD210: -429.3985085 | AE210: 2579.798798 | AF210: -264.11 | AG210: 161.4056919 | AH210: 0 | AI210: 0 | AJ210: 0 | AK210: 0 | AL210: 0 | AM210: 0 | AN210: 0 | AO210: 0 | AP210: 0 | AQ210: 0 | AR210: 0 | AS210: 0 | AT210: 0 | AU210: 0 | AV210: 0 | AW210: 0 | AX210: 0 | AY210: 0 | AZ210: 0 | BA210: 0 | BB210: 0 | BC210: 0 | BD210: 0 | BE210: 0 | BF210: 0 | BG210: 0 | BH210: 0 | BI210: 0 | BJ210: 0
D212: =N(D211) + 1 -> 1 | E212: Modulation MOD t (high) | G212: =I_Global!$F$69 -> £'000 | H212: =I_Global!$F$210 -> CPI 2020 | I212: Increase / (Decrease) | J212: Revenue Adjustments Inputs.xlsx, Sheet 1, rows 10-38 | L212: Being published with this model | Y212: =SUM(AA212:BJ212) -> 0 | AA212: 0 | AB212: 0 | AC212: 0 | AD212: 0 | AE212: 0 | AF212: 0 | AG212: 0 | AH212: 0 | AI212: 0 | AJ212: 0 | AK212: 0 | AL212: 0 | AM212: 0 | AN212: 0 | AO212: 0 | AP212: 0 | AQ212: 0 | AR212: 0 | AS212: 0 | AT212: 0 | AU212: 0 | AV212: 0 | AW212: 0 | AX212: 0 | AY212: 0 | AZ212: 0 | BA212: 0 | BB212: 0 | BC212: 0 | BD212: 0 | BE212: 0 | BF212: 0 | BG212: 0 | BH212: 0 | BI212: 0 | BJ212: 0
D213: =N(D212) + 1 -> 2 | E213: Modulation MOD t (middle) | G213: =I_Global!$F$69 -> £'000 | H213: =I_Global!$F$210 -> CPI 2020 | I213: Increase / (Decrease) | Y213: =SUM(AA213:BJ213) -> 0
D214: =N(D213) + 1 -> 3 | E214: Modulation MOD t (low) | G214: =I_Global!$F$69 -> £'000 | H214: =I_Global!$F$210 -> CPI 2020 | I214: Increase / (Decrease) | Y214: =SUM(AA214:BJ214) -> 0
D216: =MATCH(F216, E212:E215, 0) -> 1 | E216: =C_Index!E917 -> Modulation MOD t (TSU) | F216: =C_Index!F917 -> Modulation MOD t (high) | G216: =C_Index!G917 -> £'000 | H216: =C_Index!H917 -> CPI 2020 | I216: NERL Price Profiling inputs | Y216: =SUM(AA216:BJ216) -> 0 | AA216: =INDEX(AA212:AA214,MATCH($F216,$E212:$E214,0)) -> 0 | AB216: 0 | AC216: 0 | AD216: 0 | AE216: 0 | AF216: 0 | AG216: 0 | AH216: 0 | AI216: 0 | AJ216: 0 | AK216: 0 | AL216: 0 | AM216: 0 | AN216: 0 | AO216: 0 | AP216: 0 | AQ216: 0 | AR216: 0 | AS216: 0 | AT216: 0 | AU216: 0 | AV216: 0 | AW216: 0 | AX216: 0 | AY216: 0 | AZ216: 0 | BA216: 0 | BB216: 0 | BC216: 0 | BD216: 0 | BE216: 0 | BF216: 0 | BG216: 0 | BH216: 0 | BI216: 0 | BJ216: 0
D218: =N(D217) + 1 -> 1 | E218: Pre2011 t (high) | G218: =I_Global!$F$69 -> £'000 | H218: =I_Global!$F$210 -> CPI 2020 | I218: Increase / (Decrease) | J218: Revenue Adjustments Inputs.xlsx, Sheet 1, rows 10-38 | L218: Being published with this model | Y218: =SUM(AA218:BJ218) -> 4467.203455 | AA218: 733.6775307 | AB218: 3733.525924 | AC218: 0 | AD218: 0 | AE218: 0 | AF218: 0 | AG218: 0 | AH218: 0 | AI218: 0 | AJ218: 0 | AK218: 0 | AL218: 0 | AM218: 0 | AN218: 0 | AO218: 0 | AP218: 0 | AQ218: 0 | AR218: 0 | AS218: 0 | AT218: 0 | AU218: 0 | AV218: 0 | AW218: 0 | AX218: 0 | AY218: 0 | AZ218: 0 | BA218: 0 | BB218: 0 | BC218: 0 | BD218: 0
D219: =N(D218) + 1 -> 2 | E219: Pre2011 t (middle) | G219: =I_Global!$F$69 -> £'000 | H219: =I_Global!$F$210 -> CPI 2020 | I219: Increase / (Decrease) | Y219: =SUM(AA219:BJ219) -> 0
D220: =N(D219) + 1 -> 3 | E220: Pre2011 t (low) | G220: =I_Global!$F$69 -> £'000 | H220: =I_Global!$F$210 -> CPI 2020 | I220: Increase / (Decrease) | Y220: =SUM(AA220:BJ220) -> 0
D222: =MATCH(F222, E218:E221, 0) -> 1 | E222: =C_Index!E918 -> Pre2011 t (TSU) | F222: =C_Index!F918 -> Pre2011 t (high) | G222: =C_Index!G918 -> £'000 | H222: =C_Index!H918 -> CPI 2020 | Y222: =SUM(AA222:BJ222) -> 4467.203455 | AA222: =INDEX(AA218:AA220,MATCH($F222,$E218:$E220,0)) -> 733.6775307 | AB222: 3733.525924 | AC222: 0 | AD222: 0 | AE222: 0 | AF222: 0 | AG222: 0 | AH222: 0 | AI222: 0 | AJ222: 0 | AK222: 0 | AL222: 0 | AM222: 0 | AN222: 0 | AO222: 0 | AP222: 0 | AQ222: 0 | AR222: 0 | AS222: 0 | AT222: 0 | AU222: 0 | AV222: 0 | AW222: 0 | AX222: 0 | AY222: 0 | AZ222: 0 | BA222: 0 | BB222: 0 | BC222: 0 | BD222: 0 | BE222: 0 | BF222: 0 | BG222: 0 | BH222: 0 | BI222: 0 | BJ222: 0
D224: =N(D223) + 1 -> 1 | E224: VFR t (high) | G224: =I_Global!$F$69 -> £'000 | H224: =I_Global!$F$210 -> CPI 2020 | I224: Increase / (Decrease) | Y224: =SUM(AA224:BJ224) -> 0
D225: =N(D224) + 1 -> 2 | E225: VFR t (middle) | G225: =I_Global!$F$69 -> £'000 | H225: =I_Global!$F$210 -> CPI 2020 | I225: Increase / (Decrease) | Y225: =SUM(AA225:BJ225) -> 0
D226: =N(D225) + 1 -> 3 | E226: VFR t (low) | G226: =I_Global!$F$69 -> £'000 | H226: =I_Global!$F$210 -> CPI 2020 | I226: Increase / (Decrease) | Y226: =SUM(AA226:BJ226) -> 0
D228: =MATCH(F228, E224:E227, 0) -> 1 | E228: =C_Index!E919 -> VFR t (TSU) | F228: =C_Index!F919 -> VFR t (high) | G228: =C_Index!G919 -> £'000 | H228: =C_Index!H919 -> CPI 2020 | Y228: =SUM(AA228:BJ228) -> 0 | AA228: =INDEX(AA224:AA226,MATCH($F228,$E224:$E226,0)) -> 0 | AB228: 0 | AC228: 0 | AD228: 0 | AE228: 0 | AF228: 0 | AG228: 0 | AH228: 0 | AI228: 0 | AJ228: 0 | AK228: 0 | AL228: 0 | AM228: 0 | AN228: 0 | AO228: 0 | AP228: 0 | AQ228: 0 | AR228: 0 | AS228: 0 | AT228: 0 | AU228: 0 | AV228: 0 | AW228: 0 | AX228: 0 | AY228: 0 | AZ228: 0 | BA228: 0 | BB228: 0 | BC228: 0 | BD228: 0 | BE228: 0 | BF228: 0 | BG228: 0 | BH228: 0 | BI228: 0 | BJ228: 0
D230: =N(D229) + 1 -> 1 | E230: Customer Discount CD t (high) | G230: =I_Global!$F$69 -> £'000 | H230: =I_Global!$F$210 -> CPI 2020 | I230: Increase / (Decrease) | J230: Revenue Adjustments Inputs.xlsx, Sheet 1, rows 10-38 | L230: Being published with this model | Y230: =SUM(AA230:BJ230) -> -740 | AA230: -740 | AC230: 0 | AD230: 0 | AE230: 0 | AF230: 0 | AG230: 0 | AH230: 0 | AI230: 0 | AJ230: 0 | AK230: 0 | AL230: 0 | AM230: 0 | AN230: 0 | AO230: 0 | AP230: 0 | AQ230: 0 | AR230: 0 | AS230: 0 | AT230: 0 | AU230: 0 | AV230: 0 | AW230: 0 | AX230: 0 | AY230: 0 | AZ230: 0 | BA230: 0 | BB230: 0 | BC230: 0 | BD230: 0
D231: =N(D230) + 1 -> 2 | E231: Customer Discount CD t (middle) | G231: =I_Global!$F$69 -> £'000 | H231: =I_Global!$F$210 -> CPI 2020 | I231: Increase / (Decrease) | Y231: =SUM(AA231:BJ231) -> 0
D232: =N(D231) + 1 -> 3 | E232: Customer Discount CD t (low) | G232: =I_Global!$F$69 -> £'000 | H232: =I_Global!$F$210 -> CPI 2020 | I232: Increase / (Decrease) | Y232: =SUM(AA232:BJ232) -> 0
D234: =MATCH(F234, E230:E233, 0) -> 1 | E234: =C_Index!E920 -> Customer Discount CD t (TSU) | F234: =C_Index!F920 -> Customer Discount CD t (high) | G234: =C_Index!G920 -> £'000 | H234: =C_Index!H920 -> CPI 2020 | Y234: =SUM(AA234:BJ234) -> -740 | AA234: =INDEX(AA230:AA232,MATCH($F234,$E230:$E232,0)) -> -740 | AB234: 0 | AC234: 0 | AD234: 0 | AE234: 0 | AF234: 0 | AG234: 0 | AH234: 0 | AI234: 0 | AJ234: 0 | AK234: 0 | AL234: 0 | AM234: 0 | AN234: 0 | AO234: 0 | AP234: 0 | AQ234: 0 | AR234: 0 | AS234: 0 | AT234: 0 | AU234: 0 | AV234: 0 | AW234: 0 | AX234: 0 | AY234: 0 | AZ234: 0 | BA234: 0 | BB234: 0 | BC234: 0 | BD234: 0 | BE234: 0 | BF234: 0 | BG234: 0 | BH234: 0 | BI234: 0 | BJ234: 0
D236: =N(D235) + 1 -> 1 | E236: FAS Funding not spent (Cash Condition 21) (TSU) (high) | G236: =I_Global!$F$69 -> £'000 | H236: =I_Global!$F$210 -> CPI 2020 | I236: Increase / (Decrease) | J236: Revenue Adjustments Inputs.xlsx, Sheet 1, rows 10-38 | L236: Being published with this model | Y236: =SUM(AA236:BJ236) -> -5472.434384 | AA236: 0 | AB236: 0 | AC236: 0 | AD236: 0 | AE236: 0 | AF236: -7306.391295 | AG236: -2580.016183 | AH236: 4413.973094 | AI236: 0 | AJ236: 0 | AK236: 0 | AL236: 0 | AM236: 0 | AN236: 0 | AO236: 0 | AP236: 0 | AQ236: 0 | AR236: 0 | AS236: 0 | AT236: 0 | AU236: 0 | AV236: 0 | AW236: 0 | AX236: 0 | AY236: 0 | AZ236: 0 | BA236: 0 | BB236: 0 | BC236: 0 | BD236: 0
D237: =N(D236) + 1 -> 2 | E237: FAS Funding not spent (Cash Condition 21) (TSU) (middle) | G237: =I_Global!$F$69 -> £'000 | H237: =I_Global!$F$210 -> CPI 2020 | I237: Increase / (Decrease) | Y237: =SUM(AA237:BJ237) -> 0
D238: =N(D237) + 1 -> 3 | E238: FAS Funding not spent (Cash Condition 21) (TSU) (low) | G238: =I_Global!$F$69 -> £'000 | H238: =I_Global!$F$210 -> CPI 2020 | I238: Increase / (Decrease) | Y238: =SUM(AA238:BJ238) -> 0
D240: =MATCH(F240, E236:E239, 0) -> 1 | E240: =C_Index!E921 -> FAS Funding not spent (Cash Condition 21) (TSU) | F240: =C_Index!F921 -> FAS Funding not spent (Cash Condition 21) (TSU) (high) | G240: =C_Index!G921 -> £'000 | H240: =C_Index!H921 -> CPI 2020 | Y240: =SUM(AA240:BJ240) -> -5472.434384 | AA240: =INDEX(AA236:AA238,MATCH($F240,$E236:$E238,0)) -> 0 | AB240: 0 | AC240: 0 | AD240: 0 | AE240: 0 | AF240: -7306.391295 | AG240: -2580.016183 | AH240: 4413.973094 | AI240: 0 | AJ240: 0 | AK240: 0 | AL240: 0 | AM240: 0 | AN240: 0 | AO240: 0 | AP240: 0 | AQ240: 0 | AR240: 0 | AS240: 0 | AT240: 0 | AU240: 0 | AV240: 0 | AW240: 0 | AX240: 0 | AY240: 0 | AZ240: 0 | BA240: 0 | BB240: 0 | BC240: 0 | BD240: 0 | BE240: 0 | BF240: 0 | BG240: 0 | BH240: 0 | BI240: 0 | BJ240: 0
D242: =N(D241) + 1 -> 1 | E242: INEA Funding (Cash Condition 21) (TSU) (high) | G242: =I_Global!$F$69 -> £'000 | H242: =I_Global!$F$212 -> Unindexed | I242: Increase / (Decrease) | J242: Revenue Adjustments Inputs.xlsx, Sheet 1, rows 10-38 | L242: Being published with this model | Y242: =SUM(AA242:BJ242) -> -96529.55728 | AA242: 0 | AB242: 0 | AC242: 0 | AD242: 0 | AE242: -40666.73557 | AF242: -368.9892732 | AG242: -10173.44967 | AH242: -29705.78166 | AI242: -5462.536786 | AJ242: -3040.822512 | AK242: -7111.241816 | AL242: 0 | AM242: 0 | AN242: 0 | AO242: 0 | AP242: 0 | AQ242: 0 | AR242: 0 | AS242: 0 | AT242: 0 | AU242: 0 | AV242: 0 | AW242: 0 | AX242: 0 | AY242: 0 | AZ242: 0 | BA242: 0 | BB242: 0 | BC242: 0 | BD242: 0
D243: =N(D242) + 1 -> 2 | E243: INEA Funding (Cash Condition 21) (TSU) (middle) | G243: =I_Global!$F$69 -> £'000 | H243: =I_Global!$F$212 -> Unindexed | I243: Increase / (Decrease) | Y243: =SUM(AA243:BJ243) -> 0
D244: =N(D243) + 1 -> 3 | E244: INEA Funding (Cash Condition 21) (TSU) (low) | G244: =I_Global!$F$69 -> £'000 | H244: =I_Global!$F$212 -> Unindexed | I244: Increase / (Decrease) | Y244: =SUM(AA244:BJ244) -> 0
D246: =MATCH(F246, E242:E245, 0) -> 1 | E246: =C_Index!E922 -> INEA Funding (Cash Condition 21) (TSU) | F246: =C_Index!F922 -> INEA Funding (Cash Condition 21) (TSU) (high) | G246: =C_Index!G922 -> £'000 | H246: =C_Index!H922 -> Unindexed | Y246: =SUM(AA246:BJ246) -> -96529.55728 | AA246: =INDEX(AA242:AA244,MATCH($F246,$E242:$E244,0)) -> 0 | AB246: 0 | AC246: 0 | AD246: 0 | AE246: -40666.73557 | AF246: -368.9892732 | AG246: -10173.44967 | AH246: -29705.78166 | AI246: -5462.536786 | AJ246: -3040.822512 | AK246: -7111.241816 | AL246: 0 | AM246: 0 | AN246: 0 | AO246: 0 | AP246: 0 | AQ246: 0 | AR246: 0 | AS246: 0 | AT246: 0 | AU246: 0 | AV246: 0 | AW246: 0 | AX246: 0 | AY246: 0 | AZ246: 0 | BA246: 0 | BB246: 0 | BC246: 0 | BD246: 0 | BE246: 0 | BF246: 0 | BG246: 0 | BH246: 0 | BI246: 0 | BJ246: 0
C248: Separate inputs for revenue recognition for Modulation and FAS Funding Not Spent
D250: =N(D249) + 1 -> 1 | E250: Modulation MOD t - Rev Recognition (high) | G250: =I_Global!$F$69 -> £'000 | H250: =I_Global!$F$210 -> CPI 2020 | I250: Increase / (Decrease) | Y250: =SUM(AA250:BJ250) -> 0
... 221 more rows

Sheet I_Series Oceanic
A1: =MID(CELL( "filename", $A$1 ), SEARCH( "[",CELL( "filename", $A$1 ) ) + 1, SEARCH( "]",CELL( "filename", $A$1 ) ) - SEARCH( "[",CELL( "filename", $A$1 ) ) - 1 ) -> CAA NERL PCM Decisions_10h - v1.00 - FD for publication.xlsm
B2: =RIGHT(CELL( "filename", B2 ), LEN(CELL( "filename", B2 ) ) - SEARCH( "]",CELL( "filename", B2 ) ) ) -> I_Series Oceanic | G2: Checks & Alerts | H2: =Checks!$F$3 -> -1
E3: ="Scenario "&_xlfn.SINGLE(Live_Scenarionumber) & " : " &Live_scenario -> Scenario 1 : Base - Flat | G3: Active Overrides | H3: =Checks!$F$88 -> 0
E4: ='I_InputSets NERL'!E4 -> Live Input Set | H4: =Scenario!$F$32 -> 1
E5: ='I_InputSets NERL'!E5 -> Input Set for Price Determination | H5: =Scenario!$H$37 -> 1
E6: ='I_InputSets NERL'!E6 -> Model mode | H6: =Scenario!$F$29 -> Price Determination | I6: =MATCH(H6, I_Global!$F$205:$F$206, 0) -> 1
A7: Timeline
E8: =C_Time!E9 -> Period Beginning | G8: =C_Time!G9 -> date | AA8: =C_Time!AA9 -> 2015-01-01 | AB8: =C_Time!AB9 -> 2016-01-01 | AC8: =C_Time!AC9 -> 2017-01-01 | AD8: =C_Time!AD9 -> 2018-01-01 | AE8: =C_Time!AE9 -> 2019-01-01 | AF8: =C_Time!AF9 -> 2020-01-01 | AG8: =C_Time!AG9 -> 2021-01-01 | AH8: =C_Time!AH9 -> 2022-01-01 | AI8: =C_Time!AI9 -> 2023-01-01 | AJ8: =C_Time!AJ9 -> 2024-01-01 | AK8: =C_Time!AK9 -> 2025-01-01 | AL8: =C_Time!AL9 -> 2026-01-01 | AM8: =C_Time!AM9 -> 2027-01-01 | AN8: =C_Time!AN9 -> 2028-01-01 | AO8: =C_Time!AO9 -> 2029-01-01 | AP8: =C_Time!AP9 -> 2030-01-01 | AQ8: =C_Time!AQ9 -> 2031-01-01 | AR8: =C_Time!AR9 -> 2032-01-01 | AS8: =C_Time!AS9 -> 2033-01-01 | AT8: =C_Time!AT9 -> 2034-01-01 | AU8: =C_Time!AU9 -> 2035-01-01 | AV8: =C_Time!AV9 -> 2036-01-01 | AW8: =C_Time!AW9 -> 2037-01-01 | AX8: =C_Time!AX9 -> 2038-01-01 | AY8: =C_Time!AY9 -> 2039-01-01 | AZ8: =C_Time!AZ9 -> 2040-01-01 | BA8: =C_Time!BA9 -> 2041-01-01 | BB8: =C_Time!BB9 -> 2042-01-01 | BC8: =C_Time!BC9 -> 2043-01-01 | BD8: =C_Time!BD9 -> 2044-01-01 | BE8: =C_Time!BE9 -> 2045-01-01 | BF8: =C_Time!BF9 -> 2046-01-01 | BG8: =C_Time!BG9 -> 2047-01-01 | BH8: =C_Time!BH9 -> 2048-01-01 | BI8: =C_Time!BI9 -> 2049-01-01 | BJ8: =C_Time!BJ9 -> 2050-01-01
E9: =C_Time!E10 -> Period Ending | G9: =C_Time!G10 -> date | AA9: =C_Time!AA10 -> 2015-12-31 | AB9: =C_Time!AB10 -> 2016-12-31 | AC9: =C_Time!AC10 -> 2017-12-31 | AD9: =C_Time!AD10 -> 2018-12-31 | AE9: =C_Time!AE10 -> 2019-12-31 | AF9: =C_Time!AF10 -> 2020-12-31 | AG9: =C_Time!AG10 -> 2021-12-31 | AH9: =C_Time!AH10 -> 2022-12-31 | AI9: =C_Time!AI10 -> 2023-12-31 | AJ9: =C_Time!AJ10 -> 2024-12-31 | AK9: =C_Time!AK10 -> 2025-12-31 | AL9: =C_Time!AL10 -> 2026-12-31 | AM9: =C_Time!AM10 -> 2027-12-31 | AN9: =C_Time!AN10 -> 2028-12-31 | AO9: =C_Time!AO10 -> 2029-12-31 | AP9: =C_Time!AP10 -> 2030-12-31 | AQ9: =C_Time!AQ10 -> 2031-12-31 | AR9: =C_Time!AR10 -> 2032-12-31 | AS9: =C_Time!AS10 -> 2033-12-31 | AT9: =C_Time!AT10 -> 2034-12-31 | AU9: =C_Time!AU10 -> 2035-12-31 | AV9: =C_Time!AV10 -> 2036-12-31 | AW9: =C_Time!AW10 -> 2037-12-31 | AX9: =C_Time!AX10 -> 2038-12-31 | AY9: =C_Time!AY10 -> 2039-12-31 | AZ9: =C_Time!AZ10 -> 2040-12-31 | BA9: =C_Time!BA10 -> 2041-12-31 | BB9: =C_Time!BB10 -> 2042-12-31 | BC9: =C_Time!BC10 -> 2043-12-31 | BD9: =C_Time!BD10 -> 2044-12-31 | BE9: =C_Time!BE10 -> 2045-12-31 | BF9: =C_Time!BF10 -> 2046-12-31 | BG9: =C_Time!BG10 -> 2047-12-31 | BH9: =C_Time!BH10 -> 2048-12-31 | BI9: =C_Time!BI10 -> 2049-12-31 | BJ9: =C_Time!BJ10 -> 2050-12-31
E10: =C_Time!E11 -> Model period number | G10: =C_Time!G11 -> # | AA10: =C_Time!AA11 -> 1 | AB10: =C_Time!AB11 -> 2 | AC10: =C_Time!AC11 -> 3 | AD10: =C_Time!AD11 -> 4 | AE10: =C_Time!AE11 -> 5 | AF10: =C_Time!AF11 -> 6 | AG10: =C_Time!AG11 -> 7 | AH10: =C_Time!AH11 -> 8 | AI10: =C_Time!AI11 -> 9 | AJ10: =C_Time!AJ11 -> 10 | AK10: =C_Time!AK11 -> 11 | AL10: =C_Time!AL11 -> 12 | AM10: =C_Time!AM11 -> 13 | AN10: =C_Time!AN11 -> 14 | AO10: =C_Time!AO11 -> 15 | AP10: =C_Time!AP11 -> 16 | AQ10: =C_Time!AQ11 -> 17 | AR10: =C_Time!AR11 -> 18 | AS10: =C_Time!AS11 -> 19 | AT10: =C_Time!AT11 -> 20 | AU10: =C_Time!AU11 -> 21 | AV10: =C_Time!AV11 -> 22 | AW10: =C_Time!AW11 -> 23 | AX10: =C_Time!AX11 -> 24 | AY10: =C_Time!AY11 -> 25 | AZ10: =C_Time!AZ11 -> 26 | BA10: =C_Time!BA11 -> 27 | BB10: =C_Time!BB11 -> 28 | BC10: =C_Time!BC11 -> 29 | BD10: =C_Time!BD11 -> 30 | BE10: =C_Time!BE11 -> 31 | BF10: =C_Time!BF11 -> 32 | BG10: =C_Time!BG11 -> 33 | BH10: =C_Time!BH11 -> 34 | BI10: =C_Time!BI11 -> 35 | BJ10: =C_Time!BJ11 -> 36
E11: =C_Time!E$12 -> Pricing Period | G11: =C_Time!G$12 -> periods | AA11: =C_Time!AA$12 -> RP2 | AB11: =C_Time!AB$12 -> RP2 | AC11: =C_Time!AC$12 -> RP2 | AD11: =C_Time!AD$12 -> RP2 | AE11: =C_Time!AE$12 -> RP2 | AF11: =C_Time!AF$12 -> RP3 | AG11: =C_Time!AG$12 -> RP3 | AH11: =C_Time!AH$12 -> RP3 | AI11: =C_Time!AI$12 -> NR23 | AJ11: =C_Time!AJ$12 -> NR23 | AK11: =C_Time!AK$12 -> NR23 | AL11: =C_Time!AL$12 -> NR23 | AM11: =C_Time!AM$12 -> NR23 | AN11: =C_Time!AN$12 -> NR28 | AO11: =C_Time!AO$12 -> NR28 | AP11: =C_Time!AP$12 -> NR28 | AQ11: =C_Time!AQ$12 -> NR28 | AR11: =C_Time!AR$12 -> NR28 | AS11: =C_Time!AS$12 -> NR33 | AT11: =C_Time!AT$12 -> NR33 | AU11: =C_Time!AU$12 -> NR33 | AV11: =C_Time!AV$12 -> NR33 | AW11: =C_Time!AW$12 -> NR33 | AX11: =C_Time!AX$12 -> NR38 | AY11: =C_Time!AY$12 -> NR38 | AZ11: =C_Time!AZ$12 -> NR38 | BA11: =C_Time!BA$12 -> NR38 | BB11: =C_Time!BB$12 -> NR38 | BC11: =C_Time!BC$12 -> NR43 | BD11: =C_Time!BD$12 -> NR43 | BE11: =C_Time!BE$12 -> NR43 | BF11: =C_Time!BF$12 -> NR43 | BG11: =C_Time!BG$12 -> NR43 | BH11: =C_Time!BH$12 -> NR43 | BI11: =C_Time!BI$12 -> NR43 | BJ11: =C_Time!BJ$12 -> NR43
E12: =C_Time!E$13 -> Forecast/ Post forecast vs Actuals | G12: =C_Time!G$13 -> flag | AA12: =C_Time!AA$13 -> Actual | AB12: =C_Time!AB$13 -> Actual | AC12: =C_Time!AC$13 -> Actual | AD12: =C_Time!AD$13 -> Actual | AE12: =C_Time!AE$13 -> Actual | AF12: =C_Time!AF$13 -> Actual | AG12: =C_Time!AG$13 -> Forecast | AH12: =C_Time!AH$13 -> Forecast | AI12: =C_Time!AI$13 -> Forecast | AJ12: =C_Time!AJ$13 -> Forecast | AK12: =C_Time!AK$13 -> Forecast | AL12: =C_Time!AL$13 -> Forecast | AM12: =C_Time!AM$13 -> Forecast | AN12: =C_Time!AN$13 -> Forecast | AO12: =C_Time!AO$13 -> Forecast | AP12: =C_Time!AP$13 -> Forecast | AQ12: =C_Time!AQ$13 -> Forecast | AR12: =C_Time!AR$13 -> Forecast | AS12: =C_Time!AS$13 -> Forecast | AT12: =C_Time!AT$13 -> Forecast | AU12: =C_Time!AU$13 -> Forecast | AV12: =C_Time!AV$13 -> Forecast | AW12: =C_Time!AW$13 -> Forecast | AX12: =C_Time!AX$13 -> Forecast | AY12: =C_Time!AY$13 -> Forecast | AZ12: =C_Time!AZ$13 -> Forecast | BA12: =C_Time!BA$13 -> Forecast | BB12: =C_Time!BB$13 -> Forecast | BC12: =C_Time!BC$13 -> Forecast | BD12: =C_Time!BD$13 -> Forecast | BE12: =C_Time!BE$13 -> Forecast | BF12: =C_Time!BF$13 -> Forecast | BG12: =C_Time!BG$13 -> Forecast | BH12: =C_Time!BH$13 -> Forecast | BI12: =C_Time!BI$13 -> Forecast | BJ12: =C_Time!BJ$13 -> Forecast
E14: Label | F14: Constant | G14: Units | H14: Price Base | I14: Notes | J14: Data Source | L14: Confidentiality Status | M14: Checks | Y14: Total
A15: Oceanic
B16: 2.a Flight Assumptions
D18: Atlantic Flights
D19: =N(D18) + 1 -> 1 | E19: Atlantic Flights - CAA PCM Run (BASE CASE) | G19: =I_Global!$F$68 -> # Flights ('000) | J19: NR23 Model Run (25Apr23) - Inputs for Traffic and Forecasts.xlsx, Oceanic, row 12 | L19: Being published with this model | Y19: =SUM(AA19:BJ19) -> 16414 | AE19: 477 | AF19: 201 | AG19: 224 | AH19: 439 | AI19: 483 | AJ19: 519 | AK19: 528 | AL19: 535 | AM19: 542 | AN19: 542 | AO19: 542 | AP19: 542 | AQ19: 542 | AR19: 542 | AS19: 542 | AT19: 542 | AU19: 542 | AV19: 542 | AW19: 542 | AX19: 542 | AY19: 542 | AZ19: 542 | BA19: 542 | BB19: 542 | BC19: 542 | BD19: 542 | BE19: 542 | BF19: 542 | BG19: 542 | BH19: 542 | BI19: 542 | BJ19: 542
D20: =N(D19) + 1 -> 2 | E20: Atlantic Flights - CAA PCM Run (LOW CASE) | G20: =I_Global!$F$68 -> # Flights ('000) | J20: NR23 Model Run (25Apr23) - Inputs for Traffic and Forecasts.xlsx, Oceanic, row 20 | L20: Being published with this model | Y20: =SUM(AA20:BJ20) -> 14934 | AE20: 477 | AF20: 201 | AG20: 224 | AH20: 439 | AI20: 434 | AJ20: 467 | AK20: 475 | AL20: 482 | AM20: 488 | AN20: 489 | AO20: 489 | AP20: 489 | AQ20: 489 | AR20: 489 | AS20: 489 | AT20: 489 | AU20: 489 | AV20: 489 | AW20: 489 | AX20: 489 | AY20: 489 | AZ20: 489 | BA20: 489 | BB20: 489 | BC20: 489 | BD20: 489 | BE20: 489 | BF20: 489 | BG20: 489 | BH20: 489 | BI20: 489 | BJ20: 489
D21: =N(D20) + 1 -> 3 | G21: =I_Global!$F$68 -> # Flights ('000) | Y21: =SUM(AA21:BJ21) -> 0
D22: =N(D21) + 1 -> 4 | G22: =I_Global!$F$68 -> # Flights ('000) | Y22: =SUM(AA22:BJ22) -> 0
D23: =N(D22) + 1 -> 5 | G23: =I_Global!$F$68 -> # Flights ('000) | Y23: =SUM(AA23:BJ23) -> 0
D25: =MATCH(F25, E19:E24, 0) -> 1 | E25: Atlantic Flights - Outturn | F25: ='I_InputSets Oceanic'!F20 -> Atlantic Flights - CAA PCM Run (BASE CASE) | G25: =I_Global!$F$68 -> # Flights ('000) | Y25: =SUM(AA25:BJ25) -> 16414 | AA25: =INDEX(AA19:AA23,MATCH($F25,$E19:$E23,0)) -> 0 | AB25: 0 | AC25: 0 | AD25: 0 | AE25: 477 | AF25: 201 | AG25: 224 | AH25: 439 | AI25: 483 | AJ25: 519 | AK25: 528 | AL25: 535 | AM25: 542 | AN25: =INDEX(AN19:AN23,MATCH($F25,$E19:$E23,0)) -> 542 | AO25: 542 | AP25: 542 | AQ25: 542 | AR25: 542 | AS25: 542 | AT25: 542 | AU25: 542 | AV25: 542 | AW25: 542 | AX25: 542 | AY25: 542 | AZ25: 542 | BA25: 542 | BB25: 542 | BC25: 542 | BD25: 542 | BE25: 542 | BF25: 542 | BG25: 542 | BH25: 542 | BI25: 542 | BJ25: 542
D26: =MATCH(F26, E19:E24, 0) -> 1 | E26: Atlantic Flights - Price Determination | F26: ='I_InputSets Oceanic'!F21 -> Atlantic Flights - CAA PCM Run (BASE CASE) | G26: =I_Global!$F$68 -> # Flights ('000) | Y26: =SUM(AA26:BJ26) -> 16414 | AA26: =INDEX(AA19:AA23,MATCH($F26,$E19:$E23,0)) -> 0 | AB26: 0 | AC26: 0 | AD26: 0 | AE26: 477 | AF26: 201 | AG26: 224 | AH26: 439 | AI26: 483 | AJ26: 519 | AK26: 528 | AL26: 535 | AM26: 542 | AN26: =INDEX(AN19:AN23,MATCH($F26,$E19:$E23,0)) -> 542 | AO26: 542 | AP26: 542 | AQ26: 542 | AR26: 542 | AS26: 542 | AT26: 542 | AU26: 542 | AV26: 542 | AW26: 542 | AX26: 542 | AY26: 542 | AZ26: 542 | BA26: 542 | BB26: 542 | BC26: 542 | BD26: 542 | BE26: 542 | BF26: 542 | BG26: 542 | BH26: 542 | BI26: 542 | BJ26: 542
D28: Tango Flights
D29: =N(D28) + 1 -> 1 | E29: Tango Flights - CAA PCM Run (BASE CASE) | G29: =I_Global!$F$68 -> # Flights ('000) | J29: NR23 Model Run (25Apr23) - Inputs for Traffic and Forecasts.xlsx, Oceanic, row 11 | L29: Being published with this model | Y29: =SUM(AA29:BJ29) -> 812 | AE29: 20 | AF29: 8 | AG29: 10 | AH29: 22 | AI29: 24 | AJ29: 26 | AK29: 27 | AL29: 27 | AM29: 27 | AN29: 27 | AO29: 27 | AP29: 27 | AQ29: 27 | AR29: 27 | AS29: 27 | AT29: 27 | AU29: 27 | AV29: 27 | AW29: 27 | AX29: 27 | AY29: 27 | AZ29: 27 | BA29: 27 | BB29: 27 | BC29: 27 | BD29: 27 | BE29: 27 | BF29: 27 | BG29: 27 | BH29: 27 | BI29: 27 | BJ29: 27
D30: =N(D29) + 1 -> 2 | E30: Tango Flights - CAA PCM Run (LOW CASE) | G30: =I_Global!$F$68 -> # Flights ('000) | J30: NR23 Model Run (25Apr23) - Inputs for Traffic and Forecasts.xlsx, Oceanic, row 11 | L30: Being published with this model | Y30: =SUM(AA30:BJ30) -> 892 | AE30: 20 | AF30: 8 | AG30: 10 | AH30: 22 | AI30: 22 | AJ30: 24 | AK30: 24 | AL30: 24 | AM30: 25 | AN30: 31 | AO30: 31 | AP30: 31 | AQ30: 31 | AR30: 31 | AS30: 31 | AT30: 31 | AU30: 31 | AV30: 31 | AW30: 31 | AX30: 31 | AY30: 31 | AZ30: 31 | BA30: 31 | BB30: 31 | BC30: 31 | BD30: 31 | BE30: 31 | BF30: 31 | BG30: 31 | BH30: 31 | BI30: 31 | BJ30: 31
D31: =N(D30) + 1 -> 3 | G31: =I_Global!$F$68 -> # Flights ('000) | Y31: =SUM(AA31:BJ31) -> 0
D32: =N(D31) + 1 -> 4 | G32: =I_Global!$F$68 -> # Flights ('000) | Y32: =SUM(AA32:BJ32) -> 0
D33: =N(D32) + 1 -> 5 | G33: =I_Global!$F$68 -> # Flights ('000) | Y33: =SUM(AA33:BJ33) -> 0
D35: =MATCH(F35, E29:E34, 0) -> 1 | E35: Tango Flights - Outturn | F35: ='I_InputSets Oceanic'!F23 -> Tango Flights - CAA PCM Run (BASE CASE) | G35: =I_Global!$F$68 -> # Flights ('000) | Y35: =SUM(AA35:BJ35) -> 812 | AA35: =INDEX(AA29:AA33,MATCH($F35,$E29:$E33,0)) -> 0 | AB35: 0 | AC35: 0 | AD35: 0 | AE35: 20 | AF35: 8 | AG35: 10 | AH35: 22 | AI35: 24 | AJ35: 26 | AK35: 27 | AL35: 27 | AM35: 27 | AN35: =INDEX(AN29:AN33,MATCH($F35,$E29:$E33,0)) -> 27 | AO35: 27 | AP35: 27 | AQ35: 27 | AR35: 27 | AS35: 27 | AT35: 27 | AU35: 27 | AV35: 27 | AW35: 27 | AX35: 27 | AY35: 27 | AZ35: 27 | BA35: 27 | BB35: 27 | BC35: 27 | BD35: 27 | BE35: 27 | BF35: 27 | BG35: 27 | BH35: 27 | BI35: 27 | BJ35: 27
D36: =MATCH(F36, E29:E34, 0) -> 1 | E36: Tango Flights - Price Determination | F36: ='I_InputSets Oceanic'!F24 -> Tango Flights - CAA PCM Run (BASE CASE) | G36: =I_Global!$F$68 -> # Flights ('000) | Y36: =SUM(AA36:BJ36) -> 812 | AA36: =INDEX(AA29:AA33,MATCH($F36,$E29:$E33,0)) -> 0 | AB36: 0 | AC36: 0 | AD36: 0 | AE36: 20 | AF36: 8 | AG36: 10 | AH36: 22 | AI36: 24 | AJ36: 26 | AK36: 27 | AL36: 27 | AM36: 27 | AN36: =INDEX(AN29:AN33,MATCH($F36,$E29:$E33,0)) -> 27 | AO36: 27 | AP36: 27 | AQ36: 27 | AR36: 27 | AS36: 27 | AT36: 27 | AU36: 27 | AV36: 27 | AW36: 27 | AX36: 27 | AY36: 27 | AZ36: 27 | BA36: 27 | BB36: 27 | BC36: 27 | BD36: 27 | BE36: 27 | BF36: 27 | BG36: 27 | BH36: 27 | BI36: 27 | BJ36: 27
D38: Flights (from the RAB Rulebook)
E39: Forecast Atlantic Flights set in Licence | G39: =I_Global!$F$68 -> # Flights ('000) | J39: CAP2111, p.92 | L39: Being published with this model | Y39: =SUM(AA39:BJ39) -> 1523 | AF39: 497 | AG39: 507 | AH39: 519
E40: Forecast Tango Flights set in Licence | G40: =I_Global!$F$68 -> # Flights ('000) | J40: CAP2111, p.92 | L40: Being published with this model | Y40: =SUM(AA40:BJ40) -> 96 | AF40: 31 | AG40: 32 | AH40: 33
B42: 2.b Operating Expenditure
C44: 2.b.i. Base Expenditure
D46: =N(D45) + 1 -> 1 | E46: Opex - Wages & Salaries - CAA Run | G46: =I_Global!$F$69 -> £'000 | H46: =I_Global!$F$210 -> CPI 2020 | I46: Enter as positive | J46: Cost assessment_PCM inputs_070623.xlsx, 'I_Series Oceanic_CI | L46: Being published with this model | Y46: =SUM(AA46:BJ46) -> 106493.7655 | AE46: 13712.55071 | AF46: 12629.42142 | AG46: 11153.49889 | AH46: 10776.41951 | AI46: 11761.73321 | AJ46: 11846.46349 | AK46: 11383.24502 | AL46: 11692.9621 | AM46: 11537.47115
D47: =N(D46) + 1 -> 2 | E47: Opex - Wages & Salaries - CAA Forecasts - CAA Run (Low Case) | G47: =I_Global!$F$69 -> £'000 | H47: =I_Global!$F$210 -> CPI 2020 | I47: Enter as positive | J47: Calculated | L47: Being published with this model | Y47: =SUM(AA47:BJ47) -> 105038.2186 | AE47: 13712.55071 | AF47: 12629.42142 | AG47: 11153.49889 | AH47: 10776.41951 | AI47: 11467.68988 | AJ47: 11550.3019 | AK47: 11098.6639 | AL47: 11400.63805 | AM47: 11249.03438
D48: =N(D47) + 1 -> 3 | G48: =I_Global!$F$69 -> £'000 | H48: =I_Global!$F$210 -> CPI 2020 | I48: Enter as positive | Y48: =SUM(AA48:BJ48) -> 0
D49: =N(D48) + 1 -> 4 | G49: =I_Global!$F$69 -> £'000 | H49: =I_Global!$F$210 -> CPI 2020 | I49: Enter as positive | Y49: =SUM(AA49:BJ49) -> 0
D50: =N(D49) + 1 -> 5 | G50: =I_Global!$F$69 -> £'000 | H50: =I_Global!$F$210 -> CPI 2020 | I50: Enter as positive | Y50: =SUM(AA50:BJ50) -> 0
D52: =MATCH(F52, E46:E51, 0) -> 1 | E52: =C_Index!E$549 -> Opex - Wages & Salaries - Oceanic - Outturn | F52: =C_Index!F$549 -> Opex - Wages & Salaries - CAA Run | G52: =C_Index!G$549 -> £'000 | H52: =C_Index!H$549 -> CPI 2020 | Y52: =SUM(AA52:BJ52) -> 106493.7655 | AA52: =INDEX(AA46:AA50,MATCH($F52,$E46:$E50,0)) -> 0 | AB52: 0 | AC52: 0 | AD52: 0 | AE52: 13712.55071 | AF52: 12629.42142 | AG52: 11153.49889 | AH52: 10776.41951 | AI52: 11761.73321 | AJ52: 11846.46349 | AK52: 11383.24502 | AL52: 11692.9621 | AM52: 11537.47115 | AN52: =INDEX(AN46:AN50,MATCH($F52,$E46:$E50,0)) -> 0 | AO52: 0 | AP52: 0 | AQ52: 0 | AR52: 0 | AS52: 0 | AT52: 0 | AU52: 0 | AV52: 0 | AW52: 0 | AX52: 0 | AY52: 0 | AZ52: 0 | BA52: 0 | BB52: 0 | BC52: 0 | BD52: 0 | BE52: 0 | BF52: 0 | BG52: 0 | BH52: 0 | BI52: 0 | BJ52: 0
D53: =MATCH(F53, E46:E51, 0) -> 1 | E53: =C_Index!E$606 -> Opex - Wages & Salaries - Oceanic - Price Determination | F53: =C_Index!F$606 -> Opex - Wages & Salaries - CAA Run | G53: =C_Index!G$606 -> £'000 | H53: =C_Index!H$606 -> CPI 2020 | Y53: =SUM(AA53:BJ53) -> 106493.7655 | AA53: =INDEX(AA46:AA50,MATCH($F53,$E46:$E50,0)) -> 0 | AB53: =INDEX(AB46:AB50,MATCH($F53,$E46:$E50,0)) -> 0 | AC53: 0 | AD53: 0 | AE53: 13712.55071 | AF53: 12629.42142 | AG53: 11153.49889 | AH53: 10776.41951 | AI53: =INDEX(AI46:AI50,MATCH($F53,$E46:$E50,0)) -> 11761.73321 | AJ53: 11846.46349 | AK53: 11383.24502 | AL53: 11692.9621 | AM53: 11537.47115 | AN53: =INDEX(AN46:AN50,MATCH($F53,$E46:$E50,0)) -> 0 | AO53: 0 | AP53: 0 | AQ53: 0 | AR53: 0 | AS53: 0 | AT53: 0 | AU53: 0 | AV53: 0 | AW53: 0 | AX53: 0 | AY53: 0 | AZ53: 0 | BA53: 0 | BB53: 0 | BC53: 0 | BD53: 0 | BE53: 0 | BF53: 0 | BG53: 0 | BH53: 0 | BI53: 0 | BJ53: 0
D55: =N(D54) + 1 -> 1 | E55: Pensions - Defined benefit - Ongoing Contributions - CAA Run | G55: =I_Global!$F$69 -> £'000 | H55: =I_Global!$F$210 -> CPI 2020 | I55: Enter as positive | J55: Cost assessment_PCM inputs_070623.xlsx, 'I_Series Oceanic_CI | L55: Being published with this model | Y55: =SUM(AA55:BJ55) -> 16694.16441 | AF55: 2037.345069 | AG55: 1639.421237 | AH55: 1866.267997 | AI55: 3081.676988 | AJ55: 2868.758814 | AK55: 1909.829423 | AL55: 1721.812405 | AM55: 1569.052475
D56: =N(D55) + 1 -> 2 | E56: Pensions - Defined benefit - Ongoing Contributions - CAA Forecasts - CAA Run (Low Case) | G56: =I_Global!$F$69 -> £'000 | H56: =I_Global!$F$210 -> CPI 2020 | I56: Enter as positive | J56: Calculated | L56: Being published with this model | Y56: =SUM(AA56:BJ56) -> 16415.38616 | AF56: 2037.345069 | AG56: 1639.421237 | AH56: 1866.267997 | AI56: 3004.635063 | AJ56: 2797.039844 | AK56: 1862.083688 | AL56: 1678.767094 | AM56: 1529.826163
D57: =N(D56) + 1 -> 3 | G57: =I_Global!$F$69 -> £'000 | H57: =I_Global!$F$210 -> CPI 2020 | I57: Enter as positive | Y57: =SUM(AA57:BJ57) -> 0
D58: =N(D57) + 1 -> 4 | G58: =I_Global!$F$69 -> £'000 | H58: =I_Global!$F$210 -> CPI 2020 | I58: Enter as positive | Y58: =SUM(AA58:BJ58) -> 0
D59: =N(D58) + 1 -> 5 | G59: =I_Global!$F$69 -> £'000 | H59: =I_Global!$F$210 -> CPI 2020 | I59: Enter as positive | Y59: =SUM(AA59:BJ59) -> 0
D61: =MATCH(F61, E55:E60, 0) -> 1 | E61: =C_Index!E$550 -> Pensions - Defined benefit - Ongoing Contributions - Oceanic - Outturn | F61: =C_Index!F$550 -> Pensions - Defined benefit - Ongoing Contributions - CAA Run | G61: =C_Index!G$550 -> £'000 | H61: =C_Index!H$550 -> CPI 2020 | Y61: =SUM(AA61:BJ61) -> 16694.16441 | AA61: =INDEX(AA55:AA59,MATCH($F61,$E55:$E59,0)) -> 0 | AB61: 0 | AC61: 0 | AD61: 0 | AE61: 0 | AF61: 2037.345069 | AG61: 1639.421237 | AH61: 1866.267997 | AI61: 3081.676988 | AJ61: 2868.758814 | AK61: 1909.829423 | AL61: 1721.812405 | AM61: 1569.052475 | AN61: =INDEX(AN55:AN59,MATCH($F61,$E55:$E59,0)) -> 0 | AO61: 0 | AP61: 0 | AQ61: 0 | AR61: 0 | AS61: 0 | AT61: 0 | AU61: 0 | AV61: 0 | AW61: 0 | AX61: 0 | AY61: 0 | AZ61: 0 | BA61: 0 | BB61: 0 | BC61: 0 | BD61: 0 | BE61: 0 | BF61: 0 | BG61: 0 | BH61: 0 | BI61: 0 | BJ61: 0
D62: =MATCH(F62, E55:E60, 0) -> 1 | E62: =C_Index!E$607 -> Pensions - Defined benefit - Ongoing Contributions - Oceanic - Price Determination | F62: =C_Index!F$607 -> Pensions - Defined benefit - Ongoing Contributions - CAA Run | G62: =C_Index!G$607 -> £'000 | H62: =C_Index!H$607 -> CPI 2020 | Y62: =SUM(AA62:BJ62) -> 16694.16441 | AA62: =INDEX(AA55:AA59,MATCH($F62,$E55:$E59,0)) -> 0 | AB62: =INDEX(AB55:AB59,MATCH($F62,$E55:$E59,0)) -> 0 | AC62: 0 | AD62: 0 | AE62: 0 | AF62: 2037.345069 | AG62: 1639.421237 | AH62: 1866.267997 | AI62: 3081.676988 | AJ62: 2868.758814 | AK62: 1909.829423 | AL62: 1721.812405 | AM62: 1569.052475 | AN62: =INDEX(AN55:AN59,MATCH($F62,$E55:$E59,0)) -> 0 | AO62: 0 | AP62: 0 | AQ62: 0 | AR62: 0 | AS62: 0 | AT62: 0 | AU62: 0 | AV62: 0 | AW62: 0 | AX62: 0 | AY62: 0 | AZ62: 0 | BA62: 0 | BB62: 0 | BC62: 0 | BD62: 0 | BE62: 0 | BF62: 0 | BG62: 0 | BH62: 0 | BI62: 0 | BJ62: 0
D64: =N(D63) + 1 -> 1 | E64: Pensions - Defined benefit - Deficit Repair - CAA Run | G64: =I_Global!$F$69 -> £'000 | H64: =I_Global!$F$210 -> CPI 2020 | I64: Enter as positive | J64: Cost assessment_PCM inputs_070623.xlsx, 'I_Series Oceanic_CI | L64: Being published with this model | Y64: =SUM(AA64:BJ64) -> 4357.182912 | AF64: 881.7418931 | AG64: 882.9334445 | AH64: 825.1877359 | AI64: 901.8228456 | AJ64: 865.4969931 | AK64: 0 | AL64: 0 | AM64: 0
D65: =N(D64) + 1 -> 2 | G65: =I_Global!$F$69 -> £'000 | H65: =I_Global!$F$210 -> CPI 2020 | I65: Enter as positive | Y65: =SUM(AA65:BJ65) -> 0
D66: =N(D65) + 1 -> 3 | G66: =I_Global!$F$69 -> £'000 | H66: =I_Global!$F$210 -> CPI 2020 | I66: Enter as positive | Y66: =SUM(AA66:BJ66) -> 0
D67: =N(D66) + 1 -> 4 | G67: =I_Global!$F$69 -> £'000 | H67: =I_Global!$F$210 -> CPI 2020 | I67: Enter as positive | Y67: =SUM(AA67:BJ67) -> 0
D68: =N(D67) + 1 -> 5 | G68: =I_Global!$F$69 -> £'000 | H68: =I_Global!$F$210 -> CPI 2020 | I68: Enter as positive | Y68: =SUM(AA68:BJ68) -> 0
D70: =MATCH(F70, E64:E69, 0) -> 1 | E70: =C_Index!E$551 -> Pensions - Defined benefit - Deficit Repair - Oceanic - Outturn | F70: =C_Index!F$551 -> Pensions - Defined benefit - Deficit Repair - CAA Run | G70: =C_Index!G$551 -> £'000 | H70: =C_Index!H$551 -> CPI 2020 | Y70: =SUM(AA70:BJ70) -> 4357.182912 | AA70: =INDEX(AA64:AA68,MATCH($F70,$E64:$E68,0)) -> 0 | AB70: 0 | AC70: 0 | AD70: 0 | AE70: 0 | AF70: 881.7418931 | AG70: 882.9334445 | AH70: 825.1877359 | AI70: 901.8228456 | AJ70: 865.4969931 | AK70: 0 | AL70: 0 | AM70: 0 | AN70: =INDEX(AN64:AN68,MATCH($F70,$E64:$E68,0)) -> 0 | AO70: 0 | AP70: 0 | AQ70: 0 | AR70: 0 | AS70: 0 | AT70: 0 | AU70: 0 | AV70: 0 | AW70: 0 | AX70: 0 | AY70: 0 | AZ70: 0 | BA70: 0 | BB70: 0 | BC70: 0 | BD70: 0 | BE70: 0 | BF70: 0 | BG70: 0 | BH70: 0 | BI70: 0 | BJ70: 0
D71: =MATCH(F71, E64:E69, 0) -> 1 | E71: =C_Index!E$608 -> Pensions - Defined benefit - Deficit Repair - Oceanic - Price Determination | F71: =C_Index!F$608 -> Pensions - Defined benefit - Deficit Repair - CAA Run | G71: =C_Index!G$608 -> £'000 | H71: =C_Index!H$608 -> CPI 2020 | Y71: =SUM(AA71:BJ71) -> 4357.182912 | AA71: =INDEX(AA64:AA68,MATCH($F71,$E64:$E68,0)) -> 0 | AB71: =INDEX(AB64:AB68,MATCH($F71,$E64:$E68,0)) -> 0 | AC71: 0 | AD71: 0 | AE71: 0 | AF71: 881.7418931 | AG71: 882.9334445 | AH71: 825.1877359 | AI71: 901.8228456 | AJ71: 865.4969931 | AK71: 0 | AL71: =INDEX(AL64:AL68,MATCH($F71,$E64:$E68,0)) -> 0 | AM71: 0 | AN71: =INDEX(AN64:AN68,MATCH($F71,$E64:$E68,0)) -> 0 | AO71: 0 | AP71: 0 | AQ71: 0 | AR71: 0 | AS71: 0 | AT71: 0 | AU71: 0 | AV71: 0 | AW71: 0 | AX71: 0 | AY71: 0 | AZ71: 0 | BA71: 0 | BB71: 0 | BC71: 0 | BD71: 0 | BE71: 0 | BF71: 0 | BG71: 0 | BH71: 0 | BI71: 0 | BJ71: 0
D73: =N(D72) + 1 -> 1 | E73: Pensions - Defined contribution - CAA Run | G73: =I_Global!$F$69 -> £'000 | H73: =I_Global!$F$210 -> CPI 2020 | I73: Enter as positive | J73: Cost assessment_PCM inputs_070623.xlsx, 'I_Series Oceanic_CI | L73: Being published with this model | Y73: =SUM(AA73:BJ73) -> 7391.372275 | AF73: 545.7533949 | AG73: 529.9299768 | AH73: 820.8900886 | AI73: 1127.906556 | AJ73: 1182.752029 | AK73: 1079.145233 | AL73: 1062.620596 | AM73: 1042.374401
D74: =N(D73) + 1 -> 2 | E74: Pensions - Defined contribution - CAA Forecasts - CAA Run (Low Case) | G74: =I_Global!$F$69 -> £'000 | H74: =I_Global!$F$210 -> CPI 2020 | I74: Enter as positive | J74: Calculated | L74: Being published with this model | Y74: =SUM(AA74:BJ74) -> 7254.002305 | AF74: 545.7533949 | AG74: 529.9299768 | AH74: 820.8900886 | AI74: 1099.708892 | AJ74: 1153.183228 | AK74: 1052.166603 | AL74: 1036.055081 | AM74: 1016.315041
D75: =N(D74) + 1 -> 3 | G75: =I_Global!$F$69 -> £'000 | H75: =I_Global!$F$210 -> CPI 2020 | I75: Enter as positive | Y75: =SUM(AA75:BJ75) -> 0
D76: =N(D75) + 1 -> 4 | G76: =I_Global!$F$69 -> £'000 | H76: =I_Global!$F$210 -> CPI 2020 | I76: Enter as positive | Y76: =SUM(AA76:BJ76) -> 0
D77: =N(D76) + 1 -> 5 | G77: =I_Global!$F$69 -> £'000 | H77: =I_Global!$F$210 -> CPI 2020 | I77: Enter as positive | Y77: =SUM(AA77:BJ77) -> 0
D79: =MATCH(F79, E73:E78, 0) -> 1 | E79: =C_Index!E$552 -> Pensions - Defined contribution - Oceanic - Outturn | F79: =C_Index!F$552 -> Pensions - Defined contribution - CAA Run | G79: =C_Index!G$552 -> £'000 | H79: =C_Index!H$552 -> CPI 2020 | Y79: =SUM(AA79:BJ79) -> 7391.372275 | AA79: =INDEX(AA73:AA77,MATCH($F79,$E73:$E77,0)) -> 0 | AB79: 0 | AC79: 0 | AD79: 0 | AE79: 0 | AF79: 545.7533949 | AG79: 529.9299768 | AH79: 820.8900886 | AI79: 1127.906556 | AJ79: 1182.752029 | AK79: 1079.145233 | AL79: 1062.620596 | AM79: 1042.374401 | AN79: =INDEX(AN73:AN77,MATCH($F79,$E73:$E77,0)) -> 0 | AO79: 0 | AP79: 0 | AQ79: 0 | AR79: 0 | AS79: 0 | AT79: 0 | AU79: 0 | AV79: 0 | AW79: 0 | AX79: 0 | AY79: 0 | AZ79: 0 | BA79: 0 | BB79: 0 | BC79: 0 | BD79: 0 | BE79: 0 | BF79: 0 | BG79: 0 | BH79: 0 | BI79: 0 | BJ79: 0
D80: =MATCH(F80, E73:E78, 0) -> 1 | E80: =C_Index!E$609 -> Pensions - Defined contribution - Oceanic - Price Determination | F80: =C_Index!F$609 -> Pensions - Defined contribution - CAA Run | G80: =C_Index!G$609 -> £'000 | H80: =C_Index!H$609 -> CPI 2020 | Y80: =SUM(AA80:BJ80) -> 7391.372275 | AA80: =INDEX(AA73:AA77,MATCH($F80,$E73:$E77,0)) -> 0 | AB80: =INDEX(AB73:AB77,MATCH($F80,$E73:$E77,0)) -> 0 | AC80: 0 | AD80: 0 | AE80: 0 | AF80: 545.7533949 | AG80: 529.9299768 | AH80: 820.8900886 | AI80: 1127.906556 | AJ80: 1182.752029 | AK80: 1079.145233 | AL80: 1062.620596 | AM80: 1042.374401 | AN80: =INDEX(AN73:AN77,MATCH($F80,$E73:$E77,0)) -> 0 | AO80: 0 | AP80: 0 | AQ80: 0 | AR80: 0 | AS80: 0 | AT80: 0 | AU80: 0 | AV80: 0 | AW80: 0 | AX80: 0 | AY80: 0 | AZ80: 0 | BA80: 0 | BB80: 0 | BC80: 0 | BD80: 0 | BE80: 0 | BF80: 0 | BG80: 0 | BH80: 0 | BI80: 0 | BJ80: 0
D82: =N(D81) + 1 -> 1 | E82: Pensions - Defined contribution - CAA Run | G82: =I_Global!$F$69 -> £'000 | H82: =I_Global!$F$210 -> CPI 2020 | I82: Enter as positive | J82: Cost assessment_PCM inputs_070623.xlsx, 'I_Series Oceanic_CI | L82: Being published with this model | Y82: =SUM(AA82:BJ82) -> 4416.382937 | AF82: 682.318406 | AG82: 557.5923866 | AH82: 553.7100595 | AI82: 619.1413066 | AJ82: 589.6987638 | AK82: 532.5383579 | AL82: 463.7585498 | AM82: 417.6251073
D83: =N(D82) + 1 -> 2 | E83: Pensions - opt outs - CAA Forecasts - CAA Run (Low Case) | G83: =I_Global!$F$69 -> £'000 | H83: =I_Global!$F$210 -> CPI 2020 | I83: Enter as positive | J83: Calculated | L83: Being published with this model | Y83: =SUM(AA83:BJ83) -> 4350.813885 | AF83: 682.318406 | AG83: 557.5923866 | AH83: 553.7100595 | AI83: 603.6627739 | AJ83: 574.9562947 | AK83: 519.2248989 | AL83: 452.164586 | AM83: 407.1844796
D84: =N(D83) + 1 -> 3 | G84: =I_Global!$F$69 -> £'000 | H84: =I_Global!$F$210 -> CPI 2020 | I84: Enter as positive | Y84: =SUM(AA84:BJ84) -> 0
D85: =N(D84) + 1 -> 4 | G85: =I_Global!$F$69 -> £'000 | H85: =I_Global!$F$210 -> CPI 2020 | I85: Enter as positive | Y85: =SUM(AA85:BJ85) -> 0
D86: =N(D85) + 1 -> 5 | G86: =I_Global!$F$69 -> £'000 | H86: =I_Global!$F$210 -> CPI 2020 | I86: Enter as positive | Y86: =SUM(AA86:BJ86) -> 0
D88: =MATCH(F88, E82:E87, 0) -> 1 | E88: =C_Index!E$553 -> Pensions - Opt outs - Oceanic - Outturn | F88: =C_Index!F$553 -> Pensions - Defined contribution - CAA Run | G88: =C_Index!G$553 -> £'000 | H88: =C_Index!H$553 -> CPI 2020 | Y88: =SUM(AA88:BJ88) -> 4416.382937 | AA88: =INDEX(AA82:AA86,MATCH($F88,$E82:$E86,0)) -> 0 | AB88: 0 | AC88: 0 | AD88: 0 | AE88: 0 | AF88: 682.318406 | AG88: 557.5923866 | AH88: 553.7100595 | AI88: 619.1413066 | AJ88: 589.6987638 | AK88: 532.5383579 | AL88: 463.7585498 | AM88: 417.6251073 | AN88: =INDEX(AN82:AN86,MATCH($F88,$E82:$E86,0)) -> 0 | AO88: 0 | AP88: 0 | AQ88: 0 | AR88: 0 | AS88: 0 | AT88: 0 | AU88: 0 | AV88: 0 | AW88: 0 | AX88: 0 | AY88: 0 | AZ88: 0 | BA88: 0 | BB88: 0 | BC88: 0 | BD88: 0 | BE88: 0 | BF88: 0 | BG88: 0 | BH88: 0 | BI88: 0 | BJ88: 0
D89: =MATCH(F89, E82:E87, 0) -> 1 | E89: =C_Index!E$610 -> Pensions - Opt outs - Oceanic - Price Determination | F89: =C_Index!F$610 -> Pensions - Defined contribution - CAA Run | G89: =C_Index!G$610 -> £'000 | H89: =C_Index!H$610 -> CPI 2020 | Y89: =SUM(AA89:BJ89) -> 4416.382937 | AA89: =INDEX(AA82:AA86,MATCH($F89,$E82:$E86,0)) -> 0 | AB89: =INDEX(AB82:AB86,MATCH($F89,$E82:$E86,0)) -> 0 | AC89: 0 | AD89: 0 | AE89: 0 | AF89: 682.318406 | AG89: 557.5923866 | AH89: 553.7100595 | AI89: 619.1413066 | AJ89: 589.6987638 | AK89: 532.5383579 | AL89: 463.7585498 | AM89: 417.6251073 | AN89: =INDEX(AN82:AN86,MATCH($F89,$E82:$E86,0)) -> 0 | AO89: 0 | AP89: 0 | AQ89: 0 | AR89: 0 | AS89: 0 | AT89: 0 | AU89: 0 | AV89: 0 | AW89: 0 | AX89: 0 | AY89: 0 | AZ89: 0 | BA89: 0 | BB89: 0 | BC89: 0 | BD89: 0 | BE89: 0 | BF89: 0 | BG89: 0 | BH89: 0 | BI89: 0 | BJ89: 0
D91: =N(D90) + 1 -> 1 | E91: Pensions - Other pension costs - 1 | G91: =I_Global!$F$69 -> £'000 | H91: =I_Global!$F$210 -> CPI 2020 | I91: Enter as positive | Y91: =SUM(AA91:BJ91) -> 0
D92: =N(D91) + 1 -> 2 | E92: Pensions - Other pension costs - 2 | G92: =I_Global!$F$69 -> £'000 | H92: =I_Global!$F$210 -> CPI 2020 | I92: Enter as positive | Y92: =SUM(AA92:BJ92) -> 0
D93: =N(D92) + 1 -> 3 | E93: Pensions - Other pension costs - 3 | G93: =I_Global!$F$69 -> £'000 | H93: =I_Global!$F$210 -> CPI 2020 | I93: Enter as positive | Y93: =SUM(AA93:BJ93) -> 0
D94: =N(D93) + 1 -> 4 | E94: Pensions - Other pension costs - 4 | G94: =I_Global!$F$69 -> £'000 | H94: =I_Global!$F$210 -> CPI 2020 | I94: Enter as positive | Y94: =SUM(AA94:BJ94) -> 0
D95: =N(D94) + 1 -> 5 | E95: Pensions - Other pension costs - 5 | G95: =I_Global!$F$69 -> £'000 | H95: =I_Global!$F$210 -> CPI 2020 | I95: Enter as positive | Y95: =SUM(AA95:BJ95) -> 0
D97: =MATCH(F97, E91:E96, 0) -> 1 | E97: =C_Index!E$554 -> Pensions - Other pension costs - Oceanic - Outturn | F97: =C_Index!F$554 -> Pensions - Other pension costs - 1 | G97: =C_Index!G$554 -> £'000 | H97: =C_Index!H$554 -> CPI 2020 | Y97: =SUM(AA97:BJ97) -> 0 | AA97: =INDEX(AA91:AA95,MATCH($F97,$E91:$E95,0)) -> 0 | AB97: 0 | AC97: 0 | AD97: 0 | AE97: 0 | AF97: 0 | AG97: 0 | AH97: 0 | AI97: 0 | AJ97: 0 | AK97: 0 | AL97: 0 | AM97: 0 | AN97: =INDEX(AN91:AN95,MATCH($F97,$E91:$E95,0)) -> 0 | AO97: 0 | AP97: 0 | AQ97: 0 | AR97: 0 | AS97: 0 | AT97: 0 | AU97: 0 | AV97: 0 | AW97: 0 | AX97: 0 | AY97: 0 | AZ97: 0 | BA97: 0 | BB97: 0 | BC97: 0 | BD97: 0 | BE97: 0 | BF97: 0 | BG97: 0 | BH97: 0 | BI97: 0 | BJ97: 0
D98: =MATCH(F98, E91:E96, 0) -> 1 | E98: =C_Index!E$611 -> Pensions - Other pension costs - Oceanic - Price Determination | F98: =C_Index!F$611 -> Pensions - Other pension costs - 1 | G98: =C_Index!G$611 -> £'000 | H98: =C_Index!H$611 -> CPI 2020 | Y98: =SUM(AA98:BJ98) -> 0 | AA98: =INDEX(AA91:AA95,MATCH($F98,$E91:$E95,0)) -> 0 | AB98: =INDEX(AB91:AB95,MATCH($F98,$E91:$E95,0)) -> 0 | AC98: 0 | AD98: 0 | AE98: 0 | AF98: 0 | AG98: 0 | AH98: 0 | AI98: 0 | AJ98: 0 | AK98: 0 | AL98: 0 | AM98: 0 | AN98: =INDEX(AN91:AN95,MATCH($F98,$E91:$E95,0)) -> 0 | AO98: 0 | AP98: 0 | AQ98: 0 | AR98: 0 | AS98: 0 | AT98: 0 | AU98: 0 | AV98: 0 | AW98: 0 | AX98: 0 | AY98: 0 | AZ98: 0 | BA98: 0 | BB98: 0 | BC98: 0 | BD98: 0 | BE98: 0 | BF98: 0 | BG98: 0 | BH98: 0 | BI98: 0 | BJ98: 0
D100: =N(D99) + 1 -> 1 | E100: Opex - Redundancy - CAA Run | G100: =I_Global!$F$69 -> £'000 | H100: =I_Global!$F$210 -> CPI 2020 | I100: Enter as positive | J100: Cost assessment_PCM inputs_070623.xlsx, 'I_Series Oceanic_CI | Y100: =SUM(AA100:BJ100) -> 2997.175401 | AE100: 51.12462224 | AF100: 2629.45198 | AG100: 61.37899456 | AH100: 8.236871054 | AI100: 45.0831942 | AJ100: 48.51549291 | AK100: 49.48366592 | AL100: 51.38107647 | AM100: 52.51950338
D101: =N(D100) + 1 -> 2 | G101: =I_Global!$F$69 -> £'000 | H101: =I_Global!$F$210 -> CPI 2020 | I101: Enter as positive | Y101: =SUM(AA101:BJ101) -> 0
D102: =N(D101) + 1 -> 3 | G102: =I_Global!$F$69 -> £'000 | H102: =I_Global!$F$210 -> CPI 2020 | I102: Enter as positive | Y102: =SUM(AA102:BJ102) -> 0
D103: =N(D102) + 1 -> 4 | G103: =I_Global!$F$69 -> £'000 | H103: =I_Global!$F$210 -> CPI 2020 | I103: Enter as positive | Y103: =SUM(AA103:BJ103) -> 0
D104: =N(D103) + 1 -> 5 | G104: =I_Global!$F$69 -> £'000 | H104: =I_Global!$F$210 -> CPI 2020 | I104: Enter as positive | Y104: =SUM(AA104:BJ104) -> 0
D106: =MATCH(F106, E100:E105, 0) -> 1 | E106: =C_Index!E$555 -> Opex - Redundancy - Oceanic - Outturn | F106: =C_Index!F$555 -> Opex - Redundancy - CAA Run | G106: =C_Index!G$555 -> £'000 | H106: =C_Index!H$555 -> CPI 2020 | Y106: =SUM(AA106:BJ106) -> 2997.175401 | AA106: =INDEX(AA100:AA104,MATCH($F106,$E100:$E104,0)) -> 0 | AB106: 0 | AC106: 0 | AD106: 0 | AE106: 51.12462224 | AF106: 2629.45198 | AG106: 61.37899456 | AH106: 8.236871054 | AI106: 45.0831942 | AJ106: 48.51549291 | AK106: 49.48366592 | AL106: 51.38107647 | AM106: 52.51950338 | AN106: =INDEX(AN100:AN104,MATCH($F106,$E100:$E104,0)) -> 0 | AO106: 0 | AP106: 0 | AQ106: 0 | AR106: 0 | AS106: 0 | AT106: 0 | AU106: 0 | AV106: 0 | AW106: 0 | AX106: 0 | AY106: 0 | AZ106: 0 | BA106: 0 | BB106: 0 | BC106: 0 | BD106: 0 | BE106: 0 | BF106: 0 | BG106: 0 | BH106: 0 | BI106: 0 | BJ106: 0
D107: =MATCH(F107, E100:E105, 0) -> 1 | E107: =C_Index!E$612 -> Opex - Redundancy - Oceanic - Price Determination | F107: =C_Index!F$612 -> Opex - Redundancy - CAA Run | G107: =C_Index!G$612 -> £'000 | H107: =C_Index!H$612 -> CPI 2020 | Y107: =SUM(AA107:BJ107) -> 2997.175401 | AA107: =INDEX(AA100:AA104,MATCH($F107,$E100:$E104,0)) -> 0 | AB107: =INDEX(AB100:AB104,MATCH($F107,$E100:$E104,0)) -> 0 | AC107: 0 | AD107: 0 | AE107: 51.12462224 | AF107: 2629.45198 | AG107: 61.37899456 | AH107: 8.236871054 | AI107: 45.0831942 | AJ107: 48.51549291 | AK107: 49.48366592 | AL107: 51.38107647 | AM107: 52.51950338 | AN107: =INDEX(AN100:AN104,MATCH($F107,$E100:$E104,0)) -> 0 | AO107: 0 | AP107: 0 | AQ107: 0 | AR107: 0 | AS107: 0 | AT107: 0 | AU107: 0 | AV107: 0 | AW107: 0 | AX107: 0 | AY107: 0 | AZ107: 0 | BA107: 0 | BB107: 0 | BC107: 0 | BD107: 0 | BE107: 0 | BF107: 0 | BG107: 0 | BH107: 0 | BI107: 0 | BJ107: 0
D109: =N(D108) + 1 -> 1 | E109: Opex - Non-staff costs - CAA Run | G109: =I_Global!$F$69 -> £'000 | H109: =I_Global!$F$210 -> CPI 2020 | I109: Enter as positive | J109: Cost assessment_PCM inputs_070623.xlsx, 'I_Series Oceanic_CI | L109: Being published with this model | AE109: 5190.053831 | AF109: 3878.782942 | AG109: 3264.264612 | AH109: 3442.625332 | AI109: 7410.644178 | AJ109: 6220.888704 | AK109: 4293.208651 | AL109: 4393.08252 | AM109: 3447.8642
D110: =N(D109) + 1 -> 2 | E110: Opex - Non-staff costs - CAA Forecasts - CAA Run (Low Case) | G110: =I_Global!$F$69 -> £'000 | H110: =I_Global!$F$210 -> CPI 2020 | I110: Enter as positive | J110: Calculated | L110: Being published with this model | Y110: =SUM(AA110:BJ110) -> 40897.27276 | AE110: 5190.053831 | AF110: 3878.782942 | AG110: 3264.264612 | AH110: 3442.625332 | AI110: 7225.378073 | AJ110: 6065.366486 | AK110: 4185.878435 | AL110: 4283.255457 | AM110: 3361.667595
D111: =N(D110) + 1 -> 3 | G111: =I_Global!$F$69 -> £'000 | H111: =I_Global!$F$210 -> CPI 2020 | I111: Enter as positive | Y111: =SUM(AA111:BJ111) -> 0
D112: =N(D111) + 1 -> 4 | G112: =I_Global!$F$69 -> £'000 | H112: =I_Global!$F$210 -> CPI 2020 | I112: Enter as positive | Y112: =SUM(AA112:BJ112) -> 0
D113: =N(D112) + 1 -> 5 | G113: =I_Global!$F$69 -> £'000 | H113: =I_Global!$F$210 -> CPI 2020 | I113: Enter as positive | Y113: =SUM(AA113:BJ113) -> 0
D115: =MATCH(F115, E109:E114, 0) -> 1 | E115: =C_Index!E$556 -> Opex - Non-staff costs - Oceanic - Outturn | F115: =C_Index!F$556 -> Opex - Non-staff costs - CAA Run | G115: =C_Index!G$556 -> £'000 | H115: =C_Index!H$556 -> CPI 2020 | Y115: =SUM(AA115:BJ115) -> 41541.41497 | AA115: =INDEX(AA109:AA113,MATCH($F115,$E109:$E113,0)) -> 0 | AB115: 0 | AC115: 0 | AD115: 0 | AE115: 5190.053831 | AF115: 3878.782942 | AG115: 3264.264612 | AH115: 3442.625332 | AI115: 7410.644178 | AJ115: 6220.888704 | AK115: 4293.208651 | AL115: 4393.08252 | AM115: 3447.8642 | AN115: =INDEX(AN109:AN113,MATCH($F115,$E109:$E113,0)) -> 0 | AO115: 0 | AP115: 0 | AQ115: 0 | AR115: 0 | AS115: 0 | AT115: 0 | AU115: 0 | AV115: 0 | AW115: 0 | AX115: 0 | AY115: 0 | AZ115: 0 | BA115: 0 | BB115: 0 | BC115: 0 | BD115: 0 | BE115: 0 | BF115: 0 | BG115: 0 | BH115: 0 | BI115: 0 | BJ115: 0
D116: =MATCH(F116, E109:E114, 0) -> 1 | E116: =C_Index!E$613 -> Opex - Non-staff costs - Oceanic - Price Determination | F116: =C_Index!F$613 -> Opex - Non-staff costs - CAA Run | G116: =C_Index!G$613 -> £'000 | H116: =C_Index!H$613 -> CPI 2020 | Y116: =SUM(AA116:BJ116) -> 41541.41497 | AA116: =INDEX(AA109:AA113,MATCH($F116,$E109:$E113,0)) -> 0 | AB116: =INDEX(AB109:AB113,MATCH($F116,$E109:$E113,0)) -> 0 | AC116: 0 | AD116: 0 | AE116: 5190.053831 | AF116: 3878.782942 | AG116: 3264.264612 | AH116: 3442.625332 | AI116: 7410.644178 | AJ116: 6220.888704 | AK116: 4293.208651 | AL116: 4393.08252 | AM116: 3447.8642 | AN116: =INDEX(AN109:AN113,MATCH($F116,$E109:$E113,0)) -> 0 | AO116: 0 | AP116: 0 | AQ116: 0 | AR116: 0 | AS116: 0 | AT116: 0 | AU116: 0 | AV116: 0 | AW116: 0 | AX116: 0 | AY116: 0 | AZ116: 0 | BA116: 0 | BB116: 0 | BC116: 0 | BD116: 0 | BE116: 0 | BF116: 0 | BG116: 0 | BH116: 0 | BI116: 0 | BJ116: 0
D118: =N(D117) + 1 -> 1 | E118: Opex - Exceptionals (excl. redundancy) - CAA Run | G118: =I_Global!$F$69 -> £'000 | H118: =I_Global!$F$210 -> CPI 2020 | I118: Enter as positive | J118: Cost assessment_PCM inputs_070623.xlsx, 'I_Series Oceanic_CI | L118: Being published with this model | AE118: 98.34637837 | AF118: -271.93035 | AG118: -807.0810874 | AH118: 23.93027254 | AI118: 55.294971 | AJ118: 65.62788252 | AK118: 83.63506397 | AL118: 71.00560222 | AM118: 63.06614388
D119: =N(D118) + 1 -> 2 | E119: Opex - Spare Cash Pensions - CAA Forecasts - CAA Run (Low Case) | G119: =I_Global!$F$69 -> £'000 | H119: =I_Global!$F$210 -> CPI 2020 | I119: Enter as positive | J119: Calculated | L119: Being published with this model | Y119: =SUM(AA119:BJ119) -> -626.5708645 | AE119: 98.34637837 | AF119: -271.93035 | AG119: -807.0810874 | AH119: 23.93027254 | AI119: 53.91259672 | AJ119: 63.98718546 | AK119: 81.54418737 | AL119: 69.23046216 | AM119: 61.48949028
D120: =N(D119) + 1 -> 3 | G120: =I_Global!$F$69 -> £'000 | H120: =I_Global!$F$210 -> CPI 2020 | I120: Enter as positive | Y120: =SUM(AA120:BJ120) -> 0
D121: =N(D120) + 1 -> 4 | G121: =I_Global!$F$69 -> £'000 | H121: =I_Global!$F$210 -> CPI 2020 | I121: Enter as positive | Y121: =SUM(AA121:BJ121) -> 0
D122: =N(D121) + 1 -> 5 | G122: =I_Global!$F$69 -> £'000 | H122: =I_Global!$F$210 -> CPI 2020 | I122: Enter as positive | Y122: =SUM(AA122:BJ122) -> 0
D124: =MATCH(F124, E118:E123, 0) -> 1 | E124: =C_Index!E$559 -> Opex - Spare Cash provisions - Oceanic - Outturn | F124: =C_Index!F$559 -> Opex - Exceptionals (excl. redundancy) - CAA Run | G124: =C_Index!G$559 -> £'000 | H124: =C_Index!H$559 -> CPI 2020 | Y124: =SUM(AA124:BJ124) -> -618.1051229 | AA124: =INDEX(AA118:AA122,MATCH($F124,$E118:$E122,0)) -> 0 | AB124: 0 | AC124: 0 | AD124: 0 | AE124: 98.34637837 | AF124: -271.93035 | AG124: -807.0810874 | AH124: 23.93027254 | AI124: 55.294971 | AJ124: 65.62788252 | AK124: 83.63506397 | AL124: 71.00560222 | AM124: 63.06614388 | AN124: =INDEX(AN118:AN122,MATCH($F124,$E118:$E122,0)) -> 0 | AO124: 0 | AP124: 0 | AQ124: 0 | AR124: 0 | AS124: 0 | AT124: 0 | AU124: 0 | AV124: 0 | AW124: 0 | AX124: 0 | AY124: 0 | AZ124: 0 | BA124: 0 | BB124: 0 | BC124: 0 | BD124: 0 | BE124: 0 | BF124: 0 | BG124: 0 | BH124: 0 | BI124: 0 | BJ124: 0
D125: =MATCH(F125, E118:E123, 0) -> 1 | E125: =C_Index!E$616 -> Opex - Spare Cash provisions - Oceanic - Price Determination | F125: =C_Index!F$616 -> Opex - Exceptionals (excl. redundancy) - CAA Run | G125: =C_Index!G$616 -> £'000 | H125: =C_Index!H$616 -> CPI 2020 | Y125: =SUM(AA125:BJ125) -> -618.1051229 | AA125: =INDEX(AA118:AA122,MATCH($F125,$E118:$E122,0)) -> 0 | AB125: =INDEX(AB118:AB122,MATCH($F125,$E118:$E122,0)) -> 0 | AC125: 0 | AD125: 0 | AE125: 98.34637837 | AF125: -271.93035 | AG125: -807.0810874 | AH125: 23.93027254 | AI125: 55.294971 | AJ125: 65.62788252 | AK125: 83.63506397 | AL125: 71.00560222 | AM125: 63.06614388 | AN125: =INDEX(AN118:AN122,MATCH($F125,$E118:$E122,0)) -> 0 | AO125: 0 | AP125: 0 | AQ125: 0 | AR125: 0 | AS125: 0 | AT125: 0 | AU125: 0 | AV125: 0 | AW125: 0 | AX125: 0 | AY125: 0 | AZ125: 0 | BA125: 0 | BB125: 0 | BC125: 0 | BD125: 0 | BE125: 0 | BF125: 0 | BG125: 0 | BH125: 0 | BI125: 0 | BJ125: 0
C127: 2.b.ii Pensions - Defined benefit (P&L) - Oceanic
D129: =N(D128) + 1 -> 1 | E129: Pensions - Defined benefit (P&L) - Ongoing Contributions - CAA Run | G129: =I_Global!$F$69 -> £'000 | H129: =I_Global!$F$210 -> CPI 2020 | I129: =I_Global!$F$210 -> CPI 2020 | J129: Cost assessment_PCM inputs_070623.xlsx, 'I_Series Oceanic_CI | L129: Being published with this model | Y129: =SUM(AA129:BJ129) -> 12430.75262 | AF129: 2047.979082 | AG129: 2078.121229 | AH129: 1399.57497 | AI129: 1836.713043 | AJ129: 1823.125601 | AK129: 1208.848791 | AL129: 1090.927603 | AM129: 945.4623
D130: =N(D129) + 1 -> 2 | E130: Pensions - Defined benefit (P&L) - Ongoing Contributions - CAA Run (Low Case) | G130: =I_Global!$F$69 -> £'000 | H130: =I_Global!$F$210 -> CPI 2020 | I130: =I_Global!$F$210 -> CPI 2020 | J130: Calculated | L130: Being published with this model | Y130: =SUM(AA130:BJ130) -> 12258.12569 | AF130: 2047.979082 | AG130: 2078.121229 | AH130: 1399.57497 | AI130: 1790.795217 | AJ130: 1777.547461 | AK130: 1178.627571 | AL130: 1063.654413 | AM130: 921.8257425
D131: =N(D130) + 1 -> 3 | G131: =I_Global!$F$69 -> £'000 | H131: =I_Global!$F$210 -> CPI 2020 | I131: Enter as positive | Y131: =SUM(AA131:BJ131) -> 0
D132: =N(D131) + 1 -> 4 | G132: =I_Global!$F$69 -> £'000 | H132: =I_Global!$F$210 -> CPI 2020 | I132: Enter as positive | Y132: =SUM(AA132:BJ132) -> 0
D133: =N(D132) + 1 -> 5 | G133: =I_Global!$F$69 -> £'000 | H133: =I_Global!$F$210 -> CPI 2020 | I133: Enter as positive | Y133: =SUM(AA133:BJ133) -> 0
D135: =MATCH(F135, E129:E134, 0) -> 1 | E135: =C_Index!E573 -> Pensions - Defined benefit - Ongoing Contributions | F135: =C_Index!F573 -> Pensions - Defined benefit (P&L) - Ongoing Contributions - CAA Run | G135: =C_Index!G573 -> £'000 | H135: =C_Index!H573 -> CPI 2020 | Y135: =SUM(AA135:BJ135) -> 12430.75262 | AA135: =INDEX(AA129:AA133,MATCH($F135,$E129:$E133,0)) -> 0 | AB135: 0 | AC135: 0 | AD135: 0 | AE135: 0 | AF135: 2047.979082 | AG135: 2078.121229 | AH135: 1399.57497 | AI135: 1836.713043 | AJ135: 1823.125601 | AK135: 1208.848791 | AL135: 1090.927603 | AM135: 945.4623 | AN135: =INDEX(AN129:AN133,MATCH($F135,$E129:$E133,0)) -> 0 | AO135: 0 | AP135: 0 | AQ135: 0 | AR135: 0 | AS135: 0 | AT135: 0 | AU135: 0 | AV135: 0 | AW135: 0 | AX135: 0 | AY135: 0 | AZ135: 0 | BA135: 0 | BB135: 0 | BC135: 0 | BD135: 0 | BE135: 0 | BF135: 0 | BG135: 0 | BH135: 0 | BI135: 0 | BJ135: 0
D137: =N(D136) + 1 -> 1 | E137: Pensions - Defined benefit (P&L) - Deficit Repair - base | G137: =I_Global!$F$69 -> £'000 | H137: =I_Global!$F$210 -> CPI 2020 | I137: Enter as positive | Y137: =SUM(AA137:BJ137) -> 0
D138: =N(D137) + 1 -> 2 | G138: =I_Global!$F$69 -> £'000 | H138: =I_Global!$F$210 -> CPI 2020 | I138: Enter as positive | Y138: =SUM(AA138:BJ138) -> 0
D139: =N(D138) + 1 -> 3 | G139: =I_Global!$F$69 -> £'000 | H139: =I_Global!$F$210 -> CPI 2020 | I139: Enter as positive | Y139: =SUM(AA139:BJ139) -> 0
D140: =N(D139) + 1 -> 4 | G140: =I_Global!$F$69 -> £'000 | H140: =I_Global!$F$210 -> CPI 2020 | I140: Enter as positive | Y140: =SUM(AA140:BJ140) -> 0
D141: =N(D140) + 1 -> 5 | G141: =I_Global!$F$69 -> £'000 | H141: =I_Global!$F$210 -> CPI 2020 | I141: Enter as positive | Y141: =SUM(AA141:BJ141) -> 0
D143: =MATCH(F143, E137:E142, 0) -> 1 | E143: =C_Index!E574 -> Pensions - Defined benefit - Deficit Repair | F143: =C_Index!F574 -> Pensions - Defined benefit (P&L) - Deficit Repair - base | G143: =C_Index!G574 -> £'000 | H143: =C_Index!H574 -> CPI 2020 | Y143: =SUM(AA143:BJ143) -> 0 | AA143: =INDEX(AA137:AA141,MATCH($F143,$E137:$E141,0)) -> 0 | AB143: 0 | AC143: 0 | AD143: 0 | AE143: 0 | AF143: 0 | AG143: 0 | AH143: 0 | AI143: 0 | AJ143: 0 | AK143: 0 | AL143: 0 | AM143: 0 | AN143: =INDEX(AN137:AN141,MATCH($F143,$E137:$E141,0)) -> 0 | AO143: 0 | AP143: 0 | AQ143: 0 | AR143: 0 | AS143: 0 | AT143: 0 | AU143: 0 | AV143: 0 | AW143: 0 | AX143: 0 | AY143: 0 | AZ143: 0 | BA143: 0 | BB143: 0 | BC143: 0 | BD143: 0 | BE143: 0 | BF143: 0 | BG143: 0 | BH143: 0 | BI143: 0 | BJ143: 0
C145: 2.b.iii. ADS-B Expenditure
D147: =N(D146) + 1 -> 1 | E147: ADS - B Tango - CAA Run | G147: =I_Global!$F$69 -> £'000 | H147: =I_Global!$F$210 -> CPI 2020 | I147: Enter as positive | J147: Cost assessment_PCM inputs_070623.xlsx, 'I_Series Oceanic_CI | L147: Being published with this model | AE147: 0 | AF147: 61.26198577 | AG147: 73.25013057 | AH147: 118.5965831 | AI147: 35.23990241 | AJ147: 136.1315939 | AK147: 146.3414634 | AL147: 142.72 | AM147: 147.6377953
D148: =N(D147) + 1 -> 2 | E148: ADS - B Tango - CAA Forecasts - CAA Run (Low Case) | G148: =I_Global!$F$69 -> £'000 | H148: =I_Global!$F$210 -> CPI 2020 | I148: Enter as positive | J148: Calculated | L148: Being published with this model | Y148: =SUM(AA148:BJ148) -> 845.9776856 | AE148: 0 | AF148: 61.26198577 | AG148: 73.25013057 | AH148: 118.5965831 | AI148: 34.35890485 | AJ148: 132.728304 | AK148: 142.6829268 | AL148: 139.152 | AM148: 143.9468504
D149: =N(D148) + 1 -> 3 | G149: =I_Global!$F$69 -> £'000 | H149: =I_Global!$F$210 -> CPI 2020 | I149: Enter as positive | Y149: =SUM(AA149:BJ149) -> 0
D150: =N(D149) + 1 -> 4 | G150: =I_Global!$F$69 -> £'000 | H150: =I_Global!$F$210 -> CPI 2020 | I150: Enter as positive | Y150: =SUM(AA150:BJ150) -> 0
D151: =N(D150) + 1 -> 5 | G151: =I_Global!$F$69 -> £'000 | H151: =I_Global!$F$210 -> CPI 2020 | I151: Enter as positive | Y151: =SUM(AA151:BJ151) -> 0
D153: =MATCH(F153, E147:E152, 0) -> 1 | E153: =C_Index!E$557 -> ADS - B Tango - Oceanic - Outturn | F153: =C_Index!F$557 -> ADS - B Tango - CAA Run | G153: =C_Index!G$557 -> £'000 | H153: =C_Index!H$557 -> CPI 2020 | I153: Price determination values are stored on the Macro sheet for ADSB charges. | Y153: =SUM(AA153:BJ153) -> 861.1794545 | AA153: =INDEX(AA147:AA151,MATCH($F153,$E147:$E151,0)) -> 0 | AB153: 0 | AC153: 0 | AD153: 0 | AE153: 0 | AF153: 61.26198577 | AG153: 73.25013057 | AH153: 118.5965831 | AI153: 35.23990241 | AJ153: 136.1315939 | AK153: 146.3414634 | AL153: 142.72 | AM153: 147.6377953 | AN153: =INDEX(AN147:AN151,MATCH($F153,$E147:$E151,0)) -> 0 | AO153: 0 | AP153: 0 | AQ153: 0 | AR153: 0 | AS153: 0 | AT153: 0 | AU153: 0 | AV153: 0 | AW153: 0 | AX153: 0 | AY153: 0 | AZ153: 0 | BA153: 0 | BB153: 0 | BC153: 0 | BD153: 0 | BE153: 0 | BF153: 0 | BG153: 0 | BH153: 0 | BI153: 0 | BJ153: 0
D155: =N(D154) + 1 -> 1 | E155: ADS - B North Atlantic - CAA Run | G155: =I_Global!$F$69 -> £'000 | H155: =I_Global!$F$210 -> CPI 2020 | I155: Enter as positive | J155: Cost assessment_PCM inputs_070623.xlsx, 'I_Series Oceanic_CI | L155: Being published with this model | Y155: =SUM(AA155:BJ155) -> 109639.8892 | AE155: 138.8819691 | AF155: 6350.594164 | AG155: 7755.828603 | AH155: 12885.86739 | AI155: 14919.89786 | AJ155: 15811.79123 | AK155: 16873.68848 | AL155: 17086.9787 | AM155: 17816.36078
D156: =N(D155) + 1 -> 2 | E156: ADS - B North Atlantic - CAA Forecasts - CAA Run (Low Case) | G156: =I_Global!$F$69 -> £'000 | H156: =I_Global!$F$210 -> CPI 2020 | I156: Enter as positive | J156: Calculated | L156: Being published with this model | Y156: =SUM(AA156:BJ156) -> 107577.1713 | AE156: 138.8819691 | AF156: 6350.594164 | AG156: 7755.828603 | AH156: 12885.86739 | AI156: 14546.90041 | AJ156: 15416.49645 | AK156: 16451.84626 | AL156: 16659.80424 | AM156: 17370.95176
D157: =N(D156) + 1 -> 3 | G157: =I_Global!$F$69 -> £'000 | H157: =I_Global!$F$210 -> CPI 2020 | I157: Enter as positive | Y157: =SUM(AA157:BJ157) -> 0
D158: =N(D157) + 1 -> 4 | G158: =I_Global!$F$69 -> £'000 | H158: =I_Global!$F$210 -> CPI 2020 | I158: Enter as positive | Y158: =SUM(AA158:BJ158) -> 0
D159: =N(D158) + 1 -> 5 | G159: =I_Global!$F$69 -> £'000 | H159: =I_Global!$F$210 -> CPI 2020 | I159: Enter as positive | Y159: =SUM(AA159:BJ159) -> 0
D161: =MATCH(F161, E155:E160, 0) -> 1 | E161: =C_Index!E$558 -> ADS - B North Atlantic - Oceanic - Outturn | F161: =C_Index!F$558 -> ADS - B North Atlantic - CAA Run | G161: =C_Index!G$558 -> £'000 | H161: =C_Index!H$558 -> CPI 2020 | I161: Price determination values are stored on the Macro sheet for ADSB charges. | Y161: =SUM(AA161:BJ161) -> 109639.8892 | AA161: =INDEX(AA155:AA159,MATCH($F161,$E155:$E159,0)) -> 0 | AB161: 0 | AC161: 0 | AD161: 0 | AE161: 138.8819691 | AF161: 6350.594164 | AG161: 7755.828603 | AH161: 12885.86739 | AI161: 14919.89786 | AJ161: 15811.79123 | AK161: 16873.68848 | AL161: 17086.9787 | AM161: 17816.36078 | AN161: =INDEX(AN155:AN159,MATCH($F161,$E155:$E159,0)) -> 0 | AO161: 0 | AP161: 0 | AQ161: 0 | AR161: 0 | AS161: 0 | AT161: 0 | AU161: 0 | AV161: 0 | AW161: 0 | AX161: 0 | AY161: 0 | AZ161: 0 | BA161: 0 | BB161: 0 | BC161: 0 | BD161: 0 | BE161: 0 | BF161: 0 | BG161: 0 | BH161: 0 | BI161: 0 | BJ161: 0
C163: 2.biv. Movement in Provisions
E165: Movement in Oceanic Provision | G165: £'000 | H165: Nominal | I165: (Increase)/Decrease | J165: CAA NERL PCM_06_Draft - 170122 - Copy, I_Series Oceanic, row 165 | L165: Being published with this model | Y165: =SUM(AA165:BJ165) -> 906.0935569 | AA165: 0 | AB165: 747.043659 | AC165: -273.029106 | AD165: -171.875429 | AE165: 133.2851673 | AF165: 470.6692656 | AL165: 0 | AM165: 0 | AN165: 0 | AO165: 0 | AP165: 0 | AQ165: 0 | AR165: 0 | AS165: 0 | AT165: 0 | AU165: 0 | AV165: 0 | AW165: 0 | AX165: 0 | AY165: 0 | AZ165: 0 | BA165: 0 | BB165: 327.4644404 | BC165: -327.4644404 | BD165: 0 | BE165: 0 | BF165: 0 | BG165: 0 | BH165: 0 | BI165: 0 | BJ165: 0
B167: 2.c Revenues - Oceanic
C169: 2.c.i. Non Aero Revenue - Oceanic
D171: =N(D170) + 1 -> 1 | E171: Other Oceanic Revenue - CAA Run | F171: =IF(SUM(AA171:BJ171)>=0,0,1) -> 0 | G171: =I_Global!$F$69 -> £'000 | H171: =I_Global!$F$210 -> CPI 2020 | I171: Enter as positive | J171: Cost assessment_PCM inputs_070623.xlsx, 'I_Series Oceanic_CI | L171: Being published with this model | Y171: =SUM(AA171:BJ171) -> 4090.825915 | AE171: 415 | AF171: 351 | AG171: 497 | AH171: 369.8259152 | AI171: 499 | AJ171: 491 | AK171: 488 | AL171: 490 | AM171: 490
D172: =N(D171) + 1 -> 2 | E172: Other Oceanic Revenue- Spare 2 | F172: =IF(SUM(AA172:BJ172)>=0,0,1) -> 0 | G172: =I_Global!$F$69 -> £'000 | H172: =I_Global!$F$210 -> CPI 2020 | I172: Enter as positive | Y172: =SUM(AA172:BJ172) -> 0
D173: =N(D172) + 1 -> 3 | E173: Other Oceanic Revenue - Spare 3 | F173: =IF(SUM(AA173:BJ173)>=0,0,1) -> 0 | G173: =I_Global!$F$69 -> £'000 | H173: =I_Global!$F$210 -> CPI 2020 | I173: Enter as positive | Y173: =SUM(AA173:BJ173) -> 0
E175: Input Check - Oceanic Revenue | F175: =SUM(F171:F173) -> 0 | G175: check
D177: =MATCH(F177, E171:E174, 0) -> 1 | E177: =C_Index!E$629 -> Oceanic Revenue - Outturn | F177: =C_Index!F$629 -> Other Oceanic Revenue - CAA Run | G177: =C_Index!G$629 -> £'000 | H177: =C_Index!H$629 -> CPI 2020 | Y177: =SUM(AA177:BJ177) -> 4090.825915 | AA177: =INDEX(AA171:AA173,MATCH($F177,$E171:$E173,0)) -> 0 | AB177: 0 | AC177: 0 | AD177: 0 | AE177: 415 | AF177: 351 | AG177: 497 | AH177: 369.8259152 | AI177: 499 | AJ177: 491 | AK177: 488 | AL177: 490 | AM177: 490 | AN177: =INDEX(AN171:AN173,MATCH($F177,$E171:$E173,0)) -> 0 | AO177: 0 | AP177: 0 | AQ177: 0 | AR177: 0 | AS177: 0 | AT177: 0 | AU177: 0 | AV177: 0 | AW177: 0 | AX177: 0 | AY177: 0 | AZ177: 0 | BA177: 0 | BB177: 0 | BC177: 0 | BD177: 0 | BE177: 0 | BF177: 0 | BG177: 0 | BH177: 0 | BI177: 0 | BJ177: 0
D178: =MATCH(F178, E171:E174, 0) -> 1 | E178: =C_Index!E$641 -> Oceanic Revenue - Price Determination | F178: =C_Index!F$641 -> Other Oceanic Revenue - CAA Run | G178: =C_Index!G$641 -> £'000 | H178: =C_Index!H$641 -> CPI 2020 | Y178: =SUM(AA178:BJ178) -> 4090.825915 | AA178: =INDEX(AA171:AA173,MATCH($F178,$E171:$E173,0)) -> 0 | AB178: 0 | AC178: 0 | AD178: 0 | AE178: 415 | AF178: 351 | AG178: 497 | AH178: 369.8259152 | AI178: 499 | AJ178: 491 | AK178: 488 | AL178: 490 | AM178: 490 | AN178: =INDEX(AN171:AN173,MATCH($F178,$E171:$E173,0)) -> 0 | AO178: 0 | AP178: 0 | AQ178: 0 | AR178: 0 | AS178: 0 | AT178: 0 | AU178: 0 | AV178: 0 | AW178: 0 | AX178: 0 | AY178: 0 | AZ178: 0 | BA178: 0 | BB178: 0 | BC178: 0 | BD178: 0 | BE178: 0 | BF178: 0 | BG178: 0 | BH178: 0 | BI178: 0 | BJ178: 0
B180: 2.d Capital Expenditure
C182: 2.d.i Capex
E184: Project cash flows [Base Case]
D185: 1 | E185: Allowed cashflows relating to capex on Project 1 | F185: Allowed cashflows relating to capex on Project 1 - Base | G185: =I_Global!$F$69 -> £'000 | H185: =I_Global!$F$211 -> RPI 2020 | I185: Enter as positive | J185: Cost assessment_PCM inputs_070623.xlsx, 'I_Series Oceanic_CI | L185: Being published with this model | Y185: =SUM(AA185:BJ185) -> 25905.05904 | AF185: 2000 | AG185: 985.9961425 | AH185: 2891.240222 | AI185: 3539.892599 | AJ185: 3538.541372 | AK185: 4445.56611 | AL185: 4334.785727 | AM185: 4169.036869
D186: =D185+1 -> 2 | E186: ="Allowed cashflows relating to capex on Project " & D186 -> Allowed cashflows relating to capex on Project 2 | F186: =E186 & " - Base" -> Allowed cashflows relating to capex on Project 2 - Base | G186: =I_Global!$F$69 -> £'000 | H186: =I_Global!$F$211 -> RPI 2020 | I186: Enter as positive | Y186: =SUM(AA186:BJ186) -> 0
D187: 3 | E187: Allowed cashflows relating to capex on Project 3 | F187: Allowed cashflows relating to capex on Project 3 - Base | G187: =I_Global!$F$69 -> £'000 | H187: =I_Global!$F$211 -> RPI 2020 | I187: Enter as positive | Y187: 0
D188: 4 | E188: Allowed cashflows relating to capex on Project 4 | F188: Allowed cashflows relating to capex on Project 4 - Base | G188: =I_Global!$F$69 -> £'000 | H188: =I_Global!$F$211 -> RPI 2020 | I188: Enter as positive | Y188: 0
D189: 5 | E189: Allowed cashflows relating to capex on Project 5 | F189: Allowed cashflows relating to capex on Project 5 - Base | G189: =I_Global!$F$69 -> £'000 | H189: =I_Global!$F$211 -> RPI 2020 | I189: Enter as positive | Y189: 0
D190: 6 | E190: Allowed cashflows relating to capex on Project 6 | F190: Allowed cashflows relating to capex on Project 6 - Base | G190: =I_Global!$F$69 -> £'000 | H190: =I_Global!$F$211 -> RPI 2020 | I190: Enter as positive | Y190: 0
D191: 7 | E191: Allowed cashflows relating to capex on Project 7 | F191: Allowed cashflows relating to capex on Project 7 - Base | G191: =I_Global!$F$69 -> £'000 | H191: =I_Global!$F$211 -> RPI 2020 | I191: Enter as positive | Y191: 0
D192: 8 | E192: Allowed cashflows relating to capex on Project 8 | F192: Allowed cashflows relating to capex on Project 8 - Base | G192: =I_Global!$F$69 -> £'000 | H192: =I_Global!$F$211 -> RPI 2020 | I192: Enter as positive | Y192: 0
D193: 9 | E193: Allowed cashflows relating to capex on Project 9 | F193: Allowed cashflows relating to capex on Project 9 - Base | G193: =I_Global!$F$69 -> £'000 | H193: =I_Global!$F$211 -> RPI 2020 | I193: Enter as positive | Y193: =SUM(AA193:BJ193) -> 0
D194: 10 | E194: Allowed cashflows relating to capex on Project 10 | F194: Allowed cashflows relating to capex on Project 10 - Base | G194: =I_Global!$F$69 -> £'000 | H194: =I_Global!$F$211 -> RPI 2020 | I194: Enter as positive | Y194: 0
D195: 11 | E195: Allowed cashflows relating to capex on Project 11 | F195: Allowed cashflows relating to capex on Project 11 - Base | G195: =I_Global!$F$69 -> £'000 | H195: =I_Global!$F$211 -> RPI 2020 | I195: Enter as positive | Y195: 0
D196: 12 | E196: Allowed cashflows relating to capex on Project 12 | F196: Allowed cashflows relating to capex on Project 12 - Base | G196: =I_Global!$F$69 -> £'000 | H196: =I_Global!$F$211 -> RPI 2020 | I196: Enter as positive | Y196: 0
D197: 13 | E197: Allowed cashflows relating to capex on Project 13 | F197: Allowed cashflows relating to capex on Project 13 - Base | G197: =I_Global!$F$69 -> £'000 | H197: =I_Global!$F$211 -> RPI 2020 | I197: Enter as positive | Y197: 0
D198: 14 | E198: Allowed cashflows relating to capex on Project 14 | F198: Allowed cashflows relating to capex on Project 14 - Base | G198: =I_Global!$F$69 -> £'000 | H198: =I_Global!$F$211 -> RPI 2020 | I198: Enter as positive | Y198: 0
D199: 15 | E199: Allowed cashflows relating to capex on Project 15 | F199: Allowed cashflows relating to capex on Project 15 - Base | G199: =I_Global!$F$69 -> £'000 | H199: =I_Global!$F$211 -> RPI 2020 | I199: Enter as positive | Y199: 0
D200: 16 | E200: Allowed cashflows relating to capex on Project 16 | F200: Allowed cashflows relating to capex on Project 16 - Base | G200: =I_Global!$F$69 -> £'000 | H200: =I_Global!$F$211 -> RPI 2020 | I200: Enter as positive | Y200: 0
D201: 17 | E201: Allowed cashflows relating to capex on Project 17 | F201: Allowed cashflows relating to capex on Project 17 - Base | G201: =I_Global!$F$69 -> £'000 | H201: =I_Global!$F$211 -> RPI 2020 | I201: Enter as positive | Y201: 0
D202: 18 | E202: Allowed cashflows relating to capex on Project 18 | F202: Allowed cashflows relating to capex on Project 18 - Base | G202: =I_Global!$F$69 -> £'000 | H202: =I_Global!$F$211 -> RPI 2020 | I202: Enter as positive | Y202: 0
D203: 19 | E203: Allowed cashflows relating to capex on Project 19 | F203: Allowed cashflows relating to capex on Project 19 - Base | G203: =I_Global!$F$69 -> £'000 | H203: =I_Global!$F$211 -> RPI 2020 | I203: Enter as positive | Y203: 0
D204: 20 | E204: Allowed cashflows relating to capex on Project 20 | F204: Allowed cashflows relating to capex on Project 20 - Base | G204: =I_Global!$F$69 -> £'000 | H204: =I_Global!$F$211 -> RPI 2020 | I204: Enter as positive | Y204: 0
E206: Project cash flows [Low Case]
D207: 1 | E207: ="Allowed cashflows relating to capex on Project " & D207 -> Allowed cashflows relating to capex on Project 1 | F207: =E207 & " - Low-cost" -> Allowed cashflows relating to capex on Project 1 - Low-cost | G207: =I_Global!$F$69 -> £'000 | H207: =I_Global!$F$211 -> RPI 2020 | I207: Enter as positive | Y207: =SUM(AA207:BJ207) -> 0
D208: =D207+1 -> 2 | E208: Allowed cashflows relating to capex on Project 2 | F208: =E208 & " - Low-cost" -> Allowed cashflows relating to capex on Project 2 - Low-cost | G208: =I_Global!$F$69 -> £'000 | H208: =I_Global!$F$211 -> RPI 2020 | I208: Enter as positive | Y208: =SUM(AA208:BJ208) -> 0
D209: 3 | E209: Allowed cashflows relating to capex on Project 3 | F209: Allowed cashflows relating to capex on Project 3 - Low-cost | G209: =I_Global!$F$69 -> £'000 | H209: =I_Global!$F$211 -> RPI 2020 | I209: Enter as positive | Y209: 0
D210: 4 | E210: Allowed cashflows relating to capex on Project 4 | F210: Allowed cashflows relating to capex on Project 4 - Low-cost | G210: =I_Global!$F$69 -> £'000 | H210: =I_Global!$F$211 -> RPI 2020 | I210: Enter as positive | Y210: 0
D211: 5 | E211: Allowed cashflows relating to capex on Project 5 | F211: Allowed cashflows relating to capex on Project 5 - Low-cost | G211: =I_Global!$F$69 -> £'000 | H211: =I_Global!$F$211 -> RPI 2020 | I211: Enter as positive | Y211: 0
D212: 6 | E212: Allowed cashflows relating to capex on Project 6 | F212: Allowed cashflows relating to capex on Project 6 - Low-cost | G212: =I_Global!$F$69 -> £'000 | H212: =I_Global!$F$211 -> RPI 2020 | I212: Enter as positive | Y212: 0
D213: 7 | E213: Allowed cashflows relating to capex on Project 7 | F213: Allowed cashflows relating to capex on Project 7 - Low-cost | G213: =I_Global!$F$69 -> £'000 | H213: =I_Global!$F$211 -> RPI 2020 | I213: Enter as positive | Y213: 0
D214: 8 | E214: Allowed cashflows relating to capex on Project 8 | F214: Allowed cashflows relating to capex on Project 8 - Low-cost | G214: =I_Global!$F$69 -> £'000 | H214: =I_Global!$F$211 -> RPI 2020 | I214: Enter as positive | Y214: 0
D215: 9 | E215: Allowed cashflows relating to capex on Project 9 | F215: Allowed cashflows relating to capex on Project 9 - Low-cost | G215: =I_Global!$F$69 -> £'000 | H215: =I_Global!$F$211 -> RPI 2020 | I215: Enter as positive | Y215: 0
D216: 10 | E216: Allowed cashflows relating to capex on Project 10 | F216: Allowed cashflows relating to capex on Project 10 - Low-cost | G216: =I_Global!$F$69 -> £'000 | H216: =I_Global!$F$211 -> RPI 2020 | I216: Enter as positive | Y216: 0
D217: 11 | E217: Allowed cashflows relating to capex on Project 11 | F217: Allowed cashflows relating to capex on Project 11 - Low-cost | G217: =I_Global!$F$69 -> £'000 | H217: =I_Global!$F$211 -> RPI 2020 | I217: Enter as positive | Y217: 0
D218: 12 | E218: Allowed cashflows relating to capex on Project 12 | F218: Allowed cashflows relating to capex on Project 12 - Low-cost | G218: =I_Global!$F$69 -> £'000 | H218: =I_Global!$F$211 -> RPI 2020 | I218: Enter as positive | Y218: 0
D219: 13 | E219: Allowed cashflows relating to capex on Project 13 | F219: Allowed cashflows relating to capex on Project 13 - Low-cost | G219: =I_Global!$F$69 -> £'000 | H219: =I_Global!$F$211 -> RPI 2020 | I219: Enter as positive | Y219: 0
D220: 14 | E220: Allowed cashflows relating to capex on Project 14 | F220: Allowed cashflows relating to capex on Project 14 - Low-cost | G220: =I_Global!$F$69 -> £'000 | H220: =I_Global!$F$211 -> RPI 2020 | I220: Enter as positive | Y220: 0
D221: 15 | E221: Allowed cashflows relating to capex on Project 15 | F221: Allowed cashflows relating to capex on Project 15 - Low-cost | G221: =I_Global!$F$69 -> £'000 | H221: =I_Global!$F$211 -> RPI 2020 | I221: Enter as positive | Y221: 0
D222: 16 | E222: Allowed cashflows relating to capex on Project 16 | F222: Allowed cashflows relating to capex on Project 16 - Low-cost | G222: =I_Global!$F$69 -> £'000 | H222: =I_Global!$F$211 -> RPI 2020 | I222: Enter as positive | Y222: 0
D223: 17 | E223: Allowed cashflows relating to capex on Project 17 | F223: Allowed cashflows relating to capex on Project 17 - Low-cost | G223: =I_Global!$F$69 -> £'000 | H223: =I_Global!$F$211 -> RPI 2020 | I223: Enter as positive | Y223: 0
D224: 18 | E224: Allowed cashflows relating to capex on Project 18 | F224: Allowed cashflows relating to capex on Project 18 - Low-cost | G224: =I_Global!$F$69 -> £'000 | H224: =I_Global!$F$211 -> RPI 2020 | I224: Enter as positive | Y224: 0
D225: 19 | E225: Allowed cashflows relating to capex on Project 19 | F225: Allowed cashflows relating to capex on Project 19 - Low-cost | G225: =I_Global!$F$69 -> £'000 | H225: =I_Global!$F$211 -> RPI 2020 | I225: Enter as positive | Y225: 0
D226: 20 | E226: Allowed cashflows relating to capex on Project 20 | F226: Allowed cashflows relating to capex on Project 20 - Low-cost | G226: =I_Global!$F$69 -> £'000 | H226: =I_Global!$F$211 -> RPI 2020 | I226: Enter as positive | Y226: 0
E228: Project cash flows [High Case]
D229: 1 | E229: ="Allowed cashflows relating to capex on Project " & D229 -> Allowed cashflows relating to capex on Project 1 | F229: =E229 & " - High-cost" -> Allowed cashflows relating to capex on Project 1 - High-cost | G229: =I_Global!$F$69 -> £'000 | H229: =I_Global!$F$211 -> RPI 2020 | I229: Enter as positive | Y229: =SUM(AA229:BJ229) -> 0
D230: =D229+1 -> 2 | E230: Allowed cashflows relating to capex on Project 2 | F230: =E230 & " - High-cost" -> Allowed cashflows relating to capex on Project 2 - High-cost | G230: =I_Global!$F$69 -> £'000 | H230: =I_Global!$F$211 -> RPI 2020 | I230: Enter as positive | Y230: 0
D231: 3 | E231: Allowed cashflows relating to capex on Project 3 | F231: Allowed cashflows relating to capex on Project 3 - High-cost | G231: =I_Global!$F$69 -> £'000 | H231: =I_Global!$F$211 -> RPI 2020 | I231: Enter as positive | Y231: 0
D232: 4 | E232: Allowed cashflows relating to capex on Project 4 | F232: Allowed cashflows relating to capex on Project 4 - High-cost | G232: =I_Global!$F$69 -> £'000 | H232: =I_Global!$F$211 -> RPI 2020 | I232: Enter as positive | Y232: 0
D233: 5 | E233: Allowed cashflows relating to capex on Project 5 | F233: Allowed cashflows relating to capex on Project 5 - High-cost | G233: =I_Global!$F$69 -> £'000 | H233: =I_Global!$F$211 -> RPI 2020 | I233: Enter as positive | Y233: 0
D234: 6 | E234: Allowed cashflows relating to capex on Project 6 | F234: Allowed cashflows relating to capex on Project 6 - High-cost | G234: =I_Global!$F$69 -> £'000 | H234: =I_Global!$F$211 -> RPI 2020 | I234: Enter as positive | Y234: 0
D235: 7 | E235: Allowed cashflows relating to capex on Project 7 | F235: Allowed cashflows relating to capex on Project 7 - High-cost | G235: =I_Global!$F$69 -> £'000 | H235: =I_Global!$F$211 -> RPI 2020 | I235: Enter as positive | Y235: 0
D236: 8 | E236: Allowed cashflows relating to capex on Project 8 | F236: Allowed cashflows relating to capex on Project 8 - High-cost | G236: =I_Global!$F$69 -> £'000 | H236: =I_Global!$F$211 -> RPI 2020 | I236: Enter as positive | Y236: 0
D237: 9 | E237: Allowed cashflows relating to capex on Project 9 | F237: Allowed cashflows relating to capex on Project 9 - High-cost | G237: =I_Global!$F$69 -> £'000 | H237: =I_Global!$F$211 -> RPI 2020 | I237: Enter as positive | Y237: =SUM(AA237:BJ237) -> 0
D238: 10 | E238: Allowed cashflows relating to capex on Project 10 | F238: Allowed cashflows relating to capex on Project 10 - High-cost | G238: =I_Global!$F$69 -> £'000 | H238: =I_Global!$F$211 -> RPI 2020 | I238: Enter as positive | Y238: 0
D239: 11 | E239: Allowed cashflows relating to capex on Project 11 | F239: Allowed cashflows relating to capex on Project 11 - High-cost | G239: =I_Global!$F$69 -> £'000 | H239: =I_Global!$F$211 -> RPI 2020 | I239: Enter as positive | Y239: 0
D240: 12 | E240: Allowed cashflows relating to capex on Project 12 | F240: Allowed cashflows relating to capex on Project 12 - High-cost | G240: =I_Global!$F$69 -> £'000 | H240: =I_Global!$F$211 -> RPI 2020 | I240: Enter as positive | Y240: 0
D241: 13 | E241: Allowed cashflows relating to capex on Project 13 | F241: Allowed cashflows relating to capex on Project 13 - High-cost | G241: =I_Global!$F$69 -> £'000 | H241: =I_Global!$F$211 -> RPI 2020 | I241: Enter as positive | Y241: 0
D242: 14 | E242: Allowed cashflows relating to capex on Project 14 | F242: Allowed cashflows relating to capex on Project 14 - High-cost | G242: =I_Global!$F$69 -> £'000 | H242: =I_Global!$F$211 -> RPI 2020 | I242: Enter as positive | Y242: 0
D243: 15 | E243: Allowed cashflows relating to capex on Project 15 | F243: Allowed cashflows relating to capex on Project 15 - High-cost | G243: =I_Global!$F$69 -> £'000 | H243: =I_Global!$F$211 -> RPI 2020 | I243: Enter as positive | Y243: 0
D244: 16 | E244: Allowed cashflows relating to capex on Project 16 | F244: Allowed cashflows relating to capex on Project 16 - High-cost | G244: =I_Global!$F$69 -> £'000 | H244: =I_Global!$F$211 -> RPI 2020 | I244: Enter as positive | Y244: 0
D245: 17 | E245: Allowed cashflows relating to capex on Project 17 | F245: Allowed cashflows relating to capex on Project 17 - High-cost | G245: =I_Global!$F$69 -> £'000 | H245: =I_Global!$F$211 -> RPI 2020 | I245: Enter as positive | Y245: 0
D246: 18 | E246: Allowed cashflows relating to capex on Project 18 | F246: Allowed cashflows relating to capex on Project 18 - High-cost | G246: =I_Global!$F$69 -> £'000 | H246: =I_Global!$F$211 -> RPI 2020 | I246: Enter as positive | Y246: 0
D247: 19 | E247: Allowed cashflows relating to capex on Project 19 | F247: Allowed cashflows relating to capex on Project 19 - High-cost | G247: =I_Global!$F$69 -> £'000 | H247: =I_Global!$F$211 -> RPI 2020 | I247: Enter as positive | Y247: 0
D248: 20 | E248: Allowed cashflows relating to capex on Project 20 | F248: Allowed cashflows relating to capex on Project 20 - High-cost | G248: =I_Global!$F$69 -> £'000 | H248: =I_Global!$F$211 -> RPI 2020 | I248: Enter as positive | Y248: 0
... 145 more rows

Sheet I_Series NERL
A1: =MID(CELL( "filename", $A$1 ), SEARCH( "[",CELL( "filename", $A$1 ) ) + 1, SEARCH( "]",CELL( "filename", $A$1 ) ) - SEARCH( "[",CELL( "filename", $A$1 ) ) - 1 ) -> CAA NERL PCM Decisions_10h - v1.00 - FD for publication.xlsm
B2: =RIGHT(CELL( "filename", B2 ), LEN(CELL( "filename", B2 ) ) - SEARCH( "]",CELL( "filename", B2 ) ) ) -> I_Series NERL | G2: Checks & Alerts | H2: =Checks!$F$3 -> -1
E3: ="Scenario "&_xlfn.SINGLE(Live_Scenarionumber) & " : " &Live_scenario -> Scenario 1 : Base - Flat | G3: Active Overrides | H3: =Checks!$F$88 -> 0
E4: ='I_InputSets UKATS'!E12 -> Live Input Set | H4: =Scenario!$F$32 -> 1
E5: ='I_InputSets UKATS'!E13 -> Input Set for Price Determination | H5: =Scenario!$H$37 -> 1
E6: ='I_InputSets UKATS'!E14 -> Model mode | H6: =Scenario!$F$29 -> Price Determination | I6: =MATCH(H6, I_Global!$F$205:$F$206, 0) -> 1
A7: Timeline
E8: =C_Time!E9 -> Period Beginning | G8: =C_Time!G9 -> date | AA8: =C_Time!AA9 -> 2015-01-01 | AB8: =C_Time!AB9 -> 2016-01-01 | AC8: =C_Time!AC9 -> 2017-01-01 | AD8: =C_Time!AD9 -> 2018-01-01 | AE8: =C_Time!AE9 -> 2019-01-01 | AF8: =C_Time!AF9 -> 2020-01-01 | AG8: =C_Time!AG9 -> 2021-01-01 | AH8: =C_Time!AH9 -> 2022-01-01 | AI8: =C_Time!AI9 -> 2023-01-01 | AJ8: =C_Time!AJ9 -> 2024-01-01 | AK8: =C_Time!AK9 -> 2025-01-01 | AL8: =C_Time!AL9 -> 2026-01-01 | AM8: =C_Time!AM9 -> 2027-01-01 | AN8: =C_Time!AN9 -> 2028-01-01 | AO8: =C_Time!AO9 -> 2029-01-01 | AP8: =C_Time!AP9 -> 2030-01-01 | AQ8: =C_Time!AQ9 -> 2031-01-01 | AR8: =C_Time!AR9 -> 2032-01-01 | AS8: =C_Time!AS9 -> 2033-01-01 | AT8: =C_Time!AT9 -> 2034-01-01 | AU8: =C_Time!AU9 -> 2035-01-01 | AV8: =C_Time!AV9 -> 2036-01-01 | AW8: =C_Time!AW9 -> 2037-01-01 | AX8: =C_Time!AX9 -> 2038-01-01 | AY8: =C_Time!AY9 -> 2039-01-01 | AZ8: =C_Time!AZ9 -> 2040-01-01 | BA8: =C_Time!BA9 -> 2041-01-01 | BB8: =C_Time!BB9 -> 2042-01-01 | BC8: =C_Time!BC9 -> 2043-01-01 | BD8: =C_Time!BD9 -> 2044-01-01 | BE8: =C_Time!BE9 -> 2045-01-01 | BF8: =C_Time!BF9 -> 2046-01-01 | BG8: =C_Time!BG9 -> 2047-01-01 | BH8: =C_Time!BH9 -> 2048-01-01 | BI8: =C_Time!BI9 -> 2049-01-01 | BJ8: =C_Time!BJ9 -> 2050-01-01
E9: =C_Time!E10 -> Period Ending | G9: =C_Time!G10 -> date | AA9: =C_Time!AA10 -> 2015-12-31 | AB9: =C_Time!AB10 -> 2016-12-31 | AC9: =C_Time!AC10 -> 2017-12-31 | AD9: =C_Time!AD10 -> 2018-12-31 | AE9: =C_Time!AE10 -> 2019-12-31 | AF9: =C_Time!AF10 -> 2020-12-31 | AG9: =C_Time!AG10 -> 2021-12-31 | AH9: =C_Time!AH10 -> 2022-12-31 | AI9: =C_Time!AI10 -> 2023-12-31 | AJ9: =C_Time!AJ10 -> 2024-12-31 | AK9: =C_Time!AK10 -> 2025-12-31 | AL9: =C_Time!AL10 -> 2026-12-31 | AM9: =C_Time!AM10 -> 2027-12-31 | AN9: =C_Time!AN10 -> 2028-12-31 | AO9: =C_Time!AO10 -> 2029-12-31 | AP9: =C_Time!AP10 -> 2030-12-31 | AQ9: =C_Time!AQ10 -> 2031-12-31 | AR9: =C_Time!AR10 -> 2032-12-31 | AS9: =C_Time!AS10 -> 2033-12-31 | AT9: =C_Time!AT10 -> 2034-12-31 | AU9: =C_Time!AU10 -> 2035-12-31 | AV9: =C_Time!AV10 -> 2036-12-31 | AW9: =C_Time!AW10 -> 2037-12-31 | AX9: =C_Time!AX10 -> 2038-12-31 | AY9: =C_Time!AY10 -> 2039-12-31 | AZ9: =C_Time!AZ10 -> 2040-12-31 | BA9: =C_Time!BA10 -> 2041-12-31 | BB9: =C_Time!BB10 -> 2042-12-31 | BC9: =C_Time!BC10 -> 2043-12-31 | BD9: =C_Time!BD10 -> 2044-12-31 | BE9: =C_Time!BE10 -> 2045-12-31 | BF9: =C_Time!BF10 -> 2046-12-31 | BG9: =C_Time!BG10 -> 2047-12-31 | BH9: =C_Time!BH10 -> 2048-12-31 | BI9: =C_Time!BI10 -> 2049-12-31 | BJ9: =C_Time!BJ10 -> 2050-12-31
E10: =C_Time!E11 -> Model period number | G10: =C_Time!G11 -> # | AA10: =C_Time!AA11 -> 1 | AB10: =C_Time!AB11 -> 2 | AC10: =C_Time!AC11 -> 3 | AD10: =C_Time!AD11 -> 4 | AE10: =C_Time!AE11 -> 5 | AF10: =C_Time!AF11 -> 6 | AG10: =C_Time!AG11 -> 7 | AH10: =C_Time!AH11 -> 8 | AI10: =C_Time!AI11 -> 9 | AJ10: =C_Time!AJ11 -> 10 | AK10: =C_Time!AK11 -> 11 | AL10: =C_Time!AL11 -> 12 | AM10: =C_Time!AM11 -> 13 | AN10: =C_Time!AN11 -> 14 | AO10: =C_Time!AO11 -> 15 | AP10: =C_Time!AP11 -> 16 | AQ10: =C_Time!AQ11 -> 17 | AR10: =C_Time!AR11 -> 18 | AS10: =C_Time!AS11 -> 19 | AT10: =C_Time!AT11 -> 20 | AU10: =C_Time!AU11 -> 21 | AV10: =C_Time!AV11 -> 22 | AW10: =C_Time!AW11 -> 23 | AX10: =C_Time!AX11 -> 24 | AY10: =C_Time!AY11 -> 25 | AZ10: =C_Time!AZ11 -> 26 | BA10: =C_Time!BA11 -> 27 | BB10: =C_Time!BB11 -> 28 | BC10: =C_Time!BC11 -> 29 | BD10: =C_Time!BD11 -> 30 | BE10: =C_Time!BE11 -> 31 | BF10: =C_Time!BF11 -> 32 | BG10: =C_Time!BG11 -> 33 | BH10: =C_Time!BH11 -> 34 | BI10: =C_Time!BI11 -> 35 | BJ10: =C_Time!BJ11 -> 36
E11: =C_Time!E$12 -> Pricing Period | G11: =C_Time!G$12 -> periods | AA11: =C_Time!AA$12 -> RP2 | AB11: =C_Time!AB$12 -> RP2 | AC11: =C_Time!AC$12 -> RP2 | AD11: =C_Time!AD$12 -> RP2 | AE11: =C_Time!AE$12 -> RP2 | AF11: =C_Time!AF$12 -> RP3 | AG11: =C_Time!AG$12 -> RP3 | AH11: =C_Time!AH$12 -> RP3 | AI11: =C_Time!AI$12 -> NR23 | AJ11: =C_Time!AJ$12 -> NR23 | AK11: =C_Time!AK$12 -> NR23 | AL11: =C_Time!AL$12 -> NR23 | AM11: =C_Time!AM$12 -> NR23 | AN11: =C_Time!AN$12 -> NR28 | AO11: =C_Time!AO$12 -> NR28 | AP11: =C_Time!AP$12 -> NR28 | AQ11: =C_Time!AQ$12 -> NR28 | AR11: =C_Time!AR$12 -> NR28 | AS11: =C_Time!AS$12 -> NR33 | AT11: =C_Time!AT$12 -> NR33 | AU11: =C_Time!AU$12 -> NR33 | AV11: =C_Time!AV$12 -> NR33 | AW11: =C_Time!AW$12 -> NR33 | AX11: =C_Time!AX$12 -> NR38 | AY11: =C_Time!AY$12 -> NR38 | AZ11: =C_Time!AZ$12 -> NR38 | BA11: =C_Time!BA$12 -> NR38 | BB11: =C_Time!BB$12 -> NR38 | BC11: =C_Time!BC$12 -> NR43 | BD11: =C_Time!BD$12 -> NR43 | BE11: =C_Time!BE$12 -> NR43 | BF11: =C_Time!BF$12 -> NR43 | BG11: =C_Time!BG$12 -> NR43 | BH11: =C_Time!BH$12 -> NR43 | BI11: =C_Time!BI$12 -> NR43 | BJ11: =C_Time!BJ$12 -> NR43
E12: =C_Time!E$13 -> Forecast/ Post forecast vs Actuals | G12: =C_Time!G$13 -> flag | AA12: =C_Time!AA$13 -> Actual | AB12: =C_Time!AB$13 -> Actual | AC12: =C_Time!AC$13 -> Actual | AD12: =C_Time!AD$13 -> Actual | AE12: =C_Time!AE$13 -> Actual | AF12: =C_Time!AF$13 -> Actual | AG12: =C_Time!AG$13 -> Forecast | AH12: =C_Time!AH$13 -> Forecast | AI12: =C_Time!AI$13 -> Forecast | AJ12: =C_Time!AJ$13 -> Forecast | AK12: =C_Time!AK$13 -> Forecast | AL12: =C_Time!AL$13 -> Forecast | AM12: =C_Time!AM$13 -> Forecast | AN12: =C_Time!AN$13 -> Forecast | AO12: =C_Time!AO$13 -> Forecast | AP12: =C_Time!AP$13 -> Forecast | AQ12: =C_Time!AQ$13 -> Forecast | AR12: =C_Time!AR$13 -> Forecast | AS12: =C_Time!AS$13 -> Forecast | AT12: =C_Time!AT$13 -> Forecast | AU12: =C_Time!AU$13 -> Forecast | AV12: =C_Time!AV$13 -> Forecast | AW12: =C_Time!AW$13 -> Forecast | AX12: =C_Time!AX$13 -> Forecast | AY12: =C_Time!AY$13 -> Forecast | AZ12: =C_Time!AZ$13 -> Forecast | BA12: =C_Time!BA$13 -> Forecast | BB12: =C_Time!BB$13 -> Forecast | BC12: =C_Time!BC$13 -> Forecast | BD12: =C_Time!BD$13 -> Forecast | BE12: =C_Time!BE$13 -> Forecast | BF12: =C_Time!BF$13 -> Forecast | BG12: =C_Time!BG$13 -> Forecast | BH12: =C_Time!BH$13 -> Forecast | BI12: =C_Time!BI$13 -> Forecast | BJ12: =C_Time!BJ$13 -> Forecast
E14: Label | F14: Constant | G14: Units | H14: Price Base | I14: Notes | J14: Data Source | L14: Confidentiality Status | Y14: Total
A15: NERL
B16: 3.a Indexation
D18: Active Indexation (Base Year = 1)
